Workbook

Sheet RIS
A1: BridgeMania 2018-19 " Formula 23 " | E1: 1 | F1: 2 | G1: 3 | H1: 4 | I1: 5 | J1: 6 | K1: 7 | L1: 8 | M1: 9 | N1: 10 | O1: 11 | P1: 12 | Q1: 13 | R1: 14 | S1: 15 | T1: 16 | U1: 17 | V1: 18 | W1: 19 | X1: 20 | Y1: 21 | Z1: 22 | AA1: 23 | AB1: 24 | AC1: 25 | AD1: 26 | AE1: 27 | AF1: 28 | AG1: 29 | AH1: 30 | AI1: 31 | AJ1: 32 | AK1: 33 | AL1: 34 | AM1: 35 | AN1: 36 | AO1: 37 | AP1: 38 | AQ1: 39 | AR1: 40 | AS1: 41 | AT1: 42 | AU1: 43 | AV1: 44 | AW1: 45 | AX1: 46 | AY1: 47 | AZ1: 48 | BA1: 49 | BB1: 50
A2: ctrl+q | C2: ctrl+s | D2: data | E2: 2018-09-15 | F2: 2018-10-06 | G2: 2018-10-13 | H2: 2018-10-20 | I2: 2018-10-27 | J2: 2018-11-10 | K2: 2018-11-17 | L2: 2018-12-01 | M2: 2018-12-08 | N2: 2018-12-12 | O2: 2018-12-22 | P2: 2019-01-12 | Q2: 2019-01-26 | R2: 2019-02-09 | S2: 2019-02-16 | T2: 2019-02-23 | U2: 2019-03-16 | V2: 2019-04-13 | W2: 2019-04-27 | X2: 11-5 | Y2: 2019-05-18 | Z2: 2019-05-25 | AA2: 2019-06-01 | AB2: 2019-06-29 | AC2: 2019-07-06
B3: selez. cella | D3: luogo | E3: DeS | F3: Gubbio | G3: Sim | H3: Sav | I3: Pol | J3: Tor | K3: Pre | L3: Pol | M3: Mal | N3: 2Ponti | O3: Sim | P3: DeS | Q3: Sav | R3: Sim | S3: DeS | T3: Tor | U3: Cat | V3: Pre | W3: Pol | X3: Sav | Y3: Mal | Z3: Sim | AA3: DeS | AB3: Pol | AC3: Tor
A4: ctrl+r | B4: (riga 6) | C4: ctrl+t | D4: coppie-mani | E4: 11-22 | F4: 8-35 | G4: 10-18 | H4: 10-18 | I4: 11-22 | J4: 8-21 | K4: 8-21 | L4: 8-21 | M4: 8-21 | N4: 24-22 | O4: 12-22 | P4: 11-22 | Q4: 9-18 | R4: 9-18 | S4: 10-18 | T4: 8-21 | U4: 9-18 | V4: 8-21 | W4: 10-18 | X4: 11-22 | Y4: 7-21 | Z4: 9-18 | AA4: 11-22 | AB4: 7-21 | AC4: 7-21
A5: Punteggio | B5: Class. | C5: Coppie | E5: =IF(SUM(E6:E55)=0,"",SUM(E6:E55)) -> 550 | F5: =IF(SUM(F6:F55)=0,"",SUM(F6:F55)) -> 400 | G5: 500 | H5: 500 | I5: 550 | J5: 400 | K5: 400 | L5: 400 | M5: 400 | N5: 1200 | O5: 600 | P5: 550 | Q5: 450 | R5: 450 | S5: 500 | T5: 400 | U5: 450 | V5: 400 | W5: 500 | X5: 550 | Y5: 350 | Z5: 450 | AA5: 550 | AB5: 350 | AC5: 350
A6: =IF(SUM(E6:BB6)=0,0,SUMIF(E6:BB6,">0")/COUNTIF(E6:BB6,">0")) -> 63.95833333 | B6: 1 | C6: Biscarini | D6: Biscarini | N6: 63.95833333 | BC6: =IF(B6="","",IF(C6="","","#")) -> # | BF6: 26
A7: 61.25 | B7: 2 | C7: Bibbo | D7: Maturi | N7: 61.25 | BC7: # | BF7: 23
A8: 58.33333333 | B8: 3 | C8: Rossi | D8: Terreno | N8: 58.33333333 | BC8: # | BF8: 15
A9: 58.125 | B9: 4 | C9: Galassi | D9: Delle Piane | N9: 58.125 | BC9: # | BF9: 25
A10: 58.04262867 | B10: 5 | C10: Stefania | D10: Massimo | H10: 54.86111111 | I10: 52.27272727 | O10: 69.54545455 | P10: 44.31818182 | Q10: 62.03703704 | R10: 57.40740741 | S10: 60.41666667 | V10: 74.6031746 | X10: 52.27272727 | AA10: 55.68181818 | AB10: 50 | AC10: 63.0952381 | BC10: # | BF10: 10
A11: 55.625 | B11: 6 | C11: Barbarti | D11: Messica | N11: 55.625 | BC11: # | BF11: 28
A12: 55.57336077 | B12: 7 | C12: Elena | D12: Stefano | E12: 62.5 | F12: 56.66666667 | G12: 49.30555556 | H12: 47.22222222 | I12: 41.47727273 | J12: 50 | N12: 50.20833333 | O12: 57.72727273 | P12: 50.56818182 | Q12: 50 | R12: 52.77777778 | S12: 63.19444444 | T12: 58.73015873 | U12: 50 | V12: 58.73015873 | W12: 68.05555556 | X12: 58.52272727 | Y12: 58.33333333 | Z12: 68.51851852 | AA12: 53.40909091 | AB12: 60.71428571 | AC12: 55.95238095 | BC12: # | BF12: 4
A13: 54.79166667 | B13: 8 | C13: Capello | D13: Guerra | N13: 54.79166667 | BC13: # | BF13: 27
A14: 53.33333333 | B14: 9 | C14: Belli | D14: Marini | N14: 53.33333333 | BC14: # | BF14: 24
A15: 52.91895142 | B15: 10 | C15: Letizia | D15: Enzo | F15: 55.71428571 | N15: 53.33333333 | O15: 45.90909091 | X15: 42.04545455 | Z15: 67.59259259 | BC15: # | BF15: 14
A16: 51.99116162 | B16: 11 | C16: A.Maria | D16: Claudio | E16: 45.45454545 | N16: 47.70833333 | S16: 58.33333333 | W16: 46.52777778 | AA16: 61.93181818 | BC16: # | BF16: 13
A17: 51.66021575 | B17: 12 | C17: Barbara | D17: Elio | E17: 56.81818182 | F17: 50.47619048 | G17: 50 | H17: 50 | I17: 54.54545455 | J17: 53.96825397 | K17: 61.9047619 | L17: 53.96825397 | M17: 49.20634921 | N17: 56.04166667 | O17: 40.90909091 | P17: 57.38636364 | Q17: 41.66666667 | R17: 54.62962963 | S17: 52.08333333 | T17: 58.73015873 | U17: 54.62962963 | V17: 40.47619048 | W17: 52.08333333 | X17: 61.36363636 | Z17: 45.37037037 | AA17: 47.15909091 | AB17: 48.80952381 | AC17: 47.61904762 | BC17: # | BF17: 2
A18: 51.06102231 | B18: 13 | C18: Renata | D18: Sandro | E18: 45.45454545 | G18: 52.08333333 | H18: 52.77777778 | I18: 50 | L18: 54.76190476 | M18: 53.17460317 | O18: 55 | P18: 51.13636364 | W18: 54.16666667 | X18: 46.02272727 | Y18: 52.38095238 | AA18: 53.97727273 | AC18: 42.85714286 | BC18: # | BF18: 9
A19: 50.3505291 | B19: 14 | C19: Manuela | D19: Roberto | E19: 48.29545455 | G19: 50.69444444 | H19: 37.5 | I19: 55.11363636 | J19: 54.76190476 | K19: 57.14285714 | L19: 46.82539683 | M19: 50.79365079 | N19: 54.16666667 | O19: 49.54545455 | P19: 61.93181818 | Q19: 53.7037037 | R19: 50 | S19: 49.30555556 | T19: 57.14285714 | U19: 49.07407407 | W19: 54.16666667 | X19: 43.75 | Y19: 45.23809524 | Z19: 46.2962963 | AA19: 42.61363636 | AB19: 53.57142857 | AC19: 46.42857143 | BC19: # | BF19: 7
A20: 50.15628758 | B20: 15 | C20: Antonella | D20: Dino | E20: 45.45454545 | F20: 46.66666667 | G20: 47.91666667 | H20: 59.72222222 | I20: 56.25 | J20: 53.96825397 | K20: 55.55555556 | L20: 80.95238095 | M20: 51.58730159 | N20: 46.04166667 | O20: 52.72727273 | P20: 48.86363636 | Q20: 33.33333333 | R20: 40.74074074 | S20: 41.66666667 | T20: 44.44444444 | U20: 49.07407407 | V20: 57.14285714 | W20: 58.33333333 | X20: 55.11363636 | Z20: 37.96296296 | AA20: 42.61363636 | AB20: 51.19047619 | AC20: 46.42857143 | BC20: # | BF20: 1
A21: 49.2003701 | B21: 16 | C21: Isolde | D21: Cristina | G21: 51.38888889 | I21: 49.43181818 | K21: 44.44444444 | N21: 46.04166667 | O21: 45 | P21: 60.79545455 | S21: 43.05555556 | U21: 57.40740741 | V21: 45.23809524 | BC21: # | BF21: 5
A22: 48.83604147 | B22: 17 | C22: Tatiana | D22: Julio | E22: 60.22727273 | F22: 45.23809524 | G22: 43.05555556 | H22: 54.86111111 | I22: 44.88636364 | J22: 51.58730159 | K22: 60.31746032 | L22: 39.68253968 | M22: 43.65079365 | N22: 49.375 | O22: 55.90909091 | P22: 40.90909091 | Q22: 46.2962963 | R22: 40.74074074 | T22: 53.17460317 | U22: 57.40740741 | V22: 40.47619048 | W22: 50.69444444 | X22: 56.81818182 | Y22: 44.04761905 | Z22: 48.14814815 | AA22: 51.70454545 | AB22: 45.23809524 | AC22: 47.61904762 | BC22: # | BF22: 11
A23: 47.85270506 | B23: 18 | C23: Olimpia | D23: Sauro | E23: 47.72727273 | F23: 51.42857143 | G23: 62.5 | H23: 52.77777778 | I23: 53.40909091 | J23: 36.50793651 | K23: 41.26984127 | L23: 45.23809524 | M23: 47.61904762 | N23: 53.33333333 | O23: 45.90909091 | P23: 53.97727273 | Q23: 50.92592593 | R23: 54.62962963 | S23: 38.88888889 | U23: 57.40740741 | V23: 42.85714286 | W23: 27.08333333 | X23: 48.29545455 | Y23: 44.04761905 | Z23: 49.07407407 | BC23: # | BF23: 8
A24: 47.5 | B24: 19 | C24: Sabbatini | D24: Sabbatini | N24: 47.5 | BC24: # | BF24: 19
A25: 46.5080267 | B25: 20 | C25: Cesarina | D25: Gaetano | E25: 49.43181818 | G25: 55.55555556 | H25: 49.30555556 | I25: 38.06818182 | K25: 41.26984127 | L25: 40.47619048 | M25: 57.14285714 | O25: 40 | P25: 42.61363636 | Q25: 50 | R25: 58.33333333 | S25: 45.83333333 | T25: 40.47619048 | U25: 41.66666667 | V25: 40.47619048 | X25: 44.31818182 | Y25: 52.38095238 | Z25: 47.22222222 | AA25: 55.11363636 | AB25: 40.47619048 | BC25: # | BF25: 3
A26: 45.83333333 | B26: 21 | C26: Carcano | D26: Mioni | N26: 45.83333333 | BC26: # | BF26: 17
A27: 45.83333333 | B27: 22 | C27: Barelli | D27: Negretti | N27: 45.83333333 | BC27: # | BF27: 22
A28: 44.82354877 | B28: 23 | C28: Lilli | D28: Gianni | E28: 48.29545455 | F28: 47.14285714 | G28: 37.5 | H28: 40.97222222 | I28: 54.54545455 | J28: 51.58730159 | K28: 38.0952381 | M28: 46.82539683 | O28: 41.81818182 | P28: 37.5 | Q28: 62.03703704 | R28: 40.74074074 | T28: 43.65079365 | U28: 33.33333333 | W28: 50.69444444 | X28: 41.47727273 | Y28: 53.57142857 | Z28: 39.81481481 | AA28: 42.04545455 | BC28: # | BF28: 6
A29: 44.79166667 | B29: 24 | C29: Diomedi | D29: Bisacchi | N29: 44.79166667 | BC29: # | BF29: 16
A30: 43.6941839 | B30: 25 | C30: Marilena | D30: Sergio | E30: 40.34090909 | F30: 46.66666667 | J30: 47.61904762 | L30: 38.0952381 | N30: 47.70833333 | S30: 47.22222222 | T30: 43.65079365 | W30: 38.19444444 | AA30: 43.75 | BC30: # | BF30: 12
A31: 42.70833333 | B31: 26 | C31: Gautier | D31: Maltese | N31: 42.70833333 | BC31: # | BF31: 20
A32: 37.91666667 | B32: 27 | C32: Lefevere | D32: Grandi | N32: 37.91666667 | BC32: # | BF32: 18
A33: 26.04166667 | B33: 28 | C33: Buratti | D33: Lauretti | N33: 26.04166667 | BC33: # | BF33: 21
A34: 0 | B34: 29 | BF34: 29
A35: 0 | B35: 30 | BF35: 30
A36: 0 | B36: 31 | BF36: 31
A37: 0 | B37: 32 | BF37: 32
A38: =IF(SUM(E38:BB38)=0,0,SUMIF(E38:BB38,">0")/COUNTIF(E38:BB38,">0")) -> 0 | B38: 33 | BC38: =IF(B38="","",IF(C38="","","#")) ->  | BF38: 33
A39: 0 | B39: 34 | BF39: 34
A40: 0 | B40: 35 | BF40: 35
A41: 0 | B41: 36 | BF41: 36
A42: 0 | B42: 37 | BF42: 37
A43: 0 | B43: 38 | BF43: 38
A44: 0 | B44: 39 | BF44: 39
A45: 0 | B45: 40 | BF45: 40
A46: 0 | B46: 41 | BF46: 41
A47: 0 | B47: 42 | BF47: 42
A48: 0 | B48: 43 | BF48: 43
A49: 0 | B49: 44 | BF49: 44
A50: 0 | B50: 45 | BF50: 45
A51: 0 | B51: 46 | BF51: 46
A52: 0 | B52: 47 | BF52: 47
A53: 0 | B53: 48 | BF53: 48
A54: 0 | B54: 49 | BF54: 49
A55: 0 | B55: 50 | BF55: 50
A58: Punteggi campionato aggiornati delle 11 coppie base (con scarti)
A59: pronti per essere copiati in P (con la macro ctrl+u)
A60: I punteggi (col.A) sono elencati nello stesso ordine (alfabetico) che le coppie corrispondenti hanno nel foglio P
A61: 214 | B61: =IF(P!C6="","",MATCH(P!B6,$C$81:$C$91,0)) -> 4 | C61: Antonella | D61: Dino
A62: 255 | B62: =IF(P!C7="","",MATCH(P!B7,$C$81:$C$91,0)) -> 2 | C62: Barbara | D62: Elio
A63: 161 | B63: =IF(P!C8="","",MATCH(P!B8,$C$81:$C$91,0)) -> 8 | C63: Cesarina | D63: Gaetano
A64: 266 | B64: =IF(P!C9="","",MATCH(P!B9,$C$81:$C$91,0)) -> 1 | C64: Elena | D64: Stefano
A65: 93 | B65: =IF(P!C10="","",MATCH(P!B10,$C$81:$C$91,0)) -> 11 | C65: Isolde | D65: Cristina
A66: 111 | B66: =IF(P!C11="","",MATCH(P!B11,$C$81:$C$91,0)) -> 10 | C66: Lilli | D66: Gianni
A67: 233 | B67: =IF(P!C12="","",MATCH(P!B12,$C$81:$C$91,0)) -> 3 | C67: Manuela | D67: Roberto
A68: 198 | B68: =IF(P!C13="","",MATCH(P!B13,$C$81:$C$91,0)) -> 5 | C68: Olimpia | D68: Sauro
A69: 142 | B69: =IF(P!C14="","",MATCH(P!B14,$C$81:$C$91,0)) -> 9 | C69: Renata | D69: Sandro
A70: 174 | B70: =IF(P!C15="","",MATCH(P!B15,$C$81:$C$91,0)) -> 7 | C70: Stefania | D70: Massimo
A71: 195 | B71: =IF(P!C16="","",MATCH(P!B16,$C$81:$C$91,0)) -> 6 | C71: Tatiana | D71: Julio
A76: =A1 -> BridgeMania 2018-19 " Formula 23 " | E76: 1 | F76: 2 | G76: 3 | H76: 4 | I76: 5 | J76: 6 | K76: 7 | L76: 8 | M76: 9 | N76: 10 | O76: 11 | P76: 12 | Q76: 13 | R76: 14 | S76: 15 | T76: 16 | U76: 17 | V76: 18 | W76: 19 | X76: 20 | Y76: 21 | Z76: 22 | AA76: 23 | AB76: 24 | AC76: 25 | AD76: 26 | AE76: 27 | AF76: 28 | AG76: 29 | AH76: 30 | AI76: 31 | AJ76: 32 | AK76: 33 | AL76: 34 | AM76: 35 | AN76: 36 | AO76: 37 | AP76: 38 | AQ76: 39 | AR76: 40 | AS76: 41 | AT76: 42 | AU76: 43 | AV76: 44 | AW76: 45 | AX76: 46 | AY76: 47 | AZ76: 48 | BA76: 49 | BB76: 50
D77: data | E77: =IF(E2="","",E2) -> 2018-09-15 | F77: =IF(F2="","",F2) -> 2018-10-06 | G77: 2018-10-13 | H77: 2018-10-20 | I77: =IF(I2="","",I2) -> 2018-10-27 | J77: 2018-11-10 | K77: 2018-11-17 | L77: 2018-12-01 | M77: 2018-12-08 | N77: 2018-12-12 | O77: 2018-12-22 | P77: 2019-01-12 | Q77: 2019-01-26 | R77: 2019-02-09 | S77: 2019-02-16 | T77: 2019-02-23 | U77: 2019-03-16 | V77: 2019-04-13 | W77: 2019-04-27 | X77: 11-5 | Y77: 2019-05-18 | Z77: 2019-05-25 | AA77: =IF(AA2="","",AA2) -> 2019-06-01 | AB77: 2019-06-29 | AC77: 2019-07-06
B78: selez. cella | C78: ctrl+c | D78: luogo | E78: =IF(E3="","",E3) -> DeS | F78: =IF(F3="","",F3) -> Gubbio | G78: Sim | H78: Sav | I78: =IF(I3="","",I3) -> Pol | J78: Tor | K78: Pre | L78: Pol | M78: Mal | N78: 2Ponti | O78: Sim | P78: DeS | Q78: Sav | R78: Sim | S78: DeS | T78: Tor | U78: Cat | V78: Pre | W78: Pol | X78: Sav | Y78: Mal | Z78: Sim | AA78: =IF(AA3="","",AA3) -> DeS | AB78: Pol | AC78: Tor
B79: (riga 81) | D79: coppie-mani | E79: =IF(E4="","",E4) -> 11-22 | F79: =IF(F4="","",F4) -> 8-35 | G79: 10-18 | H79: 10-18 | I79: =IF(I4="","",I4) -> 11-22 | J79: 8-21 | K79: 8-21 | L79: 8-21 | M79: 8-21 | N79: 24-22 | O79: 12-22 | P79: 11-22 | Q79: 9-18 | R79: 9-18 | S79: 10-18 | T79: 8-21 | U79: 9-18 | V79: 8-21 | W79: 10-18 | X79: 11-22 | Y79: 7-21 | Z79: 9-18 | AA79: =IF(AA4="","",AA4) -> 11-22 | AB79: 7-21 | AC79: 7-21
A80: Punteggio | B80: Class. | C80: Coppie base | E80: =IF(E5="","",E5) -> 550 | F80: 400 | G80: 500 | H80: 500 | I80: 550 | J80: 400 | K80: 400 | L80: 400 | M80: 400 | N80: 1200 | O80: 600 | P80: 550 | Q80: 450 | R80: 450 | S80: 500 | T80: 400 | U80: 450 | V80: 400 | W80: 500 | X80: 550 | Y80: 350 | Z80: 450 | AA80: 550 | AB80: 350 | AC80: 350 | BF80: #coppia base | BG80: presenze
A81: =SUM(E81:BB81) -> 266 | B81: 1 | C81: Elena | D81: Stefano | E81: 18 | F81: 12 | G81: 8 | H81: 6 | I81: 4 | J81: 4 | N81: 8 | O81: 20 | P81: 12 | Q81: 9 | R81: 10 | S81: 16 | T81: 13 | U81: 10 | V81: 14 | W81: 16 | X81: 18 | Y81: 14 | Z81: 16 | AA81: 12 | AB81: 14 | AC81: 12 | BF81: 4 | BG81: =COUNT(E81:BB81) -> 22
A82: 255 | B82: 2 | C82: Barbara | D82: Elio | E82: 14 | F82: 8 | G82: 10 | H82: 10 | I82: 17 | J82: 11 | K82: 16 | L82: 10 | M82: 8 | N82: 14 | O82: 4 | P82: 18 | Q82: 4 | R82: 13 | S82: 12 | T82: 13 | U82: 12 | V82: 4 | W82: 8 | X82: 20 | Z82: 6 | AA82: 8 | AB82: 6 | AC82: 9 | BF82: 2 | BG82: 24
A83: 233 | B83: 3 | C83: Manuela | D83: Roberto | E83: 9 | G83: 12 | H83: 2 | I83: 20 | J83: 14 | K83: 12 | L83: 8 | M83: 10 | N83: 12 | O83: 12 | P83: 22 | Q83: 14 | R83: 8 | S83: 10 | T83: 10 | U83: 7 | W83: 11 | X83: 4 | Y83: 6 | Z83: 8 | AA83: 5 | AB83: 12 | AC83: 5 | BF83: 7 | BG83: 23
A84: 214 | B84: 4 | C84: Antonella | D84: Dino | E84: 3 | F84: 4 | G84: 6 | H84: 20 | I84: 22 | J84: 11 | K84: 10 | L84: 14 | M84: 12 | N84: 3 | O84: 14 | P84: 10 | Q84: 2 | R84: 4 | S84: 4 | T84: 6 | U84: 7 | V84: 12 | W84: 14 | X84: 14 | Z84: 2 | AA84: 5 | AB84: 10 | AC84: 5 | BF84: 1 | BG84: 24
A85: 198 | B85: 5 | C85: Olimpia | D85: Sauro | E85: 6 | F85: 10 | G85: 20 | H85: 13 | I85: 14 | J85: 2 | K85: 5 | L85: 6 | M85: 6 | N85: 10 | O85: 10 | P85: 16 | Q85: 12 | R85: 13 | S85: 2 | U85: 16 | V85: 8 | W85: 2 | X85: 10 | Y85: 3 | Z85: 14 | BF85: 8 | BG85: 21
A86: 195 | B86: 6 | C86: Tatiana | D86: Julio | E86: 16 | F86: 2 | G86: 4 | H86: 17 | I86: 6 | J86: 7 | K86: 14 | L86: 2 | M86: 2 | N86: 6 | O86: 18 | P86: 4 | Q86: 6 | R86: 4 | T86: 8 | U86: 16 | V86: 4 | W86: 5 | X86: 16 | Y86: 3 | Z86: 12 | AA86: 10 | AB86: 4 | AC86: 9 | BF86: 11 | BG86: 24
A87: 174 | B87: 7 | C87: Stefania | D87: Massimo | H87: 17 | I87: 12 | O87: 22 | P87: 8 | Q87: 17 | R87: 16 | S87: 14 | V87: 16 | X87: 12 | AA87: 18 | AB87: 8 | AC87: 14 | BF87: 10 | BG87: 12
A88: 161 | B88: 8 | C88: Cesarina | D88: Gaetano | E88: 12 | G88: 18 | H88: 8 | I88: 2 | K88: 5 | L88: 4 | M88: 16 | O88: 2 | P88: 6 | Q88: 9 | R88: 18 | S88: 8 | T88: 2 | U88: 4 | V88: 4 | X88: 6 | Y88: 9 | Z88: 10 | AA88: 16 | AB88: 2 | BF88: 3 | BG88: 20
A89: 142 | B89: 9 | C89: Renata | D89: Sandro | E89: 3 | G89: 16 | H89: 13 | I89: 10 | L89: 12 | M89: 14 | O89: 16 | P89: 14 | W89: 11 | X89: 8 | Y89: 9 | AA89: 14 | AC89: 2 | BF89: 9 | BG89: 13
A90: 111 | B90: 10 | C90: Lilli | D90: Gianni | E90: 9 | F90: 6 | G90: 2 | H90: 4 | I90: 17 | J90: 7 | K90: 2 | M90: 4 | O90: 6 | P90: 2 | Q90: 17 | R90: 4 | T90: 4 | U90: 2 | W90: 5 | X90: 2 | Y90: 12 | Z90: 4 | AA90: 2 | BF90: 6 | BG90: 19
A91: 93 | B91: 11 | C91: Isolde | D91: Cristina | G91: 14 | I91: 8 | K91: 8 | N91: 3 | O91: 8 | P91: 20 | S91: 6 | U91: 16 | V91: 10 | BF91: 5 | BG91: 9
BF92: 12
BF93: 13
BF94: 14
BF95: 15
BF96: 16
BF97: 17
BF98: 18
BF99: 19
BF100: 20
BF101: 21
BF102: 22
BF103: 23
BF104: 24
BF105: 25
BF106: 26
BF107: 27
BF108: 28
BF109: 29
BF110: 30
BF111: 31
BF112: 32
BF113: 33
BF114: 34
BF115: 35
BF116: 36
BF117: 37
BF118: 38
BF119: 39
BF120: 40
BF121: 41
BF122: 42
BF123: 43
BF124: 44
BF125: 45
BF126: 46
BF127: 47
BF128: 48
BF129: 49
BF130: 50

Sheet CSTD
A1: Data | D1: BridgeMania 2018-19 - Torneo Howell
A2: luogo | D2: Coppie Ctrl+e | E2: Calcola Ctr+f Ctr+i | F2: Duplica Ctrl+g | G2: Clear Ctrl+h
A3: # coppie / # c.base | C3: =IF(B5="","",COUNT(B5:B54)) ->  | D3: =SUM(AY5:AY54) -> 0 | E3: =IF(E5="","",SUMIF(E5:E54,">0")) ->  | G3: =IF(G5="","",SUM(G5:G54)) ->  | H3: =IF(H5="","",SUM(H5:H54)) ->  | I3: =SUM(I5:I54) -> 0 | J3: =SUM(J5:J54) -> 0 | K3: =SUM(K5:K54) -> 0 | L3: =SUM(L5:L54) -> 0 | M3: 0 | N3: 0 | O3: 0 | P3: 0 | Q3: 0 | R3: 0 | S3: 0 | T3: 0 | U3: 0 | V3: 0 | W3: 0 | X3: 0 | Y3: 0 | Z3: 0 | AA3: 0 | AB3: 0 | AC3: 0 | AD3: 0 | AE3: 0 | AF3: 0 | AG3: 0 | AH3: 0 | AI3: 0 | AJ3: 0 | AK3: 0 | AL3: 0 | AM3: 0 | AN3: 0 | AO3: 0 | AP3: 0 | AQ3: 0 | AR3: 0 | AS3: 0 | AT3: 0 | AU3: 0 | AV3: 0 | AW3: 0 | AX3: 0
A4: Class. | B4: # | C4: Coppie | E4: Punteggio Serata | G4: Punteggio % | H4: Punteggio Torneo | I4: Penalità (-) | J4: Totale punti mano | K4: 1 | L4: 2 | M4: 3 | N4: 4 | O4: 5 | P4: 6 | Q4: 7 | R4: 8 | S4: 9 | T4: 10 | U4: 11 | V4: 12 | W4: 13 | X4: 14 | Y4: 15 | Z4: 16 | AA4: 17 | AB4: 18 | AC4: 19 | AD4: 20 | AE4: 21 | AF4: 22 | AG4: 23 | AH4: 24 | AI4: 25 | AJ4: 26 | AK4: 27 | AL4: 28 | AM4: 29 | AN4: 30 | AO4: 31 | AP4: 32 | AQ4: 33 | AR4: 34 | AS4: 35 | AT4: 36 | AU4: 37 | AV4: 38 | AW4: 39 | AX4: 40 | AY4: c.base presenti | AZ4: ordine c.base ad hoc | BC4: punteggi | BD4: punteggi c. base presenti | BE4: punti PTS coppie base | BF4: ordine c.base STD | BG4: Rank
A5: =IF(J$2="","",IF($E5="","",IF($E5=MAX($E$5:$E$54),1,IF($E5=$E4,$A4,COUNT($E$5:$E5))))) ->  | E5: =IF(J$2="","",IF(G5=0,0,F5+G5)) ->  | G5: =IF(J$2="","",IF($J5=0,0,(H5*$C$3/$J$3)*50)) ->  | H5: =IF(J$2="","",IF(SUM($K5:$AX5)=0,0,SUM($K5:$AX5)+$I5)) ->  | J5: =IF(B5="",0,IF(SUM($K5:$AX5)=0,0,SUM($K5:$AX5))) -> 0 | AY5: =IF(BF5>11,"",IF(B5="","",1)) ->  | BD5: =IF(AZ5>11,0,BC5) -> 0 | BE5: =IF(BD5=0,"",IF(AZ5>11,"",IF(BD5=BD4,BE4,2*(D$3-BG5)+3-COUNTIF(BG$5:BG$54,BG5)))) ->  | BG5: =RANK(BD5,BD$5:BD$15) -> 1
A6: =IF(J$2="","",IF($E6="","",IF($E6=MAX($E$5:$E$54),1,IF($E6=$E5,$A5,COUNT($E$5:$E6))))) ->  | J6: 0 | BD6: 0 | BE6: =IF(BD6=0,"",IF(AZ6>11,"",IF(BD6=BD5,BE5,2*(D$3-BG6)+3-COUNTIF(BG$5:BG$54,BG6)))) ->  | BG6: 1
A7: =IF(J$2="","",IF($E7="","",IF($E7=MAX($E$5:$E$54),1,IF($E7=$E6,$A6,COUNT($E$5:$E7))))) ->  | J7: 0 | BD7: 0 | BG7: 1
A8: =IF(J$2="","",IF($E8="","",IF($E8=MAX($E$5:$E$54),1,IF($E8=$E7,$A7,COUNT($E$5:$E8))))) ->  | J8: 0 | BD8: 0 | BG8: 1
A9: =IF(J$2="","",IF($E9="","",IF($E9=MAX($E$5:$E$54),1,IF($E9=$E8,$A8,COUNT($E$5:$E9))))) ->  | J9: 0 | BD9: 0 | BG9: 1
A10: =IF(J$2="","",IF($E10="","",IF($E10=MAX($E$5:$E$54),1,IF($E10=$E9,$A9,COUNT($E$5:$E10))))) ->  | J10: 0 | BD10: 0 | BG10: 1
A11: =IF(J$2="","",IF($E11="","",IF($E11=MAX($E$5:$E$54),1,IF($E11=$E10,$A10,COUNT($E$5:$E11))))) ->  | J11: 0 | BD11: 0 | BG11: 1
A12: =IF(J$2="","",IF($E12="","",IF($E12=MAX($E$5:$E$54),1,IF($E12=$E11,$A11,COUNT($E$5:$E12))))) ->  | J12: 0 | BD12: 0 | BG12: 1
A13: =IF(J$2="","",IF($E13="","",IF($E13=MAX($E$5:$E$54),1,IF($E13=$E12,$A12,COUNT($E$5:$E13))))) ->  | J13: 0 | BD13: 0 | BG13: 1
A14: =IF(J$2="","",IF($E14="","",IF($E14=MAX($E$5:$E$54),1,IF($E14=$E13,$A13,COUNT($E$5:$E14))))) ->  | J14: 0 | BD14: 0 | BG14: 1
A15: =IF(J$2="","",IF($E15="","",IF($E15=MAX($E$5:$E$54),1,IF($E15=$E14,$A14,COUNT($E$5:$E15))))) ->  | J15: 0 | BD15: 0 | BG15: 1
A16: =IF(J$2="","",IF($E16="","",IF($E16=MAX($E$5:$E$54),1,IF($E16=$E15,$A15,COUNT($E$5:$E16))))) ->  | J16: 0 | BD16: 0 | BG16: 1
A17: =IF(J$2="","",IF($E17="","",IF($E17=MAX($E$5:$E$54),1,IF($E17=$E16,$A16,COUNT($E$5:$E17))))) ->  | J17: 0 | BD17: 0
A18: =IF(J$2="","",IF($E18="","",IF($E18=MAX($E$5:$E$54),1,IF($E18=$E17,$A17,COUNT($E$5:$E18))))) ->  | J18: 0 | BD18: 0 | BG18: =RANK(BD18,BD$5:BD$15) -> 1
A19: =IF(J$2="","",IF($E19="","",IF($E19=MAX($E$5:$E$54),1,IF($E19=$E18,$A18,COUNT($E$5:$E19))))) ->  | J19: 0 | BD19: 0 | BG19: =RANK(BD19,BD$5:BD$15) -> 1
A20: =IF(J$2="","",IF($E20="","",IF($E20=MAX($E$5:$E$54),1,IF($E20=$E19,$A19,COUNT($E$5:$E20))))) ->  | J20: 0 | BD20: 0 | BG20: =RANK(BD20,BD$5:BD$15) -> 1
A21: =IF(J$2="","",IF($E21="","",IF($E21=MAX($E$5:$E$54),1,IF($E21=$E20,$A20,COUNT($E$5:$E21))))) ->  | J21: 0 | BD21: 0
A22: =IF(J$2="","",IF($E22="","",IF($E22=MAX($E$5:$E$54),1,IF($E22=$E21,$A21,COUNT($E$5:$E22))))) ->  | J22: 0 | BD22: 0
A23: =IF(J$2="","",IF($E23="","",IF($E23=MAX($E$5:$E$54),1,IF($E23=$E22,$A22,COUNT($E$5:$E23))))) ->  | J23: 0 | BD23: 0 | BG23: =RANK(BD23,BD$5:BD$15) -> 1
A24: =IF(J$2="","",IF($E24="","",IF($E24=MAX($E$5:$E$54),1,IF($E24=$E23,$A23,COUNT($E$5:$E24))))) ->  | J24: 0 | BD24: 0 | BG24: =RANK(BD24,BD$5:BD$15) -> 1
A25: =IF(J$2="","",IF($E25="","",IF($E25=MAX($E$5:$E$54),1,IF($E25=$E24,$A24,COUNT($E$5:$E25))))) ->  | J25: 0 | BD25: 0
A26: =IF(J$2="","",IF($E26="","",IF($E26=MAX($E$5:$E$54),1,IF($E26=$E25,$A25,COUNT($E$5:$E26))))) ->  | J26: 0 | BD26: 0 | BG26: =RANK(BD26,BD$5:BD$15) -> 1
A27: =IF(J$2="","",IF($E27="","",IF($E27=MAX($E$5:$E$54),1,IF($E27=$E26,$A26,COUNT($E$5:$E27))))) ->  | J27: 0 | BD27: 0 | BG27: =RANK(BD27,BD$5:BD$15) -> 1
A28: =IF(J$2="","",IF($E28="","",IF($E28=MAX($E$5:$E$54),1,IF($E28=$E27,$A27,COUNT($E$5:$E28))))) ->  | J28: 0 | BD28: 0 | BG28: =RANK(BD28,BD$5:BD$15) -> 1
A29: =IF(J$2="","",IF($E29="","",IF($E29=MAX($E$5:$E$54),1,IF($E29=$E28,$A28,COUNT($E$5:$E29))))) ->  | J29: 0 | BD29: 0
A30: =IF(J$2="","",IF($E30="","",IF($E30=MAX($E$5:$E$54),1,IF($E30=$E29,$A29,COUNT($E$5:$E30))))) ->  | J30: 0 | BD30: 0
A31: =IF(J$2="","",IF($E31="","",IF($E31=MAX($E$5:$E$54),1,IF($E31=$E30,$A30,COUNT($E$5:$E31))))) ->  | J31: 0 | BD31: 0
A32: =IF(J$2="","",IF($E32="","",IF($E32=MAX($E$5:$E$54),1,IF($E32=$E31,$A31,COUNT($E$5:$E32))))) ->  | J32: 0 | BD32: 0
A33: =IF(J$2="","",IF($E33="","",IF($E33=MAX($E$5:$E$54),1,IF($E33=$E32,$A32,COUNT($E$5:$E33))))) ->  | J33: 0 | BD33: 0
A34: =IF(J$2="","",IF($E34="","",IF($E34=MAX($E$5:$E$54),1,IF($E34=$E33,$A33,COUNT($E$5:$E34))))) ->  | J34: 0 | BD34: 0
A35: =IF(J$2="","",IF($E35="","",IF($E35=MAX($E$5:$E$54),1,IF($E35=$E34,$A34,COUNT($E$5:$E35))))) ->  | J35: 0 | BD35: 0
A36: =IF(J$2="","",IF($E36="","",IF($E36=MAX($E$5:$E$54),1,IF($E36=$E35,$A35,COUNT($E$5:$E36))))) ->  | J36: 0 | BD36: 0
A37: =IF(J$2="","",IF($E37="","",IF($E37=MAX($E$5:$E$54),1,IF($E37=$E36,$A36,COUNT($E$5:$E37))))) ->  | E37: =IF(J$2="","",IF(G37=0,0,F37+G37)) ->  | G37: =IF(J$2="","",IF($J37=0,0,(H37*$C$3/$J$3)*50)) ->  | H37: =IF(J$2="","",IF(SUM($K37:$AX37)=0,0,SUM($K37:$AX37)+$I37)) ->  | J37: =IF(B37="",0,IF(SUM($K37:$AX37)=0,0,SUM($K37:$AX37))) -> 0 | AY37: =IF(BF37>11,"",IF(B37="","",1)) ->  | BD37: =IF(AZ37>11,0,BC37) -> 0
A38: =IF(J$2="","",IF($E38="","",IF($E38=MAX($E$5:$E$54),1,IF($E38=$E37,$A37,COUNT($E$5:$E38))))) ->  | J38: 0 | BD38: 0
A39: =IF(J$2="","",IF($E39="","",IF($E39=MAX($E$5:$E$54),1,IF($E39=$E38,$A38,COUNT($E$5:$E39))))) ->  | J39: 0 | BD39: 0
A40: =IF(J$2="","",IF($E40="","",IF($E40=MAX($E$5:$E$54),1,IF($E40=$E39,$A39,COUNT($E$5:$E40))))) ->  | J40: 0 | BD40: 0
A41: =IF(J$2="","",IF($E41="","",IF($E41=MAX($E$5:$E$54),1,IF($E41=$E40,$A40,COUNT($E$5:$E41))))) ->  | J41: 0 | BD41: 0
A42: =IF(J$2="","",IF($E42="","",IF($E42=MAX($E$5:$E$54),1,IF($E42=$E41,$A41,COUNT($E$5:$E42))))) ->  | J42: 0 | BD42: 0
A43: =IF(J$2="","",IF($E43="","",IF($E43=MAX($E$5:$E$54),1,IF($E43=$E42,$A42,COUNT($E$5:$E43))))) ->  | J43: 0 | BD43: 0
A44: =IF(J$2="","",IF($E44="","",IF($E44=MAX($E$5:$E$54),1,IF($E44=$E43,$A43,COUNT($E$5:$E44))))) ->  | J44: 0 | BD44: 0
A45: =IF(J$2="","",IF($E45="","",IF($E45=MAX($E$5:$E$54),1,IF($E45=$E44,$A44,COUNT($E$5:$E45))))) ->  | J45: 0 | BD45: 0
A46: =IF(J$2="","",IF($E46="","",IF($E46=MAX($E$5:$E$54),1,IF($E46=$E45,$A45,COUNT($E$5:$E46))))) ->  | J46: 0 | BD46: 0
A47: =IF(J$2="","",IF($E47="","",IF($E47=MAX($E$5:$E$54),1,IF($E47=$E46,$A46,COUNT($E$5:$E47))))) ->  | J47: 0 | BD47: 0
A48: =IF(J$2="","",IF($E48="","",IF($E48=MAX($E$5:$E$54),1,IF($E48=$E47,$A47,COUNT($E$5:$E48))))) ->  | J48: 0 | BD48: 0
A49: =IF(J$2="","",IF($E49="","",IF($E49=MAX($E$5:$E$54),1,IF($E49=$E48,$A48,COUNT($E$5:$E49))))) ->  | J49: 0 | BD49: 0
A50: =IF(J$2="","",IF($E50="","",IF($E50=MAX($E$5:$E$54),1,IF($E50=$E49,$A49,COUNT($E$5:$E50))))) ->  | J50: 0 | BD50: 0
A51: =IF(J$2="","",IF($E51="","",IF($E51=MAX($E$5:$E$54),1,IF($E51=$E50,$A50,COUNT($E$5:$E51))))) ->  | J51: 0 | BD51: 0
A52: =IF(J$2="","",IF($E52="","",IF($E52=MAX($E$5:$E$54),1,IF($E52=$E51,$A51,COUNT($E$5:$E52))))) ->  | J52: 0 | BD52: 0
A53: =IF(J$2="","",IF($E53="","",IF($E53=MAX($E$5:$E$54),1,IF($E53=$E52,$A52,COUNT($E$5:$E53))))) ->  | J53: 0 | BD53: 0
A54: =IF(J$2="","",IF($E54="","",IF($E54=MAX($E$5:$E$54),1,IF($E54=$E53,$A53,COUNT($E$5:$E54))))) ->  | J54: 0 | BD54: 0
D59: punteggi torneo ordinati per # di coppia
B60: # coppia | E60: con zeri | F60: senza zeri | G60: senza zeri
F61: =IF(E61=0,"",E61) ->  | I61: =IF(H61=0,"",H61) -> 
I63: =IF(H63=0,"",H63) -> 
I65: =IF(H65=0,"",H65) -> 
I68: =IF(H68=0,"",H68) -> 
I69: =IF(H69=0,"",H69) -> 
I73: =IF(H73=0,"",H73) -> 
I74: =IF(H74=0,"",H74) -> 
I75: =IF(H75=0,"",H75) -> 
I76: =IF(H76=0,"",H76) -> 
I79: =IF(H79=0,"",H79) -> 
I80: =IF(H80=0,"",H80) -> 
F93: =IF(E93=0,"",E93) -> 
A119: PTS ordinati per numero standard di coppia base
A120: #STD | B120: PTS
BF121: 1
BF122: 2
I123: =IF(H123=0,"",H123) ->  | BF123: 3
BF124: 4
I125: =IF(H125=0,"",H125) ->  | BF125: 5
BF126: 6
I127: =IF(H127=0,"",H127) ->  | BF127: 7
BF128: 8
I129: =IF(H129=0,"",H129) ->  | BF129: 9
I130: =IF(H130=0,"",H130) ->  | BF130: 10
BF131: 11
BE200: formule punti coppie base
BE201: =IF(BD201=0,"",IF(AZ201>11,"",IF(BD201=BD200,BE200,2*(D$3-BG201)+3-COUNTIF(BG$5:BG$54,BG201)))) -> 
BE202: =IF(BD202=0,"",IF(AZ202>11,"",IF(BD202=BD201,BE201,2*(D$3-BG202)+3-COUNTIF(BG$5:BG$54,BG202)))) -> 

Sheet P
A1: BridgeMania 2018-19 " Formula 23 " | D1: =IF(RIS!E1="","",RIS!E1) -> 1 | E1: =IF(RIS!F1="","",RIS!F1) -> 2 | F1: =IF(RIS!G1="","",RIS!G1) -> 3 | G1: =IF(RIS!H1="","",RIS!H1) -> 4 | H1: =IF(RIS!I1="","",RIS!I1) -> 5 | I1: =IF(RIS!J1="","",RIS!J1) -> 6 | J1: =IF(RIS!K1="","",RIS!K1) -> 7 | K1: =IF(RIS!L1="","",RIS!L1) -> 8 | L1: =IF(RIS!M1="","",RIS!M1) -> 9 | M1: =IF(RIS!N1="","",RIS!N1) -> 10 | N1: =IF(RIS!O1="","",RIS!O1) -> 11 | O1: =IF(RIS!P1="","",RIS!P1) -> 12 | P1: =IF(RIS!Q1="","",RIS!Q1) -> 13 | Q1: =IF(RIS!R1="","",RIS!R1) -> 14 | R1: =IF(RIS!S1="","",RIS!S1) -> 15 | S1: =IF(RIS!T1="","",RIS!T1) -> 16 | T1: =IF(RIS!U1="","",RIS!U1) -> 17 | U1: =IF(RIS!V1="","",RIS!V1) -> 18 | V1: =IF(RIS!W1="","",RIS!W1) -> 19 | W1: =IF(RIS!X1="","",RIS!X1) -> 20 | X1: =IF(RIS!Y1="","",RIS!Y1) -> 21 | Y1: =IF(RIS!Z1="","",RIS!Z1) -> 22 | Z1: =IF(RIS!AA1="","",RIS!AA1) -> 23 | AA1: =IF(RIS!AB1="","",RIS!AB1) -> 24 | AB1: =IF(RIS!AC1="","",RIS!AC1) -> 25 | AC1: =IF(RIS!AD1="","",RIS!AD1) -> 26 | AD1: =IF(RIS!AE1="","",RIS!AE1) -> 27 | AE1: =IF(RIS!AF1="","",RIS!AF1) -> 28 | AF1: =IF(RIS!AG1="","",RIS!AG1) -> 29 | AG1: =IF(RIS!AH1="","",RIS!AH1) -> 30 | AH1: =IF(RIS!AI1="","",RIS!AI1) -> 31 | AI1: =IF(RIS!AJ1="","",RIS!AJ1) -> 32 | AJ1: =IF(RIS!AK1="","",RIS!AK1) -> 33 | AK1: =IF(RIS!AL1="","",RIS!AL1) -> 34 | AL1: =IF(RIS!AM1="","",RIS!AM1) -> 35 | AM1: =IF(RIS!AN1="","",RIS!AN1) -> 36 | AN1: =IF(RIS!AO1="","",RIS!AO1) -> 37 | AO1: =IF(RIS!AP1="","",RIS!AP1) -> 38 | AP1: =IF(RIS!AQ1="","",RIS!AQ1) -> 39 | AQ1: =IF(RIS!AR1="","",RIS!AR1) -> 40 | AR1: =IF(RIS!AS1="","",RIS!AS1) -> 41 | AS1: =IF(RIS!AT1="","",RIS!AT1) -> 42 | AT1: =IF(RIS!AU1="","",RIS!AU1) -> 43 | AU1: =IF(RIS!AV1="","",RIS!AV1) -> 44 | AV1: =IF(RIS!AW1="","",RIS!AW1) -> 45 | AW1: =IF(RIS!AX1="","",RIS!AX1) -> 46 | AX1: =IF(RIS!AY1="","",RIS!AY1) -> 47 | AY1: =IF(RIS!AZ1="","",RIS!AZ1) -> 48 | AZ1: =IF(RIS!BA1="","",RIS!BA1) -> 49 | BA1: =IF(RIS!BB1="","",RIS!BB1) -> 50
A2: Andamento Punteggi Campionato | C2: data | D2: =IF(RIS!E2="","",RIS!E2) -> 2018-09-15 | E2: =IF(RIS!F2="","",RIS!F2) -> 2018-10-06 | F2: =IF(RIS!G2="","",RIS!G2) -> 2018-10-13 | G2: =IF(RIS!H2="","",RIS!H2) -> 2018-10-20 | H2: =IF(RIS!I2="","",RIS!I2) -> 2018-10-27 | I2: =IF(RIS!J2="","",RIS!J2) -> 2018-11-10 | J2: =IF(RIS!K2="","",RIS!K2) -> 2018-11-17 | K2: =IF(RIS!L2="","",RIS!L2) -> 2018-12-01 | L2: =IF(RIS!M2="","",RIS!M2) -> 2018-12-08 | M2: =IF(RIS!N2="","",RIS!N2) -> 2018-12-12 | N2: =IF(RIS!O2="","",RIS!O2) -> 2018-12-22 | O2: =IF(RIS!P2="","",RIS!P2) -> 2019-01-12 | P2: =IF(RIS!Q2="","",RIS!Q2) -> 2019-01-26 | Q2: =IF(RIS!R2="","",RIS!R2) -> 2019-02-09 | R2: =IF(RIS!S2="","",RIS!S2) -> 2019-02-16 | S2: =IF(RIS!T2="","",RIS!T2) -> 2019-02-23 | T2: =IF(RIS!U2="","",RIS!U2) -> 2019-03-16 | U2: =IF(RIS!V2="","",RIS!V2) -> 2019-04-13 | V2: =IF(RIS!W2="","",RIS!W2) -> 2019-04-27 | W2: =IF(RIS!X2="","",RIS!X2) -> 11-5 | X2: =IF(RIS!Y2="","",RIS!Y2) -> 2019-05-18 | Y2: =IF(RIS!Z2="","",RIS!Z2) -> 2019-05-25 | Z2: =IF(RIS!AA2="","",RIS!AA2) -> 2019-06-01 | AA2: =IF(RIS!AB2="","",RIS!AB2) -> 2019-06-29 | AB2: =IF(RIS!AC2="","",RIS!AC2) -> 2019-07-06 | AC2: =IF(RIS!AD2="","",RIS!AD2) ->  | AD2: =IF(RIS!AE2="","",RIS!AE2) ->  | AE2: =IF(RIS!AF2="","",RIS!AF2) ->  | AF2: =IF(RIS!AG2="","",RIS!AG2) ->  | AG2: =IF(RIS!AH2="","",RIS!AH2) ->  | AH2: =IF(RIS!AI2="","",RIS!AI2) ->  | AI2: =IF(RIS!AJ2="","",RIS!AJ2) ->  | AJ2: =IF(RIS!AK2="","",RIS!AK2) -> 
C3: luogo | D3: =IF(RIS!E3="","",RIS!E3) -> DeS | E3: =IF(RIS!F3="","",RIS!F3) -> Gubbio | F3: =IF(RIS!G3="","",RIS!G3) -> Sim | G3: =IF(RIS!H3="","",RIS!H3) -> Sav | H3: =IF(RIS!I3="","",RIS!I3) -> Pol | I3: =IF(RIS!J3="","",RIS!J3) -> Tor | J3: =IF(RIS!K3="","",RIS!K3) -> Pre | K3: =IF(RIS!L3="","",RIS!L3) -> Pol | L3: =IF(RIS!M3="","",RIS!M3) -> Mal | M3: =IF(RIS!N3="","",RIS!N3) -> 2Ponti | N3: =IF(RIS!O3="","",RIS!O3) -> Sim | O3: =IF(RIS!P3="","",RIS!P3) -> DeS | P3: =IF(RIS!Q3="","",RIS!Q3) -> Sav | Q3: =IF(RIS!R3="","",RIS!R3) -> Sim | R3: =IF(RIS!S3="","",RIS!S3) -> DeS | S3: =IF(RIS!T3="","",RIS!T3) -> Tor | T3: =IF(RIS!U3="","",RIS!U3) -> Cat | U3: =IF(RIS!V3="","",RIS!V3) -> Pre | V3: =IF(RIS!W3="","",RIS!W3) -> Pol | W3: =IF(RIS!X3="","",RIS!X3) -> Sav | X3: =IF(RIS!Y3="","",RIS!Y3) -> Mal | Y3: =IF(RIS!Z3="","",RIS!Z3) -> Sim | Z3: =IF(RIS!AA3="","",RIS!AA3) -> DeS | AA3: =IF(RIS!AB3="","",RIS!AB3) -> Pol | AB3: =IF(RIS!AC3="","",RIS!AC3) -> Tor | AC3: =IF(RIS!AD3="","",RIS!AD3) ->  | AD3: =IF(RIS!AE3="","",RIS!AE3) ->  | AE3: =IF(RIS!AF3="","",RIS!AF3) ->  | AF3: =IF(RIS!AG3="","",RIS!AG3) ->  | AG3: =IF(RIS!AH3="","",RIS!AH3) ->  | AH3: =IF(RIS!AI3="","",RIS!AI3) ->  | AI3: =IF(RIS!AJ3="","",RIS!AJ3) ->  | AJ3: =IF(RIS!AK3="","",RIS!AK3) -> 
A4: ctrl+u | C4: # coppie - mani | D4: =IF(RIS!E4="","",RIS!E4) -> 11-22 | E4: =IF(RIS!F4="","",RIS!F4) -> 8-35 | F4: =IF(RIS!G4="","",RIS!G4) -> 10-18 | G4: =IF(RIS!H4="","",RIS!H4) -> 10-18 | H4: =IF(RIS!I4="","",RIS!I4) -> 11-22 | I4: =IF(RIS!J4="","",RIS!J4) -> 8-21 | J4: =IF(RIS!K4="","",RIS!K4) -> 8-21 | K4: =IF(RIS!L4="","",RIS!L4) -> 8-21 | L4: =IF(RIS!M4="","",RIS!M4) -> 8-21 | M4: =IF(RIS!N4="","",RIS!N4) -> 24-22 | N4: =IF(RIS!O4="","",RIS!O4) -> 12-22 | O4: =IF(RIS!P4="","",RIS!P4) -> 11-22 | P4: =IF(RIS!Q4="","",RIS!Q4) -> 9-18 | Q4: =IF(RIS!R4="","",RIS!R4) -> 9-18 | R4: =IF(RIS!S4="","",RIS!S4) -> 10-18 | S4: =IF(RIS!T4="","",RIS!T4) -> 8-21 | T4: =IF(RIS!U4="","",RIS!U4) -> 9-18 | U4: =IF(RIS!V4="","",RIS!V4) -> 8-21 | V4: =IF(RIS!W4="","",RIS!W4) -> 10-18 | W4: =IF(RIS!X4="","",RIS!X4) -> 11-22 | X4: =IF(RIS!Y4="","",RIS!Y4) -> 7-21 | Y4: =IF(RIS!Z4="","",RIS!Z4) -> 9-18 | Z4: =IF(RIS!AA4="","",RIS!AA4) -> 11-22 | AA4: =IF(RIS!AB4="","",RIS!AB4) -> 7-21 | AB4: =IF(RIS!AC4="","",RIS!AC4) -> 7-21 | AC4: =IF(RIS!AD4="","",RIS!AD4) ->  | AD4: =IF(RIS!AE4="","",RIS!AE4) ->  | AE4: =IF(RIS!AF4="","",RIS!AF4) ->  | AF4: =IF(RIS!AG4="","",RIS!AG4) ->  | AG4: =IF(RIS!AH4="","",RIS!AH4) ->  | AH4: =IF(RIS!AI4="","",RIS!AI4) ->  | AI4: =IF(RIS!AJ4="","",RIS!AJ4) ->  | AJ4: =IF(RIS!AK4="","",RIS!AK4) -> 
B5: Coppie base | D5: andamenti dei punteggi campionato
A6: 1 | B6: Antonella | C6: Dino | D6: 3 | E6: 7 | F6: 13 | G6: 33 | H6: 55 | I6: 66 | J6: 76 | K6: 90 | L6: 102 | M6: 105 | N6: 119 | O6: 129 | P6: 131 | Q6: 135 | R6: 139 | S6: 145 | T6: 152 | U6: 164 | V6: 178 | W6: 192 | X6: 192 | Y6: 194 | Z6: 199 | AA6: 209 | AB6: 214
A7: 2 | B7: Barbara | C7: Elio | D7: 14 | E7: 22 | F7: 32 | G7: 42 | H7: 59 | I7: 70 | J7: 86 | K7: 96 | L7: 104 | M7: 118 | N7: 122 | O7: 140 | P7: 144 | Q7: 157 | R7: 169 | S7: 182 | T7: 194 | U7: 198 | V7: 206 | W7: 226 | X7: 226 | Y7: 232 | Z7: 240 | AA7: 246 | AB7: 255
A8: 3 | B8: Cesarina | C8: Gaetano | D8: 12 | E8: 12 | F8: 30 | G8: 38 | H8: 40 | I8: 40 | J8: 45 | K8: 49 | L8: 65 | M8: 65 | N8: 67 | O8: 73 | P8: 82 | Q8: 100 | R8: 108 | S8: 110 | T8: 114 | U8: 118 | V8: 118 | W8: 124 | X8: 133 | Y8: 143 | Z8: 159 | AA8: 161 | AB8: 161
A9: 4 | B9: Elena | C9: Stefano | D9: 18 | E9: 30 | F9: 38 | G9: 44 | H9: 48 | I9: 52 | J9: 52 | K9: 52 | L9: 52 | M9: 60 | N9: 80 | O9: 92 | P9: 101 | Q9: 111 | R9: 127 | S9: 140 | T9: 150 | U9: 164 | V9: 180 | W9: 198 | X9: 212 | Y9: 228 | Z9: 240 | AA9: 254 | AB9: 266
A10: 5 | B10: Isolde | C10: Cristina | D10: 0 | E10: 0 | F10: 14 | G10: 14 | H10: 22 | I10: 22 | J10: 30 | K10: 30 | L10: 30 | M10: 33 | N10: 41 | O10: 61 | P10: 61 | Q10: 61 | R10: 67 | S10: 67 | T10: 83 | U10: 93 | V10: 93 | W10: 93 | X10: 93 | Y10: 93 | Z10: 93 | AA10: 93 | AB10: 93
A11: 6 | B11: Lilli | C11: Gianni | D11: 9 | E11: 15 | F11: 17 | G11: 21 | H11: 38 | I11: 45 | J11: 47 | K11: 47 | L11: 51 | M11: 51 | N11: 57 | O11: 59 | P11: 76 | Q11: 80 | R11: 80 | S11: 84 | T11: 86 | U11: 86 | V11: 91 | W11: 93 | X11: 105 | Y11: 109 | Z11: 111 | AA11: 111 | AB11: 111
A12: 7 | B12: Manuela | C12: Roberto | D12: 9 | E12: 9 | F12: 21 | G12: 23 | H12: 43 | I12: 57 | J12: 69 | K12: 77 | L12: 87 | M12: 99 | N12: 111 | O12: 133 | P12: 147 | Q12: 155 | R12: 165 | S12: 175 | T12: 182 | U12: 182 | V12: 193 | W12: 197 | X12: 203 | Y12: 211 | Z12: 216 | AA12: 228 | AB12: 233
A13: 8 | B13: Olimpia | C13: Sauro | D13: 6 | E13: 16 | F13: 36 | G13: 49 | H13: 63 | I13: 65 | J13: 70 | K13: 76 | L13: 82 | M13: 92 | N13: 102 | O13: 118 | P13: 130 | Q13: 143 | R13: 145 | S13: 145 | T13: 161 | U13: 169 | V13: 171 | W13: 181 | X13: 184 | Y13: 198 | Z13: 198 | AA13: 198 | AB13: 198
A14: 9 | B14: Renata | C14: Sandro | D14: 3 | E14: 3 | F14: 19 | G14: 32 | H14: 42 | I14: 42 | J14: 42 | K14: 54 | L14: 68 | M14: 68 | N14: 84 | O14: 98 | P14: 98 | Q14: 98 | R14: 98 | S14: 98 | T14: 98 | U14: 98 | V14: 109 | W14: 117 | X14: 126 | Y14: 126 | Z14: 140 | AA14: 140 | AB14: 142
A15: 10 | B15: Stefania | C15: Massimo | D15: 0 | E15: 0 | F15: 0 | G15: 17 | H15: 29 | I15: 29 | J15: 29 | K15: 29 | L15: 29 | M15: 29 | N15: 51 | O15: 59 | P15: 76 | Q15: 92 | R15: 106 | S15: 106 | T15: 106 | U15: 122 | V15: 122 | W15: 134 | X15: 134 | Y15: 134 | Z15: 152 | AA15: 160 | AB15: 174
A16: 11 | B16: Tatiana | C16: Julio | D16: 16 | E16: 18 | F16: 22 | G16: 39 | H16: 45 | I16: 52 | J16: 66 | K16: 68 | L16: 70 | M16: 76 | N16: 94 | O16: 98 | P16: 104 | Q16: 108 | R16: 108 | S16: 116 | T16: 132 | U16: 136 | V16: 141 | W16: 157 | X16: 160 | Y16: 172 | Z16: 182 | AA16: 186 | AB16: 195
C17: variazioni dei punteggi campionato
A18: 1 | B18: Antonella | C18: Dino | E18: =IF(E6="","",E6-D6) -> 4 | F18: 6 | G18: 20 | H18: 22 | I18: 11 | J18: 10 | K18: 14 | L18: 12 | M18: 3 | N18: 14 | O18: 10 | P18: 2 | Q18: 4 | R18: 4 | S18: 6 | T18: 7 | U18: 12 | V18: 14 | W18: 14 | X18: 0 | Y18: 2 | Z18: 5 | AA18: 10 | AB18: 5 | BB18: =IF(BB7="","",BB7-BA7) -> 
A19: 2 | B19: Barbara | C19: Elio | E19: =IF(E7="","",E7-D7) -> 8 | F19: 10 | G19: 10 | H19: 17 | I19: 11 | J19: 16 | K19: 10 | L19: 8 | M19: 14 | N19: 4 | O19: 18 | P19: 4 | Q19: 13 | R19: 12 | S19: 13 | T19: 12 | U19: 4 | V19: 8 | W19: 20 | X19: 0 | Y19: 6 | Z19: 8 | AA19: 6 | AB19: 9
A20: 3 | B20: Cesarina | C20: Gaetano | E20: =IF(E8="","",E8-D8) -> 0 | F20: 18 | G20: 8 | H20: 2 | I20: 0 | J20: 5 | K20: 4 | L20: 16 | M20: 0 | N20: 2 | O20: 6 | P20: 9 | Q20: 18 | R20: 8 | S20: 2 | T20: 4 | U20: 4 | V20: 0 | W20: 6 | X20: 9 | Y20: 10 | Z20: 16 | AA20: 2 | AB20: 0
A21: 4 | B21: Elena | C21: Stefano | E21: =IF(E9="","",E9-D9) -> 12 | F21: 8 | G21: 6 | H21: 4 | I21: 4 | J21: 0 | K21: 0 | L21: 0 | M21: 8 | N21: 20 | O21: 12 | P21: 9 | Q21: 10 | R21: 16 | S21: 13 | T21: 10 | U21: 14 | V21: 16 | W21: 18 | X21: 14 | Y21: 16 | Z21: 12 | AA21: 14 | AB21: 12
A22: 5 | B22: Isolde | C22: Cristina | E22: =IF(E10="","",E10-D10) -> 0 | F22: 14 | G22: 0 | H22: 8 | I22: 0 | J22: 8 | K22: 0 | L22: 0 | M22: 3 | N22: 8 | O22: 20 | P22: 0 | Q22: 0 | R22: 6 | S22: 0 | T22: 16 | U22: 10 | V22: 0 | W22: 0 | X22: 0 | Y22: 0 | Z22: 0 | AA22: 0 | AB22: 0
A23: 6 | B23: Lilli | C23: Gianni | E23: =IF(E11="","",E11-D11) -> 6 | F23: 2 | G23: 4 | H23: 17 | I23: 7 | J23: 2 | K23: 0 | L23: 4 | M23: 0 | N23: 6 | O23: 2 | P23: 17 | Q23: 4 | R23: 0 | S23: 4 | T23: 2 | U23: 0 | V23: 5 | W23: 2 | X23: 12 | Y23: 4 | Z23: 2 | AA23: 0 | AB23: 0
A24: 7 | B24: Manuela | C24: Roberto | E24: =IF(E12="","",E12-D12) -> 0 | F24: 12 | G24: 2 | H24: 20 | I24: 14 | J24: 12 | K24: 8 | L24: 10 | M24: 12 | N24: 12 | O24: 22 | P24: 14 | Q24: 8 | R24: 10 | S24: 10 | T24: 7 | U24: 0 | V24: 11 | W24: 4 | X24: 6 | Y24: 8 | Z24: 5 | AA24: 12 | AB24: 5
A25: 8 | B25: Olimpia | C25: Sauro | E25: =IF(E13="","",E13-D13) -> 10 | F25: 20 | G25: 13 | H25: 14 | I25: 2 | J25: 5 | K25: 6 | L25: 6 | M25: 10 | N25: 10 | O25: 16 | P25: 12 | Q25: 13 | R25: 2 | S25: 0 | T25: 16 | U25: 8 | V25: 2 | W25: 10 | X25: 3 | Y25: 14 | Z25: 0 | AA25: 0 | AB25: 0
A26: 9 | B26: Renata | C26: Sandro | E26: =IF(E14="","",E14-D14) -> 0 | F26: 16 | G26: 13 | H26: 10 | I26: 0 | J26: 0 | K26: 12 | L26: 14 | M26: 0 | N26: 16 | O26: 14 | P26: 0 | Q26: 0 | R26: 0 | S26: 0 | T26: 0 | U26: 0 | V26: 11 | W26: 8 | X26: 9 | Y26: 0 | Z26: 14 | AA26: 0 | AB26: 2 | BB26: =IF(BB15="","",BB15-BA15) -> 
A27: 10 | B27: Stefania | C27: Massimo | E27: =IF(E15="","",E15-D15) -> 0 | F27: 0 | G27: 17 | H27: 12 | I27: 0 | J27: 0 | K27: 0 | L27: 0 | M27: 0 | N27: 22 | O27: 8 | P27: 17 | Q27: 16 | R27: 14 | S27: 0 | T27: 0 | U27: 16 | V27: 0 | W27: 12 | X27: 0 | Y27: 0 | Z27: 18 | AA27: 8 | AB27: 14 | BB27: =IF(BB16="","",BB16-BA16) -> 
A28: 11 | B28: Tatiana | C28: Julio | E28: =IF(E16="","",E16-D16) -> 2 | F28: 4 | G28: 17 | H28: 6 | I28: 7 | J28: 14 | K28: 2 | L28: 2 | M28: 6 | N28: 18 | O28: 4 | P28: 6 | Q28: 4 | R28: 0 | S28: 8 | T28: 16 | U28: 4 | V28: 5 | W28: 16 | X28: 3 | Y28: 12 | Z28: 10 | AA28: 4 | AB28: 9 | BB28: =IF(BB17="","",BB17-BA17) -> 
A141: 46.42857143
A142: 47.61904762
A143: 0
A144: 55.95238095
A145: 0
A146: 0
A147: 46.42857143
A148: 0
A149: 42.85714286
A150: 63.0952381
A151: 47.61904762
A152: 0
A153: 0
A154: 0
A155: 0
A156: 0
A157: 0
A158: 0
A159: 0
A160: 0
A161: 0
A162: 0
A163: 0
A164: 0
A165: 0
A166: 0
A167: 0
A168: 0
A169: 0
A170: 0
A171: 0
A172: 0
A173: 0
A174: 0
A175: 0
A176: 0
A177: 0
A178: 0
A179: 0
A180: 0
A181: 0
A182: 0
A183: 0
A184: 0
A185: 0
A186: 0
A187: 0
A188: 0
A189: 0
A190: 0

Sheet turni
A1: BridgeMania 2018-19 | E1: copia lista ctrl+k | H1: cancella O/I ctrl+d | I1: Inserire O / I | J1: crea nuova lista ctrl+w | L1: BridgeMania 2018-19
A2: 29/06/2019 - 20.00 | L2: 06/07/2019 - 20.00
A3: coppie base | C3: 11 | F3: tornei | L3: coppie base | N3: 8
A4: # | B4: coppie | C4: status | D4: # coppia base | F4: giocati | G4: status code (*) | I4: O / I | J4: indice | L4: # | M4: coppie | N4: status | O4: # coppia base
A5: 1 | B5: be | C5: O | D5: 2 | F5: =INDEX(RIS!$BG$81:$BG$91,MATCH(D5,RIS!$BF$81:$BF$91,0)) -> 24 | G5: =IF(C5="A",0,IF(C5="I",1,IF(C5="O",2,3))) -> 2 | J5: =IF(I5="O",0,IF(I5="I",(MAX($F$5:$F$15)+1)*10000+A5,F5*10000+G5*100+A5)) -> 240201 | K5: 0 | L5: 1 | M5: tj | N5: =IF(K5="","",IF(K5=0,"O",IF(INT(K5/10000)=MAX(F$5:F$15)+1,"I",IF(COUNT(K$5:K5)<=$N$3,"P","A")))) -> O | O5: 11
A6: 2 | B6: sm | C6: P | D6: 10 | F6: =INDEX(RIS!$BG$81:$BG$91,MATCH(D6,RIS!$BF$81:$BF$91,0)) -> 12 | G6: 3 | J6: 120302 | K6: 110302 | L6: 2 | M6: sm | N6: =IF(K6="","",IF(K6=0,"O",IF(INT(K6/10000)=MAX(F$5:F$15)+1,"I",IF(COUNT(K$5:K6)<=$N$3,"P","A")))) -> P | O6: 10
A7: 3 | B7: cg | C7: P | D7: 3 | F7: =INDEX(RIS!$BG$81:$BG$91,MATCH(D7,RIS!$BF$81:$BF$91,0)) -> 20 | G7: 3 | I7: I | J7: 250003 | K7: 120108 | L7: 3 | M7: rs | N7: =IF(K7="","",IF(K7=0,"O",IF(INT(K7/10000)=MAX(F$5:F$15)+1,"I",IF(COUNT(K$5:K7)<=$N$3,"P","A")))) -> P | O7: 9
A8: 4 | B8: es | C8: P | D8: 4 | F8: =INDEX(RIS!$BG$81:$BG$91,MATCH(D8,RIS!$BF$81:$BF$91,0)) -> 22 | G8: 3 | J8: 220304 | K8: 210304 | L8: 4 | M8: es | N8: P | O8: 4
A9: 5 | B9: mr | C9: P | D9: 7 | F9: =INDEX(RIS!$BG$81:$BG$91,MATCH(D9,RIS!$BF$81:$BF$91,0)) -> 23 | G9: 3 | J9: 230305 | K9: 220305 | L9: 5 | M9: mr | N9: =IF(K9="","",IF(K9=0,"O",IF(INT(K9/10000)=MAX(F$5:F$15)+1,"I",IF(COUNT(K$5:K9)<=$N$3,"P","A")))) -> P | O9: 7
A10: 6 | B10: ad | C10: P | D10: 1 | F10: =INDEX(RIS!$BG$81:$BG$91,MATCH(D10,RIS!$BF$81:$BF$91,0)) -> 24 | G10: 3 | J10: 240306 | K10: 230201 | L10: 6 | M10: be | N10: =IF(K10="","",IF(K10=0,"O",IF(INT(K10/10000)=MAX(F$5:F$15)+1,"I",IF(COUNT(K$5:K10)<=$N$3,"P","A")))) -> P | O10: 2
A11: 7 | B11: tj | C11: P | D11: 11 | F11: =INDEX(RIS!$BG$81:$BG$91,MATCH(D11,RIS!$BF$81:$BF$91,0)) -> 24 | G11: 3 | I11: O | J11: 0 | K11: 230306 | L11: 7 | M11: ad | N11: =IF(K11="","",IF(K11=0,"O",IF(INT(K11/10000)=MAX(F$5:F$15)+1,"I",IF(COUNT(K$5:K11)<=$N$3,"P","A")))) -> P | O11: 1
A12: 8 | B12: rs | C12: I | D12: 9 | F12: =INDEX(RIS!$BG$81:$BG$91,MATCH(D12,RIS!$BF$81:$BF$91,0)) -> 13 | G12: 1 | J12: 130108 | K12: 240003 | L12: 8 | M12: cg | N12: =IF(K12="","",IF(K12=0,"O",IF(INT(K12/10000)=MAX(F$5:F$15)+1,"I",IF(COUNT(K$5:K12)<=$N$3,"P","A")))) -> P | O12: 3
A13: 9 | B13: lg | C13: I | D13: 6 | F13: =INDEX(RIS!$BG$81:$BG$91,MATCH(D13,RIS!$BF$81:$BF$91,0)) -> 19 | G13: 1 | I13: I | J13: 250009 | K13: 240009 | L13: 9 | M13: lg | N13: =IF(K13="","",IF(K13=0,"O",IF(INT(K13/10000)=MAX(F$5:F$15)+1,"I",IF(COUNT(K$5:K13)<=$N$3,"P","A")))) -> A | O13: 6
A14: 10 | B14: os | C14: I | D14: 8 | F14: =INDEX(RIS!$BG$81:$BG$91,MATCH(D14,RIS!$BF$81:$BF$91,0)) -> 21 | G14: 1 | I14: I | J14: 250010 | K14: 240010 | L14: 10 | M14: os | N14: =IF(K14="","",IF(K14=0,"O",IF(INT(K14/10000)=MAX(F$5:F$15)+1,"I",IF(COUNT(K$5:K14)<=$N$3,"P","A")))) -> A | O14: 8
A15: 11 | B15: ic | C15: I | D15: 5 | F15: =INDEX(RIS!$BG$81:$BG$91,MATCH(D15,RIS!$BF$81:$BF$91,0)) -> 9 | G15: 1 | I15: I | J15: 250011 | K15: 240011 | L15: 11 | M15: ic | N15: =IF(K15="","",IF(K15=0,"O",IF(INT(K15/10000)=MAX(F$5:F$15)+1,"I",IF(COUNT(K$5:K15)<=$N$3,"P","A")))) -> A | O15: 5
H16: (*) status code al turno precedente
G17: A = 0 | H17: in lista di attesa | L17: O = | M17: ospitante/organizz.
G18: I = 1 | H18: impossibilitata | L18: P = | M18: partecipante
G19: O = 2 | H19: ospitante/organizzatrice | L19: A = | M19: in lista di attesa
G20: P = 3 | H20: partecipante | L20: I = | M20: impossibilitata
A21: Istruzioni: | L21: ? = | M21: da confermare
A22: A inizio campionato estrarre a sorte la lista di riferimento; inserire i numeri estratti in A5:A15; controllare/correggere i numeri di coppia base in D5:D15.
A23: Ordinare A5:D15 per A5 crescente; copiare A5:B15 in M5:N15; copiare D5:D15 in O5:O15.
A24: In colonna I inserire manualmente gli status O ed I facendo riferimento lle coppie in colonna B.
A25: digitare ctrl + w
A27: Copiare manualmente L1:N15 nelle prime colonne libere dell'area "colonne da A a O" e "righe da 38 in poi" (per avere una memoria delle convocazioni passate)
A29: ctrl+k (solo una volta, per inizializzare l'elaborazione del nuovo turno per il torneo successivo)
A30: ctrl+d (cancella I5:I12)
A31: Per il torneo successivo inserire la data in L2:N2 e il numero delle coppie base partecipanti in N3
A32: Facendo riferimento alla colonna B, in colonna I inserire O per la coppia ospitante e I per le coppie impossibilitate.
A33: ctrl+w (elabora il turno del torneo successivo)
A34: In colonna N si legge lo status delle coppie (O - P - A - I )
A35: Se bisogna cambiare la coppia ospitante O e/o le coppie impossibilitate I e/o il numero delle coppie base partecipanti, digitare ctrl+d e poi inserire ex-novo i dati.
A38: BridgeMania 2018-19 | D38: BridgeMania 2018-19 | G38: BridgeMania 2018-19 | J38: BridgeMania 2018-19 | M38: BridgeMania 2018-19
A39: lista di riferimento | D39: 2018-09-15 | G39: Gubbio 06/10/2018 | J39: 2018-10-13 | M39: 2018-10-20
A40: coppie base | C40: 11 | D40: coppie base | F40: 11 | G40: coppie base | I40: 11 | J40: coppie base | L40: 11 | M40: coppie base | O40: 11
A41: # | B41: coppie | C41: status | D41: # | E41: coppie | F41: status | G41: # | H41: coppie | I41: status | J41: # | K41: coppie | L41: status | M41: # | N41: coppie | O41: status
A42: 1 | B42: sm | D42: 1 | E42: ad | F42: O | G42: 1 | H42: ad | I42: O | J42: 1 | K42: es | L42: O | M42: 1 | N42: sm | O42: O
A43: 2 | B43: lg | D43: 2 | E43: lg | F43: P | G43: 2 | H43: lg | I43: P | J43: 2 | K43: ic | L43: P | M43: 2 | N43: mr | O43: P
A44: 3 | B44: mr | D44: 3 | E44: mr | F44: P | G44: 3 | H44: tj | I44: P | J44: 3 | K44: mr | L44: P | M44: 3 | N44: rs | O44: P
A45: 4 | B45: ad | D45: 4 | E45: tj | F45: P | G45: 4 | H45: es | I45: P | J45: 4 | K45: rs | L45: P | M45: 4 | N45: cg | O45: P
A46: 5 | B46: tj | D46: 5 | E46: es | F46: P | G46: 5 | H46: os | I46: P | J46: 5 | K46: cg | L46: P | M46: 5 | N46: es | O46: P
A47: 6 | B47: es | D47: 6 | E47: os | F47: P | G47: 6 | H47: be | I47: P | J47: 6 | K47: ad | L47: P | M47: 6 | N47: ad | O47: P
A48: 7 | B48: os | D48: 7 | E48: be | F48: P | G48: 7 | H48: mr | I48: I | J48: 7 | K48: lg | L48: P | M48: 7 | N48: lg | O48: P
A49: 8 | B49: be | D49: 8 | E49: rs | F49: P | G49: 8 | H49: rs | I49: I | J49: 8 | K49: tj | L49: P | M49: 8 | N49: tj | O49: P
A50: 9 | B50: rs | D50: 9 | E50: cg | F50: P | G50: 9 | H50: cg | I50: I | J50: 9 | K50: os | L50: P | M50: 9 | N50: os | O50: P
A51: 10 | B51: cg | D51: 10 | E51: sm | F51: I | G51: 10 | H51: sm | I51: I | J51: 10 | K51: be | L51: P | M51: 10 | N51: be | O51: P
A52: 11 | B52: ic | D52: 11 | E52: ic | F52: I | G52: 11 | H52: ic | I52: I | J52: 11 | K52: sm | L52: I | M52: 11 | N52: ic | O52: I
A54: BridgeMania 2018-19 | D54: BridgeMania 2018-19 | G54: BridgeMania 2018-19 | J54: BridgeMania 2018-19 | M54: BridgeMania 2018-19
A55: 2018-10-27 | D55: 2018-11-10 | G55: 2018-11-17 | J55: 2018-12-01 | M55: 2018-12-08
A56: coppie base | C56: 11 | D56: coppie base | F56: 8 | G56: coppie base | I56: 11 | J56: coppie base | L56: 11 | M56: coppie base | O56: 8
A57: # | B57: coppie | C57: status | D57: # | E57: coppie | F57: status | G57: # | H57: coppie | I57: status | J57: # | K57: coppie | L57: status | M57: # | N57: coppie | O57: status
A58: 1 | B58: be | C58: O | D58: 1 | E58: tj | F58: O | G58: 1 | H58: os | I58: O | J58: 1 | K58: be | L58: O | M58: 1 | N58: lg | O58: O
A59: 2 | B59: ic | C59: P | D59: 2 | E59: mr | F59: P | G59: 2 | H59: ic | I59: P | J59: 2 | K59: rs | L59: P | M59: 2 | N59: rs | O59: P
A60: 3 | B60: sm | C60: P | D60: 3 | E60: be | F60: P | G60: 3 | H60: cg | I60: P | J60: 3 | K60: cg | L60: P | M60: 3 | N60: cg | O60: P
A61: 4 | B61: mr | C61: P | D61: 4 | E61: es | F61: P | G61: 4 | H61: mr | I61: P | J61: 4 | K61: mr | L61: P | M61: 4 | N61: mr | O61: P
A62: 5 | B62: rs | C62: P | D62: 5 | E62: ad | F62: P | G62: 5 | H62: tj | I62: P | J62: 5 | K62: os | L62: P | M62: 5 | N62: be | O62: P
A63: 6 | B63: cg | C63: P | D63: 6 | E63: lg | F63: P | G63: 6 | H63: be | I63: P | J63: 6 | K63: tj | L63: P | M63: 6 | N63: os | O63: P
A64: 7 | B64: es | C64: P | D64: 7 | E64: os | F64: P | G64: 7 | H64: ad | I64: P | J64: 7 | K64: ad | L64: P | M64: 7 | N64: tj | O64: P
A65: 8 | B65: ad | C65: P | D65: 8 | E65: ic | F65: I | G65: 8 | H65: lg | I65: P | J65: 8 | K65: ic | L65: I | M65: 8 | N65: ad | O65: P
A66: 9 | B66: lg | C66: P | D66: 9 | E66: sm | F66: I | G66: 9 | H66: es | I66: I | J66: 9 | K66: lg | L66: I | M66: 9 | N66: ic | O66: I
A67: 10 | B67: tj | C67: P | D67: 10 | E67: rs | F67: I | G67: 10 | H67: sm | I67: I | J67: 10 | K67: es | L67: I | M67: 10 | N67: es | O67: I
A68: 11 | B68: os | C68: P | D68: 11 | E68: cg | F68: I | G68: 11 | H68: rs | I68: I | J68: 11 | K68: sm | L68: I | M68: 11 | N68: sm | O68: I
A70: BridgeMania 2018-19 | D70: BridgeMania 2018-19 | G70: BridgeMania 2018-19 | J70: BridgeMania 2018-19 | M70: BridgeMania 2018-19
A71: 2018-12-22 | D71: 2019-01-12 | G71: 2019-01-26 | J71: 2019-02-09 | M71: 2019-02-16
A72: coppie base | C72: 11 | D72: coppie base | F72: 11 | G72: coppie base | I72: 11 | J72: coppie base | L72: 11 | M72: coppie base | O72: 11
A73: # | B73: coppie | C73: status | D73: # | E73: coppie | F73: status | G73: # | H73: coppie | I73: status | J73: # | K73: coppie | L73: status | M73: # | N73: coppie | O73: status
A74: 1 | B74: es | C74: O | D74: 1 | E74: ad | F74: O | G74: 1 | H74: sm | I74: O | J74: 1 | K74: es | L74: O | M74: 1 | N74: ad | O74: O
A75: 2 | B75: sm | C75: P | D75: 2 | E75: sm | F75: P | G75: 2 | H75: es | I75: P | J75: 2 | K75: sm | L75: P | M75: 2 | N75: ic | O75: P
A76: 3 | B76: ic | C76: P | D76: 3 | E76: ic | F76: P | G76: 3 | H76: cg | I76: P | J76: 3 | K76: cg | L76: P | M76: 3 | N76: sm | O76: P
A77: 4 | B77: rs | C77: P | D77: 4 | E77: rs | F77: P | G77: 4 | H77: lg | I77: P | J77: 4 | K77: lg | L77: P | M77: 4 | N77: es | O77: P
A78: 5 | B78: cg | C78: P | D78: 5 | E78: es | F78: P | G78: 5 | H78: mr | I78: P | J78: 5 | K78: mr | L78: P | M78: 5 | N78: cg | O78: P
A79: 6 | B79: lg | C79: P | D79: 6 | E79: cg | F79: P | G79: 6 | H79: ad | I79: P | J79: 6 | K79: ad | L79: P | M79: 6 | N79: mr | O79: P
A80: 7 | B80: mr | C80: P | D80: 7 | E80: lg | F80: P | G80: 7 | H80: be | I80: P | J80: 7 | K80: be | L80: P | M80: 7 | N80: be | O80: P
A81: 8 | B81: be | C81: P | D81: 8 | E81: mr | F81: P | G81: 8 | H81: os | I81: P | J81: 8 | K81: os | L81: P | M81: 8 | N81: os | O81: P
A82: 9 | B82: os | C82: P | D82: 9 | E82: be | F82: P | G82: 9 | H82: tj | I82: P | J82: 9 | K82: tj | L82: P | M82: 9 | N82: lg | O82: I
A83: 10 | B83: tj | C83: P | D83: 10 | E83: os | F83: P | G83: 10 | H83: ic | I83: I | J83: 10 | K83: ic | L83: I | M83: 10 | N83: tj | O83: I
A84: 11 | B84: ad | C84: P | D84: 11 | E84: tj | F84: P | G84: 11 | H84: rs | I84: I | J84: 11 | K84: rs | L84: I | M84: 11 | N84: rs | O84: I
A86: BridgeMania 2018-19 | D86: BridgeMania 2018-19 | G86: BridgeMania 2018-19 | J86: BridgeMania 2018-19 | M86: BridgeMania 2018-19
A87: 2019-02-23 | D87: 2019-03-16 | G87: 2019-04-13 | J87: 2019-04-27 | M87: 2019-05-18
A88: coppie base | C88: 8 | D88: coppie base | F88: 9 | G88: coppie base | I88: 11 | J88: coppie base | L88: 11 | M88: coppie base | O88: 9
A89: # | B89: coppie | C89: status | D89: # | E89: coppie | F89: status | G89: # | H89: coppie | I89: status | J89: # | K89: coppie | L89: status | M89: # | N89: coppie | O89: status
A90: 1 | B90: tj | C90: O | D90: 1 | E90: cg | F90: O | G90: 1 | H90: os | I90: O | J90: 1 | K90: be | L90: O | M90: 1 | N90: lg | O90: O
A91: 2 | B91: lg | C91: P | D91: 2 | E91: ic | F91: P | G91: 2 | H91: sm | I91: P | J91: 2 | K91: rs | L91: P | M91: 2 | N91: rs | O91: P
A92: 3 | B92: es | C92: P | D92: 3 | E92: lg | F92: P | G92: 3 | H92: ic | I92: P | J92: 3 | K92: lg | L92: P | M92: 3 | N92: cg | O92: P
A93: 4 | B93: cg | C93: P | D93: 4 | E93: es | F93: P | G93: 4 | H93: cg | I93: P | J93: 4 | K93: es | L93: P | M93: 4 | N93: es | O93: P
A94: 5 | B94: mr | C94: P | D94: 5 | E94: os | F94: P | G94: 5 | H94: es | I94: P | J94: 5 | K94: mr | L94: P | M94: 5 | N94: mr | O94: P
A95: 6 | B95: ad | C95: P | D95: 6 | E95: tj | F95: P | G95: 6 | H95: tj | I95: P | J95: 6 | K95: os | L95: P | M95: 6 | N95: os | O95: P
A96: 7 | B96: be | C96: P | D96: 7 | E96: mr | F96: P | G96: 7 | H96: ad | I96: P | J96: 7 | K96: tj | L96: P | M96: 7 | N96: tj | O96: P
A97: 8 | B97: ic | C97: I | D97: 8 | E97: ad | F97: P | G97: 8 | H97: be | I97: P | J97: 8 | K97: ad | L97: P | M97: 8 | N97: sm | O97: I
A98: 9 | B98: sm | C98: I | D98: 9 | E98: be | F98: P | G98: 9 | H98: lg | I98: I | J98: 9 | K98: sm | L98: I | M98: 9 | N98: be | O98: I
A99: 10 | B99: os | C99: I | D99: 10 | E99: sm | F99: I | G99: 10 | H99: mr | I99: I | J99: 10 | K99: ic | L99: I | M99: 10 | N99: ad | O99: I
A100: 11 | B100: rs | C100: I | D100: 11 | E100: rs | F100: I | G100: 11 | H100: rs | I100: I | J100: 11 | K100: cg | L100: I | M100: 11 | N100: ic | O100: I
A102: BridgeMania 2018-19 | D102: BridgeMania 2018-19 | G102: BridgeMania 2018-19
A103: 25/05/2019 - 19.30 | D103: 01/06/2019 - ore 20.00 | G103: 29/06/2019 - 20.00
A104: coppie base | C104: 11 | D104: coppie base | F104: 11 | G104: coppie base | I104: 11
A105: # | B105: coppie | C105: status | D105: # | E105: coppie | F105: status | G105: # | H105: coppie | I105: status
A106: 1 | B106: es | C106: O | D106: 1 | E106: ad | F106: O | G106: 1 | H106: be | I106: O
A107: 2 | B107: rs | C107: P | D107: 2 | E107: sm | F107: P | G107: 2 | H107: sm | I107: P
A108: 3 | B108: lg | C108: P | D108: 3 | E108: rs | F108: P | G108: 3 | H108: cg | I108: P
A109: 4 | B109: cg | C109: P | D109: 4 | E109: lg | F109: P | G109: 4 | H109: es | I109: P
A110: 5 | B110: mr | C110: P | D110: 5 | E110: cg | F110: P | G110: 5 | H110: mr | I110: P
A111: 6 | B111: be | C111: P | D111: 6 | E111: es | F111: P | G111: 6 | H111: ad | I111: P
A112: 7 | B112: ad | C112: P | D112: 7 | E112: mr | F112: P | G112: 7 | H112: tj | I112: P
A113: 8 | B113: os | C113: P | D113: 8 | E113: be | F113: P | G113: 8 | H113: rs | I113: I
A114: 9 | B114: tj | C114: P | D114: 9 | E114: tj | F114: P | G114: 9 | H114: lg | I114: I
A115: 10 | B115: sm | C115: I | D115: 10 | E115: os | F115: I | G115: 10 | H115: os | I115: I
A116: 11 | B116: ic | C116: I | D116: 11 | E116: ic | F116: I | G116: 11 | H116: ic | I116: I

Sheet 6lug
A1: Data | C1: 2019-07-06 | D1: BridgeMania 2018-19 - Torneo Howell
A2: luogo | C2: Torgovnick | D2: Coppie Ctrl+e | E2: Calcola Ctr+f Ctr+i | F2: Duplica Ctrl+g | G2: Clear Ctrl+h | J2: &
A3: # coppie / # c.base | C3: =IF(B5="","",COUNT(B5:B54)) -> 7 | D3: =SUM(AY5:AY54) -> 7 | E3: =IF(E5="","",SUMIF(E5:E54,">0")) -> 350 | G3: =IF(G5="","",SUM(G5:G54)) -> 350 | H3: =IF(H5="","",SUM(H5:H54)) -> 294 | I3: =SUM(I5:I54) -> 0 | J3: =SUM(J5:J54) -> 294 | K3: =SUM(K5:K54) -> 14 | L3: =SUM(L5:L54) -> 14 | M3: 14 | N3: 14 | O3: 14 | P3: 14 | Q3: 14 | R3: 14 | S3: 14 | T3: 14 | U3: 14 | V3: 14 | W3: 14 | X3: 14 | Y3: 14 | Z3: 14 | AA3: 14 | AB3: 14 | AC3: 14 | AD3: 14 | AE3: 14 | AF3: 0 | AG3: 0 | AH3: 0 | AI3: 0 | AJ3: 0 | AK3: 0 | AL3: 0 | AM3: 0 | AN3: 0 | AO3: 0 | AP3: 0 | AQ3: 0 | AR3: 0 | AS3: 0 | AT3: 0 | AU3: 0 | AV3: 0 | AW3: 0 | AX3: 0
A4: Class. | B4: # | C4: Coppie | E4: Punteggio Serata | G4: Punteggio % | H4: Punteggio Torneo | I4: Penalità (-) | J4: Totale punti mano | K4: 1 | L4: 2 | M4: 3 | N4: 4 | O4: 5 | P4: 6 | Q4: 7 | R4: 8 | S4: 9 | T4: 10 | U4: 11 | V4: 12 | W4: 13 | X4: 14 | Y4: 15 | Z4: 16 | AA4: 17 | AB4: 18 | AC4: 19 | AD4: 20 | AE4: 21 | AF4: 22 | AG4: 23 | AH4: 24 | AI4: 25 | AJ4: 26 | AK4: 27 | AL4: 28 | AM4: 29 | AN4: 30 | AO4: 31 | AP4: 32 | AQ4: 33 | AR4: 34 | AS4: 35 | AT4: 36 | AU4: 37 | AV4: 38 | AW4: 39 | AX4: 40 | AY4: c.base presenti | AZ4: ordine c.base ad hoc | BC4: punteggi | BD4: punteggi c. base presenti | BE4: punti PTS coppie base | BF4: ordine c.base STD | BG4: Rank
A5: =IF(J$2="","",IF($E5="","",IF($E5=MAX($E$5:$E$54),1,IF($E5=$E4,$A4,COUNT($E$5:$E5))))) -> 1 | B5: 1 | C5: Stefania | D5: Massimo | E5: =IF(J$2="","",IF(G5=0,0,F5+G5)) -> 63.0952381 | G5: =IF(J$2="","",IF($J5=0,0,(H5*$C$3/$J$3)*50)) -> 63.0952381 | H5: =IF(J$2="","",IF(SUM($K5:$AX5)=0,0,SUM($K5:$AX5)+$I5)) -> 53 | J5: =IF(B5="",0,IF(SUM($K5:$AX5)=0,0,SUM($K5:$AX5))) -> 53 | K5: 2 | L5: 2 | M5: 2 | N5: 1 | O5: 2 | P5: 3 | Q5: 4 | R5: 2 | S5: 2 | T5: 4 | U5: 4 | V5: 0 | W5: 4 | X5: 3 | Y5: 4 | Z5: 2 | AA5: 3 | AB5: 4 | AC5: 3 | AD5: 0 | AE5: 2 | AY5: =IF(BF5>11,"",IF(B5="","",1)) -> 1 | AZ5: 10 | BA5: Stefania | BB5: Massimo | BC5: 63.0952381 | BD5: =IF(AZ5>11,0,BC5) -> 63.0952381 | BE5: =IF(BD5=0,"",IF(AZ5>11,"",IF(BD5=BD4,BE4,2*(D$3-BG5)+3-COUNTIF(BG$5:BG$54,BG5)))) -> 14 | BF5: 10 | BG5: =RANK(BD5,BD$5:BD$15) -> 1
A6: =IF(J$2="","",IF($E6="","",IF($E6=MAX($E$5:$E$54),1,IF($E6=$E5,$A5,COUNT($E$5:$E6))))) -> 2 | B6: 2 | C6: Elena | D6: Stefano | E6: 55.95238095 | G6: 55.95238095 | H6: 47 | J6: 47 | K6: 4 | L6: 3 | M6: 0 | N6: 2 | O6: 2 | P6: 2 | Q6: 4 | R6: 0 | S6: 2 | T6: 0 | U6: 0 | V6: 4 | W6: 0 | X6: 3 | Y6: 1 | Z6: 4 | AA6: 4 | AB6: 3 | AC6: 3 | AD6: 2 | AE6: 4 | AY6: 1 | AZ6: 4 | BA6: Elena | BB6: Stefano | BC6: 55.95238095 | BD6: 55.95238095 | BE6: =IF(BD6=0,"",IF(AZ6>11,"",IF(BD6=BD5,BE5,2*(D$3-BG6)+3-COUNTIF(BG$5:BG$54,BG6)))) -> 12 | BF6: 4 | BG6: 2
A7: =IF(J$2="","",IF($E7="","",IF($E7=MAX($E$5:$E$54),1,IF($E7=$E6,$A6,COUNT($E$5:$E7))))) -> 3 | B7: 4 | C7: Tatiana | D7: Julio | E7: 47.61904762 | G7: 47.61904762 | H7: 40 | J7: 40 | K7: 0 | L7: 1 | M7: 4 | N7: 3 | O7: 2 | P7: 1 | Q7: 2 | R7: 0 | S7: 2 | T7: 2 | U7: 2 | V7: 2 | W7: 2 | X7: 0 | Y7: 1 | Z7: 4 | AA7: 3 | AB7: 1 | AC7: 4 | AD7: 0 | AE7: 4 | AY7: 1 | AZ7: 2 | BA7: Barbara | BB7: Elio | BC7: 47.61904762 | BD7: 47.61904762 | BE7: 9 | BF7: 11 | BG7: 3
A8: =IF(J$2="","",IF($E8="","",IF($E8=MAX($E$5:$E$54),1,IF($E8=$E7,$A7,COUNT($E$5:$E8))))) -> 3 | B8: 7 | C8: Barbara | D8: Elio | E8: 47.61904762 | G8: 47.61904762 | H8: 40 | J8: 40 | K8: 3 | L8: 4 | M8: 1 | N8: 0 | O8: 2 | P8: 4 | Q8: 0 | R8: 2 | S8: 2 | T8: 0 | U8: 2 | V8: 4 | W8: 2 | X8: 4 | Y8: 3 | Z8: 0 | AA8: 0 | AB8: 1 | AC8: 2 | AD8: 2 | AE8: 2 | AY8: 1 | AZ8: 11 | BA8: Tatiana | BB8: Julio | BC8: 47.61904762 | BD8: 47.61904762 | BE8: 9 | BF8: 2 | BG8: 3
A9: =IF(J$2="","",IF($E9="","",IF($E9=MAX($E$5:$E$54),1,IF($E9=$E8,$A8,COUNT($E$5:$E9))))) -> 5 | B9: 3 | C9: Manuela | D9: Roberto | E9: 46.42857143 | G9: 46.42857143 | H9: 39 | J9: 39 | K9: 1 | L9: 0 | M9: 3 | N9: 3 | O9: 2 | P9: 1 | Q9: 2 | R9: 2 | S9: 2 | T9: 2 | U9: 0 | V9: 2 | W9: 4 | X9: 1 | Y9: 3 | Z9: 0 | AA9: 1 | AB9: 3 | AC9: 1 | AD9: 4 | AE9: 2 | AY9: 1 | AZ9: 1 | BA9: Antonella | BB9: Dino | BC9: 46.42857143 | BD9: 46.42857143 | BE9: 5 | BF9: 7 | BG9: 5
A10: =IF(J$2="","",IF($E10="","",IF($E10=MAX($E$5:$E$54),1,IF($E10=$E9,$A9,COUNT($E$5:$E10))))) -> 5 | B10: 6 | C10: Antonella | D10: Dino | E10: 46.42857143 | G10: 46.42857143 | H10: 39 | J10: 39 | K10: 1 | L10: 3 | M10: 3 | N10: 4 | O10: 2 | P10: 0 | Q10: 2 | R10: 4 | S10: 2 | T10: 2 | U10: 4 | V10: 2 | W10: 0 | X10: 1 | Y10: 0 | Z10: 2 | AA10: 2 | AB10: 2 | AC10: 1 | AD10: 2 | AE10: 0 | AY10: 1 | AZ10: 7 | BA10: Manuela | BB10: Roberto | BC10: 46.42857143 | BD10: 46.42857143 | BE10: 5 | BF10: 1 | BG10: 5
A11: =IF(J$2="","",IF($E11="","",IF($E11=MAX($E$5:$E$54),1,IF($E11=$E10,$A10,COUNT($E$5:$E11))))) -> 7 | B11: 5 | C11: Renata | D11: Sandro | E11: 42.85714286 | G11: 42.85714286 | H11: 36 | J11: 36 | K11: 3 | L11: 1 | M11: 1 | N11: 1 | O11: 2 | P11: 3 | Q11: 0 | R11: 4 | S11: 2 | T11: 4 | U11: 2 | V11: 0 | W11: 2 | X11: 2 | Y11: 2 | Z11: 2 | AA11: 1 | AB11: 0 | AC11: 0 | AD11: 4 | AE11: 0 | AY11: 1 | AZ11: 9 | BA11: Renata | BB11: Sandro | BC11: 42.85714286 | BD11: 42.85714286 | BE11: 2 | BF11: 9 | BG11: 7
A12: =IF(J$2="","",IF($E12="","",IF($E12=MAX($E$5:$E$54),1,IF($E12=$E11,$A11,COUNT($E$5:$E12))))) -> 8 | E12: 0 | G12: 0 | H12: 0 | J12: 0 | AZ12: 3 | BC12: 0 | BD12: 0 | BF12: 3 | BG12: 8
A13: =IF(J$2="","",IF($E13="","",IF($E13=MAX($E$5:$E$54),1,IF($E13=$E12,$A12,COUNT($E$5:$E13))))) -> 8 | E13: 0 | G13: 0 | H13: 0 | J13: 0 | AZ13: 5 | BC13: 0 | BD13: 0 | BF13: 5 | BG13: 8
A14: =IF(J$2="","",IF($E14="","",IF($E14=MAX($E$5:$E$54),1,IF($E14=$E13,$A13,COUNT($E$5:$E14))))) -> 8 | E14: 0 | G14: 0 | H14: 0 | J14: 0 | AZ14: 6 | BC14: 0 | BD14: 0 | BF14: 6 | BG14: 8
A15: =IF(J$2="","",IF($E15="","",IF($E15=MAX($E$5:$E$54),1,IF($E15=$E14,$A14,COUNT($E$5:$E15))))) -> 8 | E15: 0 | G15: 0 | H15: 0 | J15: 0 | AZ15: 8 | BC15: 0 | BD15: 0 | BF15: 8 | BG15: 8
A16: =IF(J$2="","",IF($E16="","",IF($E16=MAX($E$5:$E$54),1,IF($E16=$E15,$A15,COUNT($E$5:$E16))))) -> 8 | E16: 0 | G16: 0 | H16: 0 | J16: 0 | AZ16: 12 | BC16: 0 | BD16: 0 | BF16: 12 | BG16: 8
A17: =IF(J$2="","",IF($E17="","",IF($E17=MAX($E$5:$E$54),1,IF($E17=$E16,$A16,COUNT($E$5:$E17))))) -> 8 | E17: 0 | G17: 0 | H17: 0 | J17: 0 | AZ17: 13 | BC17: 0 | BD17: 0 | BF17: 13
A18: =IF(J$2="","",IF($E18="","",IF($E18=MAX($E$5:$E$54),1,IF($E18=$E17,$A17,COUNT($E$5:$E18))))) -> 8 | E18: 0 | G18: 0 | H18: 0 | J18: 0 | AZ18: 14 | BC18: 0 | BD18: 0 | BF18: 14 | BG18: =RANK(BD18,BD$5:BD$15) -> 8
A19: =IF(J$2="","",IF($E19="","",IF($E19=MAX($E$5:$E$54),1,IF($E19=$E18,$A18,COUNT($E$5:$E19))))) -> 8 | E19: 0 | G19: 0 | H19: 0 | J19: 0 | AZ19: 15 | BC19: 0 | BD19: 0 | BF19: 15 | BG19: =RANK(BD19,BD$5:BD$15) -> 8
A20: =IF(J$2="","",IF($E20="","",IF($E20=MAX($E$5:$E$54),1,IF($E20=$E19,$A19,COUNT($E$5:$E20))))) -> 8 | E20: 0 | G20: 0 | H20: 0 | J20: 0 | AZ20: 16 | BC20: 0 | BD20: 0 | BF20: 16 | BG20: =RANK(BD20,BD$5:BD$15) -> 8
A21: =IF(J$2="","",IF($E21="","",IF($E21=MAX($E$5:$E$54),1,IF($E21=$E20,$A20,COUNT($E$5:$E21))))) -> 8 | E21: 0 | G21: 0 | H21: 0 | J21: 0 | AZ21: 17 | BC21: 0 | BD21: 0 | BF21: 17
A22: =IF(J$2="","",IF($E22="","",IF($E22=MAX($E$5:$E$54),1,IF($E22=$E21,$A21,COUNT($E$5:$E22))))) -> 8 | E22: 0 | G22: 0 | H22: 0 | J22: 0 | AZ22: 18 | BC22: 0 | BD22: 0 | BF22: 18
A23: =IF(J$2="","",IF($E23="","",IF($E23=MAX($E$5:$E$54),1,IF($E23=$E22,$A22,COUNT($E$5:$E23))))) -> 8 | E23: 0 | G23: 0 | H23: 0 | J23: 0 | AZ23: 19 | BC23: 0 | BD23: 0 | BF23: 19 | BG23: =RANK(BD23,BD$5:BD$15) -> 8
A24: =IF(J$2="","",IF($E24="","",IF($E24=MAX($E$5:$E$54),1,IF($E24=$E23,$A23,COUNT($E$5:$E24))))) -> 8 | E24: 0 | G24: 0 | H24: 0 | J24: 0 | AZ24: 20 | BC24: 0 | BD24: 0 | BF24: 20 | BG24: =RANK(BD24,BD$5:BD$15) -> 8
A25: =IF(J$2="","",IF($E25="","",IF($E25=MAX($E$5:$E$54),1,IF($E25=$E24,$A24,COUNT($E$5:$E25))))) -> 8 | E25: 0 | G25: 0 | H25: 0 | J25: 0 | AZ25: 21 | BC25: 0 | BD25: 0 | BF25: 21
A26: =IF(J$2="","",IF($E26="","",IF($E26=MAX($E$5:$E$54),1,IF($E26=$E25,$A25,COUNT($E$5:$E26))))) -> 8 | E26: 0 | G26: 0 | H26: 0 | J26: 0 | AZ26: 22 | BC26: 0 | BD26: 0 | BF26: 22 | BG26: =RANK(BD26,BD$5:BD$15) -> 8
A27: =IF(J$2="","",IF($E27="","",IF($E27=MAX($E$5:$E$54),1,IF($E27=$E26,$A26,COUNT($E$5:$E27))))) -> 8 | E27: 0 | G27: 0 | H27: 0 | J27: 0 | AZ27: 23 | BC27: 0 | BD27: 0 | BF27: 23 | BG27: =RANK(BD27,BD$5:BD$15) -> 8
A28: =IF(J$2="","",IF($E28="","",IF($E28=MAX($E$5:$E$54),1,IF($E28=$E27,$A27,COUNT($E$5:$E28))))) -> 8 | E28: 0 | G28: 0 | H28: 0 | J28: 0 | AZ28: 24 | BC28: 0 | BD28: 0 | BF28: 24 | BG28: =RANK(BD28,BD$5:BD$15) -> 8
A29: =IF(J$2="","",IF($E29="","",IF($E29=MAX($E$5:$E$54),1,IF($E29=$E28,$A28,COUNT($E$5:$E29))))) -> 8 | E29: 0 | G29: 0 | H29: 0 | J29: 0 | AZ29: 25 | BC29: 0 | BD29: 0 | BF29: 25
A30: =IF(J$2="","",IF($E30="","",IF($E30=MAX($E$5:$E$54),1,IF($E30=$E29,$A29,COUNT($E$5:$E30))))) -> 8 | E30: 0 | G30: 0 | H30: 0 | J30: 0 | AZ30: 26 | BC30: 0 | BD30: 0 | BF30: 26
A31: =IF(J$2="","",IF($E31="","",IF($E31=MAX($E$5:$E$54),1,IF($E31=$E30,$A30,COUNT($E$5:$E31))))) -> 8 | E31: 0 | G31: 0 | H31: 0 | J31: 0 | AZ31: 27 | BC31: 0 | BD31: 0 | BF31: 27
A32: =IF(J$2="","",IF($E32="","",IF($E32=MAX($E$5:$E$54),1,IF($E32=$E31,$A31,COUNT($E$5:$E32))))) -> 8 | E32: 0 | G32: 0 | H32: 0 | J32: 0 | AZ32: 28 | BC32: 0 | BD32: 0 | BF32: 28
A33: =IF(J$2="","",IF($E33="","",IF($E33=MAX($E$5:$E$54),1,IF($E33=$E32,$A32,COUNT($E$5:$E33))))) -> 8 | E33: 0 | G33: 0 | H33: 0 | J33: 0 | AZ33: 29 | BC33: 0 | BD33: 0 | BF33: 29
A34: =IF(J$2="","",IF($E34="","",IF($E34=MAX($E$5:$E$54),1,IF($E34=$E33,$A33,COUNT($E$5:$E34))))) -> 8 | E34: 0 | G34: 0 | H34: 0 | J34: 0 | AZ34: 30 | BC34: 0 | BD34: 0 | BF34: 30
A35: =IF(J$2="","",IF($E35="","",IF($E35=MAX($E$5:$E$54),1,IF($E35=$E34,$A34,COUNT($E$5:$E35))))) -> 8 | E35: 0 | G35: 0 | H35: 0 | J35: 0 | AZ35: 31 | BC35: 0 | BD35: 0 | BF35: 31
A36: =IF(J$2="","",IF($E36="","",IF($E36=MAX($E$5:$E$54),1,IF($E36=$E35,$A35,COUNT($E$5:$E36))))) -> 8 | E36: 0 | G36: 0 | H36: 0 | J36: 0 | AZ36: 32 | BC36: 0 | BD36: 0 | BF36: 32
A37: =IF(J$2="","",IF($E37="","",IF($E37=MAX($E$5:$E$54),1,IF($E37=$E36,$A36,COUNT($E$5:$E37))))) -> 8 | E37: =IF(J$2="","",IF(G37=0,0,F37+G37)) -> 0 | G37: =IF(J$2="","",IF($J37=0,0,(H37*$C$3/$J$3)*50)) -> 0 | H37: =IF(J$2="","",IF(SUM($K37:$AX37)=0,0,SUM($K37:$AX37)+$I37)) -> 0 | J37: =IF(B37="",0,IF(SUM($K37:$AX37)=0,0,SUM($K37:$AX37))) -> 0 | AY37: =IF(BF37>11,"",IF(B37="","",1)) ->  | AZ37: 33 | BC37: 0 | BD37: =IF(AZ37>11,0,BC37) -> 0 | BF37: 33
A38: =IF(J$2="","",IF($E38="","",IF($E38=MAX($E$5:$E$54),1,IF($E38=$E37,$A37,COUNT($E$5:$E38))))) -> 8 | E38: 0 | G38: 0 | H38: 0 | J38: 0 | AZ38: 34 | BC38: 0 | BD38: 0 | BF38: 34
A39: =IF(J$2="","",IF($E39="","",IF($E39=MAX($E$5:$E$54),1,IF($E39=$E38,$A38,COUNT($E$5:$E39))))) -> 8 | E39: 0 | G39: 0 | H39: 0 | J39: 0 | AZ39: 35 | BC39: 0 | BD39: 0 | BF39: 35
A40: =IF(J$2="","",IF($E40="","",IF($E40=MAX($E$5:$E$54),1,IF($E40=$E39,$A39,COUNT($E$5:$E40))))) -> 8 | E40: 0 | G40: 0 | H40: 0 | J40: 0 | AZ40: 36 | BC40: 0 | BD40: 0 | BF40: 36
A41: =IF(J$2="","",IF($E41="","",IF($E41=MAX($E$5:$E$54),1,IF($E41=$E40,$A40,COUNT($E$5:$E41))))) -> 8 | E41: 0 | G41: 0 | H41: 0 | J41: 0 | AZ41: 37 | BC41: 0 | BD41: 0 | BF41: 37
A42: =IF(J$2="","",IF($E42="","",IF($E42=MAX($E$5:$E$54),1,IF($E42=$E41,$A41,COUNT($E$5:$E42))))) -> 8 | E42: 0 | G42: 0 | H42: 0 | J42: 0 | AZ42: 38 | BC42: 0 | BD42: 0 | BF42: 38
A43: =IF(J$2="","",IF($E43="","",IF($E43=MAX($E$5:$E$54),1,IF($E43=$E42,$A42,COUNT($E$5:$E43))))) -> 8 | E43: 0 | G43: 0 | H43: 0 | J43: 0 | AZ43: 39 | BC43: 0 | BD43: 0 | BF43: 39
A44: =IF(J$2="","",IF($E44="","",IF($E44=MAX($E$5:$E$54),1,IF($E44=$E43,$A43,COUNT($E$5:$E44))))) -> 8 | E44: 0 | G44: 0 | H44: 0 | J44: 0 | AZ44: 40 | BC44: 0 | BD44: 0 | BF44: 40
A45: =IF(J$2="","",IF($E45="","",IF($E45=MAX($E$5:$E$54),1,IF($E45=$E44,$A44,COUNT($E$5:$E45))))) -> 8 | E45: 0 | G45: 0 | H45: 0 | J45: 0 | AZ45: 41 | BC45: 0 | BD45: 0 | BF45: 41
A46: =IF(J$2="","",IF($E46="","",IF($E46=MAX($E$5:$E$54),1,IF($E46=$E45,$A45,COUNT($E$5:$E46))))) -> 8 | E46: 0 | G46: 0 | H46: 0 | J46: 0 | AZ46: 42 | BC46: 0 | BD46: 0 | BF46: 42
A47: =IF(J$2="","",IF($E47="","",IF($E47=MAX($E$5:$E$54),1,IF($E47=$E46,$A46,COUNT($E$5:$E47))))) -> 8 | E47: 0 | G47: 0 | H47: 0 | J47: 0 | AZ47: 43 | BC47: 0 | BD47: 0 | BF47: 43
A48: =IF(J$2="","",IF($E48="","",IF($E48=MAX($E$5:$E$54),1,IF($E48=$E47,$A47,COUNT($E$5:$E48))))) -> 8 | E48: 0 | G48: 0 | H48: 0 | J48: 0 | AZ48: 44 | BC48: 0 | BD48: 0 | BF48: 44
A49: =IF(J$2="","",IF($E49="","",IF($E49=MAX($E$5:$E$54),1,IF($E49=$E48,$A48,COUNT($E$5:$E49))))) -> 8 | E49: 0 | G49: 0 | H49: 0 | J49: 0 | AZ49: 45 | BC49: 0 | BD49: 0 | BF49: 45
A50: =IF(J$2="","",IF($E50="","",IF($E50=MAX($E$5:$E$54),1,IF($E50=$E49,$A49,COUNT($E$5:$E50))))) -> 8 | E50: 0 | G50: 0 | H50: 0 | J50: 0 | AZ50: 46 | BC50: 0 | BD50: 0 | BF50: 46
A51: =IF(J$2="","",IF($E51="","",IF($E51=MAX($E$5:$E$54),1,IF($E51=$E50,$A50,COUNT($E$5:$E51))))) -> 8 | E51: 0 | G51: 0 | H51: 0 | J51: 0 | AZ51: 47 | BC51: 0 | BD51: 0 | BF51: 47
A52: =IF(J$2="","",IF($E52="","",IF($E52=MAX($E$5:$E$54),1,IF($E52=$E51,$A51,COUNT($E$5:$E52))))) -> 8 | E52: 0 | G52: 0 | H52: 0 | J52: 0 | AZ52: 48 | BC52: 0 | BD52: 0 | BF52: 48
A53: =IF(J$2="","",IF($E53="","",IF($E53=MAX($E$5:$E$54),1,IF($E53=$E52,$A52,COUNT($E$5:$E53))))) -> 8 | E53: 0 | G53: 0 | H53: 0 | J53: 0 | AZ53: 49 | BC53: 0 | BD53: 0 | BF53: 49
A54: =IF(J$2="","",IF($E54="","",IF($E54=MAX($E$5:$E$54),1,IF($E54=$E53,$A53,COUNT($E$5:$E54))))) -> 8 | E54: 0 | G54: 0 | H54: 0 | J54: 0 | AZ54: 50 | BC54: 0 | BD54: 0 | BF54: 50
D59: punteggi torneo ordinati per # di coppia
B60: # coppia | E60: con zeri | F60: senza zeri | G60: senza zeri
B61: 1 | E61: 63.0952381 | F61: =IF(E61=0,"",E61) -> 63.0952381 | G61: 63.0952381 | I61: =IF(H61=0,"",H61) ->  | BF61: 10
B62: 2 | E62: 55.95238095 | F62: 55.95238095 | G62: 55.95238095 | BF62: 4
B63: 3 | E63: 46.42857143 | F63: 46.42857143 | G63: 46.42857143 | I63: =IF(H63=0,"",H63) ->  | BF63: 7
B64: 4 | E64: 47.61904762 | F64: 47.61904762 | G64: 47.61904762 | BF64: 11
B65: 5 | E65: 42.85714286 | F65: 42.85714286 | G65: 42.85714286 | I65: =IF(H65=0,"",H65) ->  | BF65: 9
B66: 6 | E66: 46.42857143 | F66: 46.42857143 | G66: 46.42857143 | BF66: 1
B67: 7 | E67: 47.61904762 | F67: 47.61904762 | G67: 47.61904762 | BF67: 2
E68: 0 | I68: =IF(H68=0,"",H68) ->  | BF68: 3
E69: 0 | I69: =IF(H69=0,"",H69) ->  | BF69: 5
E70: 0 | BF70: 6
E71: 0 | BF71: 8
E72: 0 | BF72: 12
E73: 0 | I73: =IF(H73=0,"",H73) ->  | BF73: 13
E74: 0 | I74: =IF(H74=0,"",H74) ->  | BF74: 14
E75: 0 | I75: =IF(H75=0,"",H75) ->  | BF75: 15
E76: 0 | I76: =IF(H76=0,"",H76) ->  | BF76: 16
E77: 0 | BF77: 17
E78: 0 | BF78: 18
E79: 0 | I79: =IF(H79=0,"",H79) ->  | BF79: 19
E80: 0 | I80: =IF(H80=0,"",H80) ->  | BF80: 20
E81: 0 | BF81: 21
E82: 0 | BF82: 22
E83: 0 | BF83: 23
E84: 0 | BF84: 24
E85: 0 | BF85: 25
E86: 0 | BF86: 26
E87: 0 | BF87: 27
E88: 0 | BF88: 28
E89: 0 | BF89: 29
E90: 0 | BF90: 30
E91: 0 | BF91: 31
E92: 0 | BF92: 32
E93: 0 | F93: =IF(E93=0,"",E93) ->  | BF93: 33
E94: 0 | BF94: 34
E95: 0 | BF95: 35
E96: 0 | BF96: 36
E97: 0 | BF97: 37
E98: 0 | BF98: 38
E99: 0 | BF99: 39
E100: 0 | BF100: 40
E101: 0 | BF101: 41
E102: 0 | BF102: 42
E103: 0 | BF103: 43
E104: 0 | BF104: 44
E105: 0 | BF105: 45
E106: 0 | BF106: 46
E107: 0 | BF107: 47
E108: 0 | BF108: 48
E109: 0 | BF109: 49
E110: 0 | BF110: 50
A119: PTS ordinati per numero standard di coppia base
A120: #STD | B120: PTS
A121: 1 | B121: 5 | E121: 46.42857143 | F121: =IF(E121=0,"",E121) -> 46.42857143 | G121: 46.42857143 | BF121: 1
A122: 2 | B122: 9 | E122: 47.61904762 | F122: 47.61904762 | G122: 47.61904762 | BF122: 2
A123: 3 | E123: 0 | I123: =IF(H123=0,"",H123) ->  | BF123: 3
A124: 4 | B124: 12 | E124: 55.95238095 | F124: 55.95238095 | G124: 55.95238095 | BF124: 4
A125: 5 | E125: 0 | I125: =IF(H125=0,"",H125) ->  | BF125: 5
A126: 6 | E126: 0 | BF126: 6
A127: 7 | B127: 5 | E127: 46.42857143 | F127: 46.42857143 | G127: 46.42857143 | I127: =IF(H127=0,"",H127) ->  | BF127: 7
A128: 8 | E128: 0 | BF128: 8
A129: 9 | B129: 2 | E129: 42.85714286 | F129: 42.85714286 | G129: 42.85714286 | I129: =IF(H129=0,"",H129) ->  | BF129: 9
A130: 10 | B130: 14 | E130: 63.0952381 | F130: 63.0952381 | G130: 63.0952381 | I130: =IF(H130=0,"",H130) ->  | BF130: 10
A131: 11 | B131: 9 | E131: 47.61904762 | F131: 47.61904762 | G131: 47.61904762 | BF131: 11
BE200: formule punti coppie base
BE201: =IF(BD201=0,"",IF(AZ201>11,"",IF(BD201=BD200,BE200,2*(D$3-BG201)+3-COUNTIF(BG$5:BG$54,BG201)))) -> 
BE202: =IF(BD202=0,"",IF(AZ202>11,"",IF(BD202=BD201,BE201,2*(D$3-BG202)+3-COUNTIF(BG$5:BG$54,BG202)))) -> 

Sheet 29giu
A1: Data | C1: 2019-06-29 | D1: BridgeMania 2018-19 - Torneo Howell
A2: luogo | C2: Polichetti | D2: Coppie Ctrl+e | E2: Calcola Ctr+f Ctr+i | F2: Duplica Ctrl+g | G2: Clear Ctrl+h | J2: &
A3: # coppie / # c.base | C3: =IF(B5="","",COUNT(B5:B54)) -> 7 | D3: =SUM(AY5:AY54) -> 7 | E3: =IF(E5="","",SUMIF(E5:E54,">0")) -> 350 | G3: =IF(G5="","",SUM(G5:G54)) -> 350 | H3: =IF(H5="","",SUM(H5:H54)) -> 294 | I3: =SUM(I5:I54) -> 0 | J3: =SUM(J5:J54) -> 294 | K3: =SUM(K5:K54) -> 14 | L3: =SUM(L5:L54) -> 14 | M3: 14 | N3: 14 | O3: 14 | P3: 14 | Q3: 14 | R3: 14 | S3: 14 | T3: 14 | U3: 14 | V3: 14 | W3: 14 | X3: 14 | Y3: 14 | Z3: 14 | AA3: 14 | AB3: 14 | AC3: 14 | AD3: 14 | AE3: 14 | AF3: 0 | AG3: 0 | AH3: 0 | AI3: 0 | AJ3: 0 | AK3: 0 | AL3: 0 | AM3: 0 | AN3: 0 | AO3: 0 | AP3: 0 | AQ3: 0 | AR3: 0 | AS3: 0 | AT3: 0 | AU3: 0 | AV3: 0 | AW3: 0 | AX3: 0
A4: Class. | B4: # | C4: Coppie | E4: Punteggio Serata | G4: Punteggio % | H4: Punteggio Torneo | I4: Penalità (-) | J4: Totale punti mano | K4: 1 | L4: 2 | M4: 3 | N4: 4 | O4: 5 | P4: 6 | Q4: 7 | R4: 8 | S4: 9 | T4: 10 | U4: 11 | V4: 12 | W4: 13 | X4: 14 | Y4: 15 | Z4: 16 | AA4: 17 | AB4: 18 | AC4: 19 | AD4: 20 | AE4: 21 | AF4: 22 | AG4: 23 | AH4: 24 | AI4: 25 | AJ4: 26 | AK4: 27 | AL4: 28 | AM4: 29 | AN4: 30 | AO4: 31 | AP4: 32 | AQ4: 33 | AR4: 34 | AS4: 35 | AT4: 36 | AU4: 37 | AV4: 38 | AW4: 39 | AX4: 40 | AY4: c.base presenti | AZ4: ordine c.base ad hoc | BC4: punteggi | BD4: punteggi c. base presenti | BE4: punti PTS coppie base | BF4: ordine c.base STD | BG4: Rank
A5: =IF(J$2="","",IF($E5="","",IF($E5=MAX($E$5:$E$54),1,IF($E5=$E4,$A4,COUNT($E$5:$E5))))) -> 1 | B5: 1 | C5: Elena | D5: Stefano | E5: =IF(J$2="","",IF(G5=0,0,F5+G5)) -> 60.71428571 | G5: =IF(J$2="","",IF($J5=0,0,(H5*$C$3/$J$3)*50)) -> 60.71428571 | H5: =IF(J$2="","",IF(SUM($K5:$AX5)=0,0,SUM($K5:$AX5)+$I5)) -> 51 | J5: =IF(B5="",0,IF(SUM($K5:$AX5)=0,0,SUM($K5:$AX5))) -> 51 | K5: 2 | L5: 2 | M5: 2 | N5: 3 | O5: 2 | P5: 4 | Q5: 3 | R5: 2 | S5: 4 | T5: 3 | U5: 3 | V5: 4 | W5: 0 | X5: 3 | Y5: 4 | Z5: 2 | AA5: 3 | AB5: 0 | AC5: 3 | AD5: 2 | AE5: 0 | AY5: =IF(BF5>11,"",IF(B5="","",1)) -> 1 | AZ5: 4 | BA5: Elena | BB5: Stefano | BC5: 60.71428571 | BD5: =IF(AZ5>11,0,BC5) -> 60.71428571 | BE5: =IF(BD5=0,"",IF(AZ5>11,"",IF(BD5=BD4,BE4,2*(D$3-BG5)+3-COUNTIF(BG$5:BG$54,BG5)))) -> 14 | BF5: 4 | BG5: =RANK(BD5,BD$5:BD$15) -> 1
A6: =IF(J$2="","",IF($E6="","",IF($E6=MAX($E$5:$E$54),1,IF($E6=$E5,$A5,COUNT($E$5:$E6))))) -> 2 | B6: 3 | C6: Manuela | D6: Roberto | E6: 53.57142857 | G6: 53.57142857 | H6: 45 | J6: 45 | K6: 4 | L6: 1 | M6: 3 | N6: 1 | O6: 2 | P6: 3 | Q6: 2 | R6: 2 | S6: 2 | T6: 3 | U6: 0 | V6: 0 | W6: 1 | X6: 4 | Y6: 4 | Z6: 0 | AA6: 4 | AB6: 2 | AC6: 1 | AD6: 2 | AE6: 4 | AY6: 1 | AZ6: 7 | BA6: Manuela | BB6: Roberto | BC6: 53.57142857 | BD6: 53.57142857 | BE6: =IF(BD6=0,"",IF(AZ6>11,"",IF(BD6=BD5,BE5,2*(D$3-BG6)+3-COUNTIF(BG$5:BG$54,BG6)))) -> 12 | BF6: 7 | BG6: 2
A7: =IF(J$2="","",IF($E7="","",IF($E7=MAX($E$5:$E$54),1,IF($E7=$E6,$A6,COUNT($E$5:$E7))))) -> 3 | B7: 5 | C7: Antonella | D7: Dino | E7: 51.19047619 | G7: 51.19047619 | H7: 43 | J7: 43 | K7: 2 | L7: 0 | M7: 4 | N7: 3 | O7: 2 | P7: 1 | Q7: 0 | R7: 0 | S7: 2 | T7: 4 | U7: 1 | V7: 2 | W7: 2 | X7: 2 | Y7: 2 | Z7: 2 | AA7: 1 | AB7: 4 | AC7: 3 | AD7: 4 | AE7: 2 | AY7: 1 | AZ7: 1 | BA7: Antonella | BB7: Dino | BC7: 51.19047619 | BD7: 51.19047619 | BE7: 10 | BF7: 1 | BG7: 3
A8: =IF(J$2="","",IF($E8="","",IF($E8=MAX($E$5:$E$54),1,IF($E8=$E7,$A7,COUNT($E$5:$E8))))) -> 4 | B8: 6 | C8: Stefania | D8: Massimo | E8: 50 | G8: 50 | H8: 42 | J8: 42 | K8: 2 | L8: 4 | M8: 0 | N8: 0 | O8: 2 | P8: 1 | Q8: 1 | R8: 0 | S8: 4 | T8: 1 | U8: 4 | V8: 4 | W8: 4 | X8: 1 | Y8: 0 | Z8: 2 | AA8: 2 | AB8: 2 | AC8: 4 | AD8: 4 | AE8: 0 | AY8: 1 | AZ8: 10 | BA8: Stefania | BB8: Massimo | BC8: 50 | BD8: 50 | BE8: 8 | BF8: 10 | BG8: 4
A9: =IF(J$2="","",IF($E9="","",IF($E9=MAX($E$5:$E$54),1,IF($E9=$E8,$A8,COUNT($E$5:$E9))))) -> 5 | B9: 4 | C9: Barbara | D9: Elio | E9: 48.80952381 | G9: 48.80952381 | H9: 41 | J9: 41 | K9: 4 | L9: 3 | M9: 1 | N9: 1 | O9: 2 | P9: 0 | Q9: 3 | R9: 4 | S9: 0 | T9: 2 | U9: 2 | V9: 2 | W9: 3 | X9: 3 | Y9: 2 | Z9: 4 | AA9: 0 | AB9: 2 | AC9: 1 | AD9: 0 | AE9: 2 | AY9: 1 | AZ9: 2 | BA9: Barbara | BB9: Elio | BC9: 48.80952381 | BD9: 48.80952381 | BE9: 6 | BF9: 2 | BG9: 5
A10: =IF(J$2="","",IF($E10="","",IF($E10=MAX($E$5:$E$54),1,IF($E10=$E9,$A9,COUNT($E$5:$E10))))) -> 6 | B10: 7 | C10: Tatiana | D10: Julio | E10: 45.23809524 | G10: 45.23809524 | H10: 38 | J10: 38 | K10: 0 | L10: 3 | M10: 1 | N10: 4 | O10: 2 | P10: 3 | Q10: 1 | R10: 2 | S10: 0 | T10: 0 | U10: 3 | V10: 2 | W10: 1 | X10: 1 | Y10: 2 | Z10: 0 | AA10: 3 | AB10: 4 | AC10: 2 | AD10: 2 | AE10: 2 | AY10: 1 | AZ10: 11 | BA10: Tatiana | BB10: Julio | BC10: 45.23809524 | BD10: 45.23809524 | BE10: 4 | BF10: 11 | BG10: 6
A11: =IF(J$2="","",IF($E11="","",IF($E11=MAX($E$5:$E$54),1,IF($E11=$E10,$A10,COUNT($E$5:$E11))))) -> 7 | B11: 2 | C11: Cesarina | D11: Gaetano | E11: 40.47619048 | G11: 40.47619048 | H11: 34 | J11: 34 | K11: 0 | L11: 1 | M11: 3 | N11: 2 | O11: 2 | P11: 2 | Q11: 4 | R11: 4 | S11: 2 | T11: 1 | U11: 1 | V11: 0 | W11: 3 | X11: 0 | Y11: 0 | Z11: 4 | AA11: 1 | AB11: 0 | AC11: 0 | AD11: 0 | AE11: 4 | AY11: 1 | AZ11: 3 | BA11: Cesarina | BB11: Gaetano | BC11: 40.47619048 | BD11: 40.47619048 | BE11: 2 | BF11: 3 | BG11: 7
A12: =IF(J$2="","",IF($E12="","",IF($E12=MAX($E$5:$E$54),1,IF($E12=$E11,$A11,COUNT($E$5:$E12))))) -> 8 | E12: 0 | G12: 0 | H12: 0 | J12: 0 | AZ12: 5 | BC12: 0 | BD12: 0 | BF12: 5 | BG12: 8
A13: =IF(J$2="","",IF($E13="","",IF($E13=MAX($E$5:$E$54),1,IF($E13=$E12,$A12,COUNT($E$5:$E13))))) -> 8 | E13: 0 | G13: 0 | H13: 0 | J13: 0 | AZ13: 6 | BC13: 0 | BD13: 0 | BF13: 6 | BG13: 8
A14: =IF(J$2="","",IF($E14="","",IF($E14=MAX($E$5:$E$54),1,IF($E14=$E13,$A13,COUNT($E$5:$E14))))) -> 8 | E14: 0 | G14: 0 | H14: 0 | J14: 0 | AZ14: 8 | BC14: 0 | BD14: 0 | BF14: 8 | BG14: 8
A15: =IF(J$2="","",IF($E15="","",IF($E15=MAX($E$5:$E$54),1,IF($E15=$E14,$A14,COUNT($E$5:$E15))))) -> 8 | E15: 0 | G15: 0 | H15: 0 | J15: 0 | AZ15: 9 | BC15: 0 | BD15: 0 | BF15: 9 | BG15: 8
A16: =IF(J$2="","",IF($E16="","",IF($E16=MAX($E$5:$E$54),1,IF($E16=$E15,$A15,COUNT($E$5:$E16))))) -> 8 | E16: 0 | G16: 0 | H16: 0 | J16: 0 | AZ16: 12 | BC16: 0 | BD16: 0 | BF16: 12 | BG16: 8
A17: =IF(J$2="","",IF($E17="","",IF($E17=MAX($E$5:$E$54),1,IF($E17=$E16,$A16,COUNT($E$5:$E17))))) -> 8 | E17: 0 | G17: 0 | H17: 0 | J17: 0 | AZ17: 13 | BC17: 0 | BD17: 0 | BF17: 13
A18: =IF(J$2="","",IF($E18="","",IF($E18=MAX($E$5:$E$54),1,IF($E18=$E17,$A17,COUNT($E$5:$E18))))) -> 8 | E18: 0 | G18: 0 | H18: 0 | J18: 0 | AZ18: 14 | BC18: 0 | BD18: 0 | BF18: 14 | BG18: =RANK(BD18,BD$5:BD$15) -> 8
A19: =IF(J$2="","",IF($E19="","",IF($E19=MAX($E$5:$E$54),1,IF($E19=$E18,$A18,COUNT($E$5:$E19))))) -> 8 | E19: 0 | G19: 0 | H19: 0 | J19: 0 | AZ19: 15 | BC19: 0 | BD19: 0 | BF19: 15 | BG19: =RANK(BD19,BD$5:BD$15) -> 8
A20: =IF(J$2="","",IF($E20="","",IF($E20=MAX($E$5:$E$54),1,IF($E20=$E19,$A19,COUNT($E$5:$E20))))) -> 8 | E20: 0 | G20: 0 | H20: 0 | J20: 0 | AZ20: 16 | BC20: 0 | BD20: 0 | BF20: 16 | BG20: =RANK(BD20,BD$5:BD$15) -> 8
A21: =IF(J$2="","",IF($E21="","",IF($E21=MAX($E$5:$E$54),1,IF($E21=$E20,$A20,COUNT($E$5:$E21))))) -> 8 | E21: 0 | G21: 0 | H21: 0 | J21: 0 | AZ21: 17 | BC21: 0 | BD21: 0 | BF21: 17
A22: =IF(J$2="","",IF($E22="","",IF($E22=MAX($E$5:$E$54),1,IF($E22=$E21,$A21,COUNT($E$5:$E22))))) -> 8 | E22: 0 | G22: 0 | H22: 0 | J22: 0 | AZ22: 18 | BC22: 0 | BD22: 0 | BF22: 18
A23: =IF(J$2="","",IF($E23="","",IF($E23=MAX($E$5:$E$54),1,IF($E23=$E22,$A22,COUNT($E$5:$E23))))) -> 8 | E23: 0 | G23: 0 | H23: 0 | J23: 0 | AZ23: 19 | BC23: 0 | BD23: 0 | BF23: 19 | BG23: =RANK(BD23,BD$5:BD$15) -> 8
A24: =IF(J$2="","",IF($E24="","",IF($E24=MAX($E$5:$E$54),1,IF($E24=$E23,$A23,COUNT($E$5:$E24))))) -> 8 | E24: 0 | G24: 0 | H24: 0 | J24: 0 | AZ24: 20 | BC24: 0 | BD24: 0 | BF24: 20 | BG24: =RANK(BD24,BD$5:BD$15) -> 8
A25: =IF(J$2="","",IF($E25="","",IF($E25=MAX($E$5:$E$54),1,IF($E25=$E24,$A24,COUNT($E$5:$E25))))) -> 8 | E25: 0 | G25: 0 | H25: 0 | J25: 0 | AZ25: 21 | BC25: 0 | BD25: 0 | BF25: 21
A26: =IF(J$2="","",IF($E26="","",IF($E26=MAX($E$5:$E$54),1,IF($E26=$E25,$A25,COUNT($E$5:$E26))))) -> 8 | E26: 0 | G26: 0 | H26: 0 | J26: 0 | AZ26: 22 | BC26: 0 | BD26: 0 | BF26: 22 | BG26: =RANK(BD26,BD$5:BD$15) -> 8
A27: =IF(J$2="","",IF($E27="","",IF($E27=MAX($E$5:$E$54),1,IF($E27=$E26,$A26,COUNT($E$5:$E27))))) -> 8 | E27: 0 | G27: 0 | H27: 0 | J27: 0 | AZ27: 23 | BC27: 0 | BD27: 0 | BF27: 23 | BG27: =RANK(BD27,BD$5:BD$15) -> 8
A28: =IF(J$2="","",IF($E28="","",IF($E28=MAX($E$5:$E$54),1,IF($E28=$E27,$A27,COUNT($E$5:$E28))))) -> 8 | E28: 0 | G28: 0 | H28: 0 | J28: 0 | AZ28: 24 | BC28: 0 | BD28: 0 | BF28: 24 | BG28: =RANK(BD28,BD$5:BD$15) -> 8
A29: =IF(J$2="","",IF($E29="","",IF($E29=MAX($E$5:$E$54),1,IF($E29=$E28,$A28,COUNT($E$5:$E29))))) -> 8 | E29: 0 | G29: 0 | H29: 0 | J29: 0 | AZ29: 25 | BC29: 0 | BD29: 0 | BF29: 25
A30: =IF(J$2="","",IF($E30="","",IF($E30=MAX($E$5:$E$54),1,IF($E30=$E29,$A29,COUNT($E$5:$E30))))) -> 8 | E30: 0 | G30: 0 | H30: 0 | J30: 0 | AZ30: 26 | BC30: 0 | BD30: 0 | BF30: 26
A31: =IF(J$2="","",IF($E31="","",IF($E31=MAX($E$5:$E$54),1,IF($E31=$E30,$A30,COUNT($E$5:$E31))))) -> 8 | E31: 0 | G31: 0 | H31: 0 | J31: 0 | AZ31: 27 | BC31: 0 | BD31: 0 | BF31: 27
A32: =IF(J$2="","",IF($E32="","",IF($E32=MAX($E$5:$E$54),1,IF($E32=$E31,$A31,COUNT($E$5:$E32))))) -> 8 | E32: 0 | G32: 0 | H32: 0 | J32: 0 | AZ32: 28 | BC32: 0 | BD32: 0 | BF32: 28
A33: =IF(J$2="","",IF($E33="","",IF($E33=MAX($E$5:$E$54),1,IF($E33=$E32,$A32,COUNT($E$5:$E33))))) -> 8 | E33: 0 | G33: 0 | H33: 0 | J33: 0 | AZ33: 29 | BC33: 0 | BD33: 0 | BF33: 29
A34: =IF(J$2="","",IF($E34="","",IF($E34=MAX($E$5:$E$54),1,IF($E34=$E33,$A33,COUNT($E$5:$E34))))) -> 8 | E34: 0 | G34: 0 | H34: 0 | J34: 0 | AZ34: 30 | BC34: 0 | BD34: 0 | BF34: 30
A35: =IF(J$2="","",IF($E35="","",IF($E35=MAX($E$5:$E$54),1,IF($E35=$E34,$A34,COUNT($E$5:$E35))))) -> 8 | E35: 0 | G35: 0 | H35: 0 | J35: 0 | AZ35: 31 | BC35: 0 | BD35: 0 | BF35: 31
A36: =IF(J$2="","",IF($E36="","",IF($E36=MAX($E$5:$E$54),1,IF($E36=$E35,$A35,COUNT($E$5:$E36))))) -> 8 | E36: 0 | G36: 0 | H36: 0 | J36: 0 | AZ36: 32 | BC36: 0 | BD36: 0 | BF36: 32
A37: =IF(J$2="","",IF($E37="","",IF($E37=MAX($E$5:$E$54),1,IF($E37=$E36,$A36,COUNT($E$5:$E37))))) -> 8 | E37: 0 | G37: 0 | H37: 0 | J37: 0 | AZ37: 33 | BC37: 0 | BD37: 0 | BF37: 33
A38: =IF(J$2="","",IF($E38="","",IF($E38=MAX($E$5:$E$54),1,IF($E38=$E37,$A37,COUNT($E$5:$E38))))) -> 8 | E38: 0 | G38: 0 | H38: 0 | J38: 0 | AZ38: 34 | BC38: 0 | BD38: 0 | BF38: 34
A39: =IF(J$2="","",IF($E39="","",IF($E39=MAX($E$5:$E$54),1,IF($E39=$E38,$A38,COUNT($E$5:$E39))))) -> 8 | E39: 0 | G39: 0 | H39: 0 | J39: 0 | AZ39: 35 | BC39: 0 | BD39: 0 | BF39: 35
A40: =IF(J$2="","",IF($E40="","",IF($E40=MAX($E$5:$E$54),1,IF($E40=$E39,$A39,COUNT($E$5:$E40))))) -> 8 | E40: 0 | G40: 0 | H40: 0 | J40: 0 | AZ40: 36 | BC40: 0 | BD40: 0 | BF40: 36
A41: =IF(J$2="","",IF($E41="","",IF($E41=MAX($E$5:$E$54),1,IF($E41=$E40,$A40,COUNT($E$5:$E41))))) -> 8 | E41: 0 | G41: 0 | H41: 0 | J41: 0 | AZ41: 37 | BC41: 0 | BD41: 0 | BF41: 37
A42: =IF(J$2="","",IF($E42="","",IF($E42=MAX($E$5:$E$54),1,IF($E42=$E41,$A41,COUNT($E$5:$E42))))) -> 8 | E42: 0 | G42: 0 | H42: 0 | J42: 0 | AZ42: 38 | BC42: 0 | BD42: 0 | BF42: 38
A43: =IF(J$2="","",IF($E43="","",IF($E43=MAX($E$5:$E$54),1,IF($E43=$E42,$A42,COUNT($E$5:$E43))))) -> 8 | E43: 0 | G43: 0 | H43: 0 | J43: 0 | AZ43: 39 | BC43: 0 | BD43: 0 | BF43: 39
A44: =IF(J$2="","",IF($E44="","",IF($E44=MAX($E$5:$E$54),1,IF($E44=$E43,$A43,COUNT($E$5:$E44))))) -> 8 | E44: 0 | G44: 0 | H44: 0 | J44: 0 | AZ44: 40 | BC44: 0 | BD44: 0 | BF44: 40
A45: =IF(J$2="","",IF($E45="","",IF($E45=MAX($E$5:$E$54),1,IF($E45=$E44,$A44,COUNT($E$5:$E45))))) -> 8 | E45: 0 | G45: 0 | H45: 0 | J45: 0 | AZ45: 41 | BC45: 0 | BD45: 0 | BF45: 41
A46: =IF(J$2="","",IF($E46="","",IF($E46=MAX($E$5:$E$54),1,IF($E46=$E45,$A45,COUNT($E$5:$E46))))) -> 8 | E46: 0 | G46: 0 | H46: 0 | J46: 0 | AZ46: 42 | BC46: 0 | BD46: 0 | BF46: 42
A47: =IF(J$2="","",IF($E47="","",IF($E47=MAX($E$5:$E$54),1,IF($E47=$E46,$A46,COUNT($E$5:$E47))))) -> 8 | E47: 0 | G47: 0 | H47: 0 | J47: 0 | AZ47: 43 | BC47: 0 | BD47: 0 | BF47: 43
A48: =IF(J$2="","",IF($E48="","",IF($E48=MAX($E$5:$E$54),1,IF($E48=$E47,$A47,COUNT($E$5:$E48))))) -> 8 | E48: 0 | G48: 0 | H48: 0 | J48: 0 | AZ48: 44 | BC48: 0 | BD48: 0 | BF48: 44
A49: =IF(J$2="","",IF($E49="","",IF($E49=MAX($E$5:$E$54),1,IF($E49=$E48,$A48,COUNT($E$5:$E49))))) -> 8 | E49: 0 | G49: 0 | H49: 0 | J49: 0 | AZ49: 45 | BC49: 0 | BD49: 0 | BF49: 45
A50: =IF(J$2="","",IF($E50="","",IF($E50=MAX($E$5:$E$54),1,IF($E50=$E49,$A49,COUNT($E$5:$E50))))) -> 8 | E50: 0 | G50: 0 | H50: 0 | J50: 0 | AZ50: 46 | BC50: 0 | BD50: 0 | BF50: 46
A51: =IF(J$2="","",IF($E51="","",IF($E51=MAX($E$5:$E$54),1,IF($E51=$E50,$A50,COUNT($E$5:$E51))))) -> 8 | E51: 0 | G51: 0 | H51: 0 | J51: 0 | AZ51: 47 | BC51: 0 | BD51: 0 | BF51: 47
A52: =IF(J$2="","",IF($E52="","",IF($E52=MAX($E$5:$E$54),1,IF($E52=$E51,$A51,COUNT($E$5:$E52))))) -> 8 | E52: 0 | G52: 0 | H52: 0 | J52: 0 | AZ52: 48 | BC52: 0 | BD52: 0 | BF52: 48
A53: =IF(J$2="","",IF($E53="","",IF($E53=MAX($E$5:$E$54),1,IF($E53=$E52,$A52,COUNT($E$5:$E53))))) -> 8 | E53: 0 | G53: 0 | H53: 0 | J53: 0 | AZ53: 49 | BC53: 0 | BD53: 0 | BF53: 49
A54: =IF(J$2="","",IF($E54="","",IF($E54=MAX($E$5:$E$54),1,IF($E54=$E53,$A53,COUNT($E$5:$E54))))) -> 8 | E54: 0 | G54: 0 | H54: 0 | J54: 0 | AZ54: 50 | BC54: 0 | BD54: 0 | BF54: 50
D59: punteggi torneo ordinati per # di coppia
B60: # coppia | E60: con zeri | F60: senza zeri | G60: senza zeri
B61: 1 | E61: 60.71428571 | F61: =IF(E61=0,"",E61) -> 60.71428571 | G61: 60.71428571 | I61: =IF(H61=0,"",H61) ->  | BF61: 4
B62: 2 | E62: 40.47619048 | F62: 40.47619048 | G62: 40.47619048 | BF62: 3
B63: 3 | E63: 53.57142857 | F63: 53.57142857 | G63: 53.57142857 | I63: =IF(H63=0,"",H63) ->  | BF63: 7
B64: 4 | E64: 48.80952381 | F64: 48.80952381 | G64: 48.80952381 | BF64: 2
B65: 5 | E65: 51.19047619 | F65: 51.19047619 | G65: 51.19047619 | I65: =IF(H65=0,"",H65) ->  | BF65: 1
B66: 6 | E66: 50 | F66: 50 | G66: 50 | BF66: 10
B67: 7 | E67: 45.23809524 | F67: 45.23809524 | G67: 45.23809524 | BF67: 11
E68: 0 | I68: =IF(H68=0,"",H68) ->  | BF68: 5
E69: 0 | I69: =IF(H69=0,"",H69) ->  | BF69: 6
E70: 0 | BF70: 8
E71: 0 | BF71: 9
E72: 0 | BF72: 12
E73: 0 | I73: =IF(H73=0,"",H73) ->  | BF73: 13
E74: 0 | I74: =IF(H74=0,"",H74) ->  | BF74: 14
E75: 0 | I75: =IF(H75=0,"",H75) ->  | BF75: 15
E76: 0 | I76: =IF(H76=0,"",H76) ->  | BF76: 16
E77: 0 | BF77: 17
E78: 0 | BF78: 18
E79: 0 | I79: =IF(H79=0,"",H79) ->  | BF79: 19
E80: 0 | I80: =IF(H80=0,"",H80) ->  | BF80: 20
E81: 0 | BF81: 21
E82: 0 | BF82: 22
E83: 0 | BF83: 23
E84: 0 | BF84: 24
E85: 0 | BF85: 25
E86: 0 | BF86: 26
E87: 0 | BF87: 27
E88: 0 | BF88: 28
E89: 0 | BF89: 29
E90: 0 | BF90: 30
E91: 0 | BF91: 31
E92: 0 | BF92: 32
E93: 0 | BF93: 33
E94: 0 | BF94: 34
E95: 0 | BF95: 35
E96: 0 | BF96: 36
E97: 0 | BF97: 37
E98: 0 | BF98: 38
E99: 0 | BF99: 39
E100: 0 | BF100: 40
E101: 0 | BF101: 41
E102: 0 | BF102: 42
E103: 0 | BF103: 43
E104: 0 | BF104: 44
E105: 0 | BF105: 45
E106: 0 | BF106: 46
E107: 0 | BF107: 47
E108: 0 | BF108: 48
E109: 0 | BF109: 49
E110: 0 | BF110: 50
A119: PTS ordinati per numero standard di coppia base
A120: #STD | B120: PTS
A121: 1 | B121: 10 | E121: 51.19047619 | F121: =IF(E121=0,"",E121) -> 51.19047619 | G121: 51.19047619 | I121: =IF(H121=0,"",H121) ->  | BF121: 1
A122: 2 | B122: 6 | E122: 48.80952381 | F122: 48.80952381 | G122: 48.80952381 | BF122: 2
A123: 3 | B123: 2 | E123: 40.47619048 | F123: 40.47619048 | G123: 40.47619048 | BF123: 3
A124: 4 | B124: 14 | E124: 60.71428571 | F124: 60.71428571 | G124: 60.71428571 | I124: =IF(H124=0,"",H124) ->  | BF124: 4
A125: 5 | E125: 0 | I125: =IF(H125=0,"",H125) ->  | BF125: 5
A126: 6 | E126: 0 | I126: =IF(H126=0,"",H126) ->  | BF126: 6
A127: 7 | B127: 12 | E127: 53.57142857 | F127: 53.57142857 | G127: 53.57142857 | I127: =IF(H127=0,"",H127) ->  | BF127: 7
A128: 8 | E128: 0 | BF128: 8
A129: 9 | E129: 0 | BF129: 9
A130: 10 | B130: 8 | E130: 50 | F130: 50 | G130: 50 | BF130: 10
A131: 11 | B131: 4 | E131: 45.23809524 | F131: 45.23809524 | G131: 45.23809524 | BF131: 11
BE200: formule punti coppie base
BE201: =IF(BD201=0,"",IF(AZ201>11,"",IF(BD201=BD200,BE200,2*(D$3-BG201)+3-COUNTIF(BG$5:BG$54,BG201)))) -> 
BE202: =IF(BD202=0,"",IF(AZ202>11,"",IF(BD202=BD201,BE201,2*(D$3-BG202)+3-COUNTIF(BG$5:BG$54,BG202)))) -> 

Sheet 1giu
A1: Data | C1: 2019-06-01 | D1: BridgeMania 2018-19 - Torneo Howell
A2: luogo | C2: De Sanctis | D2: Coppie Ctrl+e | E2: Calcola Ctr+f Ctr+i | F2: Duplica Ctrl+g | G2: Clear Ctrl+h | J2: &
A3: # coppie / # c.base | C3: =IF(B5="","",COUNT(B5:B54)) -> 11 | D3: =SUM(AY5:AY54) -> 9 | E3: =IF(E5="","",SUMIF(E5:E54,">0")) -> 550 | G3: =IF(G5="","",SUM(G5:G54)) -> 550 | H3: =IF(H5="","",SUM(H5:H54)) -> 968 | I3: =SUM(I5:I54) -> 0 | J3: =SUM(J5:J54) -> 968 | K3: =SUM(K5:K54) -> 44 | L3: =SUM(L5:L54) -> 44 | M3: 44 | N3: 44 | O3: 44 | P3: 44 | Q3: 44 | R3: 44 | S3: 44 | T3: 44 | U3: 44 | V3: 44 | W3: 44 | X3: 44 | Y3: 44 | Z3: 44 | AA3: 44 | AB3: 44 | AC3: 44 | AD3: 44 | AE3: 44 | AF3: 44 | AG3: 0 | AH3: 0 | AI3: 0 | AJ3: 0 | AK3: 0 | AL3: 0 | AM3: 0 | AN3: 0 | AO3: 0 | AP3: 0 | AQ3: 0 | AR3: 0 | AS3: 0 | AT3: 0 | AU3: 0 | AV3: 0 | AW3: 0 | AX3: 0
A4: Class. | B4: # | C4: Coppie | E4: Punteggio Serata | G4: Punteggio % | H4: Punteggio Torneo | I4: Penalità (-) | J4: Totale punti mano | K4: 1 | L4: 2 | M4: 3 | N4: 4 | O4: 5 | P4: 6 | Q4: 7 | R4: 8 | S4: 9 | T4: 10 | U4: 11 | V4: 12 | W4: 13 | X4: 14 | Y4: 15 | Z4: 16 | AA4: 17 | AB4: 18 | AC4: 19 | AD4: 20 | AE4: 21 | AF4: 22 | AG4: 23 | AH4: 24 | AI4: 25 | AJ4: 26 | AK4: 27 | AL4: 28 | AM4: 29 | AN4: 30 | AO4: 31 | AP4: 32 | AQ4: 33 | AR4: 34 | AS4: 35 | AT4: 36 | AU4: 37 | AV4: 38 | AW4: 39 | AX4: 40 | AY4: c.base presenti | AZ4: ordine c.base ad hoc | BC4: punteggi | BD4: punteggi c. base presenti | BE4: punti PTS coppie base | BF4: ordine c.base STD | BG4: Rank
A5: =IF(J$2="","",IF($E5="","",IF($E5=MAX($E$5:$E$54),1,IF($E5=$E4,$A4,COUNT($E$5:$E5))))) -> 1 | B5: 11 | C5: A.Maria | D5: Claudio | E5: =IF(J$2="","",IF(G5=0,0,F5+G5)) -> 61.93181818 | G5: =IF(J$2="","",IF($J5=0,0,(H5*$C$3/$J$3)*50)) -> 61.93181818 | H5: =IF(J$2="","",IF(SUM($K5:$AX5)=0,0,SUM($K5:$AX5)+$I5)) -> 109 | J5: =IF(B5="",0,IF(SUM($K5:$AX5)=0,0,SUM($K5:$AX5))) -> 109 | K5: 4 | L5: 2 | M5: 8 | N5: 4 | O5: 7 | P5: 4 | Q5: 8 | R5: 4 | S5: 7 | T5: 3 | U5: 7 | V5: 8 | W5: 8 | X5: 4 | Y5: 6 | Z5: 7 | AA5: 1 | AB5: 8 | AC5: 1 | AD5: 0 | AE5: 4 | AF5: 4 | AY5: =IF(BF5>11,"",IF(B5="","",1)) ->  | AZ5: 10 | BA5: Stefania | BB5: Massimo | BC5: 55.68181818 | BD5: =IF(AZ5>11,0,BC5) -> 55.68181818 | BE5: =IF(BD5=0,"",IF(AZ5>11,"",IF(BD5=BD4,BE4,2*(D$3-BG5)+3-COUNTIF(BG$5:BG$54,BG5)))) -> 18 | BF5: 13 | BG5: =RANK(BD5,BD$5:BD$15) -> 1
A6: =IF(J$2="","",IF($E6="","",IF($E6=MAX($E$5:$E$54),1,IF($E6=$E5,$A5,COUNT($E$5:$E6))))) -> 2 | B6: 2 | C6: Stefania | D6: Massimo | E6: 55.68181818 | G6: 55.68181818 | H6: 98 | J6: 98 | K6: 4 | L6: 6 | M6: 4 | N6: 4 | O6: 7 | P6: 1 | Q6: 2 | R6: 7 | S6: 4 | T6: 6 | U6: 5 | V6: 5 | W6: 7 | X6: 4 | Y6: 8 | Z6: 0 | AA6: 1 | AB6: 5 | AC6: 1 | AD6: 7 | AE6: 7 | AF6: 3 | AY6: 1 | AZ6: 3 | BA6: Cesarina | BB6: Gaetano | BC6: 55.11363636 | BD6: 55.11363636 | BE6: =IF(BD6=0,"",IF(AZ6>11,"",IF(BD6=BD5,BE5,2*(D$3-BG6)+3-COUNTIF(BG$5:BG$54,BG6)))) -> 16 | BF6: 10 | BG6: 2
A7: =IF(J$2="","",IF($E7="","",IF($E7=MAX($E$5:$E$54),1,IF($E7=$E6,$A6,COUNT($E$5:$E7))))) -> 3 | B7: 3 | C7: Cesarina | D7: Gaetano | E7: 55.11363636 | G7: 55.11363636 | H7: 97 | J7: 97 | K7: 7 | L7: 7 | M7: 1 | N7: 4 | O7: 4 | P7: 4 | Q7: 4 | R7: 8 | S7: 1 | T7: 8 | U7: 1 | V7: 5 | W7: 0 | X7: 4 | Y7: 0 | Z7: 8 | AA7: 7 | AB7: 5 | AC7: 4 | AD7: 2 | AE7: 8 | AF7: 5 | AY7: 1 | AZ7: 9 | BA7: Renata | BB7: Sandro | BC7: 53.97727273 | BD7: 53.97727273 | BE7: 14 | BF7: 3 | BG7: 3
A8: =IF(J$2="","",IF($E8="","",IF($E8=MAX($E$5:$E$54),1,IF($E8=$E7,$A7,COUNT($E$5:$E8))))) -> 4 | B8: 6 | C8: Renata | D8: Sandro | E8: 53.97727273 | G8: 53.97727273 | H8: 95 | J8: 95 | K8: 3 | L8: 6 | M8: 6 | N8: 8 | O8: 1 | P8: 4 | Q8: 6 | R8: 1 | S8: 6 | T8: 0 | U8: 4 | V8: 4 | W8: 3 | X8: 8 | Y8: 2 | Z8: 2 | AA8: 4 | AB8: 3 | AC8: 4 | AD8: 6 | AE8: 7 | AF8: 7 | AY8: 1 | AZ8: 4 | BA8: Elena | BB8: Stefano | BC8: 53.40909091 | BD8: 53.40909091 | BE8: 12 | BF8: 9 | BG8: 4
A9: =IF(J$2="","",IF($E9="","",IF($E9=MAX($E$5:$E$54),1,IF($E9=$E8,$A8,COUNT($E$5:$E9))))) -> 5 | B9: 8 | C9: Elena | D9: Stefano | E9: 53.40909091 | G9: 53.40909091 | H9: 94 | J9: 94 | K9: 3 | L9: 7 | M9: 7 | N9: 8 | O9: 8 | P9: 2 | Q9: 0 | R9: 4 | S9: 4 | T9: 2 | U9: 5 | V9: 5 | W9: 5 | X9: 0 | Y9: 4 | Z9: 4 | AA9: 7 | AB9: 3 | AC9: 6 | AD9: 7 | AE9: 0 | AF9: 3 | AY9: 1 | AZ9: 11 | BA9: Tatiana | BB9: Julio | BC9: 51.70454545 | BD9: 51.70454545 | BE9: 10 | BF9: 4 | BG9: 5
A10: =IF(J$2="","",IF($E10="","",IF($E10=MAX($E$5:$E$54),1,IF($E10=$E9,$A9,COUNT($E$5:$E10))))) -> 6 | B10: 4 | C10: Tatiana | D10: Julio | E10: 51.70454545 | G10: 51.70454545 | H10: 91 | J10: 91 | K10: 7 | L10: 6 | M10: 0 | N10: 4 | O10: 1 | P10: 7 | Q10: 4 | R10: 4 | S10: 2 | T10: 8 | U10: 3 | V10: 3 | W10: 7 | X10: 4 | Y10: 8 | Z10: 1 | AA10: 1 | AB10: 3 | AC10: 8 | AD10: 4 | AE10: 5 | AF10: 1 | AY10: 1 | AZ10: 2 | BA10: Barbara | BB10: Elio | BC10: 47.15909091 | BD10: 47.15909091 | BE10: 8 | BF10: 11 | BG10: 6
A11: =IF(J$2="","",IF($E11="","",IF($E11=MAX($E$5:$E$54),1,IF($E11=$E10,$A10,COUNT($E$5:$E11))))) -> 7 | B11: 9 | C11: Barbara | D11: Elio | E11: 47.15909091 | G11: 47.15909091 | H11: 83 | J11: 83 | K11: 1 | L11: 2 | M11: 2 | N11: 0 | O11: 0 | P11: 6 | Q11: 7 | R11: 2 | S11: 8 | T11: 5 | U11: 7 | V11: 3 | W11: 3 | X11: 0 | Y11: 4 | Z11: 4 | AA11: 4 | AB11: 4 | AC11: 7 | AD11: 8 | AE11: 1 | AF11: 5 | AY11: 1 | AZ11: 1 | BA11: Antonella | BB11: Dino | BC11: 42.61363636 | BD11: 42.61363636 | BE11: 5 | BF11: 2 | BG11: 7
A12: =IF(J$2="","",IF($E12="","",IF($E12=MAX($E$5:$E$54),1,IF($E12=$E11,$A11,COUNT($E$5:$E12))))) -> 8 | B12: 7 | C12: Marilena | D12: Sergio | E12: 43.75 | G12: 43.75 | H12: 77 | J12: 77 | K12: 5 | L12: 2 | M12: 1 | N12: 0 | O12: 4 | P12: 0 | Q12: 7 | R12: 7 | S12: 7 | T12: 0 | U12: 0 | V12: 3 | W12: 4 | X12: 4 | Y12: 4 | Z12: 4 | AA12: 7 | AB12: 0 | AC12: 7 | AD12: 1 | AE12: 3 | AF12: 7 | AZ12: 7 | BA12: Manuela | BB12: Roberto | BC12: 42.61363636 | BD12: 42.61363636 | BE12: 5 | BF12: 12 | BG12: 7
A13: =IF(J$2="","",IF($E13="","",IF($E13=MAX($E$5:$E$54),1,IF($E13=$E12,$A12,COUNT($E$5:$E13))))) -> 9 | B13: 1 | C13: Antonella | D13: Dino | E13: 42.61363636 | G13: 42.61363636 | H13: 75 | J13: 75 | K13: 4 | L13: 4 | M13: 7 | N13: 4 | O13: 6 | P13: 7 | Q13: 1 | R13: 1 | S13: 0 | T13: 3 | U13: 1 | V13: 0 | W13: 1 | X13: 4 | Y13: 0 | Z13: 7 | AA13: 4 | AB13: 5 | AC13: 2 | AD13: 1 | AE13: 5 | AF13: 8 | AY13: 1 | AZ13: 6 | BA13: Lilli | BB13: Gianni | BC13: 42.04545455 | BD13: 42.04545455 | BE13: 2 | BF13: 1 | BG13: 9
A14: =IF(J$2="","",IF($E14="","",IF($E14=MAX($E$5:$E$54),1,IF($E14=$E13,$A13,COUNT($E$5:$E14))))) -> 9 | B14: 10 | C14: Manuela | D14: Roberto | E14: 42.61363636 | G14: 42.61363636 | H14: 75 | J14: 75 | K14: 1 | L14: 1 | M14: 4 | N14: 4 | O14: 4 | P14: 8 | Q14: 1 | R14: 6 | S14: 1 | T14: 5 | U14: 3 | V14: 3 | W14: 1 | X14: 4 | Y14: 6 | Z14: 6 | AA14: 1 | AB14: 5 | AC14: 4 | AD14: 4 | AE14: 3 | AF14: 0 | AY14: 1 | AZ14: 5 | BC14: 0 | BD14: 0 | BF14: 7 | BG14: 10
A15: =IF(J$2="","",IF($E15="","",IF($E15=MAX($E$5:$E$54),1,IF($E15=$E14,$A14,COUNT($E$5:$E15))))) -> 11 | B15: 5 | C15: Lilli | D15: Gianni | E15: 42.04545455 | G15: 42.04545455 | H15: 74 | J15: 74 | K15: 5 | L15: 1 | M15: 4 | N15: 4 | O15: 2 | P15: 1 | Q15: 4 | R15: 0 | S15: 4 | T15: 4 | U15: 8 | V15: 5 | W15: 5 | X15: 8 | Y15: 2 | Z15: 1 | AA15: 7 | AB15: 3 | AC15: 0 | AD15: 4 | AE15: 1 | AF15: 1 | AY15: 1 | AZ15: 8 | BC15: 0 | BD15: 0 | BF15: 6 | BG15: 10
A16: =IF(J$2="","",IF($E16="","",IF($E16=MAX($E$5:$E$54),1,IF($E16=$E15,$A15,COUNT($E$5:$E16))))) -> 12 | E16: 0 | G16: 0 | H16: 0 | J16: 0 | AZ16: 12 | BA16: Marilena | BB16: Sergio | BC16: 43.75 | BD16: 0 | BF16: 5 | BG16: 10
A17: =IF(J$2="","",IF($E17="","",IF($E17=MAX($E$5:$E$54),1,IF($E17=$E16,$A16,COUNT($E$5:$E17))))) -> 12 | E17: 0 | G17: 0 | H17: 0 | J17: 0 | AZ17: 13 | BA17: A.Maria | BB17: Claudio | BC17: 61.93181818 | BD17: 0 | BF17: 8
A18: =IF(J$2="","",IF($E18="","",IF($E18=MAX($E$5:$E$54),1,IF($E18=$E17,$A17,COUNT($E$5:$E18))))) -> 12 | E18: 0 | G18: 0 | H18: 0 | J18: 0 | AZ18: 14 | BC18: 0 | BD18: 0 | BF18: 14 | BG18: =RANK(BD18,BD$5:BD$15) -> 10
A19: =IF(J$2="","",IF($E19="","",IF($E19=MAX($E$5:$E$54),1,IF($E19=$E18,$A18,COUNT($E$5:$E19))))) -> 12 | E19: 0 | G19: 0 | H19: 0 | J19: 0 | AZ19: 15 | BC19: 0 | BD19: 0 | BF19: 15 | BG19: =RANK(BD19,BD$5:BD$15) -> 10
A20: =IF(J$2="","",IF($E20="","",IF($E20=MAX($E$5:$E$54),1,IF($E20=$E19,$A19,COUNT($E$5:$E20))))) -> 12 | E20: 0 | G20: 0 | H20: 0 | J20: 0 | AZ20: 16 | BC20: 0 | BD20: 0 | BF20: 16 | BG20: =RANK(BD20,BD$5:BD$15) -> 10
A21: =IF(J$2="","",IF($E21="","",IF($E21=MAX($E$5:$E$54),1,IF($E21=$E20,$A20,COUNT($E$5:$E21))))) -> 12 | E21: 0 | G21: 0 | H21: 0 | J21: 0 | AZ21: 17 | BC21: 0 | BD21: 0 | BF21: 17
A22: =IF(J$2="","",IF($E22="","",IF($E22=MAX($E$5:$E$54),1,IF($E22=$E21,$A21,COUNT($E$5:$E22))))) -> 12 | E22: 0 | G22: 0 | H22: 0 | J22: 0 | AZ22: 18 | BC22: 0 | BD22: 0 | BF22: 18
A23: =IF(J$2="","",IF($E23="","",IF($E23=MAX($E$5:$E$54),1,IF($E23=$E22,$A22,COUNT($E$5:$E23))))) -> 12 | E23: 0 | G23: 0 | H23: 0 | J23: 0 | AZ23: 19 | BC23: 0 | BD23: 0 | BF23: 19 | BG23: =RANK(BD23,BD$5:BD$15) -> 10
A24: =IF(J$2="","",IF($E24="","",IF($E24=MAX($E$5:$E$54),1,IF($E24=$E23,$A23,COUNT($E$5:$E24))))) -> 12 | E24: 0 | G24: 0 | H24: 0 | J24: 0 | AZ24: 20 | BC24: 0 | BD24: 0 | BF24: 20 | BG24: =RANK(BD24,BD$5:BD$15) -> 10
A25: =IF(J$2="","",IF($E25="","",IF($E25=MAX($E$5:$E$54),1,IF($E25=$E24,$A24,COUNT($E$5:$E25))))) -> 12 | E25: 0 | G25: 0 | H25: 0 | J25: 0 | AZ25: 21 | BC25: 0 | BD25: 0 | BF25: 21
A26: =IF(J$2="","",IF($E26="","",IF($E26=MAX($E$5:$E$54),1,IF($E26=$E25,$A25,COUNT($E$5:$E26))))) -> 12 | E26: 0 | G26: 0 | H26: 0 | J26: 0 | AZ26: 22 | BC26: 0 | BD26: 0 | BF26: 22 | BG26: =RANK(BD26,BD$5:BD$15) -> 10
A27: =IF(J$2="","",IF($E27="","",IF($E27=MAX($E$5:$E$54),1,IF($E27=$E26,$A26,COUNT($E$5:$E27))))) -> 12 | E27: 0 | G27: 0 | H27: 0 | J27: 0 | AZ27: 23 | BC27: 0 | BD27: 0 | BF27: 23 | BG27: =RANK(BD27,BD$5:BD$15) -> 10
A28: =IF(J$2="","",IF($E28="","",IF($E28=MAX($E$5:$E$54),1,IF($E28=$E27,$A27,COUNT($E$5:$E28))))) -> 12 | E28: 0 | G28: 0 | H28: 0 | J28: 0 | AZ28: 24 | BC28: 0 | BD28: 0 | BF28: 24 | BG28: =RANK(BD28,BD$5:BD$15) -> 10
A29: =IF(J$2="","",IF($E29="","",IF($E29=MAX($E$5:$E$54),1,IF($E29=$E28,$A28,COUNT($E$5:$E29))))) -> 12 | E29: 0 | G29: 0 | H29: 0 | J29: 0 | AZ29: 25 | BC29: 0 | BD29: 0 | BF29: 25
A30: =IF(J$2="","",IF($E30="","",IF($E30=MAX($E$5:$E$54),1,IF($E30=$E29,$A29,COUNT($E$5:$E30))))) -> 12 | E30: 0 | G30: 0 | H30: 0 | J30: 0 | AZ30: 26 | BC30: 0 | BD30: 0 | BF30: 26
A31: =IF(J$2="","",IF($E31="","",IF($E31=MAX($E$5:$E$54),1,IF($E31=$E30,$A30,COUNT($E$5:$E31))))) -> 12 | E31: 0 | G31: 0 | H31: 0 | J31: 0 | AZ31: 27 | BC31: 0 | BD31: 0 | BF31: 27
A32: =IF(J$2="","",IF($E32="","",IF($E32=MAX($E$5:$E$54),1,IF($E32=$E31,$A31,COUNT($E$5:$E32))))) -> 12 | E32: 0 | G32: 0 | H32: 0 | J32: 0 | AZ32: 28 | BC32: 0 | BD32: 0 | BF32: 28
A33: =IF(J$2="","",IF($E33="","",IF($E33=MAX($E$5:$E$54),1,IF($E33=$E32,$A32,COUNT($E$5:$E33))))) -> 12 | E33: 0 | G33: 0 | H33: 0 | J33: 0 | AZ33: 29 | BC33: 0 | BD33: 0 | BF33: 29
A34: =IF(J$2="","",IF($E34="","",IF($E34=MAX($E$5:$E$54),1,IF($E34=$E33,$A33,COUNT($E$5:$E34))))) -> 12 | E34: 0 | G34: 0 | H34: 0 | J34: 0 | AZ34: 30 | BC34: 0 | BD34: 0 | BF34: 30
A35: =IF(J$2="","",IF($E35="","",IF($E35=MAX($E$5:$E$54),1,IF($E35=$E34,$A34,COUNT($E$5:$E35))))) -> 12 | E35: 0 | G35: 0 | H35: 0 | J35: 0 | AZ35: 31 | BC35: 0 | BD35: 0 | BF35: 31
A36: =IF(J$2="","",IF($E36="","",IF($E36=MAX($E$5:$E$54),1,IF($E36=$E35,$A35,COUNT($E$5:$E36))))) -> 12 | E36: 0 | G36: 0 | H36: 0 | J36: 0 | AZ36: 32 | BC36: 0 | BD36: 0 | BF36: 32
A37: =IF(J$2="","",IF($E37="","",IF($E37=MAX($E$5:$E$54),1,IF($E37=$E36,$A36,COUNT($E$5:$E37))))) -> 12 | E37: =IF(J$2="","",IF(G37=0,0,F37+G37)) -> 0 | G37: =IF(J$2="","",IF($J37=0,0,(H37*$C$3/$J$3)*50)) -> 0 | H37: =IF(J$2="","",IF(SUM($K37:$AX37)=0,0,SUM($K37:$AX37)+$I37)) -> 0 | J37: =IF(B37="",0,IF(SUM($K37:$AX37)=0,0,SUM($K37:$AX37))) -> 0 | AY37: =IF(BF37>11,"",IF(B37="","",1)) ->  | AZ37: 33 | BC37: 0 | BD37: =IF(AZ37>11,0,BC37) -> 0 | BF37: 33
A38: =IF(J$2="","",IF($E38="","",IF($E38=MAX($E$5:$E$54),1,IF($E38=$E37,$A37,COUNT($E$5:$E38))))) -> 12 | E38: 0 | G38: 0 | H38: 0 | J38: 0 | AZ38: 34 | BC38: 0 | BD38: 0 | BF38: 34
A39: =IF(J$2="","",IF($E39="","",IF($E39=MAX($E$5:$E$54),1,IF($E39=$E38,$A38,COUNT($E$5:$E39))))) -> 12 | E39: 0 | G39: 0 | H39: 0 | J39: 0 | AZ39: 35 | BC39: 0 | BD39: 0 | BF39: 35
A40: =IF(J$2="","",IF($E40="","",IF($E40=MAX($E$5:$E$54),1,IF($E40=$E39,$A39,COUNT($E$5:$E40))))) -> 12 | E40: 0 | G40: 0 | H40: 0 | J40: 0 | AZ40: 36 | BC40: 0 | BD40: 0 | BF40: 36
A41: =IF(J$2="","",IF($E41="","",IF($E41=MAX($E$5:$E$54),1,IF($E41=$E40,$A40,COUNT($E$5:$E41))))) -> 12 | E41: 0 | G41: 0 | H41: 0 | J41: 0 | AZ41: 37 | BC41: 0 | BD41: 0 | BF41: 37
A42: =IF(J$2="","",IF($E42="","",IF($E42=MAX($E$5:$E$54),1,IF($E42=$E41,$A41,COUNT($E$5:$E42))))) -> 12 | E42: 0 | G42: 0 | H42: 0 | J42: 0 | AZ42: 38 | BC42: 0 | BD42: 0 | BF42: 38
A43: =IF(J$2="","",IF($E43="","",IF($E43=MAX($E$5:$E$54),1,IF($E43=$E42,$A42,COUNT($E$5:$E43))))) -> 12 | E43: 0 | G43: 0 | H43: 0 | J43: 0 | AZ43: 39 | BC43: 0 | BD43: 0 | BF43: 39
A44: =IF(J$2="","",IF($E44="","",IF($E44=MAX($E$5:$E$54),1,IF($E44=$E43,$A43,COUNT($E$5:$E44))))) -> 12 | E44: 0 | G44: 0 | H44: 0 | J44: 0 | AZ44: 40 | BC44: 0 | BD44: 0 | BF44: 40
A45: =IF(J$2="","",IF($E45="","",IF($E45=MAX($E$5:$E$54),1,IF($E45=$E44,$A44,COUNT($E$5:$E45))))) -> 12 | E45: 0 | G45: 0 | H45: 0 | J45: 0 | AZ45: 41 | BC45: 0 | BD45: 0 | BF45: 41
A46: =IF(J$2="","",IF($E46="","",IF($E46=MAX($E$5:$E$54),1,IF($E46=$E45,$A45,COUNT($E$5:$E46))))) -> 12 | E46: 0 | G46: 0 | H46: 0 | J46: 0 | AZ46: 42 | BC46: 0 | BD46: 0 | BF46: 42
A47: =IF(J$2="","",IF($E47="","",IF($E47=MAX($E$5:$E$54),1,IF($E47=$E46,$A46,COUNT($E$5:$E47))))) -> 12 | E47: 0 | G47: 0 | H47: 0 | J47: 0 | AZ47: 43 | BC47: 0 | BD47: 0 | BF47: 43
A48: =IF(J$2="","",IF($E48="","",IF($E48=MAX($E$5:$E$54),1,IF($E48=$E47,$A47,COUNT($E$5:$E48))))) -> 12 | E48: 0 | G48: 0 | H48: 0 | J48: 0 | AZ48: 44 | BC48: 0 | BD48: 0 | BF48: 44
A49: =IF(J$2="","",IF($E49="","",IF($E49=MAX($E$5:$E$54),1,IF($E49=$E48,$A48,COUNT($E$5:$E49))))) -> 12 | E49: 0 | G49: 0 | H49: 0 | J49: 0 | AZ49: 45 | BC49: 0 | BD49: 0 | BF49: 45
A50: =IF(J$2="","",IF($E50="","",IF($E50=MAX($E$5:$E$54),1,IF($E50=$E49,$A49,COUNT($E$5:$E50))))) -> 12 | E50: 0 | G50: 0 | H50: 0 | J50: 0 | AZ50: 46 | BC50: 0 | BD50: 0 | BF50: 46
A51: =IF(J$2="","",IF($E51="","",IF($E51=MAX($E$5:$E$54),1,IF($E51=$E50,$A50,COUNT($E$5:$E51))))) -> 12 | E51: 0 | G51: 0 | H51: 0 | J51: 0 | AZ51: 47 | BC51: 0 | BD51: 0 | BF51: 47
A52: =IF(J$2="","",IF($E52="","",IF($E52=MAX($E$5:$E$54),1,IF($E52=$E51,$A51,COUNT($E$5:$E52))))) -> 12 | E52: 0 | G52: 0 | H52: 0 | J52: 0 | AZ52: 48 | BC52: 0 | BD52: 0 | BF52: 48
A53: =IF(J$2="","",IF($E53="","",IF($E53=MAX($E$5:$E$54),1,IF($E53=$E52,$A52,COUNT($E$5:$E53))))) -> 12 | E53: 0 | G53: 0 | H53: 0 | J53: 0 | AZ53: 49 | BC53: 0 | BD53: 0 | BF53: 49
A54: =IF(J$2="","",IF($E54="","",IF($E54=MAX($E$5:$E$54),1,IF($E54=$E53,$A53,COUNT($E$5:$E54))))) -> 12 | E54: 0 | G54: 0 | H54: 0 | J54: 0 | AZ54: 50 | BC54: 0 | BD54: 0 | BF54: 50
D59: punteggi torneo ordinati per # di coppia
B60: # coppia | E60: con zeri | F60: senza zeri | G60: senza zeri
B61: 1 | E61: 42.61363636 | F61: =IF(E61=0,"",E61) -> 42.61363636 | G61: 42.61363636 | I61: =IF(H61=0,"",H61) ->  | BF61: 1
B62: 2 | E62: 55.68181818 | F62: 55.68181818 | G62: 55.68181818 | BF62: 10
B63: 3 | E63: 55.11363636 | F63: 55.11363636 | G63: 55.11363636 | I63: =IF(H63=0,"",H63) ->  | BF63: 3
B64: 4 | E64: 51.70454545 | F64: 51.70454545 | G64: 51.70454545 | BF64: 11
B65: 5 | E65: 42.04545455 | F65: 42.04545455 | G65: 42.04545455 | I65: =IF(H65=0,"",H65) ->  | BF65: 6
B66: 6 | E66: 53.97727273 | F66: 53.97727273 | G66: 53.97727273 | BF66: 9
B67: 7 | E67: 43.75 | F67: 43.75 | G67: 43.75 | BF67: 12
B68: 8 | E68: 53.40909091 | F68: 53.40909091 | G68: 53.40909091 | I68: =IF(H68=0,"",H68) ->  | BF68: 4
B69: 9 | E69: 47.15909091 | F69: 47.15909091 | G69: 47.15909091 | I69: =IF(H69=0,"",H69) ->  | BF69: 2
B70: 10 | E70: 42.61363636 | F70: 42.61363636 | G70: 42.61363636 | BF70: 7
B71: 11 | E71: 61.93181818 | F71: 61.93181818 | G71: 61.93181818 | BF71: 13
E72: 0 | BF72: 5
E73: 0 | I73: =IF(H73=0,"",H73) ->  | BF73: 8
E74: 0 | I74: =IF(H74=0,"",H74) ->  | BF74: 14
E75: 0 | I75: =IF(H75=0,"",H75) ->  | BF75: 15
E76: 0 | I76: =IF(H76=0,"",H76) ->  | BF76: 16
E77: 0 | BF77: 17
E78: 0 | BF78: 18
E79: 0 | I79: =IF(H79=0,"",H79) ->  | BF79: 19
E80: 0 | I80: =IF(H80=0,"",H80) ->  | BF80: 20
E81: 0 | BF81: 21
E82: 0 | BF82: 22
E83: 0 | BF83: 23
E84: 0 | BF84: 24
E85: 0 | BF85: 25
E86: 0 | BF86: 26
E87: 0 | BF87: 27
E88: 0 | BF88: 28
E89: 0 | BF89: 29
E90: 0 | BF90: 30
E91: 0 | BF91: 31
E92: 0 | BF92: 32
E93: 0 | F93: =IF(E93=0,"",E93) ->  | BF93: 33
E94: 0 | BF94: 34
E95: 0 | BF95: 35
E96: 0 | BF96: 36
E97: 0 | BF97: 37
E98: 0 | BF98: 38
E99: 0 | BF99: 39
E100: 0 | BF100: 40
E101: 0 | BF101: 41
E102: 0 | BF102: 42
E103: 0 | BF103: 43
E104: 0 | BF104: 44
E105: 0 | BF105: 45
E106: 0 | BF106: 46
E107: 0 | BF107: 47
E108: 0 | BF108: 48
E109: 0 | BF109: 49
E110: 0 | BF110: 50
A119: PTS ordinati per numero standard di coppia base
A120: #STD | B120: PTS
A121: 1 | B121: 5 | E121: 42.61363636 | F121: =IF(E121=0,"",E121) -> 42.61363636 | G121: 42.61363636 | I121: =IF(H121=0,"",H121) ->  | BF121: 1
A122: 2 | B122: 8 | E122: 47.15909091 | F122: 47.15909091 | G122: 47.15909091 | I122: =IF(H122=0,"",H122) ->  | BF122: 2
A123: 3 | B123: 16 | E123: 55.11363636 | F123: 55.11363636 | G123: 55.11363636 | I123: =IF(H123=0,"",H123) ->  | BF123: 3
A124: 4 | B124: 12 | E124: 53.40909091 | F124: 53.40909091 | G124: 53.40909091 | I124: =IF(H124=0,"",H124) ->  | BF124: 4
A125: 5 | E125: 0 | BF125: 5
A126: 6 | B126: 2 | E126: 42.04545455 | F126: 42.04545455 | G126: 42.04545455 | I126: =IF(H126=0,"",H126) ->  | BF126: 6
A127: 7 | B127: 5 | E127: 42.61363636 | F127: 42.61363636 | G127: 42.61363636 | BF127: 7
A128: 8 | E128: 0 | I128: =IF(H128=0,"",H128) ->  | BF128: 8
A129: 9 | B129: 14 | E129: 53.97727273 | F129: 53.97727273 | G129: 53.97727273 | BF129: 9
A130: 10 | B130: 18 | E130: 55.68181818 | F130: 55.68181818 | G130: 55.68181818 | BF130: 10
A131: 11 | B131: 10 | E131: 51.70454545 | F131: 51.70454545 | G131: 51.70454545 | BF131: 11
BE200: formule punti coppie base
BE201: =IF(BD201=0,"",IF(AZ201>11,"",IF(BD201=BD200,BE200,2*(D$3-BG201)+3-COUNTIF(BG$5:BG$54,BG201)))) -> 
BE202: =IF(BD202=0,"",IF(AZ202>11,"",IF(BD202=BD201,BE201,2*(D$3-BG202)+3-COUNTIF(BG$5:BG$54,BG202)))) -> 

Sheet 25mag
A1: Data | C1: 2019-05-25 | D1: BridgeMania 2018-19 - Torneo Howell
A2: luogo | C2: Simonelli | D2: Coppie Ctrl+e | E2: Calcola Ctr+f Ctr+i | F2: Duplica Ctrl+g | G2: Clear Ctrl+h | J2: &
A3: # coppie / # c.base | C3: =IF(B5="","",COUNT(B5:B54)) -> 9 | D3: =SUM(AY5:AY54) -> 8 | E3: =IF(E5="","",SUMIF(E5:E54,">0")) -> 450 | G3: =IF(G5="","",SUM(G5:G54)) -> 450 | H3: =IF(H5="","",SUM(H5:H54)) -> 486 | I3: =SUM(I5:I54) -> 0 | J3: =SUM(J5:J54) -> 486 | K3: =SUM(K5:K54) -> 27 | L3: =SUM(L5:L54) -> 27 | M3: 27 | N3: 27 | O3: 27 | P3: 27 | Q3: 27 | R3: 27 | S3: 27 | T3: 27 | U3: 27 | V3: 27 | W3: 27 | X3: 27 | Y3: 27 | Z3: 27 | AA3: 27 | AB3: 27 | AC3: 0 | AD3: 0 | AE3: 0 | AF3: 0 | AG3: 0 | AH3: 0 | AI3: 0 | AJ3: 0 | AK3: 0 | AL3: 0 | AM3: 0 | AN3: 0 | AO3: 0 | AP3: 0 | AQ3: 0 | AR3: 0 | AS3: 0 | AT3: 0 | AU3: 0 | AV3: 0 | AW3: 0 | AX3: 0
A4: Class. | B4: # | C4: Coppie | E4: Punteggio Serata | G4: Punteggio % | H4: Punteggio Torneo | I4: Penalità (-) | J4: Totale punti mano | K4: 1 | L4: 2 | M4: 3 | N4: 4 | O4: 5 | P4: 6 | Q4: 7 | R4: 8 | S4: 9 | T4: 10 | U4: 11 | V4: 12 | W4: 13 | X4: 14 | Y4: 15 | Z4: 16 | AA4: 17 | AB4: 18 | AC4: 19 | AD4: 20 | AE4: 21 | AF4: 22 | AG4: 23 | AH4: 24 | AI4: 25 | AJ4: 26 | AK4: 27 | AL4: 28 | AM4: 29 | AN4: 30 | AO4: 31 | AP4: 32 | AQ4: 33 | AR4: 34 | AS4: 35 | AT4: 36 | AU4: 37 | AV4: 38 | AW4: 39 | AX4: 40 | AY4: c.base presenti | AZ4: ordine c.base ad hoc | BC4: punteggi | BD4: punteggi c. base presenti | BE4: punti PTS coppie base | BF4: ordine c.base STD | BG4: Rank
A5: =IF(J$2="","",IF($E5="","",IF($E5=MAX($E$5:$E$54),1,IF($E5=$E4,$A4,COUNT($E$5:$E5))))) -> 1 | B5: 9 | C5: Elena | D5: Stefano | E5: =IF(J$2="","",IF(G5=0,0,F5+G5)) -> 68.51851852 | G5: =IF(J$2="","",IF($J5=0,0,(H5*$C$3/$J$3)*50)) -> 68.51851852 | H5: =IF(J$2="","",IF(SUM($K5:$AX5)=0,0,SUM($K5:$AX5)+$I5)) -> 74 | J5: =IF(B5="",0,IF(SUM($K5:$AX5)=0,0,SUM($K5:$AX5))) -> 74 | K5: 4 | L5: 4 | M5: 6 | N5: 1 | O5: 6 | P5: 4 | Q5: 0 | R5: 6 | S5: 4 | T5: 6 | U5: 5 | V5: 6 | W5: 6 | X5: 1 | Y5: 3 | Z5: 6 | AA5: 3 | AB5: 3 | AY5: =IF(BF5>11,"",IF(B5="","",1)) -> 1 | AZ5: 4 | BA5: Elena | BB5: Stefano | BC5: 68.51851852 | BD5: =IF(AZ5>11,0,BC5) -> 68.51851852 | BE5: =IF(BD5=0,"",IF(AZ5>11,"",IF(BD5=BD4,BE4,2*(D$3-BG5)+3-COUNTIF(BG$5:BG$54,BG5)))) -> 16 | BF5: 4 | BG5: =RANK(BD5,BD$5:BD$15) -> 1
A6: =IF(J$2="","",IF($E6="","",IF($E6=MAX($E$5:$E$54),1,IF($E6=$E5,$A5,COUNT($E$5:$E6))))) -> 2 | B6: 7 | C6: Letizia | D6: Enzo | E6: 67.59259259 | G6: 67.59259259 | H6: 73 | J6: 73 | K6: 4 | L6: 6 | M6: 0 | N6: 5 | O6: 4 | P6: 6 | Q6: 1 | R6: 6 | S6: 6 | T6: 3 | U6: 5 | V6: 3 | W6: 3 | X6: 3 | Y6: 3 | Z6: 5 | AA6: 6 | AB6: 4 | AZ6: 8 | BA6: Olimpia | BB6: Sauro | BC6: 49.07407407 | BD6: 49.07407407 | BE6: =IF(BD6=0,"",IF(AZ6>11,"",IF(BD6=BD5,BE5,2*(D$3-BG6)+3-COUNTIF(BG$5:BG$54,BG6)))) -> 14 | BF6: 14 | BG6: 2
A7: =IF(J$2="","",IF($E7="","",IF($E7=MAX($E$5:$E$54),1,IF($E7=$E6,$A6,COUNT($E$5:$E7))))) -> 3 | B7: 8 | C7: Olimpia | D7: Sauro | E7: 49.07407407 | G7: 49.07407407 | H7: 53 | J7: 53 | K7: 4 | L7: 2 | M7: 2 | N7: 1 | O7: 2 | P7: 4 | Q7: 5 | R7: 0 | S7: 2 | T7: 0 | U7: 5 | V7: 6 | W7: 0 | X7: 6 | Y7: 3 | Z7: 3 | AA7: 4 | AB7: 4 | AY7: 1 | AZ7: 11 | BA7: Tatiana | BB7: Julio | BC7: 48.14814815 | BD7: 48.14814815 | BE7: 12 | BF7: 8 | BG7: 3
A8: =IF(J$2="","",IF($E8="","",IF($E8=MAX($E$5:$E$54),1,IF($E8=$E7,$A7,COUNT($E$5:$E8))))) -> 4 | B8: 5 | C8: Tatiana | D8: Julio | E8: 48.14814815 | G8: 48.14814815 | H8: 52 | J8: 52 | K8: 6 | L8: 6 | M8: 2 | N8: 6 | O8: 6 | P8: 0 | Q8: 5 | R8: 3 | S8: 3 | T8: 3 | U8: 1 | V8: 0 | W8: 4 | X8: 2 | Y8: 3 | Z8: 0 | AA8: 0 | AB8: 2 | AY8: 1 | AZ8: 3 | BA8: Cesarina | BB8: Gaetano | BC8: 47.22222222 | BD8: 47.22222222 | BE8: 10 | BF8: 11 | BG8: 4
A9: =IF(J$2="","",IF($E9="","",IF($E9=MAX($E$5:$E$54),1,IF($E9=$E8,$A8,COUNT($E$5:$E9))))) -> 5 | B9: 2 | C9: Cesarina | D9: Gaetano | E9: 47.22222222 | G9: 47.22222222 | H9: 51 | J9: 51 | K9: 2 | L9: 0 | M9: 3 | N9: 3 | O9: 0 | P9: 6 | Q9: 6 | R9: 0 | S9: 4 | T9: 6 | U9: 1 | V9: 3 | W9: 4 | X9: 1 | Y9: 6 | Z9: 2 | AA9: 2 | AB9: 2 | AY9: 1 | AZ9: 7 | BA9: Manuela | BB9: Roberto | BC9: 46.2962963 | BD9: 46.2962963 | BE9: 8 | BF9: 3 | BG9: 5
A10: =IF(J$2="","",IF($E10="","",IF($E10=MAX($E$5:$E$54),1,IF($E10=$E9,$A9,COUNT($E$5:$E10))))) -> 6 | B10: 4 | C10: Manuela | D10: Roberto | E10: 46.2962963 | G10: 46.2962963 | H10: 50 | J10: 50 | K10: 0 | L10: 0 | M10: 4 | N10: 2 | O10: 0 | P10: 2 | Q10: 3 | R10: 3 | S10: 0 | T10: 3 | U10: 5 | V10: 3 | W10: 6 | X10: 0 | Y10: 6 | Z10: 1 | AA10: 6 | AB10: 6 | AY10: 1 | AZ10: 2 | BA10: Barbara | BB10: Elio | BC10: 45.37037037 | BD10: 45.37037037 | BE10: 6 | BF10: 7 | BG10: 6
A11: =IF(J$2="","",IF($E11="","",IF($E11=MAX($E$5:$E$54),1,IF($E11=$E10,$A10,COUNT($E$5:$E11))))) -> 7 | B11: 3 | C11: Barbara | D11: Elio | E11: 45.37037037 | G11: 45.37037037 | H11: 49 | J11: 49 | K11: 2 | L11: 2 | M11: 4 | N11: 5 | O11: 3 | P11: 3 | Q11: 4 | R11: 3 | S11: 6 | T11: 3 | U11: 1 | V11: 3 | W11: 2 | X11: 4 | Y11: 0 | Z11: 4 | AA11: 0 | AB11: 0 | AY11: 1 | AZ11: 6 | BA11: Lilli | BB11: Gianni | BC11: 39.81481481 | BD11: 39.81481481 | BE11: 4 | BF11: 2 | BG11: 7
A12: =IF(J$2="","",IF($E12="","",IF($E12=MAX($E$5:$E$54),1,IF($E12=$E11,$A11,COUNT($E$5:$E12))))) -> 8 | B12: 1 | C12: Lilli | D12: Gianni | E12: 39.81481481 | G12: 39.81481481 | H12: 43 | J12: 43 | K12: 3 | L12: 3 | M12: 2 | N12: 4 | O12: 4 | P12: 2 | Q12: 1 | R12: 3 | S12: 0 | T12: 3 | U12: 1 | V12: 0 | W12: 2 | X12: 5 | Y12: 3 | Z12: 1 | AA12: 4 | AB12: 2 | AY12: 1 | AZ12: 1 | BA12: Antonella | BB12: Dino | BC12: 37.96296296 | BD12: 37.96296296 | BE12: 2 | BF12: 6 | BG12: 8
A13: =IF(J$2="","",IF($E13="","",IF($E13=MAX($E$5:$E$54),1,IF($E13=$E12,$A12,COUNT($E$5:$E13))))) -> 9 | B13: 6 | C13: Antonella | D13: Dino | E13: 37.96296296 | G13: 37.96296296 | H13: 41 | J13: 41 | K13: 2 | L13: 4 | M13: 4 | N13: 0 | O13: 2 | P13: 0 | Q13: 2 | R13: 3 | S13: 2 | T13: 0 | U13: 3 | V13: 3 | W13: 0 | X13: 5 | Y13: 0 | Z13: 5 | AA13: 2 | AB13: 4 | AY13: 1 | AZ13: 5 | BC13: 0 | BD13: 0 | BF13: 1 | BG13: 9
A14: =IF(J$2="","",IF($E14="","",IF($E14=MAX($E$5:$E$54),1,IF($E14=$E13,$A13,COUNT($E$5:$E14))))) -> 10 | E14: 0 | G14: 0 | H14: 0 | J14: 0 | AZ14: 9 | BC14: 0 | BD14: 0 | BF14: 5 | BG14: 9
A15: =IF(J$2="","",IF($E15="","",IF($E15=MAX($E$5:$E$54),1,IF($E15=$E14,$A14,COUNT($E$5:$E15))))) -> 10 | E15: 0 | G15: 0 | H15: 0 | J15: 0 | AZ15: 10 | BC15: 0 | BD15: 0 | BF15: 9 | BG15: 9
A16: =IF(J$2="","",IF($E16="","",IF($E16=MAX($E$5:$E$54),1,IF($E16=$E15,$A15,COUNT($E$5:$E16))))) -> 10 | E16: 0 | G16: 0 | H16: 0 | J16: 0 | AZ16: 12 | BC16: 0 | BD16: 0 | BF16: 10 | BG16: 9
A17: =IF(J$2="","",IF($E17="","",IF($E17=MAX($E$5:$E$54),1,IF($E17=$E16,$A16,COUNT($E$5:$E17))))) -> 10 | E17: 0 | G17: 0 | H17: 0 | J17: 0 | AZ17: 13 | BC17: 0 | BD17: 0 | BF17: 12
A18: =IF(J$2="","",IF($E18="","",IF($E18=MAX($E$5:$E$54),1,IF($E18=$E17,$A17,COUNT($E$5:$E18))))) -> 10 | E18: 0 | G18: 0 | H18: 0 | J18: 0 | AZ18: 14 | BA18: Letizia | BB18: Enzo | BC18: 67.59259259 | BD18: 0 | BF18: 13 | BG18: =RANK(BD18,BD$5:BD$15) -> 9
A19: =IF(J$2="","",IF($E19="","",IF($E19=MAX($E$5:$E$54),1,IF($E19=$E18,$A18,COUNT($E$5:$E19))))) -> 10 | E19: 0 | G19: 0 | H19: 0 | J19: 0 | AZ19: 15 | BC19: 0 | BD19: 0 | BF19: 15 | BG19: =RANK(BD19,BD$5:BD$15) -> 9
A20: =IF(J$2="","",IF($E20="","",IF($E20=MAX($E$5:$E$54),1,IF($E20=$E19,$A19,COUNT($E$5:$E20))))) -> 10 | E20: 0 | G20: 0 | H20: 0 | J20: 0 | AZ20: 16 | BC20: 0 | BD20: 0 | BF20: 16 | BG20: =RANK(BD20,BD$5:BD$15) -> 9
A21: =IF(J$2="","",IF($E21="","",IF($E21=MAX($E$5:$E$54),1,IF($E21=$E20,$A20,COUNT($E$5:$E21))))) -> 10 | E21: 0 | G21: 0 | H21: 0 | J21: 0 | AZ21: 17 | BC21: 0 | BD21: 0 | BF21: 17
A22: =IF(J$2="","",IF($E22="","",IF($E22=MAX($E$5:$E$54),1,IF($E22=$E21,$A21,COUNT($E$5:$E22))))) -> 10 | E22: 0 | G22: 0 | H22: 0 | J22: 0 | AZ22: 18 | BC22: 0 | BD22: 0 | BF22: 18
A23: =IF(J$2="","",IF($E23="","",IF($E23=MAX($E$5:$E$54),1,IF($E23=$E22,$A22,COUNT($E$5:$E23))))) -> 10 | E23: 0 | G23: 0 | H23: 0 | J23: 0 | AZ23: 19 | BC23: 0 | BD23: 0 | BF23: 19 | BG23: =RANK(BD23,BD$5:BD$15) -> 9
A24: =IF(J$2="","",IF($E24="","",IF($E24=MAX($E$5:$E$54),1,IF($E24=$E23,$A23,COUNT($E$5:$E24))))) -> 10 | E24: 0 | G24: 0 | H24: 0 | J24: 0 | AZ24: 20 | BC24: 0 | BD24: 0 | BF24: 20 | BG24: =RANK(BD24,BD$5:BD$15) -> 9
A25: =IF(J$2="","",IF($E25="","",IF($E25=MAX($E$5:$E$54),1,IF($E25=$E24,$A24,COUNT($E$5:$E25))))) -> 10 | E25: 0 | G25: 0 | H25: 0 | J25: 0 | AZ25: 21 | BC25: 0 | BD25: 0 | BF25: 21
A26: =IF(J$2="","",IF($E26="","",IF($E26=MAX($E$5:$E$54),1,IF($E26=$E25,$A25,COUNT($E$5:$E26))))) -> 10 | E26: 0 | G26: 0 | H26: 0 | J26: 0 | AZ26: 22 | BC26: 0 | BD26: 0 | BF26: 22 | BG26: =RANK(BD26,BD$5:BD$15) -> 9
A27: =IF(J$2="","",IF($E27="","",IF($E27=MAX($E$5:$E$54),1,IF($E27=$E26,$A26,COUNT($E$5:$E27))))) -> 10 | E27: 0 | G27: 0 | H27: 0 | J27: 0 | AZ27: 23 | BC27: 0 | BD27: 0 | BF27: 23 | BG27: =RANK(BD27,BD$5:BD$15) -> 9
A28: =IF(J$2="","",IF($E28="","",IF($E28=MAX($E$5:$E$54),1,IF($E28=$E27,$A27,COUNT($E$5:$E28))))) -> 10 | E28: 0 | G28: 0 | H28: 0 | J28: 0 | AZ28: 24 | BC28: 0 | BD28: 0 | BF28: 24 | BG28: =RANK(BD28,BD$5:BD$15) -> 9
A29: =IF(J$2="","",IF($E29="","",IF($E29=MAX($E$5:$E$54),1,IF($E29=$E28,$A28,COUNT($E$5:$E29))))) -> 10 | E29: 0 | G29: 0 | H29: 0 | J29: 0 | AZ29: 25 | BC29: 0 | BD29: 0 | BF29: 25
A30: =IF(J$2="","",IF($E30="","",IF($E30=MAX($E$5:$E$54),1,IF($E30=$E29,$A29,COUNT($E$5:$E30))))) -> 10 | E30: 0 | G30: 0 | H30: 0 | J30: 0 | AZ30: 26 | BC30: 0 | BD30: 0 | BF30: 26
A31: =IF(J$2="","",IF($E31="","",IF($E31=MAX($E$5:$E$54),1,IF($E31=$E30,$A30,COUNT($E$5:$E31))))) -> 10 | E31: 0 | G31: 0 | H31: 0 | J31: 0 | AZ31: 27 | BC31: 0 | BD31: 0 | BF31: 27
A32: =IF(J$2="","",IF($E32="","",IF($E32=MAX($E$5:$E$54),1,IF($E32=$E31,$A31,COUNT($E$5:$E32))))) -> 10 | E32: 0 | G32: 0 | H32: 0 | J32: 0 | AZ32: 28 | BC32: 0 | BD32: 0 | BF32: 28
A33: =IF(J$2="","",IF($E33="","",IF($E33=MAX($E$5:$E$54),1,IF($E33=$E32,$A32,COUNT($E$5:$E33))))) -> 10 | E33: 0 | G33: 0 | H33: 0 | J33: 0 | AZ33: 29 | BC33: 0 | BD33: 0 | BF33: 29
A34: =IF(J$2="","",IF($E34="","",IF($E34=MAX($E$5:$E$54),1,IF($E34=$E33,$A33,COUNT($E$5:$E34))))) -> 10 | E34: 0 | G34: 0 | H34: 0 | J34: 0 | AZ34: 30 | BC34: 0 | BD34: 0 | BF34: 30
A35: =IF(J$2="","",IF($E35="","",IF($E35=MAX($E$5:$E$54),1,IF($E35=$E34,$A34,COUNT($E$5:$E35))))) -> 10 | E35: 0 | G35: 0 | H35: 0 | J35: 0 | AZ35: 31 | BC35: 0 | BD35: 0 | BF35: 31
A36: =IF(J$2="","",IF($E36="","",IF($E36=MAX($E$5:$E$54),1,IF($E36=$E35,$A35,COUNT($E$5:$E36))))) -> 10 | E36: 0 | G36: 0 | H36: 0 | J36: 0 | AZ36: 32 | BC36: 0 | BD36: 0 | BF36: 32
A37: =IF(J$2="","",IF($E37="","",IF($E37=MAX($E$5:$E$54),1,IF($E37=$E36,$A36,COUNT($E$5:$E37))))) -> 10 | E37: =IF(J$2="","",IF(G37=0,0,F37+G37)) -> 0 | G37: =IF(J$2="","",IF($J37=0,0,(H37*$C$3/$J$3)*50)) -> 0 | H37: =IF(J$2="","",IF(SUM($K37:$AX37)=0,0,SUM($K37:$AX37)+$I37)) -> 0 | J37: =IF(B37="",0,IF(SUM($K37:$AX37)=0,0,SUM($K37:$AX37))) -> 0 | AY37: =IF(BF37>11,"",IF(B37="","",1)) ->  | AZ37: 33 | BC37: 0 | BD37: =IF(AZ37>11,0,BC37) -> 0 | BF37: 33
A38: =IF(J$2="","",IF($E38="","",IF($E38=MAX($E$5:$E$54),1,IF($E38=$E37,$A37,COUNT($E$5:$E38))))) -> 10 | E38: 0 | G38: 0 | H38: 0 | J38: 0 | AZ38: 34 | BC38: 0 | BD38: 0 | BF38: 34
A39: =IF(J$2="","",IF($E39="","",IF($E39=MAX($E$5:$E$54),1,IF($E39=$E38,$A38,COUNT($E$5:$E39))))) -> 10 | E39: 0 | G39: 0 | H39: 0 | J39: 0 | AZ39: 35 | BC39: 0 | BD39: 0 | BF39: 35
A40: =IF(J$2="","",IF($E40="","",IF($E40=MAX($E$5:$E$54),1,IF($E40=$E39,$A39,COUNT($E$5:$E40))))) -> 10 | E40: 0 | G40: 0 | H40: 0 | J40: 0 | AZ40: 36 | BC40: 0 | BD40: 0 | BF40: 36
A41: =IF(J$2="","",IF($E41="","",IF($E41=MAX($E$5:$E$54),1,IF($E41=$E40,$A40,COUNT($E$5:$E41))))) -> 10 | E41: 0 | G41: 0 | H41: 0 | J41: 0 | AZ41: 37 | BC41: 0 | BD41: 0 | BF41: 37
A42: =IF(J$2="","",IF($E42="","",IF($E42=MAX($E$5:$E$54),1,IF($E42=$E41,$A41,COUNT($E$5:$E42))))) -> 10 | E42: 0 | G42: 0 | H42: 0 | J42: 0 | AZ42: 38 | BC42: 0 | BD42: 0 | BF42: 38
A43: =IF(J$2="","",IF($E43="","",IF($E43=MAX($E$5:$E$54),1,IF($E43=$E42,$A42,COUNT($E$5:$E43))))) -> 10 | E43: 0 | G43: 0 | H43: 0 | J43: 0 | AZ43: 39 | BC43: 0 | BD43: 0 | BF43: 39
A44: =IF(J$2="","",IF($E44="","",IF($E44=MAX($E$5:$E$54),1,IF($E44=$E43,$A43,COUNT($E$5:$E44))))) -> 10 | E44: 0 | G44: 0 | H44: 0 | J44: 0 | AZ44: 40 | BC44: 0 | BD44: 0 | BF44: 40
A45: =IF(J$2="","",IF($E45="","",IF($E45=MAX($E$5:$E$54),1,IF($E45=$E44,$A44,COUNT($E$5:$E45))))) -> 10 | E45: 0 | G45: 0 | H45: 0 | J45: 0 | AZ45: 41 | BC45: 0 | BD45: 0 | BF45: 41
A46: =IF(J$2="","",IF($E46="","",IF($E46=MAX($E$5:$E$54),1,IF($E46=$E45,$A45,COUNT($E$5:$E46))))) -> 10 | E46: 0 | G46: 0 | H46: 0 | J46: 0 | AZ46: 42 | BC46: 0 | BD46: 0 | BF46: 42
A47: =IF(J$2="","",IF($E47="","",IF($E47=MAX($E$5:$E$54),1,IF($E47=$E46,$A46,COUNT($E$5:$E47))))) -> 10 | E47: 0 | G47: 0 | H47: 0 | J47: 0 | AZ47: 43 | BC47: 0 | BD47: 0 | BF47: 43
A48: =IF(J$2="","",IF($E48="","",IF($E48=MAX($E$5:$E$54),1,IF($E48=$E47,$A47,COUNT($E$5:$E48))))) -> 10 | E48: 0 | G48: 0 | H48: 0 | J48: 0 | AZ48: 44 | BC48: 0 | BD48: 0 | BF48: 44
A49: =IF(J$2="","",IF($E49="","",IF($E49=MAX($E$5:$E$54),1,IF($E49=$E48,$A48,COUNT($E$5:$E49))))) -> 10 | E49: 0 | G49: 0 | H49: 0 | J49: 0 | AZ49: 45 | BC49: 0 | BD49: 0 | BF49: 45
A50: =IF(J$2="","",IF($E50="","",IF($E50=MAX($E$5:$E$54),1,IF($E50=$E49,$A49,COUNT($E$5:$E50))))) -> 10 | E50: 0 | G50: 0 | H50: 0 | J50: 0 | AZ50: 46 | BC50: 0 | BD50: 0 | BF50: 46
A51: =IF(J$2="","",IF($E51="","",IF($E51=MAX($E$5:$E$54),1,IF($E51=$E50,$A50,COUNT($E$5:$E51))))) -> 10 | E51: 0 | G51: 0 | H51: 0 | J51: 0 | AZ51: 47 | BC51: 0 | BD51: 0 | BF51: 47
A52: =IF(J$2="","",IF($E52="","",IF($E52=MAX($E$5:$E$54),1,IF($E52=$E51,$A51,COUNT($E$5:$E52))))) -> 10 | E52: 0 | G52: 0 | H52: 0 | J52: 0 | AZ52: 48 | BC52: 0 | BD52: 0 | BF52: 48
A53: =IF(J$2="","",IF($E53="","",IF($E53=MAX($E$5:$E$54),1,IF($E53=$E52,$A52,COUNT($E$5:$E53))))) -> 10 | E53: 0 | G53: 0 | H53: 0 | J53: 0 | AZ53: 49 | BC53: 0 | BD53: 0 | BF53: 49
A54: =IF(J$2="","",IF($E54="","",IF($E54=MAX($E$5:$E$54),1,IF($E54=$E53,$A53,COUNT($E$5:$E54))))) -> 10 | E54: 0 | G54: 0 | H54: 0 | J54: 0 | AZ54: 50 | BC54: 0 | BD54: 0 | BF54: 50
D59: punteggi torneo ordinati per # di coppia
B60: # coppia | E60: con zeri | F60: senza zeri | G60: senza zeri
B61: 1 | E61: 39.81481481 | F61: =IF(E61=0,"",E61) -> 39.81481481 | G61: 39.81481481 | I61: =IF(H61=0,"",H61) ->  | BF61: 6
B62: 2 | E62: 47.22222222 | F62: 47.22222222 | G62: 47.22222222 | BF62: 3
B63: 3 | E63: 45.37037037 | F63: 45.37037037 | G63: 45.37037037 | I63: =IF(H63=0,"",H63) ->  | BF63: 2
B64: 4 | E64: 46.2962963 | F64: 46.2962963 | G64: 46.2962963 | BF64: 7
B65: 5 | E65: 48.14814815 | F65: 48.14814815 | G65: 48.14814815 | I65: =IF(H65=0,"",H65) ->  | BF65: 11
B66: 6 | E66: 37.96296296 | F66: 37.96296296 | G66: 37.96296296 | BF66: 1
B67: 7 | E67: 67.59259259 | F67: 67.59259259 | G67: 67.59259259 | BF67: 14
B68: 8 | E68: 49.07407407 | F68: 49.07407407 | G68: 49.07407407 | I68: =IF(H68=0,"",H68) ->  | BF68: 8
B69: 9 | E69: 68.51851852 | F69: 68.51851852 | G69: 68.51851852 | I69: =IF(H69=0,"",H69) ->  | BF69: 4
E70: 0 | BF70: 5
E71: 0 | BF71: 9
E72: 0 | BF72: 10
E73: 0 | I73: =IF(H73=0,"",H73) ->  | BF73: 12
E74: 0 | I74: =IF(H74=0,"",H74) ->  | BF74: 13
E75: 0 | I75: =IF(H75=0,"",H75) ->  | BF75: 15
E76: 0 | I76: =IF(H76=0,"",H76) ->  | BF76: 16
E77: 0 | BF77: 17
E78: 0 | BF78: 18
E79: 0 | I79: =IF(H79=0,"",H79) ->  | BF79: 19
E80: 0 | I80: =IF(H80=0,"",H80) ->  | BF80: 20
E81: 0 | BF81: 21
E82: 0 | BF82: 22
E83: 0 | BF83: 23
E84: 0 | BF84: 24
E85: 0 | BF85: 25
E86: 0 | BF86: 26
E87: 0 | BF87: 27
E88: 0 | BF88: 28
E89: 0 | BF89: 29
E90: 0 | BF90: 30
E91: 0 | BF91: 31
E92: 0 | BF92: 32
E93: 0 | F93: =IF(E93=0,"",E93) ->  | BF93: 33
E94: 0 | BF94: 34
E95: 0 | BF95: 35
E96: 0 | BF96: 36
E97: 0 | BF97: 37
E98: 0 | BF98: 38
E99: 0 | BF99: 39
E100: 0 | BF100: 40
E101: 0 | BF101: 41
E102: 0 | BF102: 42
E103: 0 | BF103: 43
E104: 0 | BF104: 44
E105: 0 | BF105: 45
E106: 0 | BF106: 46
E107: 0 | BF107: 47
E108: 0 | BF108: 48
E109: 0 | BF109: 49
E110: 0 | BF110: 50
A119: PTS ordinati per numero standard di coppia base
A120: #STD | B120: PTS
A121: 1 | B121: 2 | E121: 37.96296296 | F121: =IF(E121=0,"",E121) -> 37.96296296 | G121: 37.96296296 | BF121: 1
A122: 2 | B122: 6 | E122: 45.37037037 | F122: 45.37037037 | G122: 45.37037037 | I122: =IF(H122=0,"",H122) ->  | BF122: 2
A123: 3 | B123: 10 | E123: 47.22222222 | F123: 47.22222222 | G123: 47.22222222 | BF123: 3
A124: 4 | B124: 16 | E124: 68.51851852 | F124: 68.51851852 | G124: 68.51851852 | I124: =IF(H124=0,"",H124) ->  | BF124: 4
A125: 5 | E125: 0 | BF125: 5
A126: 6 | B126: 4 | E126: 39.81481481 | F126: 39.81481481 | G126: 39.81481481 | I126: =IF(H126=0,"",H126) ->  | BF126: 6
A127: 7 | B127: 8 | E127: 46.2962963 | F127: 46.2962963 | G127: 46.2962963 | BF127: 7
A128: 8 | B128: 14 | E128: 49.07407407 | F128: 49.07407407 | G128: 49.07407407 | I128: =IF(H128=0,"",H128) ->  | BF128: 8
A129: 9 | E129: 0 | BF129: 9
A130: 10 | E130: 0 | BF130: 10
A131: 11 | B131: 12 | E131: 48.14814815 | F131: 48.14814815 | G131: 48.14814815 | I131: =IF(H131=0,"",H131) ->  | BF131: 11
BE200: formule punti coppie base
BE201: =IF(BD201=0,"",IF(AZ201>11,"",IF(BD201=BD200,BE200,2*(D$3-BG201)+3-COUNTIF(BG$5:BG$54,BG201)))) -> 
BE202: =IF(BD202=0,"",IF(AZ202>11,"",IF(BD202=BD201,BE201,2*(D$3-BG202)+3-COUNTIF(BG$5:BG$54,BG202)))) -> 

Sheet 18mag
A1: Data | C1: 2019-05-18 | D1: BridgeMania 2018-19 - Torneo Howell
A2: luogo | C2: Malerba | D2: Coppie Ctrl+e | E2: Calcola Ctr+f Ctr+i | F2: Duplica Ctrl+g | G2: Clear Ctrl+h | J2: &
A3: # coppie / # c.base | C3: =IF(B5="","",COUNT(B5:B54)) -> 7 | D3: =SUM(AY5:AY54) -> 7 | E3: =IF(E5="","",SUMIF(E5:E54,">0")) -> 350 | G3: =IF(G5="","",SUM(G5:G54)) -> 350 | H3: =IF(H5="","",SUM(H5:H54)) -> 294 | I3: =SUM(I5:I54) -> 0 | J3: =SUM(J5:J54) -> 294 | K3: =SUM(K5:K54) -> 14 | L3: =SUM(L5:L54) -> 14 | M3: 14 | N3: 14 | O3: 14 | P3: 14 | Q3: 14 | R3: 14 | S3: 14 | T3: 14 | U3: 14 | V3: 14 | W3: 14 | X3: 14 | Y3: 14 | Z3: 14 | AA3: 14 | AB3: 14 | AC3: 14 | AD3: 14 | AE3: 14 | AF3: 0 | AG3: 0 | AH3: 0 | AI3: 0 | AJ3: 0 | AK3: 0 | AL3: 0 | AM3: 0 | AN3: 0 | AO3: 0 | AP3: 0 | AQ3: 0 | AR3: 0 | AS3: 0 | AT3: 0 | AU3: 0 | AV3: 0 | AW3: 0 | AX3: 0
A4: Class. | B4: # | C4: Coppie | E4: Punteggio Serata | G4: Punteggio % | H4: Punteggio Torneo | I4: Penalità (-) | J4: Totale punti mano | K4: 1 | L4: 2 | M4: 3 | N4: 4 | O4: 5 | P4: 6 | Q4: 7 | R4: 8 | S4: 9 | T4: 10 | U4: 11 | V4: 12 | W4: 13 | X4: 14 | Y4: 15 | Z4: 16 | AA4: 17 | AB4: 18 | AC4: 19 | AD4: 20 | AE4: 21 | AF4: 22 | AG4: 23 | AH4: 24 | AI4: 25 | AJ4: 26 | AK4: 27 | AL4: 28 | AM4: 29 | AN4: 30 | AO4: 31 | AP4: 32 | AQ4: 33 | AR4: 34 | AS4: 35 | AT4: 36 | AU4: 37 | AV4: 38 | AW4: 39 | AX4: 40 | AY4: c.base presenti | AZ4: ordine c.base ad hoc | BC4: punteggi | BD4: punteggi c. base presenti | BE4: punti PTS coppie base | BF4: ordine c.base STD | BG4: Rank
A5: =IF(J$2="","",IF($E5="","",IF($E5=MAX($E$5:$E$54),1,IF($E5=$E4,$A4,COUNT($E$5:$E5))))) -> 1 | B5: 5 | C5: Elena | D5: Stefano | E5: =IF(J$2="","",IF(G5=0,0,F5+G5)) -> 58.33333333 | G5: =IF(J$2="","",IF($J5=0,0,(H5*$C$3/$J$3)*50)) -> 58.33333333 | H5: =IF(J$2="","",IF(SUM($K5:$AX5)=0,0,SUM($K5:$AX5)+$I5)) -> 49 | J5: =IF(B5="",0,IF(SUM($K5:$AX5)=0,0,SUM($K5:$AX5))) -> 49 | K5: 2 | L5: 2 | M5: 3 | N5: 0 | O5: 2 | P5: 4 | Q5: 1 | R5: 4 | S5: 2 | T5: 2 | U5: 2 | V5: 4 | W5: 2 | X5: 2 | Y5: 2 | Z5: 4 | AA5: 2 | AB5: 3 | AC5: 0 | AD5: 4 | AE5: 2 | AY5: =IF(BF5>11,"",IF(B5="","",1)) -> 1 | AZ5: 4 | BA5: Elena | BB5: Stefano | BC5: 58.33333333 | BD5: =IF(AZ5>11,0,BC5) -> 58.33333333 | BE5: =IF(BD5=0,"",IF(AZ5>11,"",IF(BD5=BD4,BE4,2*(D$3-BG5)+3-COUNTIF(BG$5:BG$54,BG5)))) -> 14 | BF5: 4 | BG5: =RANK(BD5,BD$5:BD$15) -> 1
A6: =IF(J$2="","",IF($E6="","",IF($E6=MAX($E$5:$E$54),1,IF($E6=$E5,$A5,COUNT($E$5:$E6))))) -> 2 | B6: 7 | C6: Lilli | D6: Gianni | E6: 53.57142857 | G6: 53.57142857 | H6: 45 | J6: 45 | K6: 4 | L6: 2 | M6: 3 | N6: 0 | O6: 0 | P6: 4 | Q6: 0 | R6: 4 | S6: 2 | T6: 2 | U6: 2 | V6: 0 | W6: 0 | X6: 3 | Y6: 1 | Z6: 4 | AA6: 4 | AB6: 4 | AC6: 2 | AD6: 2 | AE6: 2 | AY6: 1 | AZ6: 6 | BA6: Lilli | BB6: Gianni | BC6: 53.57142857 | BD6: 53.57142857 | BE6: =IF(BD6=0,"",IF(AZ6>11,"",IF(BD6=BD5,BE5,2*(D$3-BG6)+3-COUNTIF(BG$5:BG$54,BG6)))) -> 12 | BF6: 6 | BG6: 2
A7: =IF(J$2="","",IF($E7="","",IF($E7=MAX($E$5:$E$54),1,IF($E7=$E6,$A6,COUNT($E$5:$E7))))) -> 3 | B7: 3 | C7: Cesarina | D7: Gaetano | E7: 52.38095238 | G7: 52.38095238 | H7: 44 | J7: 44 | K7: 0 | L7: 2 | M7: 1 | N7: 4 | O7: 2 | P7: 0 | Q7: 2 | R7: 2 | S7: 2 | T7: 0 | U7: 4 | V7: 2 | W7: 3 | X7: 3 | Y7: 1 | Z7: 2 | AA7: 4 | AB7: 3 | AC7: 1 | AD7: 2 | AE7: 4 | AY7: 1 | AZ7: 3 | BA7: Cesarina | BB7: Gaetano | BC7: 52.38095238 | BD7: 52.38095238 | BE7: 9 | BF7: 3 | BG7: 3
A8: =IF(J$2="","",IF($E8="","",IF($E8=MAX($E$5:$E$54),1,IF($E8=$E7,$A7,COUNT($E$5:$E8))))) -> 3 | B8: 6 | C8: Renata | D8: Sandro | E8: 52.38095238 | G8: 52.38095238 | H8: 44 | J8: 44 | K8: 2 | L8: 2 | M8: 1 | N8: 4 | O8: 4 | P8: 0 | Q8: 3 | R8: 2 | S8: 2 | T8: 4 | U8: 0 | V8: 2 | W8: 3 | X8: 0 | Y8: 4 | Z8: 2 | AA8: 2 | AB8: 2 | AC8: 1 | AD8: 4 | AE8: 0 | AY8: 1 | AZ8: 9 | BA8: Renata | BB8: Sandro | BC8: 52.38095238 | BD8: 52.38095238 | BE8: 9 | BF8: 9 | BG8: 3
A9: =IF(J$2="","",IF($E9="","",IF($E9=MAX($E$5:$E$54),1,IF($E9=$E8,$A8,COUNT($E$5:$E9))))) -> 5 | B9: 4 | C9: Manuela | D9: Roberto | E9: 45.23809524 | G9: 45.23809524 | H9: 38 | J9: 38 | K9: 0 | L9: 2 | M9: 0 | N9: 2 | O9: 4 | P9: 2 | Q9: 1 | R9: 2 | S9: 2 | T9: 2 | U9: 2 | V9: 2 | W9: 4 | X9: 1 | Y9: 3 | Z9: 2 | AA9: 0 | AB9: 1 | AC9: 4 | AD9: 0 | AE9: 2 | AY9: 1 | AZ9: 7 | BA9: Manuela | BB9: Roberto | BC9: 45.23809524 | BD9: 45.23809524 | BE9: 6 | BF9: 7 | BG9: 5
A10: =IF(J$2="","",IF($E10="","",IF($E10=MAX($E$5:$E$54),1,IF($E10=$E9,$A9,COUNT($E$5:$E10))))) -> 6 | B10: 1 | C10: Tatiana | D10: Julio | E10: 44.04761905 | G10: 44.04761905 | H10: 37 | J10: 37 | K10: 2 | L10: 2 | M10: 2 | N10: 2 | O10: 0 | P10: 2 | Q10: 4 | R10: 0 | S10: 2 | T10: 4 | U10: 0 | V10: 4 | W10: 1 | X10: 4 | Y10: 0 | Z10: 0 | AA10: 2 | AB10: 1 | AC10: 3 | AD10: 2 | AE10: 0 | AY10: 1 | AZ10: 8 | BA10: Olimpia | BB10: Sauro | BC10: 44.04761905 | BD10: 44.04761905 | BE10: 3 | BF10: 11 | BG10: 6
A11: =IF(J$2="","",IF($E11="","",IF($E11=MAX($E$5:$E$54),1,IF($E11=$E10,$A10,COUNT($E$5:$E11))))) -> 6 | B11: 2 | C11: Olimpia | D11: Sauro | E11: 44.04761905 | G11: 44.04761905 | H11: 37 | J11: 37 | K11: 4 | L11: 2 | M11: 4 | N11: 2 | O11: 2 | P11: 2 | Q11: 3 | R11: 0 | S11: 2 | T11: 0 | U11: 4 | V11: 0 | W11: 1 | X11: 1 | Y11: 3 | Z11: 0 | AA11: 0 | AB11: 0 | AC11: 3 | AD11: 0 | AE11: 4 | AY11: 1 | AZ11: 11 | BA11: Tatiana | BB11: Julio | BC11: 44.04761905 | BD11: 44.04761905 | BE11: 3 | BF11: 8 | BG11: 6
A12: =IF(J$2="","",IF($E12="","",IF($E12=MAX($E$5:$E$54),1,IF($E12=$E11,$A11,COUNT($E$5:$E12))))) -> 8 | C12: Antonella | D12: Dino | E12: 0 | G12: 0 | H12: 0 | J12: 0 | AZ12: 1 | BA12: Antonella | BB12: Dino | BC12: 0 | BD12: 0 | BF12: 1 | BG12: 8
A13: =IF(J$2="","",IF($E13="","",IF($E13=MAX($E$5:$E$54),1,IF($E13=$E12,$A12,COUNT($E$5:$E13))))) -> 8 | C13: Barbara | D13: Elio | E13: 0 | G13: 0 | H13: 0 | J13: 0 | AZ13: 2 | BA13: Barbara | BB13: Elio | BC13: 0 | BD13: 0 | BF13: 2 | BG13: 8
A14: =IF(J$2="","",IF($E14="","",IF($E14=MAX($E$5:$E$54),1,IF($E14=$E13,$A13,COUNT($E$5:$E14))))) -> 8 | C14: Isolde | D14: Cristina | E14: 0 | G14: 0 | H14: 0 | J14: 0 | AZ14: 5 | BA14: Isolde | BB14: Cristina | BC14: 0 | BD14: 0 | BF14: 5 | BG14: 8
A15: =IF(J$2="","",IF($E15="","",IF($E15=MAX($E$5:$E$54),1,IF($E15=$E14,$A14,COUNT($E$5:$E15))))) -> 8 | C15: Stefania | D15: Massimo | E15: 0 | G15: 0 | H15: 0 | J15: 0 | AZ15: 10 | BA15: Stefania | BB15: Massimo | BC15: 0 | BD15: 0 | BF15: 10 | BG15: 8
A16: =IF(J$2="","",IF($E16="","",IF($E16=MAX($E$5:$E$54),1,IF($E16=$E15,$A15,COUNT($E$5:$E16))))) -> 8 | C16: Marilena | D16: Sergio | E16: 0 | G16: 0 | H16: 0 | J16: 0 | AZ16: 12 | BA16: Marilena | BB16: Sergio | BC16: 0 | BD16: 0 | BF16: 12 | BG16: 8
A17: =IF(J$2="","",IF($E17="","",IF($E17=MAX($E$5:$E$54),1,IF($E17=$E16,$A16,COUNT($E$5:$E17))))) -> 8 | C17: A.Maria | D17: Claudio | E17: 0 | G17: 0 | H17: 0 | J17: 0 | AZ17: 13 | BA17: A.Maria | BB17: Claudio | BC17: 0 | BD17: 0 | BF17: 13
A18: =IF(J$2="","",IF($E18="","",IF($E18=MAX($E$5:$E$54),1,IF($E18=$E17,$A17,COUNT($E$5:$E18))))) -> 8 | C18: Letizia | D18: Enzo | E18: 0 | G18: 0 | H18: 0 | J18: 0 | AZ18: 14 | BA18: Letizia | BB18: Enzo | BC18: 0 | BD18: 0 | BF18: 14 | BG18: =RANK(BD18,BD$5:BD$15) -> 8
A19: =IF(J$2="","",IF($E19="","",IF($E19=MAX($E$5:$E$54),1,IF($E19=$E18,$A18,COUNT($E$5:$E19))))) -> 8 | C19: Rossi | D19: Terreno | E19: 0 | G19: 0 | H19: 0 | J19: 0 | AZ19: 15 | BA19: Rossi | BB19: Terreno | BC19: 0 | BD19: 0 | BF19: 15 | BG19: =RANK(BD19,BD$5:BD$15) -> 8
A20: =IF(J$2="","",IF($E20="","",IF($E20=MAX($E$5:$E$54),1,IF($E20=$E19,$A19,COUNT($E$5:$E20))))) -> 8 | C20: Diomedi | D20: Bisacchi | E20: 0 | G20: 0 | H20: 0 | J20: 0 | AZ20: 16 | BA20: Diomedi | BB20: Bisacchi | BC20: 0 | BD20: 0 | BF20: 16 | BG20: =RANK(BD20,BD$5:BD$15) -> 8
A21: =IF(J$2="","",IF($E21="","",IF($E21=MAX($E$5:$E$54),1,IF($E21=$E20,$A20,COUNT($E$5:$E21))))) -> 8 | C21: Carcano | D21: Mioni | E21: 0 | G21: 0 | H21: 0 | J21: 0 | AZ21: 17 | BA21: Carcano | BB21: Mioni | BC21: 0 | BD21: 0 | BF21: 17
A22: =IF(J$2="","",IF($E22="","",IF($E22=MAX($E$5:$E$54),1,IF($E22=$E21,$A21,COUNT($E$5:$E22))))) -> 8 | C22: Lefevere | D22: Grandi | E22: 0 | G22: 0 | H22: 0 | J22: 0 | AZ22: 18 | BA22: Lefevere | BB22: Grandi | BC22: 0 | BD22: 0 | BF22: 18
A23: =IF(J$2="","",IF($E23="","",IF($E23=MAX($E$5:$E$54),1,IF($E23=$E22,$A22,COUNT($E$5:$E23))))) -> 8 | C23: Sabbatini | D23: Sabbatini | E23: 0 | G23: 0 | H23: 0 | J23: 0 | AZ23: 19 | BA23: Sabbatini | BB23: Sabbatini | BC23: 0 | BD23: 0 | BF23: 19 | BG23: =RANK(BD23,BD$5:BD$15) -> 8
A24: =IF(J$2="","",IF($E24="","",IF($E24=MAX($E$5:$E$54),1,IF($E24=$E23,$A23,COUNT($E$5:$E24))))) -> 8 | C24: Gautier | D24: Maltese | E24: 0 | G24: 0 | H24: 0 | J24: 0 | AZ24: 20 | BA24: Gautier | BB24: Maltese | BC24: 0 | BD24: 0 | BF24: 20 | BG24: =RANK(BD24,BD$5:BD$15) -> 8
A25: =IF(J$2="","",IF($E25="","",IF($E25=MAX($E$5:$E$54),1,IF($E25=$E24,$A24,COUNT($E$5:$E25))))) -> 8 | C25: Buratti | D25: Lauretti | E25: 0 | G25: 0 | H25: 0 | J25: 0 | AZ25: 21 | BA25: Buratti | BB25: Lauretti | BC25: 0 | BD25: 0 | BF25: 21
A26: =IF(J$2="","",IF($E26="","",IF($E26=MAX($E$5:$E$54),1,IF($E26=$E25,$A25,COUNT($E$5:$E26))))) -> 8 | C26: Barelli | D26: Negretti | E26: 0 | G26: 0 | H26: 0 | J26: 0 | AZ26: 22 | BA26: Barelli | BB26: Negretti | BC26: 0 | BD26: 0 | BF26: 22 | BG26: =RANK(BD26,BD$5:BD$15) -> 8
A27: =IF(J$2="","",IF($E27="","",IF($E27=MAX($E$5:$E$54),1,IF($E27=$E26,$A26,COUNT($E$5:$E27))))) -> 8 | C27: Bibbo | D27: Maturi | E27: 0 | G27: 0 | H27: 0 | J27: 0 | AZ27: 23 | BA27: Bibbo | BB27: Maturi | BC27: 0 | BD27: 0 | BF27: 23 | BG27: =RANK(BD27,BD$5:BD$15) -> 8
A28: =IF(J$2="","",IF($E28="","",IF($E28=MAX($E$5:$E$54),1,IF($E28=$E27,$A27,COUNT($E$5:$E28))))) -> 8 | C28: Belli | D28: Marini | E28: 0 | G28: 0 | H28: 0 | J28: 0 | AZ28: 24 | BA28: Belli | BB28: Marini | BC28: 0 | BD28: 0 | BF28: 24 | BG28: =RANK(BD28,BD$5:BD$15) -> 8
A29: =IF(J$2="","",IF($E29="","",IF($E29=MAX($E$5:$E$54),1,IF($E29=$E28,$A28,COUNT($E$5:$E29))))) -> 8 | C29: Galassi | D29: Delle Piane | E29: 0 | G29: 0 | H29: 0 | J29: 0 | AZ29: 25 | BA29: Galassi | BB29: Delle Piane | BC29: 0 | BD29: 0 | BF29: 25
A30: =IF(J$2="","",IF($E30="","",IF($E30=MAX($E$5:$E$54),1,IF($E30=$E29,$A29,COUNT($E$5:$E30))))) -> 8 | C30: Biscarini | D30: Biscarini | E30: 0 | G30: 0 | H30: 0 | J30: 0 | AZ30: 26 | BA30: Biscarini | BB30: Biscarini | BC30: 0 | BD30: 0 | BF30: 26
A31: =IF(J$2="","",IF($E31="","",IF($E31=MAX($E$5:$E$54),1,IF($E31=$E30,$A30,COUNT($E$5:$E31))))) -> 8 | C31: Capello | D31: Guerra | E31: 0 | G31: 0 | H31: 0 | J31: 0 | AZ31: 27 | BA31: Capello | BB31: Guerra | BC31: 0 | BD31: 0 | BF31: 27
A32: =IF(J$2="","",IF($E32="","",IF($E32=MAX($E$5:$E$54),1,IF($E32=$E31,$A31,COUNT($E$5:$E32))))) -> 8 | C32: Barbarti | D32: Messica | E32: 0 | G32: 0 | H32: 0 | J32: 0 | AZ32: 28 | BA32: Barbarti | BB32: Messica | BC32: 0 | BD32: 0 | BF32: 28
A33: =IF(J$2="","",IF($E33="","",IF($E33=MAX($E$5:$E$54),1,IF($E33=$E32,$A32,COUNT($E$5:$E33))))) -> 8 | E33: 0 | G33: 0 | H33: 0 | J33: 0 | AZ33: 29 | BC33: 0 | BD33: 0 | BF33: 29
A34: =IF(J$2="","",IF($E34="","",IF($E34=MAX($E$5:$E$54),1,IF($E34=$E33,$A33,COUNT($E$5:$E34))))) -> 8 | E34: 0 | G34: 0 | H34: 0 | J34: 0 | AZ34: 30 | BC34: 0 | BD34: 0 | BF34: 30
A35: =IF(J$2="","",IF($E35="","",IF($E35=MAX($E$5:$E$54),1,IF($E35=$E34,$A34,COUNT($E$5:$E35))))) -> 8 | E35: 0 | G35: 0 | H35: 0 | J35: 0 | AZ35: 31 | BC35: 0 | BD35: 0 | BF35: 31
A36: =IF(J$2="","",IF($E36="","",IF($E36=MAX($E$5:$E$54),1,IF($E36=$E35,$A35,COUNT($E$5:$E36))))) -> 8 | E36: 0 | G36: 0 | H36: 0 | J36: 0 | AZ36: 32 | BC36: 0 | BD36: 0 | BF36: 32
A37: =IF(J$2="","",IF($E37="","",IF($E37=MAX($E$5:$E$54),1,IF($E37=$E36,$A36,COUNT($E$5:$E37))))) -> 8 | E37: =IF(J$2="","",IF(G37=0,0,F37+G37)) -> 0 | G37: =IF(J$2="","",IF($J37=0,0,(H37*$C$3/$J$3)*50)) -> 0 | H37: =IF(J$2="","",IF(SUM($K37:$AX37)=0,0,SUM($K37:$AX37)+$I37)) -> 0 | J37: =IF(B37="",0,IF(SUM($K37:$AX37)=0,0,SUM($K37:$AX37))) -> 0 | AY37: =IF(BF37>11,"",IF(B37="","",1)) ->  | AZ37: 33 | BC37: 0 | BD37: =IF(AZ37>11,0,BC37) -> 0 | BF37: 33
A38: =IF(J$2="","",IF($E38="","",IF($E38=MAX($E$5:$E$54),1,IF($E38=$E37,$A37,COUNT($E$5:$E38))))) -> 8 | E38: 0 | G38: 0 | H38: 0 | J38: 0 | AZ38: 34 | BC38: 0 | BD38: 0 | BF38: 34
A39: =IF(J$2="","",IF($E39="","",IF($E39=MAX($E$5:$E$54),1,IF($E39=$E38,$A38,COUNT($E$5:$E39))))) -> 8 | E39: 0 | G39: 0 | H39: 0 | J39: 0 | AZ39: 35 | BC39: 0 | BD39: 0 | BF39: 35
A40: =IF(J$2="","",IF($E40="","",IF($E40=MAX($E$5:$E$54),1,IF($E40=$E39,$A39,COUNT($E$5:$E40))))) -> 8 | E40: 0 | G40: 0 | H40: 0 | J40: 0 | AZ40: 36 | BC40: 0 | BD40: 0 | BF40: 36
A41: =IF(J$2="","",IF($E41="","",IF($E41=MAX($E$5:$E$54),1,IF($E41=$E40,$A40,COUNT($E$5:$E41))))) -> 8 | E41: 0 | G41: 0 | H41: 0 | J41: 0 | AZ41: 37 | BC41: 0 | BD41: 0 | BF41: 37
A42: =IF(J$2="","",IF($E42="","",IF($E42=MAX($E$5:$E$54),1,IF($E42=$E41,$A41,COUNT($E$5:$E42))))) -> 8 | E42: 0 | G42: 0 | H42: 0 | J42: 0 | AZ42: 38 | BC42: 0 | BD42: 0 | BF42: 38
A43: =IF(J$2="","",IF($E43="","",IF($E43=MAX($E$5:$E$54),1,IF($E43=$E42,$A42,COUNT($E$5:$E43))))) -> 8 | E43: 0 | G43: 0 | H43: 0 | J43: 0 | AZ43: 39 | BC43: 0 | BD43: 0 | BF43: 39
A44: =IF(J$2="","",IF($E44="","",IF($E44=MAX($E$5:$E$54),1,IF($E44=$E43,$A43,COUNT($E$5:$E44))))) -> 8 | E44: 0 | G44: 0 | H44: 0 | J44: 0 | AZ44: 40 | BC44: 0 | BD44: 0 | BF44: 40
A45: =IF(J$2="","",IF($E45="","",IF($E45=MAX($E$5:$E$54),1,IF($E45=$E44,$A44,COUNT($E$5:$E45))))) -> 8 | E45: 0 | G45: 0 | H45: 0 | J45: 0 | AZ45: 41 | BC45: 0 | BD45: 0 | BF45: 41
A46: =IF(J$2="","",IF($E46="","",IF($E46=MAX($E$5:$E$54),1,IF($E46=$E45,$A45,COUNT($E$5:$E46))))) -> 8 | E46: 0 | G46: 0 | H46: 0 | J46: 0 | AZ46: 42 | BC46: 0 | BD46: 0 | BF46: 42
A47: =IF(J$2="","",IF($E47="","",IF($E47=MAX($E$5:$E$54),1,IF($E47=$E46,$A46,COUNT($E$5:$E47))))) -> 8 | E47: 0 | G47: 0 | H47: 0 | J47: 0 | AZ47: 43 | BC47: 0 | BD47: 0 | BF47: 43
A48: =IF(J$2="","",IF($E48="","",IF($E48=MAX($E$5:$E$54),1,IF($E48=$E47,$A47,COUNT($E$5:$E48))))) -> 8 | E48: 0 | G48: 0 | H48: 0 | J48: 0 | AZ48: 44 | BC48: 0 | BD48: 0 | BF48: 44
A49: =IF(J$2="","",IF($E49="","",IF($E49=MAX($E$5:$E$54),1,IF($E49=$E48,$A48,COUNT($E$5:$E49))))) -> 8 | E49: 0 | G49: 0 | H49: 0 | J49: 0 | AZ49: 45 | BC49: 0 | BD49: 0 | BF49: 45
A50: =IF(J$2="","",IF($E50="","",IF($E50=MAX($E$5:$E$54),1,IF($E50=$E49,$A49,COUNT($E$5:$E50))))) -> 8 | E50: 0 | G50: 0 | H50: 0 | J50: 0 | AZ50: 46 | BC50: 0 | BD50: 0 | BF50: 46
A51: =IF(J$2="","",IF($E51="","",IF($E51=MAX($E$5:$E$54),1,IF($E51=$E50,$A50,COUNT($E$5:$E51))))) -> 8 | E51: 0 | G51: 0 | H51: 0 | J51: 0 | AZ51: 47 | BC51: 0 | BD51: 0 | BF51: 47
A52: =IF(J$2="","",IF($E52="","",IF($E52=MAX($E$5:$E$54),1,IF($E52=$E51,$A51,COUNT($E$5:$E52))))) -> 8 | E52: 0 | G52: 0 | H52: 0 | J52: 0 | AZ52: 48 | BC52: 0 | BD52: 0 | BF52: 48
A53: =IF(J$2="","",IF($E53="","",IF($E53=MAX($E$5:$E$54),1,IF($E53=$E52,$A52,COUNT($E$5:$E53))))) -> 8 | E53: 0 | G53: 0 | H53: 0 | J53: 0 | AZ53: 49 | BC53: 0 | BD53: 0 | BF53: 49
A54: =IF(J$2="","",IF($E54="","",IF($E54=MAX($E$5:$E$54),1,IF($E54=$E53,$A53,COUNT($E$5:$E54))))) -> 8 | E54: 0 | G54: 0 | H54: 0 | J54: 0 | AZ54: 50 | BC54: 0 | BD54: 0 | BF54: 50
D59: punteggi torneo ordinati per # di coppia
B60: # coppia | E60: con zeri | F60: senza zeri | G60: senza zeri
B61: 1 | E61: 44.04761905 | F61: =IF(E61=0,"",E61) -> 44.04761905 | G61: 44.04761905 | I61: =IF(H61=0,"",H61) ->  | BF61: 11
B62: 2 | E62: 44.04761905 | F62: 44.04761905 | G62: 44.04761905 | BF62: 8
B63: 3 | E63: 52.38095238 | F63: 52.38095238 | G63: 52.38095238 | I63: =IF(H63=0,"",H63) ->  | BF63: 3
B64: 4 | E64: 45.23809524 | F64: 45.23809524 | G64: 45.23809524 | BF64: 7
B65: 5 | E65: 58.33333333 | F65: 58.33333333 | G65: 58.33333333 | I65: =IF(H65=0,"",H65) ->  | BF65: 4
B66: 6 | E66: 52.38095238 | F66: 52.38095238 | G66: 52.38095238 | BF66: 9
B67: 7 | E67: 53.57142857 | F67: 53.57142857 | G67: 53.57142857 | BF67: 6
E68: 0 | I68: =IF(H68=0,"",H68) ->  | BF68: 1
E69: 0 | I69: =IF(H69=0,"",H69) ->  | BF69: 2
E70: 0 | BF70: 5
E71: 0 | BF71: 10
E72: 0 | BF72: 12
E73: 0 | I73: =IF(H73=0,"",H73) ->  | BF73: 13
E74: 0 | I74: =IF(H74=0,"",H74) ->  | BF74: 14
E75: 0 | I75: =IF(H75=0,"",H75) ->  | BF75: 15
E76: 0 | I76: =IF(H76=0,"",H76) ->  | BF76: 16
E77: 0 | BF77: 17
E78: 0 | BF78: 18
E79: 0 | I79: =IF(H79=0,"",H79) ->  | BF79: 19
E80: 0 | I80: =IF(H80=0,"",H80) ->  | BF80: 20
E81: 0 | BF81: 21
E82: 0 | BF82: 22
E83: 0 | BF83: 23
E84: 0 | BF84: 24
E85: 0 | BF85: 25
E86: 0 | BF86: 26
E87: 0 | BF87: 27
E88: 0 | BF88: 28
E89: 0 | BF89: 29
E90: 0 | BF90: 30
E91: 0 | BF91: 31
E92: 0 | BF92: 32
E93: 0 | F93: =IF(E93=0,"",E93) ->  | BF93: 33
E94: 0 | BF94: 34
E95: 0 | BF95: 35
E96: 0 | BF96: 36
E97: 0 | BF97: 37
E98: 0 | BF98: 38
E99: 0 | BF99: 39
E100: 0 | BF100: 40
E101: 0 | BF101: 41
E102: 0 | BF102: 42
E103: 0 | BF103: 43
E104: 0 | BF104: 44
E105: 0 | BF105: 45
E106: 0 | BF106: 46
E107: 0 | BF107: 47
E108: 0 | BF108: 48
E109: 0 | BF109: 49
E110: 0 | BF110: 50
A119: PTS ordinati per numero standard di coppia base
A120: #STD | B120: PTS
A121: 1 | E121: 0 | F121: =IF(E121=0,"",E121) ->  | I121: =IF(H121=0,"",H121) ->  | BF121: 1
A122: 2 | E122: 0 | I122: =IF(H122=0,"",H122) ->  | BF122: 2
A123: 3 | B123: 9 | E123: 52.38095238 | F123: 52.38095238 | G123: 52.38095238 | I123: =IF(H123=0,"",H123) ->  | BF123: 3
A124: 4 | B124: 14 | E124: 58.33333333 | F124: 58.33333333 | G124: 58.33333333 | I124: =IF(H124=0,"",H124) ->  | BF124: 4
A125: 5 | E125: 0 | BF125: 5
A126: 6 | B126: 12 | E126: 53.57142857 | F126: 53.57142857 | G126: 53.57142857 | BF126: 6
A127: 7 | B127: 6 | E127: 45.23809524 | F127: 45.23809524 | G127: 45.23809524 | BF127: 7
A128: 8 | B128: 3 | E128: 44.04761905 | F128: 44.04761905 | G128: 44.04761905 | BF128: 8
A129: 9 | B129: 9 | E129: 52.38095238 | F129: 52.38095238 | G129: 52.38095238 | BF129: 9
A130: 10 | E130: 0 | BF130: 10
A131: 11 | B131: 3 | E131: 44.04761905 | F131: 44.04761905 | G131: 44.04761905 | I131: =IF(H131=0,"",H131) ->  | BF131: 11
BE200: formule punti coppie base
BE201: =IF(BD201=0,"",IF(AZ201>11,"",IF(BD201=BD200,BE200,2*(D$3-BG201)+3-COUNTIF(BG$5:BG$54,BG201)))) -> 
BE202: =IF(BD202=0,"",IF(AZ202>11,"",IF(BD202=BD201,BE201,2*(D$3-BG202)+3-COUNTIF(BG$5:BG$54,BG202)))) -> 

Sheet 11mag
A1: Data | C1: 2019-05-11 | D1: BridgeMania 2018-19 - Torneo Howell
A2: luogo | C2: Savoca | D2: Coppie Ctrl+e | E2: Calcola Ctr+f Ctr+i | F2: Duplica Ctrl+g | G2: Clear Ctrl+h | J2: &
A3: # coppie / # c.base | C3: =IF(B5="","",COUNT(B5:B54)) -> 11 | D3: =SUM(AY5:AY54) -> 10 | E3: =IF(E5="","",SUMIF(E5:E54,">0")) -> 550 | G3: =IF(G5="","",SUM(G5:G54)) -> 550 | H3: =IF(H5="","",SUM(H5:H54)) -> 968 | I3: =SUM(I5:I54) -> 0 | J3: =SUM(J5:J54) -> 968 | K3: =SUM(K5:K54) -> 44 | L3: =SUM(L5:L54) -> 44 | M3: 44 | N3: 44 | O3: 44 | P3: 44 | Q3: 44 | R3: 44 | S3: 44 | T3: 44 | U3: 44 | V3: 44 | W3: 44 | X3: 44 | Y3: 44 | Z3: 44 | AA3: 44 | AB3: 44 | AC3: 44 | AD3: 44 | AE3: 44 | AF3: 44 | AG3: 0 | AH3: 0 | AI3: 0 | AJ3: 0 | AK3: 0 | AL3: 0 | AM3: 0 | AN3: 0 | AO3: 0 | AP3: 0 | AQ3: 0 | AR3: 0 | AS3: 0 | AT3: 0 | AU3: 0 | AV3: 0 | AW3: 0 | AX3: 0
A4: Class. | B4: # | C4: Coppie | E4: Punteggio Serata | G4: Punteggio % | H4: Punteggio Torneo | I4: Penalità (-) | J4: Totale punti mano | K4: 1 | L4: 2 | M4: 3 | N4: 4 | O4: 5 | P4: 6 | Q4: 7 | R4: 8 | S4: 9 | T4: 10 | U4: 11 | V4: 12 | W4: 13 | X4: 14 | Y4: 15 | Z4: 16 | AA4: 17 | AB4: 18 | AC4: 19 | AD4: 20 | AE4: 21 | AF4: 22 | AG4: 23 | AH4: 24 | AI4: 25 | AJ4: 26 | AK4: 27 | AL4: 28 | AM4: 29 | AN4: 30 | AO4: 31 | AP4: 32 | AQ4: 33 | AR4: 34 | AS4: 35 | AT4: 36 | AU4: 37 | AV4: 38 | AW4: 39 | AX4: 40 | AY4: c.base presenti | AZ4: ordine c.base ad hoc | BC4: punteggi | BD4: punteggi c. base presenti | BE4: punti PTS coppie base | BF4: ordine c.base STD | BG4: Rank
A5: =IF(J$2="","",IF($E5="","",IF($E5=MAX($E$5:$E$54),1,IF($E5=$E4,$A4,COUNT($E$5:$E5))))) -> 1 | B5: 6 | C5: Barbara | D5: Elio | E5: =IF(J$2="","",IF(G5=0,0,F5+G5)) -> 61.36363636 | G5: =IF(J$2="","",IF($J5=0,0,(H5*$C$3/$J$3)*50)) -> 61.36363636 | H5: =IF(J$2="","",IF(SUM($K5:$AX5)=0,0,SUM($K5:$AX5)+$I5)) -> 108 | J5: =IF(B5="",0,IF(SUM($K5:$AX5)=0,0,SUM($K5:$AX5))) -> 108 | K5: 0 | L5: 1 | M5: 8 | N5: 5 | O5: 1 | P5: 8 | Q5: 7 | R5: 8 | S5: 7 | T5: 5 | U5: 4 | V5: 4 | W5: 8 | X5: 6 | Y5: 4 | Z5: 7 | AA5: 8 | AB5: 7 | AC5: 0 | AD5: 8 | AE5: 0 | AF5: 2 | AY5: =IF(BF5>11,"",IF(B5="","",1)) -> 1 | AZ5: 2 | BA5: Barbara | BB5: Elio | BC5: 61.36363636 | BD5: =IF(AZ5>11,0,BC5) -> 61.36363636 | BE5: =IF(BD5=0,"",IF(AZ5>11,"",IF(BD5=BD4,BE4,2*(D$3-BG5)+3-COUNTIF(BG$5:BG$54,BG5)))) -> 20 | BF5: 2 | BG5: =RANK(BD5,BD$5:BD$15) -> 1
A6: =IF(J$2="","",IF($E6="","",IF($E6=MAX($E$5:$E$54),1,IF($E6=$E5,$A5,COUNT($E$5:$E6))))) -> 2 | B6: 7 | C6: Elena | D6: Stefano | E6: 58.52272727 | G6: 58.52272727 | H6: 103 | J6: 103 | K6: 8 | L6: 7 | M6: 6 | N6: 1 | O6: 4 | P6: 2 | Q6: 5 | R6: 8 | S6: 1 | T6: 7 | U6: 2 | V6: 0 | W6: 4 | X6: 4 | Y6: 4 | Z6: 6 | AA6: 7 | AB6: 1 | AC6: 8 | AD6: 6 | AE6: 5 | AF6: 7 | AY6: 1 | AZ6: 4 | BA6: Elena | BB6: Stefano | BC6: 58.52272727 | BD6: 58.52272727 | BE6: =IF(BD6=0,"",IF(AZ6>11,"",IF(BD6=BD5,BE5,2*(D$3-BG6)+3-COUNTIF(BG$5:BG$54,BG6)))) -> 18 | BF6: 4 | BG6: 2
A7: =IF(J$2="","",IF($E7="","",IF($E7=MAX($E$5:$E$54),1,IF($E7=$E6,$A6,COUNT($E$5:$E7))))) -> 3 | B7: 5 | C7: Tatiana | D7: Julio | E7: 56.81818182 | G7: 56.81818182 | H7: 100 | J7: 100 | K7: 5 | L7: 7 | M7: 2 | N7: 5 | O7: 1 | P7: 2 | Q7: 1 | R7: 4 | S7: 4 | T7: 4 | U7: 6 | V7: 8 | W7: 6 | X7: 8 | Y7: 0 | Z7: 6 | AA7: 6 | AB7: 4 | AC7: 4 | AD7: 3 | AE7: 8 | AF7: 6 | AY7: 1 | AZ7: 11 | BA7: Tatiana | BB7: Julio | BC7: 56.81818182 | BD7: 56.81818182 | BE7: 16 | BF7: 11 | BG7: 3
A8: =IF(J$2="","",IF($E8="","",IF($E8=MAX($E$5:$E$54),1,IF($E8=$E7,$A7,COUNT($E$5:$E8))))) -> 4 | B8: 3 | C8: Antonella | D8: Dino | E8: 55.11363636 | G8: 55.11363636 | H8: 97 | J8: 97 | K8: 0 | L8: 7 | M8: 2 | N8: 8 | O8: 4 | P8: 4 | Q8: 7 | R8: 4 | S8: 7 | T8: 1 | U8: 3 | V8: 0 | W8: 6 | X8: 3 | Y8: 4 | Z8: 6 | AA8: 7 | AB8: 7 | AC8: 8 | AD8: 0 | AE8: 3 | AF8: 6 | AY8: 1 | AZ8: 1 | BA8: Antonella | BB8: Dino | BC8: 55.11363636 | BD8: 55.11363636 | BE8: 14 | BF8: 1 | BG8: 4
A9: =IF(J$2="","",IF($E9="","",IF($E9=MAX($E$5:$E$54),1,IF($E9=$E8,$A8,COUNT($E$5:$E9))))) -> 5 | B9: 11 | C9: Stefania | D9: Massimo | E9: 52.27272727 | G9: 52.27272727 | H9: 92 | J9: 92 | K9: 6 | L9: 4 | M9: 2 | N9: 1 | O9: 7 | P9: 0 | Q9: 3 | R9: 6 | S9: 6 | T9: 7 | U9: 5 | V9: 3 | W9: 2 | X9: 5 | Y9: 8 | Z9: 2 | AA9: 1 | AB9: 7 | AC9: 4 | AD9: 5 | AE9: 4 | AF9: 4 | AY9: 1 | AZ9: 10 | BA9: Stefania | BB9: Massimo | BC9: 52.27272727 | BD9: 52.27272727 | BE9: 12 | BF9: 10 | BG9: 5
A10: =IF(J$2="","",IF($E10="","",IF($E10=MAX($E$5:$E$54),1,IF($E10=$E9,$A9,COUNT($E$5:$E10))))) -> 6 | B10: 2 | C10: Olimpia | D10: Sauro | E10: 48.29545455 | G10: 48.29545455 | H10: 85 | J10: 85 | K10: 2 | L10: 4 | M10: 4 | N10: 4 | O10: 7 | P10: 8 | Q10: 1 | R10: 0 | S10: 6 | T10: 0 | U10: 8 | V10: 5 | W10: 2 | X10: 8 | Y10: 4 | Z10: 2 | AA10: 2 | AB10: 4 | AC10: 0 | AD10: 2 | AE10: 5 | AF10: 7 | AY10: 1 | AZ10: 8 | BA10: Olimpia | BB10: Sauro | BC10: 48.29545455 | BD10: 48.29545455 | BE10: 10 | BF10: 8 | BG10: 6
A11: =IF(J$2="","",IF($E11="","",IF($E11=MAX($E$5:$E$54),1,IF($E11=$E10,$A10,COUNT($E$5:$E11))))) -> 7 | B11: 4 | C11: Renata | D11: Sandro | E11: 46.02272727 | G11: 46.02272727 | H11: 81 | J11: 81 | K11: 5 | L11: 7 | M11: 6 | N11: 7 | O11: 1 | P11: 0 | Q11: 4 | R11: 4 | S11: 1 | T11: 3 | U11: 8 | V11: 6 | W11: 2 | X11: 3 | Y11: 8 | Z11: 1 | AA11: 1 | AB11: 1 | AC11: 4 | AD11: 5 | AE11: 3 | AF11: 1 | AY11: 1 | AZ11: 9 | BA11: Renata | BB11: Sandro | BC11: 46.02272727 | BD11: 46.02272727 | BE11: 8 | BF11: 9 | BG11: 7
A12: =IF(J$2="","",IF($E12="","",IF($E12=MAX($E$5:$E$54),1,IF($E12=$E11,$A11,COUNT($E$5:$E12))))) -> 8 | B12: 10 | C12: Cesarina | D12: Gaetano | E12: 44.31818182 | G12: 44.31818182 | H12: 78 | J12: 78 | K12: 8 | L12: 1 | M12: 6 | N12: 3 | O12: 4 | P12: 6 | Q12: 0 | R12: 2 | S12: 2 | T12: 1 | U12: 0 | V12: 3 | W12: 6 | X12: 5 | Y12: 4 | Z12: 1 | AA12: 4 | AB12: 7 | AC12: 4 | AD12: 4 | AE12: 5 | AF12: 2 | AY12: 1 | AZ12: 3 | BA12: Cesarina | BB12: Gaetano | BC12: 44.31818182 | BD12: 44.31818182 | BE12: 6 | BF12: 3 | BG12: 8
A13: =IF(J$2="","",IF($E13="","",IF($E13=MAX($E$5:$E$54),1,IF($E13=$E12,$A12,COUNT($E$5:$E13))))) -> 9 | B13: 8 | C13: Manuela | D13: Roberto | E13: 43.75 | G13: 43.75 | H13: 77 | J13: 77 | K13: 3 | L13: 1 | M13: 2 | N13: 7 | O13: 7 | P13: 4 | Q13: 5 | R13: 2 | S13: 2 | T13: 8 | U13: 0 | V13: 2 | W13: 0 | X13: 2 | Y13: 4 | Z13: 4 | AA13: 4 | AB13: 1 | AC13: 4 | AD13: 8 | AE13: 5 | AF13: 2 | AY13: 1 | AZ13: 7 | BA13: Manuela | BB13: Roberto | BC13: 43.75 | BD13: 43.75 | BE13: 4 | BF13: 7 | BG13: 9
A14: =IF(J$2="","",IF($E14="","",IF($E14=MAX($E$5:$E$54),1,IF($E14=$E13,$A13,COUNT($E$5:$E14))))) -> 10 | B14: 1 | C14: Letizia | D14: Enzo | E14: 42.04545455 | G14: 42.04545455 | H14: 74 | J14: 74 | K14: 4 | L14: 4 | M14: 6 | N14: 0 | O14: 7 | P14: 6 | Q14: 3 | R14: 0 | S14: 6 | T14: 3 | U14: 3 | V14: 5 | W14: 6 | X14: 0 | Y14: 0 | Z14: 7 | AA14: 0 | AB14: 1 | AC14: 4 | AD14: 0 | AE14: 3 | AF14: 6 | AZ14: 6 | BA14: Lilli | BB14: Gianni | BC14: 41.47727273 | BD14: 41.47727273 | BE14: 2 | BF14: 14 | BG14: 10
A15: =IF(J$2="","",IF($E15="","",IF($E15=MAX($E$5:$E$54),1,IF($E15=$E14,$A14,COUNT($E$5:$E15))))) -> 11 | B15: 9 | C15: Lilli | D15: Gianni | E15: 41.47727273 | G15: 41.47727273 | H15: 73 | J15: 73 | K15: 3 | L15: 1 | M15: 0 | N15: 3 | O15: 1 | P15: 4 | Q15: 8 | R15: 6 | S15: 2 | T15: 5 | U15: 5 | V15: 8 | W15: 2 | X15: 0 | Y15: 4 | Z15: 2 | AA15: 4 | AB15: 4 | AC15: 4 | AD15: 3 | AE15: 3 | AF15: 1 | AY15: 1 | AZ15: 5 | BC15: 0 | BD15: 0 | BF15: 6 | BG15: 11
A16: =IF(J$2="","",IF($E16="","",IF($E16=MAX($E$5:$E$54),1,IF($E16=$E15,$A15,COUNT($E$5:$E16))))) -> 12 | E16: 0 | G16: 0 | H16: 0 | J16: 0 | AZ16: 12 | BC16: 0 | BD16: 0 | BF16: 5 | BG16: 11
A17: =IF(J$2="","",IF($E17="","",IF($E17=MAX($E$5:$E$54),1,IF($E17=$E16,$A16,COUNT($E$5:$E17))))) -> 12 | E17: 0 | G17: 0 | H17: 0 | J17: 0 | AZ17: 13 | BC17: 0 | BD17: 0 | BF17: 12
A18: =IF(J$2="","",IF($E18="","",IF($E18=MAX($E$5:$E$54),1,IF($E18=$E17,$A17,COUNT($E$5:$E18))))) -> 12 | E18: 0 | G18: 0 | H18: 0 | J18: 0 | AZ18: 14 | BA18: Letizia | BB18: Enzo | BC18: 42.04545455 | BD18: 0 | BF18: 13 | BG18: =RANK(BD18,BD$5:BD$15) -> 11
A19: =IF(J$2="","",IF($E19="","",IF($E19=MAX($E$5:$E$54),1,IF($E19=$E18,$A18,COUNT($E$5:$E19))))) -> 12 | E19: 0 | G19: 0 | H19: 0 | J19: 0 | AZ19: 15 | BC19: 0 | BD19: 0 | BF19: 15 | BG19: =RANK(BD19,BD$5:BD$15) -> 11
A20: =IF(J$2="","",IF($E20="","",IF($E20=MAX($E$5:$E$54),1,IF($E20=$E19,$A19,COUNT($E$5:$E20))))) -> 12 | E20: 0 | G20: 0 | H20: 0 | J20: 0 | AZ20: 16 | BC20: 0 | BD20: 0 | BF20: 16 | BG20: =RANK(BD20,BD$5:BD$15) -> 11
A21: =IF(J$2="","",IF($E21="","",IF($E21=MAX($E$5:$E$54),1,IF($E21=$E20,$A20,COUNT($E$5:$E21))))) -> 12 | E21: 0 | G21: 0 | H21: 0 | J21: 0 | AZ21: 17 | BC21: 0 | BD21: 0 | BF21: 17
A22: =IF(J$2="","",IF($E22="","",IF($E22=MAX($E$5:$E$54),1,IF($E22=$E21,$A21,COUNT($E$5:$E22))))) -> 12 | E22: 0 | G22: 0 | H22: 0 | J22: 0 | AZ22: 18 | BC22: 0 | BD22: 0 | BF22: 18
A23: =IF(J$2="","",IF($E23="","",IF($E23=MAX($E$5:$E$54),1,IF($E23=$E22,$A22,COUNT($E$5:$E23))))) -> 12 | E23: 0 | G23: 0 | H23: 0 | J23: 0 | AZ23: 19 | BC23: 0 | BD23: 0 | BF23: 19 | BG23: =RANK(BD23,BD$5:BD$15) -> 11
A24: =IF(J$2="","",IF($E24="","",IF($E24=MAX($E$5:$E$54),1,IF($E24=$E23,$A23,COUNT($E$5:$E24))))) -> 12 | E24: 0 | G24: 0 | H24: 0 | J24: 0 | AZ24: 20 | BC24: 0 | BD24: 0 | BF24: 20 | BG24: =RANK(BD24,BD$5:BD$15) -> 11
A25: =IF(J$2="","",IF($E25="","",IF($E25=MAX($E$5:$E$54),1,IF($E25=$E24,$A24,COUNT($E$5:$E25))))) -> 12 | E25: 0 | G25: 0 | H25: 0 | J25: 0 | AZ25: 21 | BC25: 0 | BD25: 0 | BF25: 21
A26: =IF(J$2="","",IF($E26="","",IF($E26=MAX($E$5:$E$54),1,IF($E26=$E25,$A25,COUNT($E$5:$E26))))) -> 12 | E26: 0 | G26: 0 | H26: 0 | J26: 0 | AZ26: 22 | BC26: 0 | BD26: 0 | BF26: 22 | BG26: =RANK(BD26,BD$5:BD$15) -> 11
A27: =IF(J$2="","",IF($E27="","",IF($E27=MAX($E$5:$E$54),1,IF($E27=$E26,$A26,COUNT($E$5:$E27))))) -> 12 | E27: 0 | G27: 0 | H27: 0 | J27: 0 | AZ27: 23 | BC27: 0 | BD27: 0 | BF27: 23 | BG27: =RANK(BD27,BD$5:BD$15) -> 11
A28: =IF(J$2="","",IF($E28="","",IF($E28=MAX($E$5:$E$54),1,IF($E28=$E27,$A27,COUNT($E$5:$E28))))) -> 12 | E28: 0 | G28: 0 | H28: 0 | J28: 0 | AZ28: 24 | BC28: 0 | BD28: 0 | BF28: 24 | BG28: =RANK(BD28,BD$5:BD$15) -> 11
A29: =IF(J$2="","",IF($E29="","",IF($E29=MAX($E$5:$E$54),1,IF($E29=$E28,$A28,COUNT($E$5:$E29))))) -> 12 | E29: 0 | G29: 0 | H29: 0 | J29: 0 | AZ29: 25 | BC29: 0 | BD29: 0 | BF29: 25
A30: =IF(J$2="","",IF($E30="","",IF($E30=MAX($E$5:$E$54),1,IF($E30=$E29,$A29,COUNT($E$5:$E30))))) -> 12 | E30: 0 | G30: 0 | H30: 0 | J30: 0 | AZ30: 26 | BC30: 0 | BD30: 0 | BF30: 26
A31: =IF(J$2="","",IF($E31="","",IF($E31=MAX($E$5:$E$54),1,IF($E31=$E30,$A30,COUNT($E$5:$E31))))) -> 12 | E31: 0 | G31: 0 | H31: 0 | J31: 0 | AZ31: 27 | BC31: 0 | BD31: 0 | BF31: 27
A32: =IF(J$2="","",IF($E32="","",IF($E32=MAX($E$5:$E$54),1,IF($E32=$E31,$A31,COUNT($E$5:$E32))))) -> 12 | E32: 0 | G32: 0 | H32: 0 | J32: 0 | AZ32: 28 | BC32: 0 | BD32: 0 | BF32: 28
A33: =IF(J$2="","",IF($E33="","",IF($E33=MAX($E$5:$E$54),1,IF($E33=$E32,$A32,COUNT($E$5:$E33))))) -> 12 | E33: 0 | G33: 0 | H33: 0 | J33: 0 | AZ33: 29 | BC33: 0 | BD33: 0 | BF33: 29
A34: =IF(J$2="","",IF($E34="","",IF($E34=MAX($E$5:$E$54),1,IF($E34=$E33,$A33,COUNT($E$5:$E34))))) -> 12 | E34: 0 | G34: 0 | H34: 0 | J34: 0 | AZ34: 30 | BC34: 0 | BD34: 0 | BF34: 30
A35: =IF(J$2="","",IF($E35="","",IF($E35=MAX($E$5:$E$54),1,IF($E35=$E34,$A34,COUNT($E$5:$E35))))) -> 12 | E35: 0 | G35: 0 | H35: 0 | J35: 0 | AZ35: 31 | BC35: 0 | BD35: 0 | BF35: 31
A36: =IF(J$2="","",IF($E36="","",IF($E36=MAX($E$5:$E$54),1,IF($E36=$E35,$A35,COUNT($E$5:$E36))))) -> 12 | E36: 0 | G36: 0 | H36: 0 | J36: 0 | AZ36: 32 | BC36: 0 | BD36: 0 | BF36: 32
A37: =IF(J$2="","",IF($E37="","",IF($E37=MAX($E$5:$E$54),1,IF($E37=$E36,$A36,COUNT($E$5:$E37))))) -> 12 | E37: =IF(J$2="","",IF(G37=0,0,F37+G37)) -> 0 | G37: =IF(J$2="","",IF($J37=0,0,(H37*$C$3/$J$3)*50)) -> 0 | H37: =IF(J$2="","",IF(SUM($K37:$AX37)=0,0,SUM($K37:$AX37)+$I37)) -> 0 | J37: =IF(B37="",0,IF(SUM($K37:$AX37)=0,0,SUM($K37:$AX37))) -> 0 | AY37: =IF(BF37>11,"",IF(B37="","",1)) ->  | AZ37: 33 | BC37: 0 | BD37: =IF(AZ37>11,0,BC37) -> 0 | BF37: 33
A38: =IF(J$2="","",IF($E38="","",IF($E38=MAX($E$5:$E$54),1,IF($E38=$E37,$A37,COUNT($E$5:$E38))))) -> 12 | E38: 0 | G38: 0 | H38: 0 | J38: 0 | AZ38: 34 | BC38: 0 | BD38: 0 | BF38: 34
A39: =IF(J$2="","",IF($E39="","",IF($E39=MAX($E$5:$E$54),1,IF($E39=$E38,$A38,COUNT($E$5:$E39))))) -> 12 | E39: 0 | G39: 0 | H39: 0 | J39: 0 | AZ39: 35 | BC39: 0 | BD39: 0 | BF39: 35
A40: =IF(J$2="","",IF($E40="","",IF($E40=MAX($E$5:$E$54),1,IF($E40=$E39,$A39,COUNT($E$5:$E40))))) -> 12 | E40: 0 | G40: 0 | H40: 0 | J40: 0 | AZ40: 36 | BC40: 0 | BD40: 0 | BF40: 36
A41: =IF(J$2="","",IF($E41="","",IF($E41=MAX($E$5:$E$54),1,IF($E41=$E40,$A40,COUNT($E$5:$E41))))) -> 12 | E41: 0 | G41: 0 | H41: 0 | J41: 0 | AZ41: 37 | BC41: 0 | BD41: 0 | BF41: 37
A42: =IF(J$2="","",IF($E42="","",IF($E42=MAX($E$5:$E$54),1,IF($E42=$E41,$A41,COUNT($E$5:$E42))))) -> 12 | E42: 0 | G42: 0 | H42: 0 | J42: 0 | AZ42: 38 | BC42: 0 | BD42: 0 | BF42: 38
A43: =IF(J$2="","",IF($E43="","",IF($E43=MAX($E$5:$E$54),1,IF($E43=$E42,$A42,COUNT($E$5:$E43))))) -> 12 | E43: 0 | G43: 0 | H43: 0 | J43: 0 | AZ43: 39 | BC43: 0 | BD43: 0 | BF43: 39
A44: =IF(J$2="","",IF($E44="","",IF($E44=MAX($E$5:$E$54),1,IF($E44=$E43,$A43,COUNT($E$5:$E44))))) -> 12 | E44: 0 | G44: 0 | H44: 0 | J44: 0 | AZ44: 40 | BC44: 0 | BD44: 0 | BF44: 40
A45: =IF(J$2="","",IF($E45="","",IF($E45=MAX($E$5:$E$54),1,IF($E45=$E44,$A44,COUNT($E$5:$E45))))) -> 12 | E45: 0 | G45: 0 | H45: 0 | J45: 0 | AZ45: 41 | BC45: 0 | BD45: 0 | BF45: 41
A46: =IF(J$2="","",IF($E46="","",IF($E46=MAX($E$5:$E$54),1,IF($E46=$E45,$A45,COUNT($E$5:$E46))))) -> 12 | E46: 0 | G46: 0 | H46: 0 | J46: 0 | AZ46: 42 | BC46: 0 | BD46: 0 | BF46: 42
A47: =IF(J$2="","",IF($E47="","",IF($E47=MAX($E$5:$E$54),1,IF($E47=$E46,$A46,COUNT($E$5:$E47))))) -> 12 | E47: 0 | G47: 0 | H47: 0 | J47: 0 | AZ47: 43 | BC47: 0 | BD47: 0 | BF47: 43
A48: =IF(J$2="","",IF($E48="","",IF($E48=MAX($E$5:$E$54),1,IF($E48=$E47,$A47,COUNT($E$5:$E48))))) -> 12 | E48: 0 | G48: 0 | H48: 0 | J48: 0 | AZ48: 44 | BC48: 0 | BD48: 0 | BF48: 44
A49: =IF(J$2="","",IF($E49="","",IF($E49=MAX($E$5:$E$54),1,IF($E49=$E48,$A48,COUNT($E$5:$E49))))) -> 12 | E49: 0 | G49: 0 | H49: 0 | J49: 0 | AZ49: 45 | BC49: 0 | BD49: 0 | BF49: 45
A50: =IF(J$2="","",IF($E50="","",IF($E50=MAX($E$5:$E$54),1,IF($E50=$E49,$A49,COUNT($E$5:$E50))))) -> 12 | E50: 0 | G50: 0 | H50: 0 | J50: 0 | AZ50: 46 | BC50: 0 | BD50: 0 | BF50: 46
A51: =IF(J$2="","",IF($E51="","",IF($E51=MAX($E$5:$E$54),1,IF($E51=$E50,$A50,COUNT($E$5:$E51))))) -> 12 | E51: 0 | G51: 0 | H51: 0 | J51: 0 | AZ51: 47 | BC51: 0 | BD51: 0 | BF51: 47
A52: =IF(J$2="","",IF($E52="","",IF($E52=MAX($E$5:$E$54),1,IF($E52=$E51,$A51,COUNT($E$5:$E52))))) -> 12 | E52: 0 | G52: 0 | H52: 0 | J52: 0 | AZ52: 48 | BC52: 0 | BD52: 0 | BF52: 48
A53: =IF(J$2="","",IF($E53="","",IF($E53=MAX($E$5:$E$54),1,IF($E53=$E52,$A52,COUNT($E$5:$E53))))) -> 12 | E53: 0 | G53: 0 | H53: 0 | J53: 0 | AZ53: 49 | BC53: 0 | BD53: 0 | BF53: 49
A54: =IF(J$2="","",IF($E54="","",IF($E54=MAX($E$5:$E$54),1,IF($E54=$E53,$A53,COUNT($E$5:$E54))))) -> 12 | E54: 0 | G54: 0 | H54: 0 | J54: 0 | AZ54: 50 | BC54: 0 | BD54: 0 | BF54: 50
D59: punteggi torneo ordinati per # di coppia
B60: # coppia | E60: con zeri | F60: senza zeri | G60: senza zeri
B61: 1 | E61: 42.04545455 | F61: =IF(E61=0,"",E61) -> 42.04545455 | G61: 42.04545455 | I61: =IF(H61=0,"",H61) ->  | BF61: 14
B62: 2 | E62: 48.29545455 | F62: 48.29545455 | G62: 48.29545455 | BF62: 8
B63: 3 | E63: 55.11363636 | F63: 55.11363636 | G63: 55.11363636 | I63: =IF(H63=0,"",H63) ->  | BF63: 1
B64: 4 | E64: 46.02272727 | F64: 46.02272727 | G64: 46.02272727 | BF64: 9
B65: 5 | E65: 56.81818182 | F65: 56.81818182 | G65: 56.81818182 | I65: =IF(H65=0,"",H65) ->  | BF65: 11
B66: 6 | E66: 61.36363636 | F66: 61.36363636 | G66: 61.36363636 | BF66: 2
B67: 7 | E67: 58.52272727 | F67: 58.52272727 | G67: 58.52272727 | BF67: 4
B68: 8 | E68: 43.75 | F68: 43.75 | G68: 43.75 | I68: =IF(H68=0,"",H68) ->  | BF68: 7
B69: 9 | E69: 41.47727273 | F69: 41.47727273 | G69: 41.47727273 | I69: =IF(H69=0,"",H69) ->  | BF69: 6
B70: 10 | E70: 44.31818182 | F70: 44.31818182 | G70: 44.31818182 | BF70: 3
B71: 11 | E71: 52.27272727 | F71: 52.27272727 | G71: 52.27272727 | BF71: 10
E72: 0 | BF72: 5
E73: 0 | I73: =IF(H73=0,"",H73) ->  | BF73: 12
E74: 0 | I74: =IF(H74=0,"",H74) ->  | BF74: 13
E75: 0 | I75: =IF(H75=0,"",H75) ->  | BF75: 15
E76: 0 | I76: =IF(H76=0,"",H76) ->  | BF76: 16
E77: 0 | BF77: 17
E78: 0 | BF78: 18
E79: 0 | I79: =IF(H79=0,"",H79) ->  | BF79: 19
E80: 0 | I80: =IF(H80=0,"",H80) ->  | BF80: 20
E81: 0 | BF81: 21
E82: 0 | BF82: 22
E83: 0 | BF83: 23
E84: 0 | BF84: 24
E85: 0 | BF85: 25
E86: 0 | BF86: 26
E87: 0 | BF87: 27
E88: 0 | BF88: 28
E89: 0 | BF89: 29
E90: 0 | BF90: 30
E91: 0 | BF91: 31
E92: 0 | BF92: 32
E93: 0 | F93: =IF(E93=0,"",E93) ->  | BF93: 33
E94: 0 | BF94: 34
E95: 0 | BF95: 35
E96: 0 | BF96: 36
E97: 0 | BF97: 37
E98: 0 | BF98: 38
E99: 0 | BF99: 39
E100: 0 | BF100: 40
E101: 0 | BF101: 41
E102: 0 | BF102: 42
E103: 0 | BF103: 43
E104: 0 | BF104: 44
E105: 0 | BF105: 45
E106: 0 | BF106: 46
E107: 0 | BF107: 47
E108: 0 | BF108: 48
E109: 0 | BF109: 49
E110: 0 | BF110: 50
A119: PTS ordinati per numero standard di coppia base
A120: #STD | B120: PTS
A121: 1 | B121: 14 | E121: 55.11363636 | F121: =IF(E121=0,"",E121) -> 55.11363636 | G121: 55.11363636 | I121: =IF(H121=0,"",H121) ->  | BF121: 1
A122: 2 | B122: 20 | E122: 61.36363636 | F122: 61.36363636 | G122: 61.36363636 | BF122: 2
A123: 3 | B123: 6 | E123: 44.31818182 | F123: 44.31818182 | G123: 44.31818182 | BF123: 3
A124: 4 | B124: 18 | E124: 58.52272727 | F124: 58.52272727 | G124: 58.52272727 | BF124: 4
A125: 5 | E125: 0 | BF125: 5
A126: 6 | B126: 2 | E126: 41.47727273 | F126: 41.47727273 | G126: 41.47727273 | I126: =IF(H126=0,"",H126) ->  | BF126: 6
A127: 7 | B127: 4 | E127: 43.75 | F127: 43.75 | G127: 43.75 | I127: =IF(H127=0,"",H127) ->  | BF127: 7
A128: 8 | B128: 10 | E128: 48.29545455 | F128: 48.29545455 | G128: 48.29545455 | BF128: 8
A129: 9 | B129: 8 | E129: 46.02272727 | F129: 46.02272727 | G129: 46.02272727 | BF129: 9
A130: 10 | B130: 12 | E130: 52.27272727 | F130: 52.27272727 | G130: 52.27272727 | BF130: 10
A131: 11 | B131: 16 | E131: 56.81818182 | F131: 56.81818182 | G131: 56.81818182 | I131: =IF(H131=0,"",H131) ->  | BF131: 11
BE200: formule punti coppie base
BE201: =IF(BD201=0,"",IF(AZ201>11,"",IF(BD201=BD200,BE200,2*(D$3-BG201)+3-COUNTIF(BG$5:BG$54,BG201)))) -> 
BE202: =IF(BD202=0,"",IF(AZ202>11,"",IF(BD202=BD201,BE201,2*(D$3-BG202)+3-COUNTIF(BG$5:BG$54,BG202)))) -> 

Sheet 27apr
A1: Data | C1: 2019-04-27 | D1: BridgeMania 2018-19 - Torneo Howell
A2: luogo | C2: Polichetti | D2: Coppie Ctrl+e | E2: Calcola Ctr+f Ctr+i | F2: Duplica Ctrl+g | G2: Clear Ctrl+h | J2: &
A3: # coppie / # c.base | C3: =IF(B5="","",COUNT(B5:B54)) -> 10 | D3: =SUM(AY5:AY54) -> 8 | E3: =IF(E5="","",SUMIF(E5:E54,">0")) -> 500 | G3: =IF(G5="","",SUM(G5:G54)) -> 500 | H3: =IF(H5="","",SUM(H5:H54)) -> 720 | I3: =SUM(I5:I54) -> 0 | J3: =SUM(J5:J54) -> 720 | K3: =SUM(K5:K54) -> 40 | L3: =SUM(L5:L54) -> 40 | M3: 40 | N3: 40 | O3: 40 | P3: 40 | Q3: 40 | R3: 40 | S3: 40 | T3: 40 | U3: 40 | V3: 40 | W3: 40 | X3: 40 | Y3: 40 | Z3: 40 | AA3: 40 | AB3: 40 | AC3: 0 | AD3: 0 | AE3: 0 | AF3: 0 | AG3: 0 | AH3: 0 | AI3: 0 | AJ3: 0 | AK3: 0 | AL3: 0 | AM3: 0 | AN3: 0 | AO3: 0 | AP3: 0 | AQ3: 0 | AR3: 0 | AS3: 0 | AT3: 0 | AU3: 0 | AV3: 0 | AW3: 0 | AX3: 0
A4: Class. | B4: # | C4: Coppie | E4: Punteggio Serata | G4: Punteggio % | H4: Punteggio Torneo | I4: Penalità (-) | J4: Totale punti mano | K4: 1 | L4: 2 | M4: 3 | N4: 4 | O4: 5 | P4: 6 | Q4: 7 | R4: 8 | S4: 9 | T4: 10 | U4: 11 | V4: 12 | W4: 13 | X4: 14 | Y4: 15 | Z4: 16 | AA4: 17 | AB4: 18 | AC4: 19 | AD4: 20 | AE4: 21 | AF4: 22 | AG4: 23 | AH4: 24 | AI4: 25 | AJ4: 26 | AK4: 27 | AL4: 28 | AM4: 29 | AN4: 30 | AO4: 31 | AP4: 32 | AQ4: 33 | AR4: 34 | AS4: 35 | AT4: 36 | AU4: 37 | AV4: 38 | AW4: 39 | AX4: 40 | AY4: c.base presenti | AZ4: ordine c.base ad hoc | BC4: punteggi | BD4: punteggi c. base presenti | BE4: punti PTS coppie base | BF4: ordine c.base STD | BG4: Rank
A5: =IF(J$2="","",IF($E5="","",IF($E5=MAX($E$5:$E$54),1,IF($E5=$E4,$A4,COUNT($E$5:$E5))))) -> 1 | B5: 3 | C5: Elena | D5: Stefano | E5: =IF(J$2="","",IF(G5=0,0,F5+G5)) -> 68.05555556 | G5: =IF(J$2="","",IF($J5=0,0,(H5*$C$3/$J$3)*50)) -> 68.05555556 | H5: =IF(J$2="","",IF(SUM($K5:$AX5)=0,0,SUM($K5:$AX5)+$I5)) -> 98 | J5: =IF(B5="",0,IF(SUM($K5:$AX5)=0,0,SUM($K5:$AX5))) -> 98 | K5: 4 | L5: 8 | M5: 6 | N5: 6 | O5: 8 | P5: 8 | Q5: 6 | R5: 8 | S5: 8 | T5: 5 | U5: 4 | V5: 1 | W5: 0 | X5: 6 | Y5: 2 | Z5: 7 | AA5: 3 | AB5: 8 | AY5: =IF(BF5>11,"",IF(B5="","",1)) -> 1 | AZ5: 4 | BA5: Elena | BB5: Stefano | BC5: 68.05555556 | BD5: =IF(AZ5>11,0,BC5) -> 68.05555556 | BE5: =IF(BD5=0,"",IF(AZ5>11,"",IF(BD5=BD4,BE4,2*(D$3-BG5)+3-COUNTIF(BG$5:BG$54,BG5)))) -> 16 | BF5: 4 | BG5: =RANK(BD5,BD$5:BD$15) -> 1
A6: =IF(J$2="","",IF($E6="","",IF($E6=MAX($E$5:$E$54),1,IF($E6=$E5,$A5,COUNT($E$5:$E6))))) -> 2 | B6: 5 | C6: Antonella | D6: Dino | E6: 58.33333333 | G6: 58.33333333 | H6: 84 | J6: 84 | K6: 8 | L6: 5 | M6: 2 | N6: 2 | O6: 4 | P6: 8 | Q6: 8 | R6: 4 | S6: 5 | T6: 8 | U6: 0 | V6: 7 | W6: 8 | X6: 2 | Y6: 1 | Z6: 8 | AA6: 0 | AB6: 4 | AY6: 1 | AZ6: 1 | BA6: Antonella | BB6: Dino | BC6: 58.33333333 | BD6: 58.33333333 | BE6: =IF(BD6=0,"",IF(AZ6>11,"",IF(BD6=BD5,BE5,2*(D$3-BG6)+3-COUNTIF(BG$5:BG$54,BG6)))) -> 14 | BF6: 1 | BG6: 2
A7: =IF(J$2="","",IF($E7="","",IF($E7=MAX($E$5:$E$54),1,IF($E7=$E6,$A6,COUNT($E$5:$E7))))) -> 3 | B7: 2 | C7: Manuela | D7: Roberto | E7: 54.16666667 | G7: 54.16666667 | H7: 78 | J7: 78 | K7: 6 | L7: 2 | M7: 8 | N7: 8 | O7: 4 | P7: 0 | Q7: 2 | R7: 4 | S7: 5 | T7: 2 | U7: 0 | V7: 1 | W7: 8 | X7: 8 | Y7: 6 | Z7: 1 | AA7: 5 | AB7: 8 | AY7: 1 | AZ7: 7 | BA7: Manuela | BB7: Roberto | BC7: 54.16666667 | BD7: 54.16666667 | BE7: 11 | BF7: 7 | BG7: 3
A8: =IF(J$2="","",IF($E8="","",IF($E8=MAX($E$5:$E$54),1,IF($E8=$E7,$A7,COUNT($E$5:$E8))))) -> 3 | B8: 7 | C8: Renata | D8: Sandro | E8: 54.16666667 | G8: 54.16666667 | H8: 78 | J8: 78 | K8: 2 | L8: 6 | M8: 2 | N8: 6 | O8: 8 | P8: 5 | Q8: 6 | R8: 0 | S8: 6 | T8: 3 | U8: 4 | V8: 7 | W8: 3 | X8: 6 | Y8: 1 | Z8: 1 | AA8: 8 | AB8: 4 | AY8: 1 | AZ8: 9 | BA8: Renata | BB8: Sandro | BC8: 54.16666667 | BD8: 54.16666667 | BE8: 11 | BF8: 9 | BG8: 3
A9: =IF(J$2="","",IF($E9="","",IF($E9=MAX($E$5:$E$54),1,IF($E9=$E8,$A8,COUNT($E$5:$E9))))) -> 5 | B9: 9 | C9: Barbara | D9: Elio | E9: 52.08333333 | G9: 52.08333333 | H9: 75 | J9: 75 | K9: 4 | L9: 0 | M9: 6 | N9: 2 | O9: 6 | P9: 3 | Q9: 6 | R9: 4 | S9: 8 | T9: 8 | U9: 4 | V9: 1 | W9: 5 | X9: 4 | Y9: 7 | Z9: 0 | AA9: 3 | AB9: 4 | AY9: 1 | AZ9: 2 | BA9: Barbara | BB9: Elio | BC9: 52.08333333 | BD9: 52.08333333 | BE9: 8 | BF9: 2 | BG9: 5
A10: =IF(J$2="","",IF($E10="","",IF($E10=MAX($E$5:$E$54),1,IF($E10=$E9,$A9,COUNT($E$5:$E10))))) -> 6 | B10: 1 | C10: Tatiana | D10: Julio | E10: 50.69444444 | G10: 50.69444444 | H10: 73 | J10: 73 | K10: 8 | L10: 8 | M10: 2 | N10: 6 | O10: 2 | P10: 6 | Q10: 0 | R10: 4 | S10: 0 | T10: 3 | U10: 4 | V10: 7 | W10: 0 | X10: 0 | Y10: 7 | Z10: 7 | AA10: 5 | AB10: 4 | AY10: 1 | AZ10: 6 | BA10: Lilli | BB10: Gianni | BC10: 50.69444444 | BD10: 50.69444444 | BE10: 5 | BF10: 11 | BG10: 6
A11: =IF(J$2="","",IF($E11="","",IF($E11=MAX($E$5:$E$54),1,IF($E11=$E10,$A10,COUNT($E$5:$E11))))) -> 6 | B11: 4 | C11: Lilli | D11: Gianni | E11: 50.69444444 | G11: 50.69444444 | H11: 73 | J11: 73 | K11: 0 | L11: 3 | M11: 6 | N11: 2 | O11: 2 | P11: 5 | Q11: 6 | R11: 4 | S11: 2 | T11: 5 | U11: 8 | V11: 7 | W11: 6 | X11: 8 | Y11: 2 | Z11: 2 | AA11: 5 | AB11: 0 | AY11: 1 | AZ11: 11 | BA11: Tatiana | BB11: Julio | BC11: 50.69444444 | BD11: 50.69444444 | BE11: 5 | BF11: 6 | BG11: 6
A12: =IF(J$2="","",IF($E12="","",IF($E12=MAX($E$5:$E$54),1,IF($E12=$E11,$A11,COUNT($E$5:$E12))))) -> 8 | B12: 6 | C12: A.Maria | D12: Claudio | E12: 46.52777778 | G12: 46.52777778 | H12: 67 | J12: 67 | K12: 2 | L12: 5 | M12: 6 | N12: 6 | O12: 0 | P12: 3 | Q12: 2 | R12: 0 | S12: 3 | T12: 6 | U12: 4 | V12: 4 | W12: 3 | X12: 4 | Y12: 6 | Z12: 6 | AA12: 3 | AB12: 4 | AZ12: 8 | BA12: Olimpia | BB12: Sauro | BC12: 27.08333333 | BD12: 27.08333333 | BE12: 2 | BF12: 13 | BG12: 8
A13: =IF(J$2="","",IF($E13="","",IF($E13=MAX($E$5:$E$54),1,IF($E13=$E12,$A12,COUNT($E$5:$E13))))) -> 9 | B13: 8 | C13: Marilena | D13: Sergio | E13: 38.19444444 | G13: 38.19444444 | H13: 55 | J13: 55 | K13: 6 | L13: 3 | M13: 2 | N13: 2 | O13: 6 | P13: 2 | Q13: 2 | R13: 8 | S13: 0 | T13: 0 | U13: 8 | V13: 1 | W13: 2 | X13: 0 | Y13: 6 | Z13: 4 | AA13: 3 | AB13: 0 | AZ13: 3 | BC13: 0 | BD13: 0 | BF13: 12 | BG13: 9
A14: =IF(J$2="","",IF($E14="","",IF($E14=MAX($E$5:$E$54),1,IF($E14=$E13,$A13,COUNT($E$5:$E14))))) -> 10 | B14: 10 | C14: Olimpia | D14: Sauro | E14: 27.08333333 | G14: 27.08333333 | H14: 39 | J14: 39 | K14: 0 | L14: 0 | M14: 0 | N14: 0 | O14: 0 | P14: 0 | Q14: 2 | R14: 4 | S14: 3 | T14: 0 | U14: 4 | V14: 4 | W14: 5 | X14: 2 | Y14: 2 | Z14: 4 | AA14: 5 | AB14: 4 | AY14: 1 | AZ14: 5 | BC14: 0 | BD14: 0 | BF14: 8 | BG14: 9
A15: =IF(J$2="","",IF($E15="","",IF($E15=MAX($E$5:$E$54),1,IF($E15=$E14,$A14,COUNT($E$5:$E15))))) -> 11 | E15: 0 | G15: 0 | H15: 0 | J15: 0 | AZ15: 10 | BC15: 0 | BD15: 0 | BF15: 3 | BG15: 9
A16: =IF(J$2="","",IF($E16="","",IF($E16=MAX($E$5:$E$54),1,IF($E16=$E15,$A15,COUNT($E$5:$E16))))) -> 11 | E16: 0 | G16: 0 | H16: 0 | J16: 0 | AZ16: 12 | BA16: Marilena | BB16: Sergio | BC16: 38.19444444 | BD16: 0 | BF16: 5 | BG16: 9
A17: =IF(J$2="","",IF($E17="","",IF($E17=MAX($E$5:$E$54),1,IF($E17=$E16,$A16,COUNT($E$5:$E17))))) -> 11 | E17: 0 | G17: 0 | H17: 0 | J17: 0 | AZ17: 13 | BA17: A.Maria | BB17: Claudio | BC17: 46.52777778 | BD17: 0 | BF17: 10
A18: =IF(J$2="","",IF($E18="","",IF($E18=MAX($E$5:$E$54),1,IF($E18=$E17,$A17,COUNT($E$5:$E18))))) -> 11 | E18: 0 | G18: 0 | H18: 0 | J18: 0 | AZ18: 14 | BC18: 0 | BD18: 0 | BF18: 14 | BG18: =RANK(BD18,BD$5:BD$15) -> 9
A19: =IF(J$2="","",IF($E19="","",IF($E19=MAX($E$5:$E$54),1,IF($E19=$E18,$A18,COUNT($E$5:$E19))))) -> 11 | E19: 0 | G19: 0 | H19: 0 | J19: 0 | AZ19: 15 | BC19: 0 | BD19: 0 | BF19: 15 | BG19: =RANK(BD19,BD$5:BD$15) -> 9
A20: =IF(J$2="","",IF($E20="","",IF($E20=MAX($E$5:$E$54),1,IF($E20=$E19,$A19,COUNT($E$5:$E20))))) -> 11 | E20: 0 | G20: 0 | H20: 0 | J20: 0 | AZ20: 16 | BC20: 0 | BD20: 0 | BF20: 16 | BG20: =RANK(BD20,BD$5:BD$15) -> 9
A21: =IF(J$2="","",IF($E21="","",IF($E21=MAX($E$5:$E$54),1,IF($E21=$E20,$A20,COUNT($E$5:$E21))))) -> 11 | E21: 0 | G21: 0 | H21: 0 | J21: 0 | AZ21: 17 | BC21: 0 | BD21: 0 | BF21: 17
A22: =IF(J$2="","",IF($E22="","",IF($E22=MAX($E$5:$E$54),1,IF($E22=$E21,$A21,COUNT($E$5:$E22))))) -> 11 | E22: 0 | G22: 0 | H22: 0 | J22: 0 | AZ22: 18 | BC22: 0 | BD22: 0 | BF22: 18
A23: =IF(J$2="","",IF($E23="","",IF($E23=MAX($E$5:$E$54),1,IF($E23=$E22,$A22,COUNT($E$5:$E23))))) -> 11 | E23: 0 | G23: 0 | H23: 0 | J23: 0 | AZ23: 19 | BC23: 0 | BD23: 0 | BF23: 19 | BG23: =RANK(BD23,BD$5:BD$15) -> 9
A24: =IF(J$2="","",IF($E24="","",IF($E24=MAX($E$5:$E$54),1,IF($E24=$E23,$A23,COUNT($E$5:$E24))))) -> 11 | E24: 0 | G24: 0 | H24: 0 | J24: 0 | AZ24: 20 | BC24: 0 | BD24: 0 | BF24: 20 | BG24: =RANK(BD24,BD$5:BD$15) -> 9
A25: =IF(J$2="","",IF($E25="","",IF($E25=MAX($E$5:$E$54),1,IF($E25=$E24,$A24,COUNT($E$5:$E25))))) -> 11 | E25: 0 | G25: 0 | H25: 0 | J25: 0 | AZ25: 21 | BC25: 0 | BD25: 0 | BF25: 21
A26: =IF(J$2="","",IF($E26="","",IF($E26=MAX($E$5:$E$54),1,IF($E26=$E25,$A25,COUNT($E$5:$E26))))) -> 11 | E26: 0 | G26: 0 | H26: 0 | J26: 0 | AZ26: 22 | BC26: 0 | BD26: 0 | BF26: 22 | BG26: =RANK(BD26,BD$5:BD$15) -> 9
A27: =IF(J$2="","",IF($E27="","",IF($E27=MAX($E$5:$E$54),1,IF($E27=$E26,$A26,COUNT($E$5:$E27))))) -> 11 | E27: 0 | G27: 0 | H27: 0 | J27: 0 | AZ27: 23 | BC27: 0 | BD27: 0 | BF27: 23 | BG27: =RANK(BD27,BD$5:BD$15) -> 9
A28: =IF(J$2="","",IF($E28="","",IF($E28=MAX($E$5:$E$54),1,IF($E28=$E27,$A27,COUNT($E$5:$E28))))) -> 11 | E28: 0 | G28: 0 | H28: 0 | J28: 0 | AZ28: 24 | BC28: 0 | BD28: 0 | BF28: 24 | BG28: =RANK(BD28,BD$5:BD$15) -> 9
A29: =IF(J$2="","",IF($E29="","",IF($E29=MAX($E$5:$E$54),1,IF($E29=$E28,$A28,COUNT($E$5:$E29))))) -> 11 | E29: 0 | G29: 0 | H29: 0 | J29: 0 | AZ29: 25 | BC29: 0 | BD29: 0 | BF29: 25
A30: =IF(J$2="","",IF($E30="","",IF($E30=MAX($E$5:$E$54),1,IF($E30=$E29,$A29,COUNT($E$5:$E30))))) -> 11 | E30: 0 | G30: 0 | H30: 0 | J30: 0 | AZ30: 26 | BC30: 0 | BD30: 0 | BF30: 26
A31: =IF(J$2="","",IF($E31="","",IF($E31=MAX($E$5:$E$54),1,IF($E31=$E30,$A30,COUNT($E$5:$E31))))) -> 11 | E31: 0 | G31: 0 | H31: 0 | J31: 0 | AZ31: 27 | BC31: 0 | BD31: 0 | BF31: 27
A32: =IF(J$2="","",IF($E32="","",IF($E32=MAX($E$5:$E$54),1,IF($E32=$E31,$A31,COUNT($E$5:$E32))))) -> 11 | E32: 0 | G32: 0 | H32: 0 | J32: 0 | AZ32: 28 | BC32: 0 | BD32: 0 | BF32: 28
A33: =IF(J$2="","",IF($E33="","",IF($E33=MAX($E$5:$E$54),1,IF($E33=$E32,$A32,COUNT($E$5:$E33))))) -> 11 | E33: 0 | G33: 0 | H33: 0 | J33: 0 | AZ33: 29 | BC33: 0 | BD33: 0 | BF33: 29
A34: =IF(J$2="","",IF($E34="","",IF($E34=MAX($E$5:$E$54),1,IF($E34=$E33,$A33,COUNT($E$5:$E34))))) -> 11 | E34: 0 | G34: 0 | H34: 0 | J34: 0 | AZ34: 30 | BC34: 0 | BD34: 0 | BF34: 30
A35: =IF(J$2="","",IF($E35="","",IF($E35=MAX($E$5:$E$54),1,IF($E35=$E34,$A34,COUNT($E$5:$E35))))) -> 11 | E35: 0 | G35: 0 | H35: 0 | J35: 0 | AZ35: 31 | BC35: 0 | BD35: 0 | BF35: 31
A36: =IF(J$2="","",IF($E36="","",IF($E36=MAX($E$5:$E$54),1,IF($E36=$E35,$A35,COUNT($E$5:$E36))))) -> 11 | E36: 0 | G36: 0 | H36: 0 | J36: 0 | AZ36: 32 | BC36: 0 | BD36: 0 | BF36: 32
A37: =IF(J$2="","",IF($E37="","",IF($E37=MAX($E$5:$E$54),1,IF($E37=$E36,$A36,COUNT($E$5:$E37))))) -> 11 | E37: =IF(J$2="","",IF(G37=0,0,F37+G37)) -> 0 | G37: =IF(J$2="","",IF($J37=0,0,(H37*$C$3/$J$3)*50)) -> 0 | H37: =IF(J$2="","",IF(SUM($K37:$AX37)=0,0,SUM($K37:$AX37)+$I37)) -> 0 | J37: =IF(B37="",0,IF(SUM($K37:$AX37)=0,0,SUM($K37:$AX37))) -> 0 | AY37: =IF(BF37>11,"",IF(B37="","",1)) ->  | AZ37: 33 | BC37: 0 | BD37: =IF(AZ37>11,0,BC37) -> 0 | BF37: 33
A38: =IF(J$2="","",IF($E38="","",IF($E38=MAX($E$5:$E$54),1,IF($E38=$E37,$A37,COUNT($E$5:$E38))))) -> 11 | E38: 0 | G38: 0 | H38: 0 | J38: 0 | AZ38: 34 | BC38: 0 | BD38: 0 | BF38: 34
A39: =IF(J$2="","",IF($E39="","",IF($E39=MAX($E$5:$E$54),1,IF($E39=$E38,$A38,COUNT($E$5:$E39))))) -> 11 | E39: 0 | G39: 0 | H39: 0 | J39: 0 | AZ39: 35 | BC39: 0 | BD39: 0 | BF39: 35
A40: =IF(J$2="","",IF($E40="","",IF($E40=MAX($E$5:$E$54),1,IF($E40=$E39,$A39,COUNT($E$5:$E40))))) -> 11 | E40: 0 | G40: 0 | H40: 0 | J40: 0 | AZ40: 36 | BC40: 0 | BD40: 0 | BF40: 36
A41: =IF(J$2="","",IF($E41="","",IF($E41=MAX($E$5:$E$54),1,IF($E41=$E40,$A40,COUNT($E$5:$E41))))) -> 11 | E41: 0 | G41: 0 | H41: 0 | J41: 0 | AZ41: 37 | BC41: 0 | BD41: 0 | BF41: 37
A42: =IF(J$2="","",IF($E42="","",IF($E42=MAX($E$5:$E$54),1,IF($E42=$E41,$A41,COUNT($E$5:$E42))))) -> 11 | E42: 0 | G42: 0 | H42: 0 | J42: 0 | AZ42: 38 | BC42: 0 | BD42: 0 | BF42: 38
A43: =IF(J$2="","",IF($E43="","",IF($E43=MAX($E$5:$E$54),1,IF($E43=$E42,$A42,COUNT($E$5:$E43))))) -> 11 | E43: 0 | G43: 0 | H43: 0 | J43: 0 | AZ43: 39 | BC43: 0 | BD43: 0 | BF43: 39
A44: =IF(J$2="","",IF($E44="","",IF($E44=MAX($E$5:$E$54),1,IF($E44=$E43,$A43,COUNT($E$5:$E44))))) -> 11 | E44: 0 | G44: 0 | H44: 0 | J44: 0 | AZ44: 40 | BC44: 0 | BD44: 0 | BF44: 40
A45: =IF(J$2="","",IF($E45="","",IF($E45=MAX($E$5:$E$54),1,IF($E45=$E44,$A44,COUNT($E$5:$E45))))) -> 11 | E45: 0 | G45: 0 | H45: 0 | J45: 0 | AZ45: 41 | BC45: 0 | BD45: 0 | BF45: 41
A46: =IF(J$2="","",IF($E46="","",IF($E46=MAX($E$5:$E$54),1,IF($E46=$E45,$A45,COUNT($E$5:$E46))))) -> 11 | E46: 0 | G46: 0 | H46: 0 | J46: 0 | AZ46: 42 | BC46: 0 | BD46: 0 | BF46: 42
A47: =IF(J$2="","",IF($E47="","",IF($E47=MAX($E$5:$E$54),1,IF($E47=$E46,$A46,COUNT($E$5:$E47))))) -> 11 | E47: 0 | G47: 0 | H47: 0 | J47: 0 | AZ47: 43 | BC47: 0 | BD47: 0 | BF47: 43
A48: =IF(J$2="","",IF($E48="","",IF($E48=MAX($E$5:$E$54),1,IF($E48=$E47,$A47,COUNT($E$5:$E48))))) -> 11 | E48: 0 | G48: 0 | H48: 0 | J48: 0 | AZ48: 44 | BC48: 0 | BD48: 0 | BF48: 44
A49: =IF(J$2="","",IF($E49="","",IF($E49=MAX($E$5:$E$54),1,IF($E49=$E48,$A48,COUNT($E$5:$E49))))) -> 11 | E49: 0 | G49: 0 | H49: 0 | J49: 0 | AZ49: 45 | BC49: 0 | BD49: 0 | BF49: 45
A50: =IF(J$2="","",IF($E50="","",IF($E50=MAX($E$5:$E$54),1,IF($E50=$E49,$A49,COUNT($E$5:$E50))))) -> 11 | E50: 0 | G50: 0 | H50: 0 | J50: 0 | AZ50: 46 | BC50: 0 | BD50: 0 | BF50: 46
A51: =IF(J$2="","",IF($E51="","",IF($E51=MAX($E$5:$E$54),1,IF($E51=$E50,$A50,COUNT($E$5:$E51))))) -> 11 | E51: 0 | G51: 0 | H51: 0 | J51: 0 | AZ51: 47 | BC51: 0 | BD51: 0 | BF51: 47
A52: =IF(J$2="","",IF($E52="","",IF($E52=MAX($E$5:$E$54),1,IF($E52=$E51,$A51,COUNT($E$5:$E52))))) -> 11 | E52: 0 | G52: 0 | H52: 0 | J52: 0 | AZ52: 48 | BC52: 0 | BD52: 0 | BF52: 48
A53: =IF(J$2="","",IF($E53="","",IF($E53=MAX($E$5:$E$54),1,IF($E53=$E52,$A52,COUNT($E$5:$E53))))) -> 11 | E53: 0 | G53: 0 | H53: 0 | J53: 0 | AZ53: 49 | BC53: 0 | BD53: 0 | BF53: 49
A54: =IF(J$2="","",IF($E54="","",IF($E54=MAX($E$5:$E$54),1,IF($E54=$E53,$A53,COUNT($E$5:$E54))))) -> 11 | E54: 0 | G54: 0 | H54: 0 | J54: 0 | AZ54: 50 | BC54: 0 | BD54: 0 | BF54: 50
D59: punteggi torneo ordinati per # di coppia
B60: # coppia | E60: con zeri | F60: senza zeri | G60: senza zeri
B61: 1 | E61: 50.69444444 | F61: =IF(E61=0,"",E61) -> 50.69444444 | G61: 50.69444444 | I61: =IF(H61=0,"",H61) ->  | BF61: 11
B62: 2 | E62: 54.16666667 | F62: 54.16666667 | G62: 54.16666667 | BF62: 7
B63: 3 | E63: 68.05555556 | F63: 68.05555556 | G63: 68.05555556 | I63: =IF(H63=0,"",H63) ->  | BF63: 4
B64: 4 | E64: 50.69444444 | F64: 50.69444444 | G64: 50.69444444 | BF64: 6
B65: 5 | E65: 58.33333333 | F65: 58.33333333 | G65: 58.33333333 | I65: =IF(H65=0,"",H65) ->  | BF65: 1
B66: 6 | E66: 46.52777778 | F66: 46.52777778 | G66: 46.52777778 | BF66: 13
B67: 7 | E67: 54.16666667 | F67: 54.16666667 | G67: 54.16666667 | BF67: 9
B68: 8 | E68: 38.19444444 | F68: 38.19444444 | G68: 38.19444444 | I68: =IF(H68=0,"",H68) ->  | BF68: 12
B69: 9 | E69: 52.08333333 | F69: 52.08333333 | G69: 52.08333333 | I69: =IF(H69=0,"",H69) ->  | BF69: 2
B70: 10 | E70: 27.08333333 | F70: 27.08333333 | G70: 27.08333333 | BF70: 8
E71: 0 | BF71: 3
E72: 0 | BF72: 5
E73: 0 | I73: =IF(H73=0,"",H73) ->  | BF73: 10
E74: 0 | I74: =IF(H74=0,"",H74) ->  | BF74: 14
E75: 0 | I75: =IF(H75=0,"",H75) ->  | BF75: 15
E76: 0 | I76: =IF(H76=0,"",H76) ->  | BF76: 16
E77: 0 | BF77: 17
E78: 0 | BF78: 18
E79: 0 | I79: =IF(H79=0,"",H79) ->  | BF79: 19
E80: 0 | I80: =IF(H80=0,"",H80) ->  | BF80: 20
E81: 0 | BF81: 21
E82: 0 | BF82: 22
E83: 0 | BF83: 23
E84: 0 | BF84: 24
E85: 0 | BF85: 25
E86: 0 | BF86: 26
E87: 0 | BF87: 27
E88: 0 | BF88: 28
E89: 0 | BF89: 29
E90: 0 | BF90: 30
E91: 0 | BF91: 31
E92: 0 | BF92: 32
E93: 0 | F93: =IF(E93=0,"",E93) ->  | BF93: 33
E94: 0 | BF94: 34
E95: 0 | BF95: 35
E96: 0 | BF96: 36
E97: 0 | BF97: 37
E98: 0 | BF98: 38
E99: 0 | BF99: 39
E100: 0 | BF100: 40
E101: 0 | BF101: 41
E102: 0 | BF102: 42
E103: 0 | BF103: 43
E104: 0 | BF104: 44
E105: 0 | BF105: 45
E106: 0 | BF106: 46
E107: 0 | BF107: 47
E108: 0 | BF108: 48
E109: 0 | BF109: 49
E110: 0 | BF110: 50
A119: PTS ordinati per numero standard di coppia base
A120: #STD | B120: PTS
A121: 1 | B121: 14 | E121: 58.33333333 | F121: =IF(E121=0,"",E121) -> 58.33333333 | G121: 58.33333333 | I121: =IF(H121=0,"",H121) ->  | BF121: 1
A122: 2 | B122: 8 | E122: 52.08333333 | F122: 52.08333333 | G122: 52.08333333 | I122: =IF(H122=0,"",H122) ->  | BF122: 2
A123: 3 | E123: 0 | BF123: 3
A124: 4 | B124: 16 | E124: 68.05555556 | F124: 68.05555556 | G124: 68.05555556 | I124: =IF(H124=0,"",H124) ->  | BF124: 4
A125: 5 | E125: 0 | BF125: 5
A126: 6 | B126: 5 | E126: 50.69444444 | F126: 50.69444444 | G126: 50.69444444 | BF126: 6
A127: 7 | B127: 11 | E127: 54.16666667 | F127: 54.16666667 | G127: 54.16666667 | BF127: 7
A128: 8 | B128: 2 | E128: 27.08333333 | F128: 27.08333333 | G128: 27.08333333 | BF128: 8
A129: 9 | B129: 11 | E129: 54.16666667 | F129: 54.16666667 | G129: 54.16666667 | BF129: 9
A130: 10 | E130: 0 | I130: =IF(H130=0,"",H130) ->  | BF130: 10
A131: 11 | B131: 5 | E131: 50.69444444 | F131: 50.69444444 | G131: 50.69444444 | I131: =IF(H131=0,"",H131) ->  | BF131: 11
BE200: formule punti coppie base
BE201: =IF(BD201=0,"",IF(AZ201>11,"",IF(BD201=BD200,BE200,2*(D$3-BG201)+3-COUNTIF(BG$5:BG$54,BG201)))) -> 
BE202: =IF(BD202=0,"",IF(AZ202>11,"",IF(BD202=BD201,BE201,2*(D$3-BG202)+3-COUNTIF(BG$5:BG$54,BG202)))) -> 

Sheet 13apr
A1: Data | C1: 2019-04-13 | D1: BridgeMania 2018-19 - Torneo Mitchell scrambled
A2: luogo | C2: Presezzi | D2: Coppie Ctrl+e | E2: Calcola Ctr+f Ctr+i | F2: Duplica Ctrl+g | G2: Clear Ctrl+h | J2: &
A3: # coppie / # c.base | C3: =IF(B5="","",COUNT(B5:B54)) -> 8 | D3: =SUM(AY5:AY54) -> 8 | E3: =IF(E5="","",SUMIF(E5:E54,">0")) -> 400 | G3: =IF(G5="","",SUM(G5:G54)) -> 400 | H3: =IF(H5="","",SUM(H5:H54)) -> 504 | I3: =SUM(I5:I54) -> 0 | J3: =SUM(J5:J54) -> 504 | K3: =SUM(K5:K54) -> 24 | L3: =SUM(L5:L54) -> 24 | M3: 24 | N3: 24 | O3: 24 | P3: 24 | Q3: 24 | R3: 24 | S3: 24 | T3: 24 | U3: 24 | V3: 24 | W3: 24 | X3: 24 | Y3: 24 | Z3: 24 | AA3: 24 | AB3: 24 | AC3: 24 | AD3: 24 | AE3: 24 | AF3: 0 | AG3: 0 | AH3: 0 | AI3: 0 | AJ3: 0 | AK3: 0 | AL3: 0 | AM3: 0 | AN3: 0 | AO3: 0 | AP3: 0 | AQ3: 0 | AR3: 0 | AS3: 0 | AT3: 0 | AU3: 0 | AV3: 0 | AW3: 0 | AX3: 0
A4: Class. | B4: # | C4: Coppie | E4: Punteggio Serata | G4: Punteggio % | H4: Punteggio Torneo | I4: Penalità (-) | J4: Totale punti mano | K4: 1 | L4: 2 | M4: 3 | N4: 4 | O4: 5 | P4: 6 | Q4: 7 | R4: 8 | S4: 9 | T4: 10 | U4: 11 | V4: 12 | W4: 13 | X4: 14 | Y4: 15 | Z4: 16 | AA4: 17 | AB4: 18 | AC4: 19 | AD4: 20 | AE4: 21 | AF4: 22 | AG4: 23 | AH4: 24 | AI4: 25 | AJ4: 26 | AK4: 27 | AL4: 28 | AM4: 29 | AN4: 30 | AO4: 31 | AP4: 32 | AQ4: 33 | AR4: 34 | AS4: 35 | AT4: 36 | AU4: 37 | AV4: 38 | AW4: 39 | AX4: 40 | AY4: c.base presenti | AZ4: ordine c.base ad hoc | BC4: punteggi | BD4: punteggi c. base presenti | BE4: punti PTS coppie base | BF4: ordine c.base STD | BG4: Rank
A5: =IF(J$2="","",IF($E5="","",IF($E5=MAX($E$5:$E$54),1,IF($E5=$E4,$A4,COUNT($E$5:$E5))))) -> 1 | B5: 4 | C5: Stefania | D5: Massimo | E5: =IF(J$2="","",IF(G5=0,0,F5+G5)) -> 74.6031746 | G5: =IF(J$2="","",IF($J5=0,0,(H5*$C$3/$J$3)*50)) -> 74.6031746 | H5: =IF(J$2="","",IF(SUM($K5:$AX5)=0,0,SUM($K5:$AX5)+$I5)) -> 94 | J5: =IF(B5="",0,IF(SUM($K5:$AX5)=0,0,SUM($K5:$AX5))) -> 94 | K5: 6 | L5: 6 | M5: 6 | N5: 6 | O5: 2 | P5: 2 | Q5: 2 | R5: 5 | S5: 5 | T5: 6 | U5: 0 | V5: 4 | W5: 6 | X5: 6 | Y5: 5 | Z5: 6 | AA5: 4 | AB5: 4 | AC5: 1 | AD5: 6 | AE5: 6 | AY5: =IF(BF5>11,"",IF(B5="","",1)) -> 1 | AZ5: 10 | BA5: Stefania | BB5: Massimo | BC5: 74.6031746 | BD5: =IF(AZ5>11,0,BC5) -> 74.6031746 | BE5: =IF(BD5=0,"",IF(AZ5>11,"",IF(BD5=BD4,BE4,2*(D$3-BG5)+3-COUNTIF(BG$5:BG$54,BG5)))) -> 16 | BF5: 10 | BG5: =RANK(BD5,BD$5:BD$15) -> 1
A6: =IF(J$2="","",IF($E6="","",IF($E6=MAX($E$5:$E$54),1,IF($E6=$E5,$A5,COUNT($E$5:$E6))))) -> 2 | B6: 6 | C6: Elena | D6: Stefano | E6: 58.73015873 | G6: 58.73015873 | H6: 74 | J6: 74 | K6: 2 | L6: 5 | M6: 3 | N6: 3 | O6: 4 | P6: 0 | Q6: 4 | R6: 1 | S6: 1 | T6: 6 | U6: 2 | V6: 4 | W6: 6 | X6: 3 | Y6: 5 | Z6: 5 | AA6: 5 | AB6: 6 | AC6: 5 | AD6: 2 | AE6: 2 | AY6: 1 | AZ6: 4 | BA6: Elena | BB6: Stefano | BC6: 58.73015873 | BD6: 58.73015873 | BE6: =IF(BD6=0,"",IF(AZ6>11,"",IF(BD6=BD5,BE5,2*(D$3-BG6)+3-COUNTIF(BG$5:BG$54,BG6)))) -> 14 | BF6: 4 | BG6: 2
A7: =IF(J$2="","",IF($E7="","",IF($E7=MAX($E$5:$E$54),1,IF($E7=$E6,$A6,COUNT($E$5:$E7))))) -> 3 | B7: 3 | C7: Antonella | D7: Dino | E7: 57.14285714 | G7: 57.14285714 | H7: 72 | J7: 72 | K7: 6 | L7: 2 | M7: 6 | N7: 3 | O7: 6 | P7: 2 | Q7: 6 | R7: 4 | S7: 6 | T7: 0 | U7: 4 | V7: 2 | W7: 3 | X7: 6 | Y7: 1 | Z7: 0 | AA7: 2 | AB7: 2 | AC7: 5 | AD7: 2 | AE7: 4 | AY7: 1 | AZ7: 1 | BA7: Antonella | BB7: Dino | BC7: 57.14285714 | BD7: 57.14285714 | BE7: 12 | BF7: 1 | BG7: 3
A8: =IF(J$2="","",IF($E8="","",IF($E8=MAX($E$5:$E$54),1,IF($E8=$E7,$A7,COUNT($E$5:$E8))))) -> 4 | B8: 5 | C8: Isolde | D8: Cristina | E8: 45.23809524 | G8: 45.23809524 | H8: 57 | J8: 57 | K8: 4 | L8: 1 | M8: 3 | N8: 3 | O8: 0 | P8: 4 | Q8: 6 | R8: 0 | S8: 5 | T8: 3 | U8: 4 | V8: 0 | W8: 3 | X8: 3 | Y8: 1 | Z8: 5 | AA8: 5 | AB8: 2 | AC8: 5 | AD8: 0 | AE8: 0 | AY8: 1 | AZ8: 5 | BA8: Isolde | BB8: Cristina | BC8: 45.23809524 | BD8: 45.23809524 | BE8: 10 | BF8: 5 | BG8: 4
A9: =IF(J$2="","",IF($E9="","",IF($E9=MAX($E$5:$E$54),1,IF($E9=$E8,$A8,COUNT($E$5:$E9))))) -> 5 | B9: 8 | C9: Olimpia | D9: Sauro | E9: 42.85714286 | G9: 42.85714286 | H9: 54 | J9: 54 | K9: 4 | L9: 5 | M9: 3 | N9: 0 | O9: 2 | P9: 2 | Q9: 0 | R9: 2 | S9: 0 | T9: 0 | U9: 6 | V9: 2 | W9: 3 | X9: 3 | Y9: 5 | Z9: 1 | AA9: 1 | AB9: 0 | AC9: 5 | AD9: 4 | AE9: 6 | AY9: 1 | AZ9: 8 | BA9: Olimpia | BB9: Sauro | BC9: 42.85714286 | BD9: 42.85714286 | BE9: 8 | BF9: 8 | BG9: 5
A10: =IF(J$2="","",IF($E10="","",IF($E10=MAX($E$5:$E$54),1,IF($E10=$E9,$A9,COUNT($E$5:$E10))))) -> 6 | B10: 1 | C10: Tatiana | D10: Julio | E10: 40.47619048 | G10: 40.47619048 | H10: 51 | J10: 51 | K10: 2 | L10: 1 | M10: 3 | N10: 0 | O10: 4 | P10: 4 | Q10: 4 | R10: 5 | S10: 2 | T10: 3 | U10: 6 | V10: 0 | W10: 0 | X10: 3 | Y10: 1 | Z10: 1 | AA10: 1 | AB10: 4 | AC10: 1 | AD10: 4 | AE10: 2 | AY10: 1 | AZ10: 2 | BA10: Barbara | BB10: Elio | BC10: 40.47619048 | BD10: 40.47619048 | BE10: 4 | BF10: 11 | BG10: 6
A11: =IF(J$2="","",IF($E11="","",IF($E11=MAX($E$5:$E$54),1,IF($E11=$E10,$A10,COUNT($E$5:$E11))))) -> 6 | B11: 2 | C11: Cesarina | D11: Gaetano | E11: 40.47619048 | G11: 40.47619048 | H11: 51 | J11: 51 | K11: 0 | L11: 0 | M11: 0 | N11: 6 | O11: 4 | P11: 4 | Q11: 0 | R11: 6 | S11: 1 | T11: 3 | U11: 0 | V11: 6 | W11: 3 | X11: 0 | Y11: 5 | Z11: 2 | AA11: 0 | AB11: 2 | AC11: 1 | AD11: 4 | AE11: 4 | AY11: 1 | AZ11: 3 | BA11: Cesarina | BB11: Gaetano | BC11: 40.47619048 | BD11: 40.47619048 | BE11: 4 | BF11: 3 | BG11: 6
A12: =IF(J$2="","",IF($E12="","",IF($E12=MAX($E$5:$E$54),1,IF($E12=$E11,$A11,COUNT($E$5:$E12))))) -> 6 | B12: 7 | C12: Barbara | D12: Elio | E12: 40.47619048 | G12: 40.47619048 | H12: 51 | J12: 51 | K12: 0 | L12: 4 | M12: 0 | N12: 3 | O12: 2 | P12: 6 | Q12: 2 | R12: 1 | S12: 4 | T12: 3 | U12: 2 | V12: 6 | W12: 0 | X12: 0 | Y12: 1 | Z12: 4 | AA12: 6 | AB12: 4 | AC12: 1 | AD12: 2 | AE12: 0 | AY12: 1 | AZ12: 11 | BA12: Tatiana | BB12: Julio | BC12: 40.47619048 | BD12: 40.47619048 | BE12: 4 | BF12: 2 | BG12: 6
A13: =IF(J$2="","",IF($E13="","",IF($E13=MAX($E$5:$E$54),1,IF($E13=$E12,$A12,COUNT($E$5:$E13))))) -> 9 | E13: 0 | G13: 0 | H13: 0 | J13: 0 | AZ13: 6 | BC13: 0 | BD13: 0 | BF13: 6 | BG13: 9
A14: =IF(J$2="","",IF($E14="","",IF($E14=MAX($E$5:$E$54),1,IF($E14=$E13,$A13,COUNT($E$5:$E14))))) -> 9 | E14: 0 | G14: 0 | H14: 0 | J14: 0 | AZ14: 7 | BC14: 0 | BD14: 0 | BF14: 7 | BG14: 9
A15: =IF(J$2="","",IF($E15="","",IF($E15=MAX($E$5:$E$54),1,IF($E15=$E14,$A14,COUNT($E$5:$E15))))) -> 9 | E15: 0 | G15: 0 | H15: 0 | J15: 0 | AZ15: 9 | BC15: 0 | BD15: 0 | BF15: 9 | BG15: 9
A16: =IF(J$2="","",IF($E16="","",IF($E16=MAX($E$5:$E$54),1,IF($E16=$E15,$A15,COUNT($E$5:$E16))))) -> 9 | E16: 0 | G16: 0 | H16: 0 | J16: 0 | AZ16: 12 | BC16: 0 | BD16: 0 | BF16: 12 | BG16: 9
A17: =IF(J$2="","",IF($E17="","",IF($E17=MAX($E$5:$E$54),1,IF($E17=$E16,$A16,COUNT($E$5:$E17))))) -> 9 | E17: 0 | G17: 0 | H17: 0 | J17: 0 | AZ17: 13 | BC17: 0 | BD17: 0 | BF17: 13
A18: =IF(J$2="","",IF($E18="","",IF($E18=MAX($E$5:$E$54),1,IF($E18=$E17,$A17,COUNT($E$5:$E18))))) -> 9 | E18: 0 | G18: 0 | H18: 0 | J18: 0 | AZ18: 14 | BC18: 0 | BD18: 0 | BF18: 14 | BG18: =RANK(BD18,BD$5:BD$15) -> 9
A19: =IF(J$2="","",IF($E19="","",IF($E19=MAX($E$5:$E$54),1,IF($E19=$E18,$A18,COUNT($E$5:$E19))))) -> 9 | E19: 0 | G19: 0 | H19: 0 | J19: 0 | AZ19: 15 | BC19: 0 | BD19: 0 | BF19: 15 | BG19: =RANK(BD19,BD$5:BD$15) -> 9
A20: =IF(J$2="","",IF($E20="","",IF($E20=MAX($E$5:$E$54),1,IF($E20=$E19,$A19,COUNT($E$5:$E20))))) -> 9 | E20: 0 | G20: 0 | H20: 0 | J20: 0 | AZ20: 16 | BC20: 0 | BD20: 0 | BF20: 16 | BG20: =RANK(BD20,BD$5:BD$15) -> 9
A21: =IF(J$2="","",IF($E21="","",IF($E21=MAX($E$5:$E$54),1,IF($E21=$E20,$A20,COUNT($E$5:$E21))))) -> 9 | E21: 0 | G21: 0 | H21: 0 | J21: 0 | AZ21: 17 | BC21: 0 | BD21: 0 | BF21: 17
A22: =IF(J$2="","",IF($E22="","",IF($E22=MAX($E$5:$E$54),1,IF($E22=$E21,$A21,COUNT($E$5:$E22))))) -> 9 | E22: 0 | G22: 0 | H22: 0 | J22: 0 | AZ22: 18 | BC22: 0 | BD22: 0 | BF22: 18
A23: =IF(J$2="","",IF($E23="","",IF($E23=MAX($E$5:$E$54),1,IF($E23=$E22,$A22,COUNT($E$5:$E23))))) -> 9 | E23: 0 | G23: 0 | H23: 0 | J23: 0 | AZ23: 19 | BC23: 0 | BD23: 0 | BF23: 19 | BG23: =RANK(BD23,BD$5:BD$15) -> 9
A24: =IF(J$2="","",IF($E24="","",IF($E24=MAX($E$5:$E$54),1,IF($E24=$E23,$A23,COUNT($E$5:$E24))))) -> 9 | E24: 0 | G24: 0 | H24: 0 | J24: 0 | AZ24: 20 | BC24: 0 | BD24: 0 | BF24: 20 | BG24: =RANK(BD24,BD$5:BD$15) -> 9
A25: =IF(J$2="","",IF($E25="","",IF($E25=MAX($E$5:$E$54),1,IF($E25=$E24,$A24,COUNT($E$5:$E25))))) -> 9 | E25: 0 | G25: 0 | H25: 0 | J25: 0 | AZ25: 21 | BC25: 0 | BD25: 0 | BF25: 21
A26: =IF(J$2="","",IF($E26="","",IF($E26=MAX($E$5:$E$54),1,IF($E26=$E25,$A25,COUNT($E$5:$E26))))) -> 9 | E26: 0 | G26: 0 | H26: 0 | J26: 0 | AZ26: 22 | BC26: 0 | BD26: 0 | BF26: 22 | BG26: =RANK(BD26,BD$5:BD$15) -> 9
A27: =IF(J$2="","",IF($E27="","",IF($E27=MAX($E$5:$E$54),1,IF($E27=$E26,$A26,COUNT($E$5:$E27))))) -> 9 | E27: 0 | G27: 0 | H27: 0 | J27: 0 | AZ27: 23 | BC27: 0 | BD27: 0 | BF27: 23 | BG27: =RANK(BD27,BD$5:BD$15) -> 9
A28: =IF(J$2="","",IF($E28="","",IF($E28=MAX($E$5:$E$54),1,IF($E28=$E27,$A27,COUNT($E$5:$E28))))) -> 9 | E28: 0 | G28: 0 | H28: 0 | J28: 0 | AZ28: 24 | BC28: 0 | BD28: 0 | BF28: 24 | BG28: =RANK(BD28,BD$5:BD$15) -> 9
A29: =IF(J$2="","",IF($E29="","",IF($E29=MAX($E$5:$E$54),1,IF($E29=$E28,$A28,COUNT($E$5:$E29))))) -> 9 | E29: 0 | G29: 0 | H29: 0 | J29: 0 | AZ29: 25 | BC29: 0 | BD29: 0 | BF29: 25
A30: =IF(J$2="","",IF($E30="","",IF($E30=MAX($E$5:$E$54),1,IF($E30=$E29,$A29,COUNT($E$5:$E30))))) -> 9 | E30: 0 | G30: 0 | H30: 0 | J30: 0 | AZ30: 26 | BC30: 0 | BD30: 0 | BF30: 26
A31: =IF(J$2="","",IF($E31="","",IF($E31=MAX($E$5:$E$54),1,IF($E31=$E30,$A30,COUNT($E$5:$E31))))) -> 9 | E31: 0 | G31: 0 | H31: 0 | J31: 0 | AZ31: 27 | BC31: 0 | BD31: 0 | BF31: 27
A32: =IF(J$2="","",IF($E32="","",IF($E32=MAX($E$5:$E$54),1,IF($E32=$E31,$A31,COUNT($E$5:$E32))))) -> 9 | E32: 0 | G32: 0 | H32: 0 | J32: 0 | AZ32: 28 | BC32: 0 | BD32: 0 | BF32: 28
A33: =IF(J$2="","",IF($E33="","",IF($E33=MAX($E$5:$E$54),1,IF($E33=$E32,$A32,COUNT($E$5:$E33))))) -> 9 | E33: 0 | G33: 0 | H33: 0 | J33: 0 | AZ33: 29 | BC33: 0 | BD33: 0 | BF33: 29
A34: =IF(J$2="","",IF($E34="","",IF($E34=MAX($E$5:$E$54),1,IF($E34=$E33,$A33,COUNT($E$5:$E34))))) -> 9 | E34: 0 | G34: 0 | H34: 0 | J34: 0 | AZ34: 30 | BC34: 0 | BD34: 0 | BF34: 30
A35: =IF(J$2="","",IF($E35="","",IF($E35=MAX($E$5:$E$54),1,IF($E35=$E34,$A34,COUNT($E$5:$E35))))) -> 9 | E35: 0 | G35: 0 | H35: 0 | J35: 0 | AZ35: 31 | BC35: 0 | BD35: 0 | BF35: 31
A36: =IF(J$2="","",IF($E36="","",IF($E36=MAX($E$5:$E$54),1,IF($E36=$E35,$A35,COUNT($E$5:$E36))))) -> 9 | E36: 0 | G36: 0 | H36: 0 | J36: 0 | AZ36: 32 | BC36: 0 | BD36: 0 | BF36: 32
A37: =IF(J$2="","",IF($E37="","",IF($E37=MAX($E$5:$E$54),1,IF($E37=$E36,$A36,COUNT($E$5:$E37))))) -> 9 | E37: =IF(J$2="","",IF(G37=0,0,F37+G37)) -> 0 | G37: =IF(J$2="","",IF($J37=0,0,(H37*$C$3/$J$3)*50)) -> 0 | H37: =IF(J$2="","",IF(SUM($K37:$AX37)=0,0,SUM($K37:$AX37)+$I37)) -> 0 | J37: =IF(B37="",0,IF(SUM($K37:$AX37)=0,0,SUM($K37:$AX37))) -> 0 | AY37: =IF(BF37>11,"",IF(B37="","",1)) ->  | AZ37: 33 | BC37: 0 | BD37: =IF(AZ37>11,0,BC37) -> 0 | BF37: 33
A38: =IF(J$2="","",IF($E38="","",IF($E38=MAX($E$5:$E$54),1,IF($E38=$E37,$A37,COUNT($E$5:$E38))))) -> 9 | E38: 0 | G38: 0 | H38: 0 | J38: 0 | AZ38: 34 | BC38: 0 | BD38: 0 | BF38: 34
A39: =IF(J$2="","",IF($E39="","",IF($E39=MAX($E$5:$E$54),1,IF($E39=$E38,$A38,COUNT($E$5:$E39))))) -> 9 | E39: 0 | G39: 0 | H39: 0 | J39: 0 | AZ39: 35 | BC39: 0 | BD39: 0 | BF39: 35
A40: =IF(J$2="","",IF($E40="","",IF($E40=MAX($E$5:$E$54),1,IF($E40=$E39,$A39,COUNT($E$5:$E40))))) -> 9 | E40: 0 | G40: 0 | H40: 0 | J40: 0 | AZ40: 36 | BC40: 0 | BD40: 0 | BF40: 36
A41: =IF(J$2="","",IF($E41="","",IF($E41=MAX($E$5:$E$54),1,IF($E41=$E40,$A40,COUNT($E$5:$E41))))) -> 9 | E41: 0 | G41: 0 | H41: 0 | J41: 0 | AZ41: 37 | BC41: 0 | BD41: 0 | BF41: 37
A42: =IF(J$2="","",IF($E42="","",IF($E42=MAX($E$5:$E$54),1,IF($E42=$E41,$A41,COUNT($E$5:$E42))))) -> 9 | E42: 0 | G42: 0 | H42: 0 | J42: 0 | AZ42: 38 | BC42: 0 | BD42: 0 | BF42: 38
A43: =IF(J$2="","",IF($E43="","",IF($E43=MAX($E$5:$E$54),1,IF($E43=$E42,$A42,COUNT($E$5:$E43))))) -> 9 | E43: 0 | G43: 0 | H43: 0 | J43: 0 | AZ43: 39 | BC43: 0 | BD43: 0 | BF43: 39
A44: =IF(J$2="","",IF($E44="","",IF($E44=MAX($E$5:$E$54),1,IF($E44=$E43,$A43,COUNT($E$5:$E44))))) -> 9 | E44: 0 | G44: 0 | H44: 0 | J44: 0 | AZ44: 40 | BC44: 0 | BD44: 0 | BF44: 40
A45: =IF(J$2="","",IF($E45="","",IF($E45=MAX($E$5:$E$54),1,IF($E45=$E44,$A44,COUNT($E$5:$E45))))) -> 9 | E45: 0 | G45: 0 | H45: 0 | J45: 0 | AZ45: 41 | BC45: 0 | BD45: 0 | BF45: 41
A46: =IF(J$2="","",IF($E46="","",IF($E46=MAX($E$5:$E$54),1,IF($E46=$E45,$A45,COUNT($E$5:$E46))))) -> 9 | E46: 0 | G46: 0 | H46: 0 | J46: 0 | AZ46: 42 | BC46: 0 | BD46: 0 | BF46: 42
A47: =IF(J$2="","",IF($E47="","",IF($E47=MAX($E$5:$E$54),1,IF($E47=$E46,$A46,COUNT($E$5:$E47))))) -> 9 | E47: 0 | G47: 0 | H47: 0 | J47: 0 | AZ47: 43 | BC47: 0 | BD47: 0 | BF47: 43
A48: =IF(J$2="","",IF($E48="","",IF($E48=MAX($E$5:$E$54),1,IF($E48=$E47,$A47,COUNT($E$5:$E48))))) -> 9 | E48: 0 | G48: 0 | H48: 0 | J48: 0 | AZ48: 44 | BC48: 0 | BD48: 0 | BF48: 44
A49: =IF(J$2="","",IF($E49="","",IF($E49=MAX($E$5:$E$54),1,IF($E49=$E48,$A48,COUNT($E$5:$E49))))) -> 9 | E49: 0 | G49: 0 | H49: 0 | J49: 0 | AZ49: 45 | BC49: 0 | BD49: 0 | BF49: 45
A50: =IF(J$2="","",IF($E50="","",IF($E50=MAX($E$5:$E$54),1,IF($E50=$E49,$A49,COUNT($E$5:$E50))))) -> 9 | E50: 0 | G50: 0 | H50: 0 | J50: 0 | AZ50: 46 | BC50: 0 | BD50: 0 | BF50: 46
A51: =IF(J$2="","",IF($E51="","",IF($E51=MAX($E$5:$E$54),1,IF($E51=$E50,$A50,COUNT($E$5:$E51))))) -> 9 | E51: 0 | G51: 0 | H51: 0 | J51: 0 | AZ51: 47 | BC51: 0 | BD51: 0 | BF51: 47
A52: =IF(J$2="","",IF($E52="","",IF($E52=MAX($E$5:$E$54),1,IF($E52=$E51,$A51,COUNT($E$5:$E52))))) -> 9 | E52: 0 | G52: 0 | H52: 0 | J52: 0 | AZ52: 48 | BC52: 0 | BD52: 0 | BF52: 48
A53: =IF(J$2="","",IF($E53="","",IF($E53=MAX($E$5:$E$54),1,IF($E53=$E52,$A52,COUNT($E$5:$E53))))) -> 9 | E53: 0 | G53: 0 | H53: 0 | J53: 0 | AZ53: 49 | BC53: 0 | BD53: 0 | BF53: 49
A54: =IF(J$2="","",IF($E54="","",IF($E54=MAX($E$5:$E$54),1,IF($E54=$E53,$A53,COUNT($E$5:$E54))))) -> 9 | E54: 0 | G54: 0 | H54: 0 | J54: 0 | AZ54: 50 | BC54: 0 | BD54: 0 | BF54: 50
D59: punteggi torneo ordinati per # di coppia
B60: # coppia | E60: con zeri | F60: senza zeri | G60: senza zeri
B61: 1 | E61: 40.47619048 | F61: =IF(E61=0,"",E61) -> 40.47619048 | G61: 40.47619048 | I61: =IF(H61=0,"",H61) ->  | BF61: 11
B62: 2 | E62: 40.47619048 | F62: 40.47619048 | G62: 40.47619048 | BF62: 3
B63: 3 | E63: 57.14285714 | F63: 57.14285714 | G63: 57.14285714 | I63: =IF(H63=0,"",H63) ->  | BF63: 1
B64: 4 | E64: 74.6031746 | F64: 74.6031746 | G64: 74.6031746 | BF64: 10
B65: 5 | E65: 45.23809524 | F65: 45.23809524 | G65: 45.23809524 | I65: =IF(H65=0,"",H65) ->  | BF65: 5
B66: 6 | E66: 58.73015873 | F66: 58.73015873 | G66: 58.73015873 | BF66: 4
B67: 7 | E67: 40.47619048 | F67: 40.47619048 | G67: 40.47619048 | BF67: 2
B68: 8 | E68: 42.85714286 | F68: 42.85714286 | G68: 42.85714286 | I68: =IF(H68=0,"",H68) ->  | BF68: 8
E69: 0 | I69: =IF(H69=0,"",H69) ->  | BF69: 6
E70: 0 | BF70: 7
E71: 0 | BF71: 9
E72: 0 | BF72: 12
E73: 0 | I73: =IF(H73=0,"",H73) ->  | BF73: 13
E74: 0 | I74: =IF(H74=0,"",H74) ->  | BF74: 14
E75: 0 | I75: =IF(H75=0,"",H75) ->  | BF75: 15
E76: 0 | I76: =IF(H76=0,"",H76) ->  | BF76: 16
E77: 0 | BF77: 17
E78: 0 | BF78: 18
E79: 0 | I79: =IF(H79=0,"",H79) ->  | BF79: 19
E80: 0 | I80: =IF(H80=0,"",H80) ->  | BF80: 20
E81: 0 | BF81: 21
E82: 0 | BF82: 22
E83: 0 | BF83: 23
E84: 0 | BF84: 24
E85: 0 | BF85: 25
E86: 0 | BF86: 26
E87: 0 | BF87: 27
E88: 0 | BF88: 28
E89: 0 | BF89: 29
E90: 0 | BF90: 30
E91: 0 | BF91: 31
E92: 0 | BF92: 32
E93: 0 | F93: =IF(E93=0,"",E93) ->  | BF93: 33
E94: 0 | BF94: 34
E95: 0 | BF95: 35
E96: 0 | BF96: 36
E97: 0 | BF97: 37
E98: 0 | BF98: 38
E99: 0 | BF99: 39
E100: 0 | BF100: 40
E101: 0 | BF101: 41
E102: 0 | BF102: 42
E103: 0 | BF103: 43
E104: 0 | BF104: 44
E105: 0 | BF105: 45
E106: 0 | BF106: 46
E107: 0 | BF107: 47
E108: 0 | BF108: 48
E109: 0 | BF109: 49
E110: 0 | BF110: 50
A119: PTS ordinati per numero standard di coppia base
A120: #STD | B120: PTS
A121: 1 | B121: 12 | E121: 57.14285714 | F121: =IF(E121=0,"",E121) -> 57.14285714 | G121: 57.14285714 | I121: =IF(H121=0,"",H121) ->  | BF121: 1
A122: 2 | B122: 4 | E122: 40.47619048 | F122: 40.47619048 | G122: 40.47619048 | BF122: 2
A123: 3 | B123: 4 | E123: 40.47619048 | F123: 40.47619048 | G123: 40.47619048 | BF123: 3
A124: 4 | B124: 14 | E124: 58.73015873 | F124: 58.73015873 | G124: 58.73015873 | BF124: 4
A125: 5 | B125: 10 | E125: 45.23809524 | F125: 45.23809524 | G125: 45.23809524 | I125: =IF(H125=0,"",H125) ->  | BF125: 5
A126: 6 | E126: 0 | I126: =IF(H126=0,"",H126) ->  | BF126: 6
A127: 7 | E127: 0 | BF127: 7
A128: 8 | B128: 8 | E128: 42.85714286 | F128: 42.85714286 | G128: 42.85714286 | I128: =IF(H128=0,"",H128) ->  | BF128: 8
A129: 9 | E129: 0 | BF129: 9
A130: 10 | B130: 16 | E130: 74.6031746 | F130: 74.6031746 | G130: 74.6031746 | BF130: 10
A131: 11 | B131: 4 | E131: 40.47619048 | F131: 40.47619048 | G131: 40.47619048 | I131: =IF(H131=0,"",H131) ->  | BF131: 11
BE200: formule punti coppie base
BE201: =IF(BD201=0,"",IF(AZ201>11,"",IF(BD201=BD200,BE200,2*(D$3-BG201)+3-COUNTIF(BG$5:BG$54,BG201)))) -> 
BE202: =IF(BD202=0,"",IF(AZ202>11,"",IF(BD202=BD201,BE201,2*(D$3-BG202)+3-COUNTIF(BG$5:BG$54,BG202)))) -> 

Sheet 16mar
A1: Data | C1: 2019-03-16 | D1: BridgeMania 2018-19 - Torneo Mitchell scrambled
A2: luogo | C2: Cataldo | D2: Coppie Ctrl+e | E2: Calcola Ctr+f Ctr+i | F2: Duplica Ctrl+g | G2: Clear Ctrl+h | J2: &
A3: # coppie / # c.base | C3: =IF(B5="","",COUNT(B5:B54)) -> 9 | D3: =SUM(AY5:AY54) -> 9 | E3: =IF(E5="","",SUMIF(E5:E54,">0")) -> 450 | G3: =IF(G5="","",SUM(G5:G54)) -> 450 | H3: =IF(H5="","",SUM(H5:H54)) -> 486 | I3: =SUM(I5:I54) -> 0 | J3: =SUM(J5:J54) -> 486 | K3: =SUM(K5:K54) -> 27 | L3: =SUM(L5:L54) -> 27 | M3: 27 | N3: 27 | O3: 27 | P3: 27 | Q3: 27 | R3: 27 | S3: 27 | T3: 27 | U3: 27 | V3: 27 | W3: 27 | X3: 27 | Y3: 27 | Z3: 27 | AA3: 27 | AB3: 27 | AC3: 0 | AD3: 0 | AE3: 0 | AF3: 0 | AG3: 0 | AH3: 0 | AI3: 0 | AJ3: 0 | AK3: 0 | AL3: 0 | AM3: 0 | AN3: 0 | AO3: 0 | AP3: 0 | AQ3: 0 | AR3: 0 | AS3: 0 | AT3: 0 | AU3: 0 | AV3: 0 | AW3: 0 | AX3: 0
A4: Class. | B4: # | C4: Coppie | E4: Punteggio Serata | G4: Punteggio % | H4: Punteggio Torneo | I4: Penalità (-) | J4: Totale punti mano | K4: 1 | L4: 2 | M4: 3 | N4: 4 | O4: 5 | P4: 6 | Q4: 7 | R4: 8 | S4: 9 | T4: 10 | U4: 11 | V4: 12 | W4: 13 | X4: 14 | Y4: 15 | Z4: 16 | AA4: 17 | AB4: 18 | AC4: 19 | AD4: 20 | AE4: 21 | AF4: 22 | AG4: 23 | AH4: 24 | AI4: 25 | AJ4: 26 | AK4: 27 | AL4: 28 | AM4: 29 | AN4: 30 | AO4: 31 | AP4: 32 | AQ4: 33 | AR4: 34 | AS4: 35 | AT4: 36 | AU4: 37 | AV4: 38 | AW4: 39 | AX4: 40 | AY4: c.base presenti | AZ4: ordine c.base ad hoc | BC4: punteggi | BD4: punteggi c. base presenti | BE4: punti PTS coppie base | BF4: ordine c.base STD | BG4: Rank
A5: =IF(J$2="","",IF($E5="","",IF($E5=MAX($E$5:$E$54),1,IF($E5=$E4,$A4,COUNT($E$5:$E5))))) -> 1 | B5: 3 | C5: Olimpia | D5: Sauro | E5: =IF(J$2="","",IF(G5=0,0,F5+G5)) -> 57.40740741 | G5: =IF(J$2="","",IF($J5=0,0,(H5*$C$3/$J$3)*50)) -> 57.40740741 | H5: =IF(J$2="","",IF(SUM($K5:$AX5)=0,0,SUM($K5:$AX5)+$I5)) -> 62 | J5: =IF(B5="",0,IF(SUM($K5:$AX5)=0,0,SUM($K5:$AX5))) -> 62 | K5: 3 | L5: 4 | M5: 2 | N5: 4 | O5: 3 | P5: 3 | Q5: 1 | R5: 6 | S5: 4 | T5: 3 | U5: 5 | V5: 6 | W5: 5 | X5: 2 | Y5: 0 | Z5: 4 | AA5: 1 | AB5: 6 | AY5: =IF(BF5>11,"",IF(B5="","",1)) -> 1 | AZ5: 5 | BA5: Isolde | BB5: Cristina | BC5: 57.40740741 | BD5: =IF(AZ5>11,0,BC5) -> 57.40740741 | BE5: =IF(BD5=0,"",IF(AZ5>11,"",IF(BD5=BD4,BE4,2*(D$3-BG5)+3-COUNTIF(BG$5:BG$54,BG5)))) -> 16 | BF5: 8 | BG5: =RANK(BD5,BD$5:BD$15) -> 1
A6: =IF(J$2="","",IF($E6="","",IF($E6=MAX($E$5:$E$54),1,IF($E6=$E5,$A5,COUNT($E$5:$E6))))) -> 1 | B6: 4 | C6: Isolde | D6: Cristina | E6: 57.40740741 | G6: 57.40740741 | H6: 62 | J6: 62 | K6: 3 | L6: 0 | M6: 2 | N6: 4 | O6: 5 | P6: 0 | Q6: 3 | R6: 3 | S6: 6 | T6: 6 | U6: 5 | V6: 1 | W6: 6 | X6: 1 | Y6: 6 | Z6: 6 | AA6: 5 | AB6: 0 | AY6: 1 | AZ6: 8 | BA6: Olimpia | BB6: Sauro | BC6: 57.40740741 | BD6: 57.40740741 | BE6: =IF(BD6=0,"",IF(AZ6>11,"",IF(BD6=BD5,BE5,2*(D$3-BG6)+3-COUNTIF(BG$5:BG$54,BG6)))) -> 16 | BF6: 5 | BG6: 1
A7: =IF(J$2="","",IF($E7="","",IF($E7=MAX($E$5:$E$54),1,IF($E7=$E6,$A6,COUNT($E$5:$E7))))) -> 1 | B7: 8 | C7: Tatiana | D7: Julio | E7: 57.40740741 | G7: 57.40740741 | H7: 62 | J7: 62 | K7: 3 | L7: 5 | M7: 4 | N7: 2 | O7: 5 | P7: 5 | Q7: 5 | R7: 5 | S7: 2 | T7: 0 | U7: 4 | V7: 2 | W7: 0 | X7: 5 | Y7: 3 | Z7: 3 | AA7: 5 | AB7: 4 | AY7: 1 | AZ7: 11 | BA7: Tatiana | BB7: Julio | BC7: 57.40740741 | BD7: 57.40740741 | BE7: 16 | BF7: 11 | BG7: 1
A8: =IF(J$2="","",IF($E8="","",IF($E8=MAX($E$5:$E$54),1,IF($E8=$E7,$A7,COUNT($E$5:$E8))))) -> 4 | B8: 5 | C8: Barbara | D8: Elio | E8: 54.62962963 | G8: 54.62962963 | H8: 59 | J8: 59 | K8: 3 | L8: 6 | M8: 4 | N8: 2 | O8: 2 | P8: 2 | Q8: 1 | R8: 2 | S8: 3 | T8: 3 | U8: 2 | V8: 4 | W8: 1 | X8: 4 | Y8: 4 | Z8: 6 | AA8: 5 | AB8: 5 | AY8: 1 | AZ8: 2 | BA8: Barbara | BB8: Elio | BC8: 54.62962963 | BD8: 54.62962963 | BE8: 12 | BF8: 2 | BG8: 4
A9: =IF(J$2="","",IF($E9="","",IF($E9=MAX($E$5:$E$54),1,IF($E9=$E8,$A8,COUNT($E$5:$E9))))) -> 5 | B9: 2 | C9: Elena | D9: Stefano | E9: 50 | G9: 50 | H9: 54 | J9: 54 | K9: 3 | L9: 1 | M9: 3 | N9: 3 | O9: 4 | P9: 4 | Q9: 5 | R9: 1 | S9: 0 | T9: 3 | U9: 1 | V9: 5 | W9: 5 | X9: 5 | Y9: 6 | Z9: 2 | AA9: 1 | AB9: 2 | AY9: 1 | AZ9: 4 | BA9: Elena | BB9: Stefano | BC9: 50 | BD9: 50 | BE9: 10 | BF9: 4 | BG9: 5
A10: =IF(J$2="","",IF($E10="","",IF($E10=MAX($E$5:$E$54),1,IF($E10=$E9,$A9,COUNT($E$5:$E10))))) -> 6 | B10: 1 | C10: Manuela | D10: Roberto | E10: 49.07407407 | G10: 49.07407407 | H10: 53 | J10: 53 | K10: 3 | L10: 3 | M10: 4 | N10: 2 | O10: 1 | P10: 1 | Q10: 5 | R10: 4 | S10: 2 | T10: 3 | U10: 6 | V10: 5 | W10: 1 | X10: 1 | Y10: 4 | Z10: 2 | AA10: 1 | AB10: 5 | AY10: 1 | AZ10: 1 | BA10: Antonella | BB10: Dino | BC10: 49.07407407 | BD10: 49.07407407 | BE10: 7 | BF10: 7 | BG10: 6
A11: =IF(J$2="","",IF($E11="","",IF($E11=MAX($E$5:$E$54),1,IF($E11=$E10,$A10,COUNT($E$5:$E11))))) -> 6 | B11: 6 | C11: Antonella | D11: Dino | E11: 49.07407407 | G11: 49.07407407 | H11: 53 | J11: 53 | K11: 3 | L11: 1 | M11: 2 | N11: 4 | O11: 6 | P11: 1 | Q11: 5 | R11: 0 | S11: 6 | T11: 3 | U11: 3 | V11: 3 | W11: 4 | X11: 6 | Y11: 0 | Z11: 0 | AA11: 5 | AB11: 1 | AY11: 1 | AZ11: 7 | BA11: Manuela | BB11: Roberto | BC11: 49.07407407 | BD11: 49.07407407 | BE11: 7 | BF11: 1 | BG11: 6
A12: =IF(J$2="","",IF($E12="","",IF($E12=MAX($E$5:$E$54),1,IF($E12=$E11,$A11,COUNT($E$5:$E12))))) -> 8 | B12: 9 | C12: Cesarina | D12: Gaetano | E12: 41.66666667 | G12: 41.66666667 | H12: 45 | J12: 45 | K12: 3 | L12: 2 | M12: 0 | N12: 6 | O12: 1 | P12: 6 | Q12: 1 | R12: 5 | S12: 4 | T12: 6 | U12: 0 | V12: 1 | W12: 2 | X12: 0 | Y12: 2 | Z12: 0 | AA12: 3 | AB12: 3 | AY12: 1 | AZ12: 3 | BA12: Cesarina | BB12: Gaetano | BC12: 41.66666667 | BD12: 41.66666667 | BE12: 4 | BF12: 3 | BG12: 8
A13: =IF(J$2="","",IF($E13="","",IF($E13=MAX($E$5:$E$54),1,IF($E13=$E12,$A12,COUNT($E$5:$E13))))) -> 9 | B13: 7 | C13: Lilli | D13: Gianni | E13: 33.33333333 | G13: 33.33333333 | H13: 36 | J13: 36 | K13: 3 | L13: 5 | M13: 6 | N13: 0 | O13: 0 | P13: 5 | Q13: 1 | R13: 1 | S13: 0 | T13: 0 | U13: 1 | V13: 0 | W13: 3 | X13: 3 | Y13: 2 | Z13: 4 | AA13: 1 | AB13: 1 | AY13: 1 | AZ13: 6 | BA13: Lilli | BB13: Gianni | BC13: 33.33333333 | BD13: 33.33333333 | BE13: 2 | BF13: 6 | BG13: 9
A14: =IF(J$2="","",IF($E14="","",IF($E14=MAX($E$5:$E$54),1,IF($E14=$E13,$A13,COUNT($E$5:$E14))))) -> 10 | E14: 0 | G14: 0 | H14: 0 | J14: 0 | AZ14: 9 | BC14: 0 | BD14: 0 | BF14: 9 | BG14: 10
A15: =IF(J$2="","",IF($E15="","",IF($E15=MAX($E$5:$E$54),1,IF($E15=$E14,$A14,COUNT($E$5:$E15))))) -> 10 | E15: 0 | G15: 0 | H15: 0 | J15: 0 | AZ15: 10 | BC15: 0 | BD15: 0 | BF15: 10 | BG15: 10
A16: =IF(J$2="","",IF($E16="","",IF($E16=MAX($E$5:$E$54),1,IF($E16=$E15,$A15,COUNT($E$5:$E16))))) -> 10 | E16: 0 | G16: 0 | H16: 0 | J16: 0 | AZ16: 12 | BC16: 0 | BD16: 0 | BF16: 12 | BG16: 10
A17: =IF(J$2="","",IF($E17="","",IF($E17=MAX($E$5:$E$54),1,IF($E17=$E16,$A16,COUNT($E$5:$E17))))) -> 10 | E17: 0 | G17: 0 | H17: 0 | J17: 0 | AZ17: 13 | BC17: 0 | BD17: 0 | BF17: 13
A18: =IF(J$2="","",IF($E18="","",IF($E18=MAX($E$5:$E$54),1,IF($E18=$E17,$A17,COUNT($E$5:$E18))))) -> 10 | E18: 0 | G18: 0 | H18: 0 | J18: 0 | AZ18: 14 | BC18: 0 | BD18: 0 | BF18: 14 | BG18: =RANK(BD18,BD$5:BD$15) -> 10
A19: =IF(J$2="","",IF($E19="","",IF($E19=MAX($E$5:$E$54),1,IF($E19=$E18,$A18,COUNT($E$5:$E19))))) -> 10 | E19: 0 | G19: 0 | H19: 0 | J19: 0 | AZ19: 15 | BC19: 0 | BD19: 0 | BF19: 15 | BG19: =RANK(BD19,BD$5:BD$15) -> 10
A20: =IF(J$2="","",IF($E20="","",IF($E20=MAX($E$5:$E$54),1,IF($E20=$E19,$A19,COUNT($E$5:$E20))))) -> 10 | E20: 0 | G20: 0 | H20: 0 | J20: 0 | AZ20: 16 | BC20: 0 | BD20: 0 | BF20: 16 | BG20: =RANK(BD20,BD$5:BD$15) -> 10
A21: =IF(J$2="","",IF($E21="","",IF($E21=MAX($E$5:$E$54),1,IF($E21=$E20,$A20,COUNT($E$5:$E21))))) -> 10 | E21: 0 | G21: 0 | H21: 0 | J21: 0 | AZ21: 17 | BC21: 0 | BD21: 0 | BF21: 17
A22: =IF(J$2="","",IF($E22="","",IF($E22=MAX($E$5:$E$54),1,IF($E22=$E21,$A21,COUNT($E$5:$E22))))) -> 10 | E22: 0 | G22: 0 | H22: 0 | J22: 0 | AZ22: 18 | BC22: 0 | BD22: 0 | BF22: 18
A23: =IF(J$2="","",IF($E23="","",IF($E23=MAX($E$5:$E$54),1,IF($E23=$E22,$A22,COUNT($E$5:$E23))))) -> 10 | E23: 0 | G23: 0 | H23: 0 | J23: 0 | AZ23: 19 | BC23: 0 | BD23: 0 | BF23: 19 | BG23: =RANK(BD23,BD$5:BD$15) -> 10
A24: =IF(J$2="","",IF($E24="","",IF($E24=MAX($E$5:$E$54),1,IF($E24=$E23,$A23,COUNT($E$5:$E24))))) -> 10 | E24: 0 | G24: 0 | H24: 0 | J24: 0 | AZ24: 20 | BC24: 0 | BD24: 0 | BF24: 20 | BG24: =RANK(BD24,BD$5:BD$15) -> 10
A25: =IF(J$2="","",IF($E25="","",IF($E25=MAX($E$5:$E$54),1,IF($E25=$E24,$A24,COUNT($E$5:$E25))))) -> 10 | E25: 0 | G25: 0 | H25: 0 | J25: 0 | AZ25: 21 | BC25: 0 | BD25: 0 | BF25: 21
A26: =IF(J$2="","",IF($E26="","",IF($E26=MAX($E$5:$E$54),1,IF($E26=$E25,$A25,COUNT($E$5:$E26))))) -> 10 | E26: 0 | G26: 0 | H26: 0 | J26: 0 | AZ26: 22 | BC26: 0 | BD26: 0 | BF26: 22 | BG26: =RANK(BD26,BD$5:BD$15) -> 10
A27: =IF(J$2="","",IF($E27="","",IF($E27=MAX($E$5:$E$54),1,IF($E27=$E26,$A26,COUNT($E$5:$E27))))) -> 10 | E27: 0 | G27: 0 | H27: 0 | J27: 0 | AZ27: 23 | BC27: 0 | BD27: 0 | BF27: 23 | BG27: =RANK(BD27,BD$5:BD$15) -> 10
A28: =IF(J$2="","",IF($E28="","",IF($E28=MAX($E$5:$E$54),1,IF($E28=$E27,$A27,COUNT($E$5:$E28))))) -> 10 | E28: 0 | G28: 0 | H28: 0 | J28: 0 | AZ28: 24 | BC28: 0 | BD28: 0 | BF28: 24 | BG28: =RANK(BD28,BD$5:BD$15) -> 10
A29: =IF(J$2="","",IF($E29="","",IF($E29=MAX($E$5:$E$54),1,IF($E29=$E28,$A28,COUNT($E$5:$E29))))) -> 10 | E29: 0 | G29: 0 | H29: 0 | J29: 0 | AZ29: 25 | BC29: 0 | BD29: 0 | BF29: 25
A30: =IF(J$2="","",IF($E30="","",IF($E30=MAX($E$5:$E$54),1,IF($E30=$E29,$A29,COUNT($E$5:$E30))))) -> 10 | E30: 0 | G30: 0 | H30: 0 | J30: 0 | AZ30: 26 | BC30: 0 | BD30: 0 | BF30: 26
A31: =IF(J$2="","",IF($E31="","",IF($E31=MAX($E$5:$E$54),1,IF($E31=$E30,$A30,COUNT($E$5:$E31))))) -> 10 | E31: 0 | G31: 0 | H31: 0 | J31: 0 | AZ31: 27 | BC31: 0 | BD31: 0 | BF31: 27
A32: =IF(J$2="","",IF($E32="","",IF($E32=MAX($E$5:$E$54),1,IF($E32=$E31,$A31,COUNT($E$5:$E32))))) -> 10 | E32: 0 | G32: 0 | H32: 0 | J32: 0 | AZ32: 28 | BC32: 0 | BD32: 0 | BF32: 28
A33: =IF(J$2="","",IF($E33="","",IF($E33=MAX($E$5:$E$54),1,IF($E33=$E32,$A32,COUNT($E$5:$E33))))) -> 10 | E33: 0 | G33: 0 | H33: 0 | J33: 0 | AZ33: 29 | BC33: 0 | BD33: 0 | BF33: 29
A34: =IF(J$2="","",IF($E34="","",IF($E34=MAX($E$5:$E$54),1,IF($E34=$E33,$A33,COUNT($E$5:$E34))))) -> 10 | E34: 0 | G34: 0 | H34: 0 | J34: 0 | AZ34: 30 | BC34: 0 | BD34: 0 | BF34: 30
A35: =IF(J$2="","",IF($E35="","",IF($E35=MAX($E$5:$E$54),1,IF($E35=$E34,$A34,COUNT($E$5:$E35))))) -> 10 | E35: 0 | G35: 0 | H35: 0 | J35: 0 | AZ35: 31 | BC35: 0 | BD35: 0 | BF35: 31
A36: =IF(J$2="","",IF($E36="","",IF($E36=MAX($E$5:$E$54),1,IF($E36=$E35,$A35,COUNT($E$5:$E36))))) -> 10 | E36: 0 | G36: 0 | H36: 0 | J36: 0 | AZ36: 32 | BC36: 0 | BD36: 0 | BF36: 32
A37: =IF(J$2="","",IF($E37="","",IF($E37=MAX($E$5:$E$54),1,IF($E37=$E36,$A36,COUNT($E$5:$E37))))) -> 10 | E37: 0 | G37: 0 | H37: 0 | J37: 0 | AZ37: 33 | BC37: 0 | BD37: 0 | BF37: 33
A38: =IF(J$2="","",IF($E38="","",IF($E38=MAX($E$5:$E$54),1,IF($E38=$E37,$A37,COUNT($E$5:$E38))))) -> 10 | E38: 0 | G38: 0 | H38: 0 | J38: 0 | AZ38: 34 | BC38: 0 | BD38: 0 | BF38: 34
A39: =IF(J$2="","",IF($E39="","",IF($E39=MAX($E$5:$E$54),1,IF($E39=$E38,$A38,COUNT($E$5:$E39))))) -> 10 | E39: 0 | G39: 0 | H39: 0 | J39: 0 | AZ39: 35 | BC39: 0 | BD39: 0 | BF39: 35
A40: =IF(J$2="","",IF($E40="","",IF($E40=MAX($E$5:$E$54),1,IF($E40=$E39,$A39,COUNT($E$5:$E40))))) -> 10 | E40: 0 | G40: 0 | H40: 0 | J40: 0 | AZ40: 36 | BC40: 0 | BD40: 0 | BF40: 36
A41: =IF(J$2="","",IF($E41="","",IF($E41=MAX($E$5:$E$54),1,IF($E41=$E40,$A40,COUNT($E$5:$E41))))) -> 10 | E41: 0 | G41: 0 | H41: 0 | J41: 0 | AZ41: 37 | BC41: 0 | BD41: 0 | BF41: 37
A42: =IF(J$2="","",IF($E42="","",IF($E42=MAX($E$5:$E$54),1,IF($E42=$E41,$A41,COUNT($E$5:$E42))))) -> 10 | E42: 0 | G42: 0 | H42: 0 | J42: 0 | AZ42: 38 | BC42: 0 | BD42: 0 | BF42: 38
A43: =IF(J$2="","",IF($E43="","",IF($E43=MAX($E$5:$E$54),1,IF($E43=$E42,$A42,COUNT($E$5:$E43))))) -> 10 | E43: 0 | G43: 0 | H43: 0 | J43: 0 | AZ43: 39 | BC43: 0 | BD43: 0 | BF43: 39
A44: =IF(J$2="","",IF($E44="","",IF($E44=MAX($E$5:$E$54),1,IF($E44=$E43,$A43,COUNT($E$5:$E44))))) -> 10 | E44: 0 | G44: 0 | H44: 0 | J44: 0 | AZ44: 40 | BC44: 0 | BD44: 0 | BF44: 40
A45: =IF(J$2="","",IF($E45="","",IF($E45=MAX($E$5:$E$54),1,IF($E45=$E44,$A44,COUNT($E$5:$E45))))) -> 10 | E45: 0 | G45: 0 | H45: 0 | J45: 0 | AZ45: 41 | BC45: 0 | BD45: 0 | BF45: 41
A46: =IF(J$2="","",IF($E46="","",IF($E46=MAX($E$5:$E$54),1,IF($E46=$E45,$A45,COUNT($E$5:$E46))))) -> 10 | E46: 0 | G46: 0 | H46: 0 | J46: 0 | AZ46: 42 | BC46: 0 | BD46: 0 | BF46: 42
A47: =IF(J$2="","",IF($E47="","",IF($E47=MAX($E$5:$E$54),1,IF($E47=$E46,$A46,COUNT($E$5:$E47))))) -> 10 | E47: 0 | G47: 0 | H47: 0 | J47: 0 | AZ47: 43 | BC47: 0 | BD47: 0 | BF47: 43
A48: =IF(J$2="","",IF($E48="","",IF($E48=MAX($E$5:$E$54),1,IF($E48=$E47,$A47,COUNT($E$5:$E48))))) -> 10 | E48: 0 | G48: 0 | H48: 0 | J48: 0 | AZ48: 44 | BC48: 0 | BD48: 0 | BF48: 44
A49: =IF(J$2="","",IF($E49="","",IF($E49=MAX($E$5:$E$54),1,IF($E49=$E48,$A48,COUNT($E$5:$E49))))) -> 10 | E49: 0 | G49: 0 | H49: 0 | J49: 0 | AZ49: 45 | BC49: 0 | BD49: 0 | BF49: 45
A50: =IF(J$2="","",IF($E50="","",IF($E50=MAX($E$5:$E$54),1,IF($E50=$E49,$A49,COUNT($E$5:$E50))))) -> 10 | E50: 0 | G50: 0 | H50: 0 | J50: 0 | AZ50: 46 | BC50: 0 | BD50: 0 | BF50: 46
A51: =IF(J$2="","",IF($E51="","",IF($E51=MAX($E$5:$E$54),1,IF($E51=$E50,$A50,COUNT($E$5:$E51))))) -> 10 | E51: 0 | G51: 0 | H51: 0 | J51: 0 | AZ51: 47 | BC51: 0 | BD51: 0 | BF51: 47
A52: =IF(J$2="","",IF($E52="","",IF($E52=MAX($E$5:$E$54),1,IF($E52=$E51,$A51,COUNT($E$5:$E52))))) -> 10 | E52: 0 | G52: 0 | H52: 0 | J52: 0 | AZ52: 48 | BC52: 0 | BD52: 0 | BF52: 48
A53: =IF(J$2="","",IF($E53="","",IF($E53=MAX($E$5:$E$54),1,IF($E53=$E52,$A52,COUNT($E$5:$E53))))) -> 10 | E53: 0 | G53: 0 | H53: 0 | J53: 0 | AZ53: 49 | BC53: 0 | BD53: 0 | BF53: 49
A54: =IF(J$2="","",IF($E54="","",IF($E54=MAX($E$5:$E$54),1,IF($E54=$E53,$A53,COUNT($E$5:$E54))))) -> 10 | E54: 0 | G54: 0 | H54: 0 | J54: 0 | AZ54: 50 | BC54: 0 | BD54: 0 | BF54: 50
D59: punteggi torneo ordinati per # di coppia
B60: # coppia | E60: con zeri | F60: senza zeri | G60: senza zeri
B61: 1 | E61: 49.07407407 | F61: =IF(E61=0,"",E61) -> 49.07407407 | G61: 49.07407407 | I61: =IF(H61=0,"",H61) ->  | BF61: 7
B62: 2 | E62: 50 | F62: 50 | G62: 50 | BF62: 4
B63: 3 | E63: 57.40740741 | F63: 57.40740741 | G63: 57.40740741 | I63: =IF(H63=0,"",H63) ->  | BF63: 8
B64: 4 | E64: 57.40740741 | F64: 57.40740741 | G64: 57.40740741 | BF64: 5
B65: 5 | E65: 54.62962963 | F65: 54.62962963 | G65: 54.62962963 | I65: =IF(H65=0,"",H65) ->  | BF65: 2
B66: 6 | E66: 49.07407407 | F66: 49.07407407 | G66: 49.07407407 | BF66: 1
B67: 7 | E67: 33.33333333 | F67: 33.33333333 | G67: 33.33333333 | BF67: 6
B68: 8 | E68: 57.40740741 | F68: 57.40740741 | G68: 57.40740741 | I68: =IF(H68=0,"",H68) ->  | BF68: 11
B69: 9 | E69: 41.66666667 | F69: 41.66666667 | G69: 41.66666667 | I69: =IF(H69=0,"",H69) ->  | BF69: 3
E70: 0 | BF70: 9
E71: 0 | BF71: 10
E72: 0 | BF72: 12
E73: 0 | I73: =IF(H73=0,"",H73) ->  | BF73: 13
E74: 0 | I74: =IF(H74=0,"",H74) ->  | BF74: 14
E75: 0 | I75: =IF(H75=0,"",H75) ->  | BF75: 15
E76: 0 | I76: =IF(H76=0,"",H76) ->  | BF76: 16
E77: 0 | BF77: 17
E78: 0 | BF78: 18
E79: 0 | I79: =IF(H79=0,"",H79) ->  | BF79: 19
E80: 0 | I80: =IF(H80=0,"",H80) ->  | BF80: 20
E81: 0 | BF81: 21
E82: 0 | BF82: 22
E83: 0 | BF83: 23
E84: 0 | BF84: 24
E85: 0 | BF85: 25
E86: 0 | BF86: 26
E87: 0 | BF87: 27
E88: 0 | BF88: 28
E89: 0 | BF89: 29
E90: 0 | BF90: 30
E91: 0 | BF91: 31
E92: 0 | BF92: 32
E93: 0 | BF93: 33
E94: 0 | BF94: 34
E95: 0 | BF95: 35
E96: 0 | BF96: 36
E97: 0 | BF97: 37
E98: 0 | BF98: 38
E99: 0 | BF99: 39
E100: 0 | BF100: 40
E101: 0 | BF101: 41
E102: 0 | BF102: 42
E103: 0 | BF103: 43
E104: 0 | BF104: 44
E105: 0 | BF105: 45
E106: 0 | BF106: 46
E107: 0 | BF107: 47
E108: 0 | BF108: 48
E109: 0 | BF109: 49
E110: 0 | BF110: 50
A119: PTS ordinati per numero standard di coppia base
A120: #STD | B120: PTS
A121: 1 | B121: 7 | E121: 49.07407407 | F121: =IF(E121=0,"",E121) -> 49.07407407 | G121: 49.07407407 | BF121: 1
A122: 2 | B122: 12 | E122: 54.62962963 | F122: 54.62962963 | G122: 54.62962963 | I122: =IF(H122=0,"",H122) ->  | BF122: 2
A123: 3 | B123: 4 | E123: 41.66666667 | F123: 41.66666667 | G123: 41.66666667 | I123: =IF(H123=0,"",H123) ->  | BF123: 3
A124: 4 | B124: 10 | E124: 50 | F124: 50 | G124: 50 | BF124: 4
A125: 5 | B125: 16 | E125: 57.40740741 | F125: 57.40740741 | G125: 57.40740741 | BF125: 5
A126: 6 | B126: 2 | E126: 33.33333333 | F126: 33.33333333 | G126: 33.33333333 | BF126: 6
A127: 7 | B127: 7 | E127: 49.07407407 | F127: 49.07407407 | G127: 49.07407407 | I127: =IF(H127=0,"",H127) ->  | BF127: 7
A128: 8 | B128: 16 | E128: 57.40740741 | F128: 57.40740741 | G128: 57.40740741 | I128: =IF(H128=0,"",H128) ->  | BF128: 8
A129: 9 | E129: 0 | BF129: 9
A130: 10 | E130: 0 | BF130: 10
A131: 11 | B131: 16 | E131: 57.40740741 | F131: 57.40740741 | G131: 57.40740741 | I131: =IF(H131=0,"",H131) ->  | BF131: 11
BE200: formule punti coppie base
BE201: =IF(BD201=0,"",IF(AZ201>11,"",IF(BD201=BD200,BE200,2*(D$3-BG201)+3-COUNTIF(BG$5:BG$54,BG201)))) -> 
BE202: =IF(BD202=0,"",IF(AZ202>11,"",IF(BD202=BD201,BE201,2*(D$3-BG202)+3-COUNTIF(BG$5:BG$54,BG202)))) -> 

Sheet 23feb
A1: Data | C1: 2019-02-23 | D1: BridgeMania 2018-19 - Torneo Mitchell
A2: luogo | C2: Torgovnick | D2: Coppie Ctrl+e | E2: Calcola Ctr+f Ctr+i | F2: Duplica Ctrl+g | G2: Clear Ctrl+h | J2: &
A3: # coppie / # c.base | C3: =IF(B5="","",COUNT(B5:B54)) -> 8 | D3: =SUM(AY5:AY54) -> 7 | E3: =IF(E5="","",SUMIF(E5:E54,">0")) -> 400 | G3: =IF(G5="","",SUM(G5:G54)) -> 400 | H3: =IF(H5="","",SUM(H5:H54)) -> 504 | I3: =SUM(I5:I54) -> 0 | J3: =SUM(J5:J54) -> 504 | K3: =SUM(K5:K54) -> 24 | L3: =SUM(L5:L54) -> 24 | M3: 24 | N3: 24 | O3: 24 | P3: 24 | Q3: 24 | R3: 24 | S3: 24 | T3: 24 | U3: 24 | V3: 24 | W3: 24 | X3: 24 | Y3: 24 | Z3: 24 | AA3: 24 | AB3: 24 | AC3: 24 | AD3: 24 | AE3: 24 | AF3: 0 | AG3: 0 | AH3: 0 | AI3: 0 | AJ3: 0 | AK3: 0 | AL3: 0 | AM3: 0 | AN3: 0 | AO3: 0 | AP3: 0 | AQ3: 0 | AR3: 0 | AS3: 0 | AT3: 0 | AU3: 0 | AV3: 0 | AW3: 0 | AX3: 0
A4: Class. | B4: # | C4: Coppie | E4: Punteggio Serata | G4: Punteggio % | H4: Punteggio Torneo | I4: Penalità (-) | J4: Totale punti mano | K4: 1 | L4: 2 | M4: 3 | N4: 4 | O4: 5 | P4: 6 | Q4: 7 | R4: 8 | S4: 9 | T4: 10 | U4: 11 | V4: 12 | W4: 13 | X4: 14 | Y4: 15 | Z4: 16 | AA4: 17 | AB4: 18 | AC4: 19 | AD4: 20 | AE4: 21 | AF4: 22 | AG4: 23 | AH4: 24 | AI4: 25 | AJ4: 26 | AK4: 27 | AL4: 28 | AM4: 29 | AN4: 30 | AO4: 31 | AP4: 32 | AQ4: 33 | AR4: 34 | AS4: 35 | AT4: 36 | AU4: 37 | AV4: 38 | AW4: 39 | AX4: 40 | AY4: c.base presenti | AZ4: ordine c.base ad hoc | BC4: punteggi | BD4: punteggi c. base presenti | BE4: punti PTS coppie base | BF4: ordine c.base STD | BG4: Rank
A5: =IF(J$2="","",IF($E5="","",IF($E5=MAX($E$5:$E$54),1,IF($E5=$E4,$A4,COUNT($E$5:$E5))))) -> 1 | B5: 6 | C5: Barbara | D5: Elio | E5: =IF(J$2="","",IF(G5=0,0,F5+G5)) -> 58.73015873 | G5: =IF(J$2="","",IF($J5=0,0,(H5*$C$3/$J$3)*50)) -> 58.73015873 | H5: =IF(J$2="","",IF(SUM($K5:$AX5)=0,0,SUM($K5:$AX5)+$I5)) -> 74 | J5: =IF(B5="",0,IF(SUM($K5:$AX5)=0,0,SUM($K5:$AX5))) -> 74 | K5: 5 | L5: 4 | M5: 4 | N5: 0 | O5: 2 | P5: 0 | Q5: 6 | R5: 2 | S5: 4 | T5: 6 | U5: 4 | V5: 3 | W5: 6 | X5: 5 | Y5: 1 | Z5: 2 | AA5: 1 | AB5: 5 | AC5: 6 | AD5: 4 | AE5: 4 | AY5: =IF(BF5>11,"",IF(B5="","",1)) -> 1 | AZ5: 2 | BA5: Barbara | BB5: Elio | BC5: 58.73015873 | BD5: =IF(AZ5>11,0,BC5) -> 58.73015873 | BE5: =IF(BD5=0,"",IF(AZ5>11,"",IF(BD5=BD4,BE4,2*(D$3-BG5)+3-COUNTIF(BG$5:BG$54,BG5)))) -> 13 | BF5: 2 | BG5: =RANK(BD5,BD$5:BD$15) -> 1
A6: =IF(J$2="","",IF($E6="","",IF($E6=MAX($E$5:$E$54),1,IF($E6=$E5,$A5,COUNT($E$5:$E6))))) -> 1 | B6: 8 | C6: Elena | D6: Stefano | E6: 58.73015873 | G6: 58.73015873 | H6: 74 | J6: 74 | K6: 2 | L6: 4 | M6: 0 | N6: 2 | O6: 6 | P6: 3 | Q6: 4 | R6: 4 | S6: 5 | T6: 3 | U6: 0 | V6: 3 | W6: 4 | X6: 5 | Y6: 1 | Z6: 4 | AA6: 5 | AB6: 1 | AC6: 6 | AD6: 6 | AE6: 6 | AY6: 1 | AZ6: 4 | BA6: Elena | BB6: Stefano | BC6: 58.73015873 | BD6: 58.73015873 | BE6: =IF(BD6=0,"",IF(AZ6>11,"",IF(BD6=BD5,BE5,2*(D$3-BG6)+3-COUNTIF(BG$5:BG$54,BG6)))) -> 13 | BF6: 4 | BG6: 1
A7: =IF(J$2="","",IF($E7="","",IF($E7=MAX($E$5:$E$54),1,IF($E7=$E6,$A6,COUNT($E$5:$E7))))) -> 3 | B7: 1 | C7: Manuela | D7: Roberto | E7: 57.14285714 | G7: 57.14285714 | H7: 72 | J7: 72 | K7: 4 | L7: 2 | M7: 6 | N7: 6 | O7: 6 | P7: 6 | Q7: 4 | R7: 4 | S7: 5 | T7: 6 | U7: 2 | V7: 3 | W7: 0 | X7: 1 | Y7: 5 | Z7: 1 | AA7: 1 | AB7: 6 | AC7: 2 | AD7: 2 | AE7: 0 | AY7: 1 | AZ7: 7 | BA7: Manuela | BB7: Roberto | BC7: 57.14285714 | BD7: 57.14285714 | BE7: 10 | BF7: 7 | BG7: 3
A8: =IF(J$2="","",IF($E8="","",IF($E8=MAX($E$5:$E$54),1,IF($E8=$E7,$A7,COUNT($E$5:$E8))))) -> 4 | B8: 2 | C8: Tatiana | D8: Julio | E8: 53.17460317 | G8: 53.17460317 | H8: 67 | J8: 67 | K8: 5 | L8: 4 | M8: 6 | N8: 4 | O8: 0 | P8: 3 | Q8: 2 | R8: 6 | S8: 6 | T8: 0 | U8: 4 | V8: 3 | W8: 4 | X8: 4 | Y8: 0 | Z8: 5 | AA8: 5 | AB8: 2 | AC8: 0 | AD8: 2 | AE8: 2 | AY8: 1 | AZ8: 11 | BA8: Tatiana | BB8: Julio | BC8: 53.17460317 | BD8: 53.17460317 | BE8: 8 | BF8: 11 | BG8: 4
A9: =IF(J$2="","",IF($E9="","",IF($E9=MAX($E$5:$E$54),1,IF($E9=$E8,$A8,COUNT($E$5:$E9))))) -> 5 | B9: 5 | C9: Antonella | D9: Dino | E9: 44.44444444 | G9: 44.44444444 | H9: 56 | J9: 56 | K9: 1 | L9: 2 | M9: 2 | N9: 2 | O9: 4 | P9: 3 | Q9: 4 | R9: 0 | S9: 0 | T9: 3 | U9: 4 | V9: 3 | W9: 2 | X9: 1 | Y9: 5 | Z9: 5 | AA9: 5 | AB9: 0 | AC9: 4 | AD9: 2 | AE9: 4 | AY9: 1 | AZ9: 1 | BA9: Antonella | BB9: Dino | BC9: 44.44444444 | BD9: 44.44444444 | BE9: 6 | BF9: 1 | BG9: 5
A10: =IF(J$2="","",IF($E10="","",IF($E10=MAX($E$5:$E$54),1,IF($E10=$E9,$A9,COUNT($E$5:$E10))))) -> 6 | B10: 4 | C10: Marilena | D10: Sergio | E10: 43.65079365 | G10: 43.65079365 | H10: 55 | J10: 55 | K10: 1 | L10: 2 | M10: 0 | N10: 0 | O10: 0 | P10: 0 | Q10: 0 | R10: 4 | S10: 2 | T10: 3 | U10: 6 | V10: 3 | W10: 6 | X10: 6 | Y10: 2 | Z10: 6 | AA10: 5 | AB10: 1 | AC10: 2 | AD10: 4 | AE10: 2 | AZ10: 6 | BA10: Lilli | BB10: Gianni | BC10: 43.65079365 | BD10: 43.65079365 | BE10: 4 | BF10: 12 | BG10: 6
A11: =IF(J$2="","",IF($E11="","",IF($E11=MAX($E$5:$E$54),1,IF($E11=$E10,$A10,COUNT($E$5:$E11))))) -> 6 | B11: 7 | C11: Lilli | D11: Gianni | E11: 43.65079365 | G11: 43.65079365 | H11: 55 | J11: 55 | K11: 6 | L11: 6 | M11: 4 | N11: 6 | O11: 4 | P11: 6 | Q11: 2 | R11: 2 | S11: 1 | T11: 3 | U11: 2 | V11: 3 | W11: 0 | X11: 0 | Y11: 4 | Z11: 1 | AA11: 1 | AB11: 4 | AC11: 0 | AD11: 0 | AE11: 0 | AY11: 1 | AZ11: 3 | BA11: Cesarina | BB11: Gaetano | BC11: 40.47619048 | BD11: 40.47619048 | BE11: 2 | BF11: 6 | BG11: 7
A12: =IF(J$2="","",IF($E12="","",IF($E12=MAX($E$5:$E$54),1,IF($E12=$E11,$A11,COUNT($E$5:$E12))))) -> 8 | B12: 3 | C12: Cesarina | D12: Gaetano | E12: 40.47619048 | G12: 40.47619048 | H12: 51 | J12: 51 | K12: 0 | L12: 0 | M12: 2 | N12: 4 | O12: 2 | P12: 3 | Q12: 2 | R12: 2 | S12: 1 | T12: 0 | U12: 2 | V12: 3 | W12: 2 | X12: 2 | Y12: 6 | Z12: 0 | AA12: 1 | AB12: 5 | AC12: 4 | AD12: 4 | AE12: 6 | AY12: 1 | AZ12: 5 | BC12: 0 | BD12: 0 | BF12: 3 | BG12: 8
A13: =IF(J$2="","",IF($E13="","",IF($E13=MAX($E$5:$E$54),1,IF($E13=$E12,$A12,COUNT($E$5:$E13))))) -> 9 | E13: 0 | G13: 0 | H13: 0 | J13: 0 | AZ13: 8 | BC13: 0 | BD13: 0 | BF13: 5 | BG13: 8
A14: =IF(J$2="","",IF($E14="","",IF($E14=MAX($E$5:$E$54),1,IF($E14=$E13,$A13,COUNT($E$5:$E14))))) -> 9 | E14: 0 | G14: 0 | H14: 0 | J14: 0 | AZ14: 9 | BC14: 0 | BD14: 0 | BF14: 8 | BG14: 8
A15: =IF(J$2="","",IF($E15="","",IF($E15=MAX($E$5:$E$54),1,IF($E15=$E14,$A14,COUNT($E$5:$E15))))) -> 9 | E15: 0 | G15: 0 | H15: 0 | J15: 0 | AZ15: 10 | BC15: 0 | BD15: 0 | BF15: 9 | BG15: 8
A16: =IF(J$2="","",IF($E16="","",IF($E16=MAX($E$5:$E$54),1,IF($E16=$E15,$A15,COUNT($E$5:$E16))))) -> 9 | E16: 0 | G16: 0 | H16: 0 | J16: 0 | AZ16: 12 | BA16: Marilena | BB16: Sergio | BC16: 43.65079365 | BD16: 0 | BF16: 10 | BG16: 8
A17: =IF(J$2="","",IF($E17="","",IF($E17=MAX($E$5:$E$54),1,IF($E17=$E16,$A16,COUNT($E$5:$E17))))) -> 9 | E17: 0 | G17: 0 | H17: 0 | J17: 0 | AZ17: 13 | BC17: 0 | BD17: 0 | BF17: 13
A18: =IF(J$2="","",IF($E18="","",IF($E18=MAX($E$5:$E$54),1,IF($E18=$E17,$A17,COUNT($E$5:$E18))))) -> 9 | E18: 0 | G18: 0 | H18: 0 | J18: 0 | AZ18: 14 | BC18: 0 | BD18: 0 | BF18: 14 | BG18: =RANK(BD18,BD$5:BD$15) -> 8
A19: =IF(J$2="","",IF($E19="","",IF($E19=MAX($E$5:$E$54),1,IF($E19=$E18,$A18,COUNT($E$5:$E19))))) -> 9 | E19: 0 | G19: 0 | H19: 0 | J19: 0 | AZ19: 15 | BC19: 0 | BD19: 0 | BF19: 15 | BG19: =RANK(BD19,BD$5:BD$15) -> 8
A20: =IF(J$2="","",IF($E20="","",IF($E20=MAX($E$5:$E$54),1,IF($E20=$E19,$A19,COUNT($E$5:$E20))))) -> 9 | E20: 0 | G20: 0 | H20: 0 | J20: 0 | AZ20: 16 | BC20: 0 | BD20: 0 | BF20: 16 | BG20: =RANK(BD20,BD$5:BD$15) -> 8
A21: =IF(J$2="","",IF($E21="","",IF($E21=MAX($E$5:$E$54),1,IF($E21=$E20,$A20,COUNT($E$5:$E21))))) -> 9 | E21: 0 | G21: 0 | H21: 0 | J21: 0 | AZ21: 17 | BC21: 0 | BD21: 0 | BF21: 17
A22: =IF(J$2="","",IF($E22="","",IF($E22=MAX($E$5:$E$54),1,IF($E22=$E21,$A21,COUNT($E$5:$E22))))) -> 9 | E22: 0 | G22: 0 | H22: 0 | J22: 0 | AZ22: 18 | BC22: 0 | BD22: 0 | BF22: 18
A23: =IF(J$2="","",IF($E23="","",IF($E23=MAX($E$5:$E$54),1,IF($E23=$E22,$A22,COUNT($E$5:$E23))))) -> 9 | E23: 0 | G23: 0 | H23: 0 | J23: 0 | AZ23: 19 | BC23: 0 | BD23: 0 | BF23: 19 | BG23: =RANK(BD23,BD$5:BD$15) -> 8
A24: =IF(J$2="","",IF($E24="","",IF($E24=MAX($E$5:$E$54),1,IF($E24=$E23,$A23,COUNT($E$5:$E24))))) -> 9 | E24: 0 | G24: 0 | H24: 0 | J24: 0 | AZ24: 20 | BC24: 0 | BD24: 0 | BF24: 20 | BG24: =RANK(BD24,BD$5:BD$15) -> 8
A25: =IF(J$2="","",IF($E25="","",IF($E25=MAX($E$5:$E$54),1,IF($E25=$E24,$A24,COUNT($E$5:$E25))))) -> 9 | E25: 0 | G25: 0 | H25: 0 | J25: 0 | AZ25: 21 | BC25: 0 | BD25: 0 | BF25: 21
A26: =IF(J$2="","",IF($E26="","",IF($E26=MAX($E$5:$E$54),1,IF($E26=$E25,$A25,COUNT($E$5:$E26))))) -> 9 | E26: 0 | G26: 0 | H26: 0 | J26: 0 | AZ26: 22 | BC26: 0 | BD26: 0 | BF26: 22 | BG26: =RANK(BD26,BD$5:BD$15) -> 8
A27: =IF(J$2="","",IF($E27="","",IF($E27=MAX($E$5:$E$54),1,IF($E27=$E26,$A26,COUNT($E$5:$E27))))) -> 9 | E27: 0 | G27: 0 | H27: 0 | J27: 0 | AZ27: 23 | BC27: 0 | BD27: 0 | BF27: 23 | BG27: =RANK(BD27,BD$5:BD$15) -> 8
A28: =IF(J$2="","",IF($E28="","",IF($E28=MAX($E$5:$E$54),1,IF($E28=$E27,$A27,COUNT($E$5:$E28))))) -> 9 | E28: 0 | G28: 0 | H28: 0 | J28: 0 | AZ28: 24 | BC28: 0 | BD28: 0 | BF28: 24 | BG28: =RANK(BD28,BD$5:BD$15) -> 8
A29: =IF(J$2="","",IF($E29="","",IF($E29=MAX($E$5:$E$54),1,IF($E29=$E28,$A28,COUNT($E$5:$E29))))) -> 9 | E29: 0 | G29: 0 | H29: 0 | J29: 0 | AZ29: 25 | BC29: 0 | BD29: 0 | BF29: 25
A30: =IF(J$2="","",IF($E30="","",IF($E30=MAX($E$5:$E$54),1,IF($E30=$E29,$A29,COUNT($E$5:$E30))))) -> 9 | E30: 0 | G30: 0 | H30: 0 | J30: 0 | AZ30: 26 | BC30: 0 | BD30: 0 | BF30: 26
A31: =IF(J$2="","",IF($E31="","",IF($E31=MAX($E$5:$E$54),1,IF($E31=$E30,$A30,COUNT($E$5:$E31))))) -> 9 | E31: 0 | G31: 0 | H31: 0 | J31: 0 | AZ31: 27 | BC31: 0 | BD31: 0 | BF31: 27
A32: =IF(J$2="","",IF($E32="","",IF($E32=MAX($E$5:$E$54),1,IF($E32=$E31,$A31,COUNT($E$5:$E32))))) -> 9 | E32: 0 | G32: 0 | H32: 0 | J32: 0 | AZ32: 28 | BC32: 0 | BD32: 0 | BF32: 28
A33: =IF(J$2="","",IF($E33="","",IF($E33=MAX($E$5:$E$54),1,IF($E33=$E32,$A32,COUNT($E$5:$E33))))) -> 9 | E33: 0 | G33: 0 | H33: 0 | J33: 0 | AZ33: 29 | BC33: 0 | BD33: 0 | BF33: 29
A34: =IF(J$2="","",IF($E34="","",IF($E34=MAX($E$5:$E$54),1,IF($E34=$E33,$A33,COUNT($E$5:$E34))))) -> 9 | E34: 0 | G34: 0 | H34: 0 | J34: 0 | AZ34: 30 | BC34: 0 | BD34: 0 | BF34: 30
A35: =IF(J$2="","",IF($E35="","",IF($E35=MAX($E$5:$E$54),1,IF($E35=$E34,$A34,COUNT($E$5:$E35))))) -> 9 | E35: 0 | G35: 0 | H35: 0 | J35: 0 | AZ35: 31 | BC35: 0 | BD35: 0 | BF35: 31
A36: =IF(J$2="","",IF($E36="","",IF($E36=MAX($E$5:$E$54),1,IF($E36=$E35,$A35,COUNT($E$5:$E36))))) -> 9 | E36: 0 | G36: 0 | H36: 0 | J36: 0 | AZ36: 32 | BC36: 0 | BD36: 0 | BF36: 32
A37: =IF(J$2="","",IF($E37="","",IF($E37=MAX($E$5:$E$54),1,IF($E37=$E36,$A36,COUNT($E$5:$E37))))) -> 9 | E37: =IF(J$2="","",IF(G37=0,0,F37+G37)) -> 0 | G37: =IF(J$2="","",IF($J37=0,0,(H37*$C$3/$J$3)*50)) -> 0 | H37: =IF(J$2="","",IF(SUM($K37:$AX37)=0,0,SUM($K37:$AX37)+$I37)) -> 0 | J37: =IF(B37="",0,IF(SUM($K37:$AX37)=0,0,SUM($K37:$AX37))) -> 0 | AY37: =IF(BF37>11,"",IF(B37="","",1)) ->  | AZ37: 33 | BC37: 0 | BD37: =IF(AZ37>11,0,BC37) -> 0 | BF37: 33
A38: =IF(J$2="","",IF($E38="","",IF($E38=MAX($E$5:$E$54),1,IF($E38=$E37,$A37,COUNT($E$5:$E38))))) -> 9 | E38: 0 | G38: 0 | H38: 0 | J38: 0 | AZ38: 34 | BC38: 0 | BD38: 0 | BF38: 34
A39: =IF(J$2="","",IF($E39="","",IF($E39=MAX($E$5:$E$54),1,IF($E39=$E38,$A38,COUNT($E$5:$E39))))) -> 9 | E39: 0 | G39: 0 | H39: 0 | J39: 0 | AZ39: 35 | BC39: 0 | BD39: 0 | BF39: 35
A40: =IF(J$2="","",IF($E40="","",IF($E40=MAX($E$5:$E$54),1,IF($E40=$E39,$A39,COUNT($E$5:$E40))))) -> 9 | E40: 0 | G40: 0 | H40: 0 | J40: 0 | AZ40: 36 | BC40: 0 | BD40: 0 | BF40: 36
A41: =IF(J$2="","",IF($E41="","",IF($E41=MAX($E$5:$E$54),1,IF($E41=$E40,$A40,COUNT($E$5:$E41))))) -> 9 | E41: 0 | G41: 0 | H41: 0 | J41: 0 | AZ41: 37 | BC41: 0 | BD41: 0 | BF41: 37
A42: =IF(J$2="","",IF($E42="","",IF($E42=MAX($E$5:$E$54),1,IF($E42=$E41,$A41,COUNT($E$5:$E42))))) -> 9 | E42: 0 | G42: 0 | H42: 0 | J42: 0 | AZ42: 38 | BC42: 0 | BD42: 0 | BF42: 38
A43: =IF(J$2="","",IF($E43="","",IF($E43=MAX($E$5:$E$54),1,IF($E43=$E42,$A42,COUNT($E$5:$E43))))) -> 9 | E43: 0 | G43: 0 | H43: 0 | J43: 0 | AZ43: 39 | BC43: 0 | BD43: 0 | BF43: 39
A44: =IF(J$2="","",IF($E44="","",IF($E44=MAX($E$5:$E$54),1,IF($E44=$E43,$A43,COUNT($E$5:$E44))))) -> 9 | E44: 0 | G44: 0 | H44: 0 | J44: 0 | AZ44: 40 | BC44: 0 | BD44: 0 | BF44: 40
A45: =IF(J$2="","",IF($E45="","",IF($E45=MAX($E$5:$E$54),1,IF($E45=$E44,$A44,COUNT($E$5:$E45))))) -> 9 | E45: 0 | G45: 0 | H45: 0 | J45: 0 | AZ45: 41 | BC45: 0 | BD45: 0 | BF45: 41
A46: =IF(J$2="","",IF($E46="","",IF($E46=MAX($E$5:$E$54),1,IF($E46=$E45,$A45,COUNT($E$5:$E46))))) -> 9 | E46: 0 | G46: 0 | H46: 0 | J46: 0 | AZ46: 42 | BC46: 0 | BD46: 0 | BF46: 42
A47: =IF(J$2="","",IF($E47="","",IF($E47=MAX($E$5:$E$54),1,IF($E47=$E46,$A46,COUNT($E$5:$E47))))) -> 9 | E47: 0 | G47: 0 | H47: 0 | J47: 0 | AZ47: 43 | BC47: 0 | BD47: 0 | BF47: 43
A48: =IF(J$2="","",IF($E48="","",IF($E48=MAX($E$5:$E$54),1,IF($E48=$E47,$A47,COUNT($E$5:$E48))))) -> 9 | E48: 0 | G48: 0 | H48: 0 | J48: 0 | AZ48: 44 | BC48: 0 | BD48: 0 | BF48: 44
A49: =IF(J$2="","",IF($E49="","",IF($E49=MAX($E$5:$E$54),1,IF($E49=$E48,$A48,COUNT($E$5:$E49))))) -> 9 | E49: 0 | G49: 0 | H49: 0 | J49: 0 | AZ49: 45 | BC49: 0 | BD49: 0 | BF49: 45
A50: =IF(J$2="","",IF($E50="","",IF($E50=MAX($E$5:$E$54),1,IF($E50=$E49,$A49,COUNT($E$5:$E50))))) -> 9 | E50: 0 | G50: 0 | H50: 0 | J50: 0 | AZ50: 46 | BC50: 0 | BD50: 0 | BF50: 46
A51: =IF(J$2="","",IF($E51="","",IF($E51=MAX($E$5:$E$54),1,IF($E51=$E50,$A50,COUNT($E$5:$E51))))) -> 9 | E51: 0 | G51: 0 | H51: 0 | J51: 0 | AZ51: 47 | BC51: 0 | BD51: 0 | BF51: 47
A52: =IF(J$2="","",IF($E52="","",IF($E52=MAX($E$5:$E$54),1,IF($E52=$E51,$A51,COUNT($E$5:$E52))))) -> 9 | E52: 0 | G52: 0 | H52: 0 | J52: 0 | AZ52: 48 | BC52: 0 | BD52: 0 | BF52: 48
A53: =IF(J$2="","",IF($E53="","",IF($E53=MAX($E$5:$E$54),1,IF($E53=$E52,$A52,COUNT($E$5:$E53))))) -> 9 | E53: 0 | G53: 0 | H53: 0 | J53: 0 | AZ53: 49 | BC53: 0 | BD53: 0 | BF53: 49
A54: =IF(J$2="","",IF($E54="","",IF($E54=MAX($E$5:$E$54),1,IF($E54=$E53,$A53,COUNT($E$5:$E54))))) -> 9 | E54: 0 | G54: 0 | H54: 0 | J54: 0 | AZ54: 50 | BC54: 0 | BD54: 0 | BF54: 50
D59: punteggi torneo ordinati per # di coppia
B60: # coppia | E60: con zeri | F60: senza zeri | G60: senza zeri
B61: 1 | E61: 57.14285714 | F61: =IF(E61=0,"",E61) -> 57.14285714 | G61: 57.14285714 | I61: =IF(H61=0,"",H61) ->  | BF61: 7
B62: 2 | E62: 53.17460317 | F62: 53.17460317 | G62: 53.17460317 | BF62: 11
B63: 3 | E63: 40.47619048 | F63: 40.47619048 | G63: 40.47619048 | I63: =IF(H63=0,"",H63) ->  | BF63: 3
B64: 4 | E64: 43.65079365 | F64: 43.65079365 | G64: 43.65079365 | BF64: 12
B65: 5 | E65: 44.44444444 | F65: 44.44444444 | G65: 44.44444444 | I65: =IF(H65=0,"",H65) ->  | BF65: 1
B66: 6 | E66: 58.73015873 | F66: 58.73015873 | G66: 58.73015873 | BF66: 2
B67: 7 | E67: 43.65079365 | F67: 43.65079365 | G67: 43.65079365 | BF67: 6
B68: 8 | E68: 58.73015873 | F68: 58.73015873 | G68: 58.73015873 | I68: =IF(H68=0,"",H68) ->  | BF68: 4
E69: 0 | I69: =IF(H69=0,"",H69) ->  | BF69: 5
E70: 0 | BF70: 8
E71: 0 | BF71: 9
E72: 0 | BF72: 10
E73: 0 | I73: =IF(H73=0,"",H73) ->  | BF73: 13
E74: 0 | I74: =IF(H74=0,"",H74) ->  | BF74: 14
E75: 0 | I75: =IF(H75=0,"",H75) ->  | BF75: 15
E76: 0 | I76: =IF(H76=0,"",H76) ->  | BF76: 16
E77: 0 | BF77: 17
E78: 0 | BF78: 18
E79: 0 | I79: =IF(H79=0,"",H79) ->  | BF79: 19
E80: 0 | I80: =IF(H80=0,"",H80) ->  | BF80: 20
E81: 0 | BF81: 21
E82: 0 | BF82: 22
E83: 0 | BF83: 23
E84: 0 | BF84: 24
E85: 0 | BF85: 25
E86: 0 | BF86: 26
E87: 0 | BF87: 27
E88: 0 | BF88: 28
E89: 0 | BF89: 29
E90: 0 | BF90: 30
E91: 0 | BF91: 31
E92: 0 | BF92: 32
E93: 0 | F93: =IF(E93=0,"",E93) ->  | BF93: 33
E94: 0 | BF94: 34
E95: 0 | BF95: 35
E96: 0 | BF96: 36
E97: 0 | BF97: 37
E98: 0 | BF98: 38
E99: 0 | BF99: 39
E100: 0 | BF100: 40
E101: 0 | BF101: 41
E102: 0 | BF102: 42
E103: 0 | BF103: 43
E104: 0 | BF104: 44
E105: 0 | BF105: 45
E106: 0 | BF106: 46
E107: 0 | BF107: 47
E108: 0 | BF108: 48
E109: 0 | BF109: 49
E110: 0 | BF110: 50
A119: PTS ordinati per numero standard di coppia base
A120: #STD | B120: PTS
A121: 1 | B121: 6 | E121: 44.44444444 | F121: =IF(E121=0,"",E121) -> 44.44444444 | G121: 44.44444444 | I121: =IF(H121=0,"",H121) ->  | BF121: 1
A122: 2 | B122: 13 | E122: 58.73015873 | F122: 58.73015873 | G122: 58.73015873 | BF122: 2
A123: 3 | B123: 2 | E123: 40.47619048 | F123: 40.47619048 | G123: 40.47619048 | I123: =IF(H123=0,"",H123) ->  | BF123: 3
A124: 4 | B124: 13 | E124: 58.73015873 | F124: 58.73015873 | G124: 58.73015873 | I124: =IF(H124=0,"",H124) ->  | BF124: 4
A125: 5 | E125: 0 | I125: =IF(H125=0,"",H125) ->  | BF125: 5
A126: 6 | B126: 4 | E126: 43.65079365 | F126: 43.65079365 | G126: 43.65079365 | BF126: 6
A127: 7 | B127: 10 | E127: 57.14285714 | F127: 57.14285714 | G127: 57.14285714 | I127: =IF(H127=0,"",H127) ->  | BF127: 7
A128: 8 | E128: 0 | BF128: 8
A129: 9 | E129: 0 | BF129: 9
A130: 10 | E130: 0 | BF130: 10
A131: 11 | B131: 8 | E131: 53.17460317 | F131: 53.17460317 | G131: 53.17460317 | BF131: 11
BE200: formule punti coppie base
BE201: =IF(BD201=0,"",IF(AZ201>11,"",IF(BD201=BD200,BE200,2*(D$3-BG201)+3-COUNTIF(BG$5:BG$54,BG201)))) -> 
BE202: =IF(BD202=0,"",IF(AZ202>11,"",IF(BD202=BD201,BE201,2*(D$3-BG202)+3-COUNTIF(BG$5:BG$54,BG202)))) -> 

Sheet 16feb
A1: Data | C1: 2019-02-16 | D1: BridgeMania 2018-19 - Torneo Mitchell scrambled
A2: luogo | C2: De Sanctis | D2: Coppie Ctrl+e | E2: Calcola Ctr+f Ctr+i | F2: Duplica Ctrl+g | G2: Clear Ctrl+h | J2: &
A3: # coppie / # c.base | C3: =IF(B5="","",COUNT(B5:B54)) -> 10 | D3: =SUM(AY5:AY54) -> 8 | E3: =IF(E5="","",SUMIF(E5:E54,">0")) -> 500 | G3: =IF(G5="","",SUM(G5:G54)) -> 500 | H3: =IF(H5="","",SUM(H5:H54)) -> 720 | I3: =SUM(I5:I54) -> 0 | J3: =SUM(J5:J54) -> 720 | K3: =SUM(K5:K54) -> 40 | L3: =SUM(L5:L54) -> 40 | M3: 40 | N3: 40 | O3: 40 | P3: 40 | Q3: 40 | R3: 40 | S3: 40 | T3: 40 | U3: 40 | V3: 40 | W3: 40 | X3: 40 | Y3: 40 | Z3: 40 | AA3: 40 | AB3: 40 | AC3: 0 | AD3: 0 | AE3: 0 | AF3: 0 | AG3: 0 | AH3: 0 | AI3: 0 | AJ3: 0 | AK3: 0 | AL3: 0 | AM3: 0 | AN3: 0 | AO3: 0 | AP3: 0 | AQ3: 0 | AR3: 0 | AS3: 0 | AT3: 0 | AU3: 0 | AV3: 0 | AW3: 0 | AX3: 0
A4: Class. | B4: # | C4: Coppie | E4: Punteggio Serata | G4: Punteggio % | H4: Punteggio Torneo | I4: Penalità (-) | J4: Totale punti mano | K4: 1 | L4: 2 | M4: 3 | N4: 4 | O4: 5 | P4: 6 | Q4: 7 | R4: 8 | S4: 9 | T4: 10 | U4: 11 | V4: 12 | W4: 13 | X4: 14 | Y4: 15 | Z4: 16 | AA4: 17 | AB4: 18 | AC4: 19 | AD4: 20 | AE4: 21 | AF4: 22 | AG4: 23 | AH4: 24 | AI4: 25 | AJ4: 26 | AK4: 27 | AL4: 28 | AM4: 29 | AN4: 30 | AO4: 31 | AP4: 32 | AQ4: 33 | AR4: 34 | AS4: 35 | AT4: 36 | AU4: 37 | AV4: 38 | AW4: 39 | AX4: 40 | AY4: c.base presenti | AZ4: ordine c.base ad hoc | BC4: punteggi | BD4: punteggi c. base presenti | BE4: punti PTS coppie base | BF4: ordine c.base STD | BG4: Rank
A5: =IF(J$2="","",IF($E5="","",IF($E5=MAX($E$5:$E$54),1,IF($E5=$E4,$A4,COUNT($E$5:$E5))))) -> 1 | B5: 6 | C5: Elena | D5: Stefano | E5: =IF(J$2="","",IF(G5=0,0,F5+G5)) -> 63.19444444 | G5: =IF(J$2="","",IF($J5=0,0,(H5*$C$3/$J$3)*50)) -> 63.19444444 | H5: =IF(J$2="","",IF(SUM($K5:$AX5)=0,0,SUM($K5:$AX5)+$I5)) -> 91 | J5: =IF(B5="",0,IF(SUM($K5:$AX5)=0,0,SUM($K5:$AX5))) -> 91 | K5: 6 | L5: 1 | M5: 5 | N5: 6 | O5: 7 | P5: 2 | Q5: 6 | R5: 8 | S5: 8 | T5: 8 | U5: 1 | V5: 5 | W5: 8 | X5: 2 | Y5: 8 | Z5: 0 | AA5: 5 | AB5: 5 | AY5: =IF(BF5>11,"",IF(B5="","",1)) -> 1 | AZ5: 4 | BA5: Elena | BB5: Stefano | BC5: 63.19444444 | BD5: =IF(AZ5>11,0,BC5) -> 63.19444444 | BE5: =IF(BD5=0,"",IF(AZ5>11,"",IF(BD5=BD4,BE4,2*(D$3-BG5)+3-COUNTIF(BG$5:BG$54,BG5)))) -> 16 | BF5: 4 | BG5: =RANK(BD5,BD$5:BD$15) -> 1
A6: =IF(J$2="","",IF($E6="","",IF($E6=MAX($E$5:$E$54),1,IF($E6=$E5,$A5,COUNT($E$5:$E6))))) -> 2 | B6: 3 | C6: Stefania | D6: Massimo | E6: 60.41666667 | G6: 60.41666667 | H6: 87 | J6: 87 | K6: 6 | L6: 6 | M6: 8 | N6: 0 | O6: 0 | P6: 8 | Q6: 2 | R6: 0 | S6: 8 | T6: 7 | U6: 1 | V6: 5 | W6: 6 | X6: 6 | Y6: 5 | Z6: 6 | AA6: 5 | AB6: 8 | AY6: 1 | AZ6: 10 | BA6: Stefania | BB6: Massimo | BC6: 60.41666667 | BD6: 60.41666667 | BE6: =IF(BD6=0,"",IF(AZ6>11,"",IF(BD6=BD5,BE5,2*(D$3-BG6)+3-COUNTIF(BG$5:BG$54,BG6)))) -> 14 | BF6: 10 | BG6: 2
A7: =IF(J$2="","",IF($E7="","",IF($E7=MAX($E$5:$E$54),1,IF($E7=$E6,$A6,COUNT($E$5:$E7))))) -> 3 | B7: 7 | C7: A.Maria | D7: Claudio | E7: 58.33333333 | G7: 58.33333333 | H7: 84 | J7: 84 | K7: 7 | L7: 7 | M7: 5 | N7: 2 | O7: 1 | P7: 6 | Q7: 0 | R7: 5 | S7: 5 | T7: 6 | U7: 7 | V7: 3 | W7: 2 | X7: 6 | Y7: 3 | Z7: 6 | AA7: 8 | AB7: 5 | AZ7: 2 | BA7: Barbara | BB7: Elio | BC7: 52.08333333 | BD7: 52.08333333 | BE7: 12 | BF7: 13 | BG7: 3
A8: =IF(J$2="","",IF($E8="","",IF($E8=MAX($E$5:$E$54),1,IF($E8=$E7,$A7,COUNT($E$5:$E8))))) -> 4 | B8: 10 | C8: Barbara | D8: Elio | E8: 52.08333333 | G8: 52.08333333 | H8: 75 | J8: 75 | K8: 6 | L8: 4 | M8: 2 | N8: 8 | O8: 8 | P8: 0 | Q8: 3 | R8: 3 | S8: 2 | T8: 1 | U8: 7 | V8: 3 | W8: 6 | X8: 2 | Y8: 2 | Z8: 2 | AA8: 8 | AB8: 8 | AY8: 1 | AZ8: 7 | BA8: Manuela | BB8: Roberto | BC8: 49.30555556 | BD8: 49.30555556 | BE8: 10 | BF8: 2 | BG8: 4
A9: =IF(J$2="","",IF($E9="","",IF($E9=MAX($E$5:$E$54),1,IF($E9=$E8,$A8,COUNT($E$5:$E9))))) -> 5 | B9: 8 | C9: Manuela | D9: Roberto | E9: 49.30555556 | G9: 49.30555556 | H9: 71 | J9: 71 | K9: 2 | L9: 7 | M9: 0 | N9: 8 | O9: 6 | P9: 6 | Q9: 8 | R9: 3 | S9: 3 | T9: 4 | U9: 3 | V9: 3 | W9: 2 | X9: 0 | Y9: 6 | Z9: 6 | AA9: 2 | AB9: 2 | AY9: 1 | AZ9: 3 | BA9: Cesarina | BB9: Gaetano | BC9: 45.83333333 | BD9: 45.83333333 | BE9: 8 | BF9: 7 | BG9: 5
A10: =IF(J$2="","",IF($E10="","",IF($E10=MAX($E$5:$E$54),1,IF($E10=$E9,$A9,COUNT($E$5:$E10))))) -> 6 | B10: 2 | C10: Marilena | D10: Sergio | E10: 47.22222222 | G10: 47.22222222 | H10: 68 | J10: 68 | K10: 1 | L10: 1 | M10: 6 | N10: 0 | O10: 4 | P10: 6 | Q10: 5 | R10: 8 | S10: 0 | T10: 0 | U10: 0 | V10: 8 | W10: 6 | X10: 6 | Y10: 3 | Z10: 2 | AA10: 6 | AB10: 6 | AZ10: 5 | BA10: Isolde | BB10: Cristina | BC10: 43.05555556 | BD10: 43.05555556 | BE10: 6 | BF10: 12 | BG10: 6
A11: =IF(J$2="","",IF($E11="","",IF($E11=MAX($E$5:$E$54),1,IF($E11=$E10,$A10,COUNT($E$5:$E11))))) -> 7 | B11: 4 | C11: Cesarina | D11: Gaetano | E11: 45.83333333 | G11: 45.83333333 | H11: 66 | J11: 66 | K11: 7 | L11: 0 | M11: 0 | N11: 4 | O11: 1 | P11: 6 | Q11: 5 | R11: 5 | S11: 3 | T11: 2 | U11: 8 | V11: 0 | W11: 6 | X11: 8 | Y11: 0 | Z11: 8 | AA11: 3 | AB11: 0 | AY11: 1 | AZ11: 1 | BA11: Antonella | BB11: Dino | BC11: 41.66666667 | BD11: 41.66666667 | BE11: 4 | BF11: 3 | BG11: 7
A12: =IF(J$2="","",IF($E12="","",IF($E12=MAX($E$5:$E$54),1,IF($E12=$E11,$A11,COUNT($E$5:$E12))))) -> 8 | B12: 5 | C12: Isolde | D12: Cristina | E12: 43.05555556 | G12: 43.05555556 | H12: 62 | J12: 62 | K12: 1 | L12: 8 | M12: 3 | N12: 2 | O12: 4 | P12: 2 | Q12: 0 | R12: 6 | S12: 6 | T12: 7 | U12: 5 | V12: 5 | W12: 2 | X12: 2 | Y12: 0 | Z12: 6 | AA12: 0 | AB12: 3 | AY12: 1 | AZ12: 8 | BA12: Olimpia | BB12: Sauro | BC12: 38.88888889 | BD12: 38.88888889 | BE12: 2 | BF12: 5 | BG12: 8
A13: =IF(J$2="","",IF($E13="","",IF($E13=MAX($E$5:$E$54),1,IF($E13=$E12,$A12,COUNT($E$5:$E13))))) -> 9 | B13: 9 | C13: Antonella | D13: Dino | E13: 41.66666667 | G13: 41.66666667 | H13: 60 | J13: 60 | K13: 2 | L13: 2 | M13: 3 | N13: 6 | O13: 7 | P13: 2 | Q13: 3 | R13: 0 | S13: 5 | T13: 4 | U13: 5 | V13: 5 | W13: 0 | X13: 6 | Y13: 8 | Z13: 2 | AA13: 0 | AB13: 0 | AY13: 1 | AZ13: 6 | BC13: 0 | BD13: 0 | BF13: 1 | BG13: 9
A14: =IF(J$2="","",IF($E14="","",IF($E14=MAX($E$5:$E$54),1,IF($E14=$E13,$A13,COUNT($E$5:$E14))))) -> 10 | B14: 1 | C14: Olimpia | D14: Sauro | E14: 38.88888889 | G14: 38.88888889 | H14: 56 | J14: 56 | K14: 2 | L14: 4 | M14: 8 | N14: 4 | O14: 2 | P14: 2 | Q14: 8 | R14: 2 | S14: 0 | T14: 1 | U14: 3 | V14: 3 | W14: 2 | X14: 2 | Y14: 5 | Z14: 2 | AA14: 3 | AB14: 3 | AY14: 1 | AZ14: 9 | BC14: 0 | BD14: 0 | BF14: 8 | BG14: 9
A15: =IF(J$2="","",IF($E15="","",IF($E15=MAX($E$5:$E$54),1,IF($E15=$E14,$A14,COUNT($E$5:$E15))))) -> 11 | E15: 0 | G15: 0 | H15: 0 | J15: 0 | AZ15: 11 | BC15: 0 | BD15: 0 | BF15: 6 | BG15: 9
A16: =IF(J$2="","",IF($E16="","",IF($E16=MAX($E$5:$E$54),1,IF($E16=$E15,$A15,COUNT($E$5:$E16))))) -> 11 | E16: 0 | G16: 0 | H16: 0 | J16: 0 | AZ16: 12 | BA16: Marilena | BB16: Sergio | BC16: 47.22222222 | BD16: 0 | BF16: 9 | BG16: 9
A17: =IF(J$2="","",IF($E17="","",IF($E17=MAX($E$5:$E$54),1,IF($E17=$E16,$A16,COUNT($E$5:$E17))))) -> 11 | E17: 0 | G17: 0 | H17: 0 | J17: 0 | AZ17: 13 | BA17: A.Maria | BB17: Claudio | BC17: 58.33333333 | BD17: 0 | BF17: 11
A18: =IF(J$2="","",IF($E18="","",IF($E18=MAX($E$5:$E$54),1,IF($E18=$E17,$A17,COUNT($E$5:$E18))))) -> 11 | E18: 0 | G18: 0 | H18: 0 | J18: 0 | AZ18: 14 | BC18: 0 | BD18: 0 | BF18: 14 | BG18: =RANK(BD18,BD$5:BD$15) -> 9
A19: =IF(J$2="","",IF($E19="","",IF($E19=MAX($E$5:$E$54),1,IF($E19=$E18,$A18,COUNT($E$5:$E19))))) -> 11 | E19: 0 | G19: 0 | H19: 0 | J19: 0 | AZ19: 15 | BC19: 0 | BD19: 0 | BF19: 15 | BG19: =RANK(BD19,BD$5:BD$15) -> 9
A20: =IF(J$2="","",IF($E20="","",IF($E20=MAX($E$5:$E$54),1,IF($E20=$E19,$A19,COUNT($E$5:$E20))))) -> 11 | E20: 0 | G20: 0 | H20: 0 | J20: 0 | AZ20: 16 | BC20: 0 | BD20: 0 | BF20: 16 | BG20: =RANK(BD20,BD$5:BD$15) -> 9
A21: =IF(J$2="","",IF($E21="","",IF($E21=MAX($E$5:$E$54),1,IF($E21=$E20,$A20,COUNT($E$5:$E21))))) -> 11 | E21: 0 | G21: 0 | H21: 0 | J21: 0 | AZ21: 17 | BC21: 0 | BD21: 0 | BF21: 17
A22: =IF(J$2="","",IF($E22="","",IF($E22=MAX($E$5:$E$54),1,IF($E22=$E21,$A21,COUNT($E$5:$E22))))) -> 11 | E22: 0 | G22: 0 | H22: 0 | J22: 0 | AZ22: 18 | BC22: 0 | BD22: 0 | BF22: 18
A23: =IF(J$2="","",IF($E23="","",IF($E23=MAX($E$5:$E$54),1,IF($E23=$E22,$A22,COUNT($E$5:$E23))))) -> 11 | E23: 0 | G23: 0 | H23: 0 | J23: 0 | AZ23: 19 | BC23: 0 | BD23: 0 | BF23: 19 | BG23: =RANK(BD23,BD$5:BD$15) -> 9
A24: =IF(J$2="","",IF($E24="","",IF($E24=MAX($E$5:$E$54),1,IF($E24=$E23,$A23,COUNT($E$5:$E24))))) -> 11 | E24: 0 | G24: 0 | H24: 0 | J24: 0 | AZ24: 20 | BC24: 0 | BD24: 0 | BF24: 20 | BG24: =RANK(BD24,BD$5:BD$15) -> 9
A25: =IF(J$2="","",IF($E25="","",IF($E25=MAX($E$5:$E$54),1,IF($E25=$E24,$A24,COUNT($E$5:$E25))))) -> 11 | E25: 0 | G25: 0 | H25: 0 | J25: 0 | AZ25: 21 | BC25: 0 | BD25: 0 | BF25: 21
A26: =IF(J$2="","",IF($E26="","",IF($E26=MAX($E$5:$E$54),1,IF($E26=$E25,$A25,COUNT($E$5:$E26))))) -> 11 | E26: 0 | G26: 0 | H26: 0 | J26: 0 | AZ26: 22 | BC26: 0 | BD26: 0 | BF26: 22 | BG26: =RANK(BD26,BD$5:BD$15) -> 9
A27: =IF(J$2="","",IF($E27="","",IF($E27=MAX($E$5:$E$54),1,IF($E27=$E26,$A26,COUNT($E$5:$E27))))) -> 11 | E27: 0 | G27: 0 | H27: 0 | J27: 0 | AZ27: 23 | BC27: 0 | BD27: 0 | BF27: 23 | BG27: =RANK(BD27,BD$5:BD$15) -> 9
A28: =IF(J$2="","",IF($E28="","",IF($E28=MAX($E$5:$E$54),1,IF($E28=$E27,$A27,COUNT($E$5:$E28))))) -> 11 | E28: 0 | G28: 0 | H28: 0 | J28: 0 | AZ28: 24 | BC28: 0 | BD28: 0 | BF28: 24 | BG28: =RANK(BD28,BD$5:BD$15) -> 9
A29: =IF(J$2="","",IF($E29="","",IF($E29=MAX($E$5:$E$54),1,IF($E29=$E28,$A28,COUNT($E$5:$E29))))) -> 11 | E29: 0 | G29: 0 | H29: 0 | J29: 0 | AZ29: 25 | BC29: 0 | BD29: 0 | BF29: 25
A30: =IF(J$2="","",IF($E30="","",IF($E30=MAX($E$5:$E$54),1,IF($E30=$E29,$A29,COUNT($E$5:$E30))))) -> 11 | E30: 0 | G30: 0 | H30: 0 | J30: 0 | AZ30: 26 | BC30: 0 | BD30: 0 | BF30: 26
A31: =IF(J$2="","",IF($E31="","",IF($E31=MAX($E$5:$E$54),1,IF($E31=$E30,$A30,COUNT($E$5:$E31))))) -> 11 | E31: 0 | G31: 0 | H31: 0 | J31: 0 | AZ31: 27 | BC31: 0 | BD31: 0 | BF31: 27
A32: =IF(J$2="","",IF($E32="","",IF($E32=MAX($E$5:$E$54),1,IF($E32=$E31,$A31,COUNT($E$5:$E32))))) -> 11 | E32: 0 | G32: 0 | H32: 0 | J32: 0 | AZ32: 28 | BC32: 0 | BD32: 0 | BF32: 28
A33: =IF(J$2="","",IF($E33="","",IF($E33=MAX($E$5:$E$54),1,IF($E33=$E32,$A32,COUNT($E$5:$E33))))) -> 11 | E33: 0 | G33: 0 | H33: 0 | J33: 0 | AZ33: 29 | BC33: 0 | BD33: 0 | BF33: 29
A34: =IF(J$2="","",IF($E34="","",IF($E34=MAX($E$5:$E$54),1,IF($E34=$E33,$A33,COUNT($E$5:$E34))))) -> 11 | E34: 0 | G34: 0 | H34: 0 | J34: 0 | AZ34: 30 | BC34: 0 | BD34: 0 | BF34: 30
A35: =IF(J$2="","",IF($E35="","",IF($E35=MAX($E$5:$E$54),1,IF($E35=$E34,$A34,COUNT($E$5:$E35))))) -> 11 | E35: 0 | G35: 0 | H35: 0 | J35: 0 | AZ35: 31 | BC35: 0 | BD35: 0 | BF35: 31
A36: =IF(J$2="","",IF($E36="","",IF($E36=MAX($E$5:$E$54),1,IF($E36=$E35,$A35,COUNT($E$5:$E36))))) -> 11 | E36: 0 | G36: 0 | H36: 0 | J36: 0 | AZ36: 32 | BC36: 0 | BD36: 0 | BF36: 32
A37: =IF(J$2="","",IF($E37="","",IF($E37=MAX($E$5:$E$54),1,IF($E37=$E36,$A36,COUNT($E$5:$E37))))) -> 11 | E37: =IF(J$2="","",IF(G37=0,0,F37+G37)) -> 0 | G37: =IF(J$2="","",IF($J37=0,0,(H37*$C$3/$J$3)*50)) -> 0 | H37: =IF(J$2="","",IF(SUM($K37:$AX37)=0,0,SUM($K37:$AX37)+$I37)) -> 0 | J37: =IF(B37="",0,IF(SUM($K37:$AX37)=0,0,SUM($K37:$AX37))) -> 0 | AY37: =IF(BF37>11,"",IF(B37="","",1)) ->  | AZ37: 33 | BC37: 0 | BD37: =IF(AZ37>11,0,BC37) -> 0 | BF37: 33
A38: =IF(J$2="","",IF($E38="","",IF($E38=MAX($E$5:$E$54),1,IF($E38=$E37,$A37,COUNT($E$5:$E38))))) -> 11 | E38: 0 | G38: 0 | H38: 0 | J38: 0 | AZ38: 34 | BC38: 0 | BD38: 0 | BF38: 34
A39: =IF(J$2="","",IF($E39="","",IF($E39=MAX($E$5:$E$54),1,IF($E39=$E38,$A38,COUNT($E$5:$E39))))) -> 11 | E39: 0 | G39: 0 | H39: 0 | J39: 0 | AZ39: 35 | BC39: 0 | BD39: 0 | BF39: 35
A40: =IF(J$2="","",IF($E40="","",IF($E40=MAX($E$5:$E$54),1,IF($E40=$E39,$A39,COUNT($E$5:$E40))))) -> 11 | E40: 0 | G40: 0 | H40: 0 | J40: 0 | AZ40: 36 | BC40: 0 | BD40: 0 | BF40: 36
A41: =IF(J$2="","",IF($E41="","",IF($E41=MAX($E$5:$E$54),1,IF($E41=$E40,$A40,COUNT($E$5:$E41))))) -> 11 | E41: 0 | G41: 0 | H41: 0 | J41: 0 | AZ41: 37 | BC41: 0 | BD41: 0 | BF41: 37
A42: =IF(J$2="","",IF($E42="","",IF($E42=MAX($E$5:$E$54),1,IF($E42=$E41,$A41,COUNT($E$5:$E42))))) -> 11 | E42: 0 | G42: 0 | H42: 0 | J42: 0 | AZ42: 38 | BC42: 0 | BD42: 0 | BF42: 38
A43: =IF(J$2="","",IF($E43="","",IF($E43=MAX($E$5:$E$54),1,IF($E43=$E42,$A42,COUNT($E$5:$E43))))) -> 11 | E43: 0 | G43: 0 | H43: 0 | J43: 0 | AZ43: 39 | BC43: 0 | BD43: 0 | BF43: 39
A44: =IF(J$2="","",IF($E44="","",IF($E44=MAX($E$5:$E$54),1,IF($E44=$E43,$A43,COUNT($E$5:$E44))))) -> 11 | E44: 0 | G44: 0 | H44: 0 | J44: 0 | AZ44: 40 | BC44: 0 | BD44: 0 | BF44: 40
A45: =IF(J$2="","",IF($E45="","",IF($E45=MAX($E$5:$E$54),1,IF($E45=$E44,$A44,COUNT($E$5:$E45))))) -> 11 | E45: 0 | G45: 0 | H45: 0 | J45: 0 | AZ45: 41 | BC45: 0 | BD45: 0 | BF45: 41
A46: =IF(J$2="","",IF($E46="","",IF($E46=MAX($E$5:$E$54),1,IF($E46=$E45,$A45,COUNT($E$5:$E46))))) -> 11 | E46: 0 | G46: 0 | H46: 0 | J46: 0 | AZ46: 42 | BC46: 0 | BD46: 0 | BF46: 42
A47: =IF(J$2="","",IF($E47="","",IF($E47=MAX($E$5:$E$54),1,IF($E47=$E46,$A46,COUNT($E$5:$E47))))) -> 11 | E47: 0 | G47: 0 | H47: 0 | J47: 0 | AZ47: 43 | BC47: 0 | BD47: 0 | BF47: 43
A48: =IF(J$2="","",IF($E48="","",IF($E48=MAX($E$5:$E$54),1,IF($E48=$E47,$A47,COUNT($E$5:$E48))))) -> 11 | E48: 0 | G48: 0 | H48: 0 | J48: 0 | AZ48: 44 | BC48: 0 | BD48: 0 | BF48: 44
A49: =IF(J$2="","",IF($E49="","",IF($E49=MAX($E$5:$E$54),1,IF($E49=$E48,$A48,COUNT($E$5:$E49))))) -> 11 | E49: 0 | G49: 0 | H49: 0 | J49: 0 | AZ49: 45 | BC49: 0 | BD49: 0 | BF49: 45
A50: =IF(J$2="","",IF($E50="","",IF($E50=MAX($E$5:$E$54),1,IF($E50=$E49,$A49,COUNT($E$5:$E50))))) -> 11 | E50: 0 | G50: 0 | H50: 0 | J50: 0 | AZ50: 46 | BC50: 0 | BD50: 0 | BF50: 46
A51: =IF(J$2="","",IF($E51="","",IF($E51=MAX($E$5:$E$54),1,IF($E51=$E50,$A50,COUNT($E$5:$E51))))) -> 11 | E51: 0 | G51: 0 | H51: 0 | J51: 0 | AZ51: 47 | BC51: 0 | BD51: 0 | BF51: 47
A52: =IF(J$2="","",IF($E52="","",IF($E52=MAX($E$5:$E$54),1,IF($E52=$E51,$A51,COUNT($E$5:$E52))))) -> 11 | E52: 0 | G52: 0 | H52: 0 | J52: 0 | AZ52: 48 | BC52: 0 | BD52: 0 | BF52: 48
A53: =IF(J$2="","",IF($E53="","",IF($E53=MAX($E$5:$E$54),1,IF($E53=$E52,$A52,COUNT($E$5:$E53))))) -> 11 | E53: 0 | G53: 0 | H53: 0 | J53: 0 | AZ53: 49 | BC53: 0 | BD53: 0 | BF53: 49
A54: =IF(J$2="","",IF($E54="","",IF($E54=MAX($E$5:$E$54),1,IF($E54=$E53,$A53,COUNT($E$5:$E54))))) -> 11 | E54: 0 | G54: 0 | H54: 0 | J54: 0 | AZ54: 50 | BC54: 0 | BD54: 0 | BF54: 50
D59: punteggi torneo ordinati per # di coppia
B60: # coppia | E60: con zeri | F60: senza zeri | G60: senza zeri
B61: 1 | E61: 38.88888889 | F61: =IF(E61=0,"",E61) -> 38.88888889 | G61: 38.88888889 | I61: =IF(H61=0,"",H61) ->  | BF61: 8
B62: 2 | E62: 47.22222222 | F62: 47.22222222 | G62: 47.22222222 | BF62: 12
B63: 3 | E63: 60.41666667 | F63: 60.41666667 | G63: 60.41666667 | I63: =IF(H63=0,"",H63) ->  | BF63: 10
B64: 4 | E64: 45.83333333 | F64: 45.83333333 | G64: 45.83333333 | BF64: 3
B65: 5 | E65: 43.05555556 | F65: 43.05555556 | G65: 43.05555556 | I65: =IF(H65=0,"",H65) ->  | BF65: 5
B66: 6 | E66: 63.19444444 | F66: 63.19444444 | G66: 63.19444444 | BF66: 4
B67: 7 | E67: 58.33333333 | F67: 58.33333333 | G67: 58.33333333 | BF67: 13
B68: 8 | E68: 49.30555556 | F68: 49.30555556 | G68: 49.30555556 | I68: =IF(H68=0,"",H68) ->  | BF68: 7
B69: 9 | E69: 41.66666667 | F69: 41.66666667 | G69: 41.66666667 | I69: =IF(H69=0,"",H69) ->  | BF69: 1
B70: 10 | E70: 52.08333333 | F70: 52.08333333 | G70: 52.08333333 | BF70: 2
E71: 0 | BF71: 6
E72: 0 | BF72: 9
E73: 0 | I73: =IF(H73=0,"",H73) ->  | BF73: 11
E74: 0 | I74: =IF(H74=0,"",H74) ->  | BF74: 14
E75: 0 | I75: =IF(H75=0,"",H75) ->  | BF75: 15
E76: 0 | I76: =IF(H76=0,"",H76) ->  | BF76: 16
E77: 0 | BF77: 17
E78: 0 | BF78: 18
E79: 0 | I79: =IF(H79=0,"",H79) ->  | BF79: 19
E80: 0 | I80: =IF(H80=0,"",H80) ->  | BF80: 20
E81: 0 | BF81: 21
E82: 0 | BF82: 22
E83: 0 | BF83: 23
E84: 0 | BF84: 24
E85: 0 | BF85: 25
E86: 0 | BF86: 26
E87: 0 | BF87: 27
E88: 0 | BF88: 28
E89: 0 | BF89: 29
E90: 0 | BF90: 30
E91: 0 | BF91: 31
E92: 0 | BF92: 32
E93: 0 | F93: =IF(E93=0,"",E93) ->  | BF93: 33
E94: 0 | BF94: 34
E95: 0 | BF95: 35
E96: 0 | BF96: 36
E97: 0 | BF97: 37
E98: 0 | BF98: 38
E99: 0 | BF99: 39
E100: 0 | BF100: 40
E101: 0 | BF101: 41
E102: 0 | BF102: 42
E103: 0 | BF103: 43
E104: 0 | BF104: 44
E105: 0 | BF105: 45
E106: 0 | BF106: 46
E107: 0 | BF107: 47
E108: 0 | BF108: 48
E109: 0 | BF109: 49
E110: 0 | BF110: 50
A119: PTS ordinati per numero standard di coppia base
A120: #STD | B120: PTS
A121: 1 | B121: 4 | E121: 41.66666667 | F121: =IF(E121=0,"",E121) -> 41.66666667 | G121: 41.66666667 | I121: =IF(H121=0,"",H121) ->  | BF121: 1
A122: 2 | B122: 12 | E122: 52.08333333 | F122: 52.08333333 | G122: 52.08333333 | BF122: 2
A123: 3 | B123: 8 | E123: 45.83333333 | F123: 45.83333333 | G123: 45.83333333 | BF123: 3
A124: 4 | B124: 16 | E124: 63.19444444 | F124: 63.19444444 | G124: 63.19444444 | BF124: 4
A125: 5 | B125: 6 | E125: 43.05555556 | F125: 43.05555556 | G125: 43.05555556 | I125: =IF(H125=0,"",H125) ->  | BF125: 5
A126: 6 | E126: 0 | BF126: 6
A127: 7 | B127: 10 | E127: 49.30555556 | F127: 49.30555556 | G127: 49.30555556 | I127: =IF(H127=0,"",H127) ->  | BF127: 7
A128: 8 | B128: 2 | E128: 38.88888889 | F128: 38.88888889 | G128: 38.88888889 | I128: =IF(H128=0,"",H128) ->  | BF128: 8
A129: 9 | E129: 0 | BF129: 9
A130: 10 | B130: 14 | E130: 60.41666667 | F130: 60.41666667 | G130: 60.41666667 | I130: =IF(H130=0,"",H130) ->  | BF130: 10
A131: 11 | E131: 0 | I131: =IF(H131=0,"",H131) ->  | BF131: 11
BE200: formule punti coppie base
BE201: =IF(BD201=0,"",IF(AZ201>11,"",IF(BD201=BD200,BE200,2*(D$3-BG201)+3-COUNTIF(BG$5:BG$54,BG201)))) -> 
BE202: =IF(BD202=0,"",IF(AZ202>11,"",IF(BD202=BD201,BE201,2*(D$3-BG202)+3-COUNTIF(BG$5:BG$54,BG202)))) -> 

Sheet 9feb
A1: Data | C1: 2019-02-09 | D1: BridgeMania 2018-19 - Torneo Mitchell scrambled
A2: luogo | C2: Simonelli | D2: Coppie Ctrl+e | E2: Calcola Ctr+f Ctr+i | F2: Duplica Ctrl+g | G2: Clear Ctrl+h | J2: &
A3: # coppie / # c.base | C3: =IF(B5="","",COUNT(B5:B54)) -> 9 | D3: =SUM(AY5:AY54) -> 9 | E3: =IF(E5="","",SUMIF(E5:E54,">0")) -> 450 | G3: =IF(G5="","",SUM(G5:G54)) -> 450 | H3: =IF(H5="","",SUM(H5:H54)) -> 486 | I3: =SUM(I5:I54) -> 0 | J3: =SUM(J5:J54) -> 486 | K3: =SUM(K5:K54) -> 27 | L3: =SUM(L5:L54) -> 27 | M3: 27 | N3: 27 | O3: 27 | P3: 27 | Q3: 27 | R3: 27 | S3: 27 | T3: 27 | U3: 27 | V3: 27 | W3: 27 | X3: 27 | Y3: 27 | Z3: 27 | AA3: 27 | AB3: 27 | AC3: 0 | AD3: 0 | AE3: 0 | AF3: 0 | AG3: 0 | AH3: 0 | AI3: 0 | AJ3: 0 | AK3: 0 | AL3: 0 | AM3: 0 | AN3: 0 | AO3: 0 | AP3: 0 | AQ3: 0 | AR3: 0 | AS3: 0 | AT3: 0 | AU3: 0 | AV3: 0 | AW3: 0 | AX3: 0
A4: Class. | B4: # | C4: Coppie | E4: Punteggio Serata | G4: Punteggio % | H4: Punteggio Torneo | I4: Penalità (-) | J4: Totale punti mano | K4: 1 | L4: 2 | M4: 3 | N4: 4 | O4: 5 | P4: 6 | Q4: 7 | R4: 8 | S4: 9 | T4: 10 | U4: 11 | V4: 12 | W4: 13 | X4: 14 | Y4: 15 | Z4: 16 | AA4: 17 | AB4: 18 | AC4: 19 | AD4: 20 | AE4: 21 | AF4: 22 | AG4: 23 | AH4: 24 | AI4: 25 | AJ4: 26 | AK4: 27 | AL4: 28 | AM4: 29 | AN4: 30 | AO4: 31 | AP4: 32 | AQ4: 33 | AR4: 34 | AS4: 35 | AT4: 36 | AU4: 37 | AV4: 38 | AW4: 39 | AX4: 40 | AY4: c.base presenti | AZ4: ordine c.base ad hoc | BC4: punteggi | BD4: punteggi c. base presenti | BE4: punti PTS coppie base | BF4: ordine c.base STD | BG4: Rank
A5: =IF(J$2="","",IF($E5="","",IF($E5=MAX($E$5:$E$54),1,IF($E5=$E4,$A4,COUNT($E$5:$E5))))) -> 1 | B5: 5 | C5: Cesarina | D5: Gaetano | E5: =IF(J$2="","",IF(G5=0,0,F5+G5)) -> 58.33333333 | G5: =IF(J$2="","",IF($J5=0,0,(H5*$C$3/$J$3)*50)) -> 58.33333333 | H5: =IF(J$2="","",IF(SUM($K5:$AX5)=0,0,SUM($K5:$AX5)+$I5)) -> 63 | J5: =IF(B5="",0,IF(SUM($K5:$AX5)=0,0,SUM($K5:$AX5))) -> 63 | K5: 4 | L5: 4 | M5: 2 | N5: 5 | O5: 0 | P5: 5 | Q5: 6 | R5: 0 | S5: 3 | T5: 3 | U5: 2 | V5: 5 | W5: 6 | X5: 6 | Y5: 5 | Z5: 2 | AA5: 1 | AB5: 4 | AY5: =IF(BF5>11,"",IF(B5="","",1)) -> 1 | AZ5: 3 | BA5: Cesarina | BB5: Gaetano | BC5: 58.33333333 | BD5: =IF(AZ5>11,0,BC5) -> 58.33333333 | BE5: =IF(BD5=0,"",IF(AZ5>11,"",IF(BD5=BD4,BE4,2*(D$3-BG5)+3-COUNTIF(BG$5:BG$54,BG5)))) -> 18 | BF5: 3 | BG5: =RANK(BD5,BD$5:BD$15) -> 1
A6: =IF(J$2="","",IF($E6="","",IF($E6=MAX($E$5:$E$54),1,IF($E6=$E5,$A5,COUNT($E$5:$E6))))) -> 2 | B6: 8 | C6: Stefania | D6: Massimo | E6: 57.40740741 | G6: 57.40740741 | H6: 62 | J6: 62 | K6: 4 | L6: 6 | M6: 6 | N6: 0 | O6: 6 | P6: 5 | Q6: 1 | R6: 4 | S6: 4 | T6: 0 | U6: 4 | V6: 1 | W6: 6 | X6: 6 | Y6: 3 | Z6: 3 | AA6: 1 | AB6: 2 | AY6: 1 | AZ6: 10 | BA6: Stefania | BB6: Massimo | BC6: 57.40740741 | BD6: 57.40740741 | BE6: =IF(BD6=0,"",IF(AZ6>11,"",IF(BD6=BD5,BE5,2*(D$3-BG6)+3-COUNTIF(BG$5:BG$54,BG6)))) -> 16 | BF6: 10 | BG6: 2
A7: =IF(J$2="","",IF($E7="","",IF($E7=MAX($E$5:$E$54),1,IF($E7=$E6,$A6,COUNT($E$5:$E7))))) -> 3 | B7: 2 | C7: Barbara | D7: Elio | E7: 54.62962963 | G7: 54.62962963 | H7: 59 | J7: 59 | K7: 0 | L7: 4 | M7: 3 | N7: 3 | O7: 6 | P7: 1 | Q7: 5 | R7: 4 | S7: 4 | T7: 4 | U7: 4 | V7: 1 | W7: 4 | X7: 4 | Y7: 1 | Z7: 2 | AA7: 5 | AB7: 4 | AY7: 1 | AZ7: 2 | BA7: Barbara | BB7: Elio | BC7: 54.62962963 | BD7: 54.62962963 | BE7: 13 | BF7: 2 | BG7: 3
A8: =IF(J$2="","",IF($E8="","",IF($E8=MAX($E$5:$E$54),1,IF($E8=$E7,$A7,COUNT($E$5:$E8))))) -> 3 | B8: 7 | C8: Olimpia | D8: Sauro | E8: 54.62962963 | G8: 54.62962963 | H8: 59 | J8: 59 | K8: 6 | L8: 2 | M8: 4 | N8: 4 | O8: 4 | P8: 0 | Q8: 5 | R8: 2 | S8: 2 | T8: 0 | U8: 0 | V8: 6 | W8: 3 | X8: 3 | Y8: 5 | Z8: 6 | AA8: 5 | AB8: 2 | AY8: 1 | AZ8: 8 | BA8: Olimpia | BB8: Sauro | BC8: 54.62962963 | BD8: 54.62962963 | BE8: 13 | BF8: 8 | BG8: 3
A9: =IF(J$2="","",IF($E9="","",IF($E9=MAX($E$5:$E$54),1,IF($E9=$E8,$A8,COUNT($E$5:$E9))))) -> 5 | B9: 6 | C9: Elena | D9: Stefano | E9: 52.77777778 | G9: 52.77777778 | H9: 57 | J9: 57 | K9: 2 | L9: 0 | M9: 4 | N9: 1 | O9: 2 | P9: 6 | Q9: 4 | R9: 6 | S9: 2 | T9: 2 | U9: 3 | V9: 3 | W9: 4 | X9: 4 | Y9: 1 | Z9: 2 | AA9: 5 | AB9: 6 | AY9: 1 | AZ9: 4 | BA9: Elena | BB9: Stefano | BC9: 52.77777778 | BD9: 52.77777778 | BE9: 10 | BF9: 4 | BG9: 5
A10: =IF(J$2="","",IF($E10="","",IF($E10=MAX($E$5:$E$54),1,IF($E10=$E9,$A9,COUNT($E$5:$E10))))) -> 6 | B10: 4 | C10: Manuela | D10: Roberto | E10: 50 | G10: 50 | H10: 54 | J10: 54 | K10: 2 | L10: 2 | M10: 4 | N10: 1 | O10: 2 | P10: 2 | Q10: 3 | R10: 3 | S10: 4 | T10: 6 | U10: 2 | V10: 5 | W10: 0 | X10: 0 | Y10: 5 | Z10: 4 | AA10: 5 | AB10: 4 | AY10: 1 | AZ10: 7 | BA10: Manuela | BB10: Roberto | BC10: 50 | BD10: 50 | BE10: 8 | BF10: 7 | BG10: 6
A11: =IF(J$2="","",IF($E11="","",IF($E11=MAX($E$5:$E$54),1,IF($E11=$E10,$A10,COUNT($E$5:$E11))))) -> 7 | B11: 1 | C11: Tatiana | D11: Julio | E11: 40.74074074 | G11: 40.74074074 | H11: 44 | J11: 44 | K11: 3 | L11: 3 | M11: 2 | N11: 5 | O11: 0 | P11: 1 | Q11: 0 | R11: 6 | S11: 6 | T11: 4 | U11: 4 | V11: 4 | W11: 2 | X11: 2 | Y11: 1 | Z11: 0 | AA11: 1 | AB11: 0 | AY11: 1 | AZ11: 1 | BA11: Antonella | BB11: Dino | BC11: 40.74074074 | BD11: 40.74074074 | BE11: 4 | BF11: 11 | BG11: 7
A12: =IF(J$2="","",IF($E12="","",IF($E12=MAX($E$5:$E$54),1,IF($E12=$E11,$A11,COUNT($E$5:$E12))))) -> 7 | B12: 3 | C12: Lilli | D12: Gianni | E12: 40.74074074 | G12: 40.74074074 | H12: 44 | J12: 44 | K12: 6 | L12: 4 | M12: 0 | N12: 6 | O12: 3 | P12: 3 | Q12: 2 | R12: 0 | S12: 0 | T12: 2 | U12: 6 | V12: 0 | W12: 0 | X12: 0 | Y12: 5 | Z12: 4 | AA12: 1 | AB12: 2 | AY12: 1 | AZ12: 6 | BA12: Lilli | BB12: Gianni | BC12: 40.74074074 | BD12: 40.74074074 | BE12: 4 | BF12: 6 | BG12: 7
A13: =IF(J$2="","",IF($E13="","",IF($E13=MAX($E$5:$E$54),1,IF($E13=$E12,$A12,COUNT($E$5:$E13))))) -> 7 | B13: 9 | C13: Antonella | D13: Dino | E13: 40.74074074 | G13: 40.74074074 | H13: 44 | J13: 44 | K13: 0 | L13: 2 | M13: 2 | N13: 2 | O13: 4 | P13: 4 | Q13: 1 | R13: 2 | S13: 2 | T13: 6 | U13: 2 | V13: 2 | W13: 2 | X13: 2 | Y13: 1 | Z13: 4 | AA13: 3 | AB13: 3 | AY13: 1 | AZ13: 11 | BA13: Tatiana | BB13: Julio | BC13: 40.74074074 | BD13: 40.74074074 | BE13: 4 | BF13: 1 | BG13: 7
A14: =IF(J$2="","",IF($E14="","",IF($E14=MAX($E$5:$E$54),1,IF($E14=$E13,$A13,COUNT($E$5:$E14))))) -> 10 | E14: 0 | G14: 0 | H14: 0 | J14: 0 | AZ14: 5 | BC14: 0 | BD14: 0 | BF14: 5 | BG14: 10
A15: =IF(J$2="","",IF($E15="","",IF($E15=MAX($E$5:$E$54),1,IF($E15=$E14,$A14,COUNT($E$5:$E15))))) -> 10 | E15: 0 | G15: 0 | H15: 0 | J15: 0 | AZ15: 9 | BC15: 0 | BD15: 0 | BF15: 9 | BG15: 10
A16: =IF(J$2="","",IF($E16="","",IF($E16=MAX($E$5:$E$54),1,IF($E16=$E15,$A15,COUNT($E$5:$E16))))) -> 10 | E16: 0 | G16: 0 | H16: 0 | J16: 0 | AZ16: 12 | BC16: 0 | BD16: 0 | BF16: 12 | BG16: 10
A17: =IF(J$2="","",IF($E17="","",IF($E17=MAX($E$5:$E$54),1,IF($E17=$E16,$A16,COUNT($E$5:$E17))))) -> 10 | E17: 0 | G17: 0 | H17: 0 | J17: 0 | AZ17: 13 | BC17: 0 | BD17: 0 | BF17: 13
A18: =IF(J$2="","",IF($E18="","",IF($E18=MAX($E$5:$E$54),1,IF($E18=$E17,$A17,COUNT($E$5:$E18))))) -> 10 | E18: 0 | G18: 0 | H18: 0 | J18: 0 | AZ18: 14 | BC18: 0 | BD18: 0 | BF18: 14 | BG18: =RANK(BD18,BD$5:BD$15) -> 10
A19: =IF(J$2="","",IF($E19="","",IF($E19=MAX($E$5:$E$54),1,IF($E19=$E18,$A18,COUNT($E$5:$E19))))) -> 10 | E19: 0 | G19: 0 | H19: 0 | J19: 0 | AZ19: 15 | BC19: 0 | BD19: 0 | BF19: 15 | BG19: =RANK(BD19,BD$5:BD$15) -> 10
A20: =IF(J$2="","",IF($E20="","",IF($E20=MAX($E$5:$E$54),1,IF($E20=$E19,$A19,COUNT($E$5:$E20))))) -> 10 | E20: 0 | G20: 0 | H20: 0 | J20: 0 | AZ20: 16 | BC20: 0 | BD20: 0 | BF20: 16 | BG20: =RANK(BD20,BD$5:BD$15) -> 10
A21: =IF(J$2="","",IF($E21="","",IF($E21=MAX($E$5:$E$54),1,IF($E21=$E20,$A20,COUNT($E$5:$E21))))) -> 10 | E21: 0 | G21: 0 | H21: 0 | J21: 0 | AZ21: 17 | BC21: 0 | BD21: 0 | BF21: 17
A22: =IF(J$2="","",IF($E22="","",IF($E22=MAX($E$5:$E$54),1,IF($E22=$E21,$A21,COUNT($E$5:$E22))))) -> 10 | E22: 0 | G22: 0 | H22: 0 | J22: 0 | AZ22: 18 | BC22: 0 | BD22: 0 | BF22: 18
A23: =IF(J$2="","",IF($E23="","",IF($E23=MAX($E$5:$E$54),1,IF($E23=$E22,$A22,COUNT($E$5:$E23))))) -> 10 | E23: 0 | G23: 0 | H23: 0 | J23: 0 | AZ23: 19 | BC23: 0 | BD23: 0 | BF23: 19 | BG23: =RANK(BD23,BD$5:BD$15) -> 10
A24: =IF(J$2="","",IF($E24="","",IF($E24=MAX($E$5:$E$54),1,IF($E24=$E23,$A23,COUNT($E$5:$E24))))) -> 10 | E24: 0 | G24: 0 | H24: 0 | J24: 0 | AZ24: 20 | BC24: 0 | BD24: 0 | BF24: 20 | BG24: =RANK(BD24,BD$5:BD$15) -> 10
A25: =IF(J$2="","",IF($E25="","",IF($E25=MAX($E$5:$E$54),1,IF($E25=$E24,$A24,COUNT($E$5:$E25))))) -> 10 | E25: 0 | G25: 0 | H25: 0 | J25: 0 | AZ25: 21 | BC25: 0 | BD25: 0 | BF25: 21
A26: =IF(J$2="","",IF($E26="","",IF($E26=MAX($E$5:$E$54),1,IF($E26=$E25,$A25,COUNT($E$5:$E26))))) -> 10 | E26: 0 | G26: 0 | H26: 0 | J26: 0 | AZ26: 22 | BC26: 0 | BD26: 0 | BF26: 22 | BG26: =RANK(BD26,BD$5:BD$15) -> 10
A27: =IF(J$2="","",IF($E27="","",IF($E27=MAX($E$5:$E$54),1,IF($E27=$E26,$A26,COUNT($E$5:$E27))))) -> 10 | E27: 0 | G27: 0 | H27: 0 | J27: 0 | AZ27: 23 | BC27: 0 | BD27: 0 | BF27: 23 | BG27: =RANK(BD27,BD$5:BD$15) -> 10
A28: =IF(J$2="","",IF($E28="","",IF($E28=MAX($E$5:$E$54),1,IF($E28=$E27,$A27,COUNT($E$5:$E28))))) -> 10 | E28: 0 | G28: 0 | H28: 0 | J28: 0 | AZ28: 24 | BC28: 0 | BD28: 0 | BF28: 24 | BG28: =RANK(BD28,BD$5:BD$15) -> 10
A29: =IF(J$2="","",IF($E29="","",IF($E29=MAX($E$5:$E$54),1,IF($E29=$E28,$A28,COUNT($E$5:$E29))))) -> 10 | E29: 0 | G29: 0 | H29: 0 | J29: 0 | AZ29: 25 | BC29: 0 | BD29: 0 | BF29: 25
A30: =IF(J$2="","",IF($E30="","",IF($E30=MAX($E$5:$E$54),1,IF($E30=$E29,$A29,COUNT($E$5:$E30))))) -> 10 | E30: 0 | G30: 0 | H30: 0 | J30: 0 | AZ30: 26 | BC30: 0 | BD30: 0 | BF30: 26
A31: =IF(J$2="","",IF($E31="","",IF($E31=MAX($E$5:$E$54),1,IF($E31=$E30,$A30,COUNT($E$5:$E31))))) -> 10 | E31: 0 | G31: 0 | H31: 0 | J31: 0 | AZ31: 27 | BC31: 0 | BD31: 0 | BF31: 27
A32: =IF(J$2="","",IF($E32="","",IF($E32=MAX($E$5:$E$54),1,IF($E32=$E31,$A31,COUNT($E$5:$E32))))) -> 10 | E32: 0 | G32: 0 | H32: 0 | J32: 0 | AZ32: 28 | BC32: 0 | BD32: 0 | BF32: 28
A33: =IF(J$2="","",IF($E33="","",IF($E33=MAX($E$5:$E$54),1,IF($E33=$E32,$A32,COUNT($E$5:$E33))))) -> 10 | E33: 0 | G33: 0 | H33: 0 | J33: 0 | AZ33: 29 | BC33: 0 | BD33: 0 | BF33: 29
A34: =IF(J$2="","",IF($E34="","",IF($E34=MAX($E$5:$E$54),1,IF($E34=$E33,$A33,COUNT($E$5:$E34))))) -> 10 | E34: 0 | G34: 0 | H34: 0 | J34: 0 | AZ34: 30 | BC34: 0 | BD34: 0 | BF34: 30
A35: =IF(J$2="","",IF($E35="","",IF($E35=MAX($E$5:$E$54),1,IF($E35=$E34,$A34,COUNT($E$5:$E35))))) -> 10 | E35: 0 | G35: 0 | H35: 0 | J35: 0 | AZ35: 31 | BC35: 0 | BD35: 0 | BF35: 31
A36: =IF(J$2="","",IF($E36="","",IF($E36=MAX($E$5:$E$54),1,IF($E36=$E35,$A35,COUNT($E$5:$E36))))) -> 10 | E36: 0 | G36: 0 | H36: 0 | J36: 0 | AZ36: 32 | BC36: 0 | BD36: 0 | BF36: 32
A37: =IF(J$2="","",IF($E37="","",IF($E37=MAX($E$5:$E$54),1,IF($E37=$E36,$A36,COUNT($E$5:$E37))))) -> 10 | E37: =IF(J$2="","",IF(G37=0,0,F37+G37)) -> 0 | G37: =IF(J$2="","",IF($J37=0,0,(H37*$C$3/$J$3)*50)) -> 0 | H37: =IF(J$2="","",IF(SUM($K37:$AX37)=0,0,SUM($K37:$AX37)+$I37)) -> 0 | J37: =IF(B37="",0,IF(SUM($K37:$AX37)=0,0,SUM($K37:$AX37))) -> 0 | AY37: =IF(BF37>11,"",IF(B37="","",1)) ->  | AZ37: 33 | BC37: 0 | BD37: =IF(AZ37>11,0,BC37) -> 0 | BF37: 33
A38: =IF(J$2="","",IF($E38="","",IF($E38=MAX($E$5:$E$54),1,IF($E38=$E37,$A37,COUNT($E$5:$E38))))) -> 10 | E38: 0 | G38: 0 | H38: 0 | J38: 0 | AZ38: 34 | BC38: 0 | BD38: 0 | BF38: 34
A39: =IF(J$2="","",IF($E39="","",IF($E39=MAX($E$5:$E$54),1,IF($E39=$E38,$A38,COUNT($E$5:$E39))))) -> 10 | E39: 0 | G39: 0 | H39: 0 | J39: 0 | AZ39: 35 | BC39: 0 | BD39: 0 | BF39: 35
A40: =IF(J$2="","",IF($E40="","",IF($E40=MAX($E$5:$E$54),1,IF($E40=$E39,$A39,COUNT($E$5:$E40))))) -> 10 | E40: 0 | G40: 0 | H40: 0 | J40: 0 | AZ40: 36 | BC40: 0 | BD40: 0 | BF40: 36
A41: =IF(J$2="","",IF($E41="","",IF($E41=MAX($E$5:$E$54),1,IF($E41=$E40,$A40,COUNT($E$5:$E41))))) -> 10 | E41: 0 | G41: 0 | H41: 0 | J41: 0 | AZ41: 37 | BC41: 0 | BD41: 0 | BF41: 37
A42: =IF(J$2="","",IF($E42="","",IF($E42=MAX($E$5:$E$54),1,IF($E42=$E41,$A41,COUNT($E$5:$E42))))) -> 10 | E42: 0 | G42: 0 | H42: 0 | J42: 0 | AZ42: 38 | BC42: 0 | BD42: 0 | BF42: 38
A43: =IF(J$2="","",IF($E43="","",IF($E43=MAX($E$5:$E$54),1,IF($E43=$E42,$A42,COUNT($E$5:$E43))))) -> 10 | E43: 0 | G43: 0 | H43: 0 | J43: 0 | AZ43: 39 | BC43: 0 | BD43: 0 | BF43: 39
A44: =IF(J$2="","",IF($E44="","",IF($E44=MAX($E$5:$E$54),1,IF($E44=$E43,$A43,COUNT($E$5:$E44))))) -> 10 | E44: 0 | G44: 0 | H44: 0 | J44: 0 | AZ44: 40 | BC44: 0 | BD44: 0 | BF44: 40
A45: =IF(J$2="","",IF($E45="","",IF($E45=MAX($E$5:$E$54),1,IF($E45=$E44,$A44,COUNT($E$5:$E45))))) -> 10 | E45: 0 | G45: 0 | H45: 0 | J45: 0 | AZ45: 41 | BC45: 0 | BD45: 0 | BF45: 41
A46: =IF(J$2="","",IF($E46="","",IF($E46=MAX($E$5:$E$54),1,IF($E46=$E45,$A45,COUNT($E$5:$E46))))) -> 10 | E46: 0 | G46: 0 | H46: 0 | J46: 0 | AZ46: 42 | BC46: 0 | BD46: 0 | BF46: 42
A47: =IF(J$2="","",IF($E47="","",IF($E47=MAX($E$5:$E$54),1,IF($E47=$E46,$A46,COUNT($E$5:$E47))))) -> 10 | E47: 0 | G47: 0 | H47: 0 | J47: 0 | AZ47: 43 | BC47: 0 | BD47: 0 | BF47: 43
A48: =IF(J$2="","",IF($E48="","",IF($E48=MAX($E$5:$E$54),1,IF($E48=$E47,$A47,COUNT($E$5:$E48))))) -> 10 | E48: 0 | G48: 0 | H48: 0 | J48: 0 | AZ48: 44 | BC48: 0 | BD48: 0 | BF48: 44
A49: =IF(J$2="","",IF($E49="","",IF($E49=MAX($E$5:$E$54),1,IF($E49=$E48,$A48,COUNT($E$5:$E49))))) -> 10 | E49: 0 | G49: 0 | H49: 0 | J49: 0 | AZ49: 45 | BC49: 0 | BD49: 0 | BF49: 45
A50: =IF(J$2="","",IF($E50="","",IF($E50=MAX($E$5:$E$54),1,IF($E50=$E49,$A49,COUNT($E$5:$E50))))) -> 10 | E50: 0 | G50: 0 | H50: 0 | J50: 0 | AZ50: 46 | BC50: 0 | BD50: 0 | BF50: 46
A51: =IF(J$2="","",IF($E51="","",IF($E51=MAX($E$5:$E$54),1,IF($E51=$E50,$A50,COUNT($E$5:$E51))))) -> 10 | E51: 0 | G51: 0 | H51: 0 | J51: 0 | AZ51: 47 | BC51: 0 | BD51: 0 | BF51: 47
A52: =IF(J$2="","",IF($E52="","",IF($E52=MAX($E$5:$E$54),1,IF($E52=$E51,$A51,COUNT($E$5:$E52))))) -> 10 | E52: 0 | G52: 0 | H52: 0 | J52: 0 | AZ52: 48 | BC52: 0 | BD52: 0 | BF52: 48
A53: =IF(J$2="","",IF($E53="","",IF($E53=MAX($E$5:$E$54),1,IF($E53=$E52,$A52,COUNT($E$5:$E53))))) -> 10 | E53: 0 | G53: 0 | H53: 0 | J53: 0 | AZ53: 49 | BC53: 0 | BD53: 0 | BF53: 49
A54: =IF(J$2="","",IF($E54="","",IF($E54=MAX($E$5:$E$54),1,IF($E54=$E53,$A53,COUNT($E$5:$E54))))) -> 10 | E54: 0 | G54: 0 | H54: 0 | J54: 0 | AZ54: 50 | BC54: 0 | BD54: 0 | BF54: 50
D59: punteggi torneo ordinati per # di coppia
B60: # coppia | E60: con zeri | F60: senza zeri | G60: senza zeri
B61: 1 | E61: 40.74074074 | F61: =IF(E61=0,"",E61) -> 40.74074074 | G61: 40.74074074 | I61: =IF(H61=0,"",H61) ->  | BF61: 11
B62: 2 | E62: 54.62962963 | F62: 54.62962963 | G62: 54.62962963 | BF62: 2
B63: 3 | E63: 40.74074074 | F63: 40.74074074 | G63: 40.74074074 | I63: =IF(H63=0,"",H63) ->  | BF63: 6
B64: 4 | E64: 50 | F64: 50 | G64: 50 | BF64: 7
B65: 5 | E65: 58.33333333 | F65: 58.33333333 | G65: 58.33333333 | I65: =IF(H65=0,"",H65) ->  | BF65: 3
B66: 6 | E66: 52.77777778 | F66: 52.77777778 | G66: 52.77777778 | BF66: 4
B67: 7 | E67: 54.62962963 | F67: 54.62962963 | G67: 54.62962963 | BF67: 8
B68: 8 | E68: 57.40740741 | F68: 57.40740741 | G68: 57.40740741 | I68: =IF(H68=0,"",H68) ->  | BF68: 10
B69: 9 | E69: 40.74074074 | F69: 40.74074074 | G69: 40.74074074 | I69: =IF(H69=0,"",H69) ->  | BF69: 1
E70: 0 | BF70: 5
E71: 0 | BF71: 9
E72: 0 | BF72: 12
E73: 0 | I73: =IF(H73=0,"",H73) ->  | BF73: 13
E74: 0 | I74: =IF(H74=0,"",H74) ->  | BF74: 14
E75: 0 | I75: =IF(H75=0,"",H75) ->  | BF75: 15
E76: 0 | I76: =IF(H76=0,"",H76) ->  | BF76: 16
E77: 0 | BF77: 17
E78: 0 | BF78: 18
E79: 0 | I79: =IF(H79=0,"",H79) ->  | BF79: 19
E80: 0 | I80: =IF(H80=0,"",H80) ->  | BF80: 20
E81: 0 | BF81: 21
E82: 0 | BF82: 22
E83: 0 | BF83: 23
E84: 0 | BF84: 24
E85: 0 | BF85: 25
E86: 0 | BF86: 26
E87: 0 | BF87: 27
E88: 0 | BF88: 28
E89: 0 | BF89: 29
E90: 0 | BF90: 30
E91: 0 | BF91: 31
E92: 0 | BF92: 32
E93: 0 | F93: =IF(E93=0,"",E93) ->  | BF93: 33
E94: 0 | BF94: 34
E95: 0 | BF95: 35
E96: 0 | BF96: 36
E97: 0 | BF97: 37
E98: 0 | BF98: 38
E99: 0 | BF99: 39
E100: 0 | BF100: 40
E101: 0 | BF101: 41
E102: 0 | BF102: 42
E103: 0 | BF103: 43
E104: 0 | BF104: 44
E105: 0 | BF105: 45
E106: 0 | BF106: 46
E107: 0 | BF107: 47
E108: 0 | BF108: 48
E109: 0 | BF109: 49
E110: 0 | BF110: 50
A119: PTS ordinati per numero standard di coppia base
A120: #STD | B120: PTS
A121: 1 | B121: 4 | E121: 40.74074074 | F121: =IF(E121=0,"",E121) -> 40.74074074 | G121: 40.74074074 | I121: =IF(H121=0,"",H121) ->  | BF121: 1
A122: 2 | B122: 13 | E122: 54.62962963 | F122: 54.62962963 | G122: 54.62962963 | BF122: 2
A123: 3 | B123: 18 | E123: 58.33333333 | F123: 58.33333333 | G123: 58.33333333 | I123: =IF(H123=0,"",H123) ->  | BF123: 3
A124: 4 | B124: 10 | E124: 52.77777778 | F124: 52.77777778 | G124: 52.77777778 | BF124: 4
A125: 5 | E125: 0 | BF125: 5
A126: 6 | B126: 4 | E126: 40.74074074 | F126: 40.74074074 | G126: 40.74074074 | I126: =IF(H126=0,"",H126) ->  | BF126: 6
A127: 7 | B127: 8 | E127: 50 | F127: 50 | G127: 50 | BF127: 7
A128: 8 | B128: 13 | E128: 54.62962963 | F128: 54.62962963 | G128: 54.62962963 | BF128: 8
A129: 9 | E129: 0 | BF129: 9
A130: 10 | B130: 16 | E130: 57.40740741 | F130: 57.40740741 | G130: 57.40740741 | I130: =IF(H130=0,"",H130) ->  | BF130: 10
A131: 11 | B131: 4 | E131: 40.74074074 | F131: 40.74074074 | G131: 40.74074074 | I131: =IF(H131=0,"",H131) ->  | BF131: 11
BE200: formule punti coppie base
BE201: =IF(BD201=0,"",IF(AZ201>11,"",IF(BD201=BD200,BE200,2*(D$3-BG201)+3-COUNTIF(BG$5:BG$54,BG201)))) -> 
BE202: =IF(BD202=0,"",IF(AZ202>11,"",IF(BD202=BD201,BE201,2*(D$3-BG202)+3-COUNTIF(BG$5:BG$54,BG202)))) -> 

Sheet 26gen
A1: Data | C1: 2019-01-26 | D1: BridgeMania 2018-19 - Torneo Mitchell scrambled
A2: luogo | C2: Savoca | D2: Coppie Ctrl+e | E2: Calcola Ctr+f Ctr+i | F2: Duplica Ctrl+g | G2: Clear Ctrl+h | J2: &
A3: # coppie / # c.base | C3: =IF(B5="","",COUNT(B5:B54)) -> 9 | D3: =SUM(AY5:AY54) -> 9 | E3: =IF(E5="","",SUMIF(E5:E54,">0")) -> 450 | G3: =IF(G5="","",SUM(G5:G54)) -> 450 | H3: =IF(H5="","",SUM(H5:H54)) -> 486 | I3: =SUM(I5:I54) -> 0 | J3: =SUM(J5:J54) -> 486 | K3: =SUM(K5:K54) -> 27 | L3: =SUM(L5:L54) -> 27 | M3: 27 | N3: 27 | O3: 27 | P3: 27 | Q3: 27 | R3: 27 | S3: 27 | T3: 27 | U3: 27 | V3: 27 | W3: 27 | X3: 27 | Y3: 27 | Z3: 27 | AA3: 27 | AB3: 27 | AC3: 0 | AD3: 0 | AE3: 0 | AF3: 0 | AG3: 0 | AH3: 0 | AI3: 0 | AJ3: 0 | AK3: 0 | AL3: 0 | AM3: 0 | AN3: 0 | AO3: 0 | AP3: 0 | AQ3: 0 | AR3: 0 | AS3: 0 | AT3: 0 | AU3: 0 | AV3: 0 | AW3: 0 | AX3: 0
A4: Class. | B4: # | C4: Coppie | E4: Punteggio Serata | G4: Punteggio % | H4: Punteggio Torneo | I4: Penalità (-) | J4: Totale punti mano | K4: 1 | L4: 2 | M4: 3 | N4: 4 | O4: 5 | P4: 6 | Q4: 7 | R4: 8 | S4: 9 | T4: 10 | U4: 11 | V4: 12 | W4: 13 | X4: 14 | Y4: 15 | Z4: 16 | AA4: 17 | AB4: 18 | AC4: 19 | AD4: 20 | AE4: 21 | AF4: 22 | AG4: 23 | AH4: 24 | AI4: 25 | AJ4: 26 | AK4: 27 | AL4: 28 | AM4: 29 | AN4: 30 | AO4: 31 | AP4: 32 | AQ4: 33 | AR4: 34 | AS4: 35 | AT4: 36 | AU4: 37 | AV4: 38 | AW4: 39 | AX4: 40 | AY4: c.base presenti | AZ4: ordine c.base ad hoc | BC4: punteggi | BD4: punteggi c. base presenti | BE4: punti PTS coppie base | BF4: ordine c.base STD | BG4: Rank
A5: =IF(J$2="","",IF($E5="","",IF($E5=MAX($E$5:$E$54),1,IF($E5=$E4,$A4,COUNT($E$5:$E5))))) -> 1 | B5: 1 | C5: Lilli | D5: Gianni | E5: =IF(J$2="","",IF(G5=0,0,F5+G5)) -> 62.03703704 | G5: =IF(J$2="","",IF($J5=0,0,(H5*$C$3/$J$3)*50)) -> 62.03703704 | H5: =IF(J$2="","",IF(SUM($K5:$AX5)=0,0,SUM($K5:$AX5)+$I5)) -> 67 | J5: =IF(B5="",0,IF(SUM($K5:$AX5)=0,0,SUM($K5:$AX5))) -> 67 | K5: 3 | L5: 3 | M5: 2 | N5: 4 | O5: 5 | P5: 2 | Q5: 2 | R5: 4 | S5: 6 | T5: 2 | U5: 4 | V5: 4 | W5: 3 | X5: 6 | Y5: 6 | Z5: 3 | AA5: 2 | AB5: 6 | AY5: =IF(BF5>11,"",IF(B5="","",1)) -> 1 | AZ5: 6 | BA5: Lilli | BB5: Gianni | BC5: 62.03703704 | BD5: =IF(AZ5>11,0,BC5) -> 62.03703704 | BE5: =IF(BD5=0,"",IF(AZ5>11,"",IF(BD5=BD4,BE4,2*(D$3-BG5)+3-COUNTIF(BG$5:BG$54,BG5)))) -> 17 | BF5: 6 | BG5: =RANK(BD5,BD$5:BD$15) -> 1
A6: =IF(J$2="","",IF($E6="","",IF($E6=MAX($E$5:$E$54),1,IF($E6=$E5,$A5,COUNT($E$5:$E6))))) -> 1 | B6: 9 | C6: Stefania | D6: Massimo | E6: 62.03703704 | G6: 62.03703704 | H6: 67 | J6: 67 | K6: 5 | L6: 6 | M6: 0 | N6: 4 | O6: 5 | P6: 5 | Q6: 6 | R6: 2 | S6: 4 | T6: 4 | U6: 2 | V6: 2 | W6: 6 | X6: 2 | Y6: 2 | Z6: 6 | AA6: 3 | AB6: 3 | AY6: 1 | AZ6: 10 | BA6: Stefania | BB6: Massimo | BC6: 62.03703704 | BD6: 62.03703704 | BE6: =IF(BD6=0,"",IF(AZ6>11,"",IF(BD6=BD5,BE5,2*(D$3-BG6)+3-COUNTIF(BG$5:BG$54,BG6)))) -> 17 | BF6: 10 | BG6: 1
A7: =IF(J$2="","",IF($E7="","",IF($E7=MAX($E$5:$E$54),1,IF($E7=$E6,$A6,COUNT($E$5:$E7))))) -> 3 | B7: 6 | C7: Manuela | D7: Roberto | E7: 53.7037037 | G7: 53.7037037 | H7: 58 | J7: 58 | K7: 6 | L7: 4 | M7: 0 | N7: 2 | O7: 0 | P7: 5 | Q7: 1 | R7: 6 | S7: 2 | T7: 6 | U7: 3 | V7: 3 | W7: 0 | X7: 4 | Y7: 6 | Z7: 6 | AA7: 4 | AB7: 0 | AY7: 1 | AZ7: 7 | BA7: Manuela | BB7: Roberto | BC7: 53.7037037 | BD7: 53.7037037 | BE7: 14 | BF7: 7 | BG7: 3
A8: =IF(J$2="","",IF($E8="","",IF($E8=MAX($E$5:$E$54),1,IF($E8=$E7,$A7,COUNT($E$5:$E8))))) -> 4 | B8: 5 | C8: Olimpia | D8: Sauro | E8: 50.92592593 | G8: 50.92592593 | H8: 55 | J8: 55 | K8: 1 | L8: 6 | M8: 6 | N8: 4 | O8: 4 | P8: 6 | Q8: 4 | R8: 2 | S8: 3 | T8: 3 | U8: 2 | V8: 0 | W8: 6 | X8: 2 | Y8: 4 | Z8: 0 | AA8: 2 | AB8: 0 | AY8: 1 | AZ8: 8 | BA8: Olimpia | BB8: Sauro | BC8: 50.92592593 | BD8: 50.92592593 | BE8: 12 | BF8: 8 | BG8: 4
A9: =IF(J$2="","",IF($E9="","",IF($E9=MAX($E$5:$E$54),1,IF($E9=$E8,$A8,COUNT($E$5:$E9))))) -> 5 | B9: 4 | C9: Elena | D9: Stefano | E9: 50 | G9: 50 | H9: 54 | J9: 54 | K9: 5 | L9: 0 | M9: 4 | N9: 2 | O9: 1 | P9: 1 | Q9: 3 | R9: 3 | S9: 6 | T9: 6 | U9: 6 | V9: 5 | W9: 3 | X9: 0 | Y9: 0 | Z9: 0 | AA9: 6 | AB9: 3 | AY9: 1 | AZ9: 3 | BA9: Cesarina | BB9: Gaetano | BC9: 50 | BD9: 50 | BE9: 9 | BF9: 4 | BG9: 5
A10: =IF(J$2="","",IF($E10="","",IF($E10=MAX($E$5:$E$54),1,IF($E10=$E9,$A9,COUNT($E$5:$E10))))) -> 5 | B10: 7 | C10: Cesarina | D10: Gaetano | E10: 50 | G10: 50 | H10: 54 | J10: 54 | K10: 2 | L10: 4 | M10: 6 | N10: 2 | O10: 6 | P10: 1 | Q10: 5 | R10: 4 | S10: 0 | T10: 0 | U10: 4 | V10: 1 | W10: 3 | X10: 3 | Y10: 0 | Z10: 3 | AA10: 4 | AB10: 6 | AY10: 1 | AZ10: 4 | BA10: Elena | BB10: Stefano | BC10: 50 | BD10: 50 | BE10: 9 | BF10: 3 | BG10: 5
A11: =IF(J$2="","",IF($E11="","",IF($E11=MAX($E$5:$E$54),1,IF($E11=$E10,$A10,COUNT($E$5:$E11))))) -> 7 | B11: 8 | C11: Tatiana | D11: Julio | E11: 46.2962963 | G11: 46.2962963 | H11: 50 | J11: 50 | K11: 0 | L11: 2 | M11: 4 | N11: 0 | O11: 1 | P11: 4 | Q11: 1 | R11: 2 | S11: 2 | T11: 2 | U11: 4 | V11: 6 | W11: 3 | X11: 6 | Y11: 3 | Z11: 3 | AA11: 4 | AB11: 3 | AY11: 1 | AZ11: 11 | BA11: Tatiana | BB11: Julio | BC11: 46.2962963 | BD11: 46.2962963 | BE11: 6 | BF11: 11 | BG11: 7
A12: =IF(J$2="","",IF($E12="","",IF($E12=MAX($E$5:$E$54),1,IF($E12=$E11,$A11,COUNT($E$5:$E12))))) -> 8 | B12: 3 | C12: Barbara | D12: Elio | E12: 41.66666667 | G12: 41.66666667 | H12: 45 | J12: 45 | K12: 1 | L12: 0 | M12: 2 | N12: 6 | O12: 3 | P12: 3 | Q12: 5 | R12: 0 | S12: 0 | T12: 4 | U12: 2 | V12: 5 | W12: 0 | X12: 4 | Y12: 4 | Z12: 3 | AA12: 0 | AB12: 3 | AY12: 1 | AZ12: 2 | BA12: Barbara | BB12: Elio | BC12: 41.66666667 | BD12: 41.66666667 | BE12: 4 | BF12: 2 | BG12: 8
A13: =IF(J$2="","",IF($E13="","",IF($E13=MAX($E$5:$E$54),1,IF($E13=$E12,$A12,COUNT($E$5:$E13))))) -> 9 | B13: 2 | C13: Antonella | D13: Dino | E13: 33.33333333 | G13: 33.33333333 | H13: 36 | J13: 36 | K13: 4 | L13: 2 | M13: 3 | N13: 3 | O13: 2 | P13: 0 | Q13: 0 | R13: 4 | S13: 4 | T13: 0 | U13: 0 | V13: 1 | W13: 3 | X13: 0 | Y13: 2 | Z13: 3 | AA13: 2 | AB13: 3 | AY13: 1 | AZ13: 1 | BA13: Antonella | BB13: Dino | BC13: 33.33333333 | BD13: 33.33333333 | BE13: 2 | BF13: 1 | BG13: 9
A14: =IF(J$2="","",IF($E14="","",IF($E14=MAX($E$5:$E$54),1,IF($E14=$E13,$A13,COUNT($E$5:$E14))))) -> 10 | E14: 0 | G14: 0 | H14: 0 | J14: 0 | AZ14: 5 | BC14: 0 | BD14: 0 | BF14: 5 | BG14: 10
A15: =IF(J$2="","",IF($E15="","",IF($E15=MAX($E$5:$E$54),1,IF($E15=$E14,$A14,COUNT($E$5:$E15))))) -> 10 | E15: 0 | G15: 0 | H15: 0 | J15: 0 | AZ15: 9 | BC15: 0 | BD15: 0 | BF15: 9 | BG15: 10
A16: =IF(J$2="","",IF($E16="","",IF($E16=MAX($E$5:$E$54),1,IF($E16=$E15,$A15,COUNT($E$5:$E16))))) -> 10 | E16: 0 | G16: 0 | H16: 0 | J16: 0 | AZ16: 12 | BC16: 0 | BD16: 0 | BF16: 12 | BG16: 10
A17: =IF(J$2="","",IF($E17="","",IF($E17=MAX($E$5:$E$54),1,IF($E17=$E16,$A16,COUNT($E$5:$E17))))) -> 10 | E17: 0 | G17: 0 | H17: 0 | J17: 0 | AZ17: 13 | BC17: 0 | BD17: 0 | BF17: 13
A18: =IF(J$2="","",IF($E18="","",IF($E18=MAX($E$5:$E$54),1,IF($E18=$E17,$A17,COUNT($E$5:$E18))))) -> 10 | E18: 0 | G18: 0 | H18: 0 | J18: 0 | AZ18: 14 | BC18: 0 | BD18: 0 | BF18: 14 | BG18: =RANK(BD18,BD$5:BD$15) -> 10
A19: =IF(J$2="","",IF($E19="","",IF($E19=MAX($E$5:$E$54),1,IF($E19=$E18,$A18,COUNT($E$5:$E19))))) -> 10 | E19: 0 | G19: 0 | H19: 0 | J19: 0 | AZ19: 15 | BC19: 0 | BD19: 0 | BF19: 15 | BG19: =RANK(BD19,BD$5:BD$15) -> 10
A20: =IF(J$2="","",IF($E20="","",IF($E20=MAX($E$5:$E$54),1,IF($E20=$E19,$A19,COUNT($E$5:$E20))))) -> 10 | E20: 0 | G20: 0 | H20: 0 | J20: 0 | AZ20: 16 | BC20: 0 | BD20: 0 | BF20: 16 | BG20: =RANK(BD20,BD$5:BD$15) -> 10
A21: =IF(J$2="","",IF($E21="","",IF($E21=MAX($E$5:$E$54),1,IF($E21=$E20,$A20,COUNT($E$5:$E21))))) -> 10 | E21: 0 | G21: 0 | H21: 0 | J21: 0 | AZ21: 17 | BC21: 0 | BD21: 0 | BF21: 17
A22: =IF(J$2="","",IF($E22="","",IF($E22=MAX($E$5:$E$54),1,IF($E22=$E21,$A21,COUNT($E$5:$E22))))) -> 10 | E22: 0 | G22: 0 | H22: 0 | J22: 0 | AZ22: 18 | BC22: 0 | BD22: 0 | BF22: 18
A23: =IF(J$2="","",IF($E23="","",IF($E23=MAX($E$5:$E$54),1,IF($E23=$E22,$A22,COUNT($E$5:$E23))))) -> 10 | E23: 0 | G23: 0 | H23: 0 | J23: 0 | AZ23: 19 | BC23: 0 | BD23: 0 | BF23: 19 | BG23: =RANK(BD23,BD$5:BD$15) -> 10
A24: =IF(J$2="","",IF($E24="","",IF($E24=MAX($E$5:$E$54),1,IF($E24=$E23,$A23,COUNT($E$5:$E24))))) -> 10 | E24: 0 | G24: 0 | H24: 0 | J24: 0 | AZ24: 20 | BC24: 0 | BD24: 0 | BF24: 20 | BG24: =RANK(BD24,BD$5:BD$15) -> 10
A25: =IF(J$2="","",IF($E25="","",IF($E25=MAX($E$5:$E$54),1,IF($E25=$E24,$A24,COUNT($E$5:$E25))))) -> 10 | E25: 0 | G25: 0 | H25: 0 | J25: 0 | AZ25: 21 | BC25: 0 | BD25: 0 | BF25: 21
A26: =IF(J$2="","",IF($E26="","",IF($E26=MAX($E$5:$E$54),1,IF($E26=$E25,$A25,COUNT($E$5:$E26))))) -> 10 | E26: 0 | G26: 0 | H26: 0 | J26: 0 | AZ26: 22 | BC26: 0 | BD26: 0 | BF26: 22 | BG26: =RANK(BD26,BD$5:BD$15) -> 10
A27: =IF(J$2="","",IF($E27="","",IF($E27=MAX($E$5:$E$54),1,IF($E27=$E26,$A26,COUNT($E$5:$E27))))) -> 10 | E27: 0 | G27: 0 | H27: 0 | J27: 0 | AZ27: 23 | BC27: 0 | BD27: 0 | BF27: 23 | BG27: =RANK(BD27,BD$5:BD$15) -> 10
A28: =IF(J$2="","",IF($E28="","",IF($E28=MAX($E$5:$E$54),1,IF($E28=$E27,$A27,COUNT($E$5:$E28))))) -> 10 | E28: 0 | G28: 0 | H28: 0 | J28: 0 | AZ28: 24 | BC28: 0 | BD28: 0 | BF28: 24 | BG28: =RANK(BD28,BD$5:BD$15) -> 10
A29: =IF(J$2="","",IF($E29="","",IF($E29=MAX($E$5:$E$54),1,IF($E29=$E28,$A28,COUNT($E$5:$E29))))) -> 10 | E29: 0 | G29: 0 | H29: 0 | J29: 0 | AZ29: 25 | BC29: 0 | BD29: 0 | BF29: 25
A30: =IF(J$2="","",IF($E30="","",IF($E30=MAX($E$5:$E$54),1,IF($E30=$E29,$A29,COUNT($E$5:$E30))))) -> 10 | E30: 0 | G30: 0 | H30: 0 | J30: 0 | AZ30: 26 | BC30: 0 | BD30: 0 | BF30: 26
A31: =IF(J$2="","",IF($E31="","",IF($E31=MAX($E$5:$E$54),1,IF($E31=$E30,$A30,COUNT($E$5:$E31))))) -> 10 | E31: 0 | G31: 0 | H31: 0 | J31: 0 | AZ31: 27 | BC31: 0 | BD31: 0 | BF31: 27
A32: =IF(J$2="","",IF($E32="","",IF($E32=MAX($E$5:$E$54),1,IF($E32=$E31,$A31,COUNT($E$5:$E32))))) -> 10 | E32: 0 | G32: 0 | H32: 0 | J32: 0 | AZ32: 28 | BC32: 0 | BD32: 0 | BF32: 28
A33: =IF(J$2="","",IF($E33="","",IF($E33=MAX($E$5:$E$54),1,IF($E33=$E32,$A32,COUNT($E$5:$E33))))) -> 10 | E33: 0 | G33: 0 | H33: 0 | J33: 0 | AZ33: 29 | BC33: 0 | BD33: 0 | BF33: 29
A34: =IF(J$2="","",IF($E34="","",IF($E34=MAX($E$5:$E$54),1,IF($E34=$E33,$A33,COUNT($E$5:$E34))))) -> 10 | E34: 0 | G34: 0 | H34: 0 | J34: 0 | AZ34: 30 | BC34: 0 | BD34: 0 | BF34: 30
A35: =IF(J$2="","",IF($E35="","",IF($E35=MAX($E$5:$E$54),1,IF($E35=$E34,$A34,COUNT($E$5:$E35))))) -> 10 | E35: 0 | G35: 0 | H35: 0 | J35: 0 | AZ35: 31 | BC35: 0 | BD35: 0 | BF35: 31
A36: =IF(J$2="","",IF($E36="","",IF($E36=MAX($E$5:$E$54),1,IF($E36=$E35,$A35,COUNT($E$5:$E36))))) -> 10 | E36: 0 | G36: 0 | H36: 0 | J36: 0 | AZ36: 32 | BC36: 0 | BD36: 0 | BF36: 32
A37: =IF(J$2="","",IF($E37="","",IF($E37=MAX($E$5:$E$54),1,IF($E37=$E36,$A36,COUNT($E$5:$E37))))) -> 10 | E37: 0 | G37: 0 | H37: 0 | J37: 0 | AZ37: 33 | BC37: 0 | BD37: 0 | BF37: 33
A38: =IF(J$2="","",IF($E38="","",IF($E38=MAX($E$5:$E$54),1,IF($E38=$E37,$A37,COUNT($E$5:$E38))))) -> 10 | E38: 0 | G38: 0 | H38: 0 | J38: 0 | AZ38: 34 | BC38: 0 | BD38: 0 | BF38: 34
A39: =IF(J$2="","",IF($E39="","",IF($E39=MAX($E$5:$E$54),1,IF($E39=$E38,$A38,COUNT($E$5:$E39))))) -> 10 | E39: 0 | G39: 0 | H39: 0 | J39: 0 | AZ39: 35 | BC39: 0 | BD39: 0 | BF39: 35
A40: =IF(J$2="","",IF($E40="","",IF($E40=MAX($E$5:$E$54),1,IF($E40=$E39,$A39,COUNT($E$5:$E40))))) -> 10 | E40: 0 | G40: 0 | H40: 0 | J40: 0 | AZ40: 36 | BC40: 0 | BD40: 0 | BF40: 36
A41: =IF(J$2="","",IF($E41="","",IF($E41=MAX($E$5:$E$54),1,IF($E41=$E40,$A40,COUNT($E$5:$E41))))) -> 10 | E41: 0 | G41: 0 | H41: 0 | J41: 0 | AZ41: 37 | BC41: 0 | BD41: 0 | BF41: 37
A42: =IF(J$2="","",IF($E42="","",IF($E42=MAX($E$5:$E$54),1,IF($E42=$E41,$A41,COUNT($E$5:$E42))))) -> 10 | E42: 0 | G42: 0 | H42: 0 | J42: 0 | AZ42: 38 | BC42: 0 | BD42: 0 | BF42: 38
A43: =IF(J$2="","",IF($E43="","",IF($E43=MAX($E$5:$E$54),1,IF($E43=$E42,$A42,COUNT($E$5:$E43))))) -> 10 | E43: 0 | G43: 0 | H43: 0 | J43: 0 | AZ43: 39 | BC43: 0 | BD43: 0 | BF43: 39
A44: =IF(J$2="","",IF($E44="","",IF($E44=MAX($E$5:$E$54),1,IF($E44=$E43,$A43,COUNT($E$5:$E44))))) -> 10 | E44: 0 | G44: 0 | H44: 0 | J44: 0 | AZ44: 40 | BC44: 0 | BD44: 0 | BF44: 40
A45: =IF(J$2="","",IF($E45="","",IF($E45=MAX($E$5:$E$54),1,IF($E45=$E44,$A44,COUNT($E$5:$E45))))) -> 10 | E45: 0 | G45: 0 | H45: 0 | J45: 0 | AZ45: 41 | BC45: 0 | BD45: 0 | BF45: 41
A46: =IF(J$2="","",IF($E46="","",IF($E46=MAX($E$5:$E$54),1,IF($E46=$E45,$A45,COUNT($E$5:$E46))))) -> 10 | E46: 0 | G46: 0 | H46: 0 | J46: 0 | AZ46: 42 | BC46: 0 | BD46: 0 | BF46: 42
A47: =IF(J$2="","",IF($E47="","",IF($E47=MAX($E$5:$E$54),1,IF($E47=$E46,$A46,COUNT($E$5:$E47))))) -> 10 | E47: 0 | G47: 0 | H47: 0 | J47: 0 | AZ47: 43 | BC47: 0 | BD47: 0 | BF47: 43
A48: =IF(J$2="","",IF($E48="","",IF($E48=MAX($E$5:$E$54),1,IF($E48=$E47,$A47,COUNT($E$5:$E48))))) -> 10 | E48: 0 | G48: 0 | H48: 0 | J48: 0 | AZ48: 44 | BC48: 0 | BD48: 0 | BF48: 44
A49: =IF(J$2="","",IF($E49="","",IF($E49=MAX($E$5:$E$54),1,IF($E49=$E48,$A48,COUNT($E$5:$E49))))) -> 10 | E49: 0 | G49: 0 | H49: 0 | J49: 0 | AZ49: 45 | BC49: 0 | BD49: 0 | BF49: 45
A50: =IF(J$2="","",IF($E50="","",IF($E50=MAX($E$5:$E$54),1,IF($E50=$E49,$A49,COUNT($E$5:$E50))))) -> 10 | E50: 0 | G50: 0 | H50: 0 | J50: 0 | AZ50: 46 | BC50: 0 | BD50: 0 | BF50: 46
A51: =IF(J$2="","",IF($E51="","",IF($E51=MAX($E$5:$E$54),1,IF($E51=$E50,$A50,COUNT($E$5:$E51))))) -> 10 | E51: 0 | G51: 0 | H51: 0 | J51: 0 | AZ51: 47 | BC51: 0 | BD51: 0 | BF51: 47
A52: =IF(J$2="","",IF($E52="","",IF($E52=MAX($E$5:$E$54),1,IF($E52=$E51,$A51,COUNT($E$5:$E52))))) -> 10 | E52: 0 | G52: 0 | H52: 0 | J52: 0 | AZ52: 48 | BC52: 0 | BD52: 0 | BF52: 48
A53: =IF(J$2="","",IF($E53="","",IF($E53=MAX($E$5:$E$54),1,IF($E53=$E52,$A52,COUNT($E$5:$E53))))) -> 10 | E53: 0 | G53: 0 | H53: 0 | J53: 0 | AZ53: 49 | BC53: 0 | BD53: 0 | BF53: 49
A54: =IF(J$2="","",IF($E54="","",IF($E54=MAX($E$5:$E$54),1,IF($E54=$E53,$A53,COUNT($E$5:$E54))))) -> 10 | E54: 0 | G54: 0 | H54: 0 | J54: 0 | AZ54: 50 | BC54: 0 | BD54: 0 | BF54: 50
D59: punteggi torneo ordinati per # di coppia
B60: # coppia | E60: con zeri | F60: senza zeri | G60: senza zeri
B61: 1 | E61: 62.03703704 | F61: =IF(E61=0,"",E61) -> 62.03703704 | G61: 62.03703704 | I61: =IF(H61=0,"",H61) ->  | BF61: 6
B62: 2 | E62: 33.33333333 | F62: 33.33333333 | G62: 33.33333333 | BF62: 1
B63: 3 | E63: 41.66666667 | F63: 41.66666667 | G63: 41.66666667 | I63: =IF(H63=0,"",H63) ->  | BF63: 2
B64: 4 | E64: 50 | F64: 50 | G64: 50 | BF64: 4
B65: 5 | E65: 50.92592593 | F65: 50.92592593 | G65: 50.92592593 | I65: =IF(H65=0,"",H65) ->  | BF65: 8
B66: 6 | E66: 53.7037037 | F66: 53.7037037 | G66: 53.7037037 | BF66: 7
B67: 7 | E67: 50 | F67: 50 | G67: 50 | BF67: 3
B68: 8 | E68: 46.2962963 | F68: 46.2962963 | G68: 46.2962963 | I68: =IF(H68=0,"",H68) ->  | BF68: 11
B69: 9 | E69: 62.03703704 | F69: 62.03703704 | G69: 62.03703704 | I69: =IF(H69=0,"",H69) ->  | BF69: 10
E70: 0 | BF70: 5
E71: 0 | BF71: 9
E72: 0 | BF72: 12
E73: 0 | I73: =IF(H73=0,"",H73) ->  | BF73: 13
E74: 0 | I74: =IF(H74=0,"",H74) ->  | BF74: 14
E75: 0 | I75: =IF(H75=0,"",H75) ->  | BF75: 15
E76: 0 | I76: =IF(H76=0,"",H76) ->  | BF76: 16
E77: 0 | BF77: 17
E78: 0 | BF78: 18
E79: 0 | I79: =IF(H79=0,"",H79) ->  | BF79: 19
E80: 0 | I80: =IF(H80=0,"",H80) ->  | BF80: 20
E81: 0 | BF81: 21
E82: 0 | BF82: 22
E83: 0 | BF83: 23
E84: 0 | BF84: 24
E85: 0 | BF85: 25
E86: 0 | BF86: 26
E87: 0 | BF87: 27
E88: 0 | BF88: 28
E89: 0 | BF89: 29
E90: 0 | BF90: 30
E91: 0 | BF91: 31
E92: 0 | BF92: 32
E93: 0 | BF93: 33
E94: 0 | BF94: 34
E95: 0 | BF95: 35
E96: 0 | BF96: 36
E97: 0 | BF97: 37
E98: 0 | BF98: 38
E99: 0 | BF99: 39
E100: 0 | BF100: 40
E101: 0 | BF101: 41
E102: 0 | BF102: 42
E103: 0 | BF103: 43
E104: 0 | BF104: 44
E105: 0 | BF105: 45
E106: 0 | BF106: 46
E107: 0 | BF107: 47
E108: 0 | BF108: 48
E109: 0 | BF109: 49
E110: 0 | BF110: 50
A119: PTS ordinati per numero standard di coppia base
A120: #STD | B120: PTS
A121: 1 | B121: 2 | E121: 33.33333333 | F121: =IF(E121=0,"",E121) -> 33.33333333 | G121: 33.33333333 | BF121: 1
A122: 2 | B122: 4 | E122: 41.66666667 | F122: 41.66666667 | G122: 41.66666667 | I122: =IF(H122=0,"",H122) ->  | BF122: 2
A123: 3 | B123: 9 | E123: 50 | F123: 50 | G123: 50 | BF123: 3
A124: 4 | B124: 9 | E124: 50 | F124: 50 | G124: 50 | BF124: 4
A125: 5 | E125: 0 | BF125: 5
A126: 6 | B126: 17 | E126: 62.03703704 | F126: 62.03703704 | G126: 62.03703704 | I126: =IF(H126=0,"",H126) ->  | BF126: 6
A127: 7 | B127: 14 | E127: 53.7037037 | F127: 53.7037037 | G127: 53.7037037 | BF127: 7
A128: 8 | B128: 12 | E128: 50.92592593 | F128: 50.92592593 | G128: 50.92592593 | I128: =IF(H128=0,"",H128) ->  | BF128: 8
A129: 9 | E129: 0 | BF129: 9
A130: 10 | B130: 17 | E130: 62.03703704 | F130: 62.03703704 | G130: 62.03703704 | I130: =IF(H130=0,"",H130) ->  | BF130: 10
A131: 11 | B131: 6 | E131: 46.2962963 | F131: 46.2962963 | G131: 46.2962963 | I131: =IF(H131=0,"",H131) ->  | BF131: 11
BE200: formule punti coppie base
BE201: =IF(BD201=0,"",IF(AZ201>11,"",IF(BD201=BD200,BE200,2*(D$3-BG201)+3-COUNTIF(BG$5:BG$54,BG201)))) -> 
BE202: =IF(BD202=0,"",IF(AZ202>11,"",IF(BD202=BD201,BE201,2*(D$3-BG202)+3-COUNTIF(BG$5:BG$54,BG202)))) -> 

Sheet 12gen
A1: Data | C1: 2019-01-12 | D1: BridgeMania 2018-19 - Torneo Mitchell scrambled
A2: luogo | C2: De Sanctis | D2: Coppie Ctrl+e | E2: Calcola Ctr+f Ctr+i | F2: Duplica Ctrl+g | G2: Clear Ctrl+h | J2: &
A3: # coppie / # c.base | C3: =IF(B5="","",COUNT(B5:B54)) -> 11 | D3: =SUM(AY5:AY54) -> 11 | E3: =IF(E5="","",SUMIF(E5:E54,">0")) -> 550 | G3: =IF(G5="","",SUM(G5:G54)) -> 550 | H3: =IF(H5="","",SUM(H5:H54)) -> 968 | I3: =SUM(I5:I54) -> 0 | J3: =SUM(J5:J54) -> 968 | K3: =SUM(K5:K54) -> 44 | L3: =SUM(L5:L54) -> 44 | M3: 44 | N3: 44 | O3: 44 | P3: 44 | Q3: 44 | R3: 44 | S3: 44 | T3: 44 | U3: 44 | V3: 44 | W3: 44 | X3: 44 | Y3: 44 | Z3: 44 | AA3: 44 | AB3: 44 | AC3: 44 | AD3: 44 | AE3: 44 | AF3: 44 | AG3: 0 | AH3: 0 | AI3: 0 | AJ3: 0 | AK3: 0 | AL3: 0 | AM3: 0 | AN3: 0 | AO3: 0 | AP3: 0 | AQ3: 0 | AR3: 0 | AS3: 0 | AT3: 0 | AU3: 0 | AV3: 0 | AW3: 0 | AX3: 0
A4: Class. | B4: # | C4: Coppie | E4: Punteggio Serata | F4: punti PTS coppie base | G4: Punteggio % | H4: Punteggio Torneo | I4: Penalità (-) | J4: Totale punti mano | K4: 1 | L4: 2 | M4: 3 | N4: 4 | O4: 5 | P4: 6 | Q4: 7 | R4: 8 | S4: 9 | T4: 10 | U4: 11 | V4: 12 | W4: 13 | X4: 14 | Y4: 15 | Z4: 16 | AA4: 17 | AB4: 18 | AC4: 19 | AD4: 20 | AE4: 21 | AF4: 22 | AG4: 23 | AH4: 24 | AI4: 25 | AJ4: 26 | AK4: 27 | AL4: 28 | AM4: 29 | AN4: 30 | AO4: 31 | AP4: 32 | AQ4: 33 | AR4: 34 | AS4: 35 | AT4: 36 | AU4: 37 | AV4: 38 | AW4: 39 | AX4: 40 | AY4: c.base presenti | AZ4: ordine c.base ad hoc | BC4: punteggi | BD4: punteggi c. base presenti | BE4: punti PTS coppie base | BF4: ordine c.base STD | BG4: Rank
A5: =IF(J$2="","",IF($E5="","",IF($E5=MAX($E$5:$E$54),1,IF($E5=$E4,$A4,COUNT($E$5:$E5))))) -> 1 | B5: 4 | C5: Manuela | D5: Roberto | E5: 61.93181818 | F5: 22 | G5: =IF(J$2="","",IF($J5=0,0,(H5*$C$3/$J$3)*50)) -> 61.93181818 | H5: =IF(J$2="","",IF(SUM($K5:$AX5)=0,0,SUM($K5:$AX5)+$I5)) -> 109 | J5: =IF(B5="",0,IF(SUM($K5:$AX5)=0,0,SUM($K5:$AX5))) -> 109 | K5: 1 | L5: 7 | M5: 8 | N5: 2 | O5: 4 | P5: 8 | Q5: 4 | R5: 4 | S5: 8 | T5: 7 | U5: 7 | V5: 1 | W5: 5 | X5: 7 | Y5: 6 | Z5: 5 | AA5: 2 | AB5: 7 | AC5: 6 | AD5: 1 | AE5: 8 | AF5: 1 | AY5: =IF(BF5>11,"",IF(B5="","",1)) -> 1 | AZ5: 7 | BA5: Manuela | BB5: Roberto | BC5: 61.93181818 | BD5: =IF(AZ5>11,0,BC5) -> 61.93181818 | BE5: =IF(BD5=0,"",IF(AZ5>11,"",IF(BD5=BD4,BE4,2*(D$3-BG5)+3-COUNTIF(BG$5:BG$54,BG5)))) -> 22 | BF5: 7 | BG5: =RANK(BD5,BD$5:BD$15) -> 1
A6: =IF(J$2="","",IF($E6="","",IF($E6=MAX($E$5:$E$54),1,IF($E6=$E5,$A5,COUNT($E$5:$E6))))) -> 2 | B6: 10 | C6: Isolde | D6: Cristina | E6: 60.79545455 | F6: 20 | G6: 60.79545455 | H6: 107 | J6: 107 | K6: 7 | L6: 2 | M6: 2 | N6: 8 | O6: 8 | P6: 5 | Q6: 5 | R6: 3 | S6: 4 | T6: 6 | U6: 4 | V6: 4 | W6: 3 | X6: 1 | Y6: 8 | Z6: 8 | AA6: 4 | AB6: 6 | AC6: 4 | AD6: 4 | AE6: 8 | AF6: 3 | AY6: 1 | AZ6: 5 | BA6: Isolde | BB6: Cristina | BC6: 60.79545455 | BD6: 60.79545455 | BE6: =IF(BD6=0,"",IF(AZ6>11,"",IF(BD6=BD5,BE5,2*(D$3-BG6)+3-COUNTIF(BG$5:BG$54,BG6)))) -> 20 | BF6: 5 | BG6: 2
A7: =IF(J$2="","",IF($E7="","",IF($E7=MAX($E$5:$E$54),1,IF($E7=$E6,$A6,COUNT($E$5:$E7))))) -> 3 | B7: 5 | C7: Barbara | D7: Elio | E7: 57.38636364 | F7: 18 | G7: 57.38636364 | H7: 101 | J7: 101 | K7: 7 | L7: 4 | M7: 6 | N7: 0 | O7: 0 | P7: 8 | Q7: 3 | R7: 8 | S7: 4 | T7: 4 | U7: 6 | V7: 2 | W7: 8 | X7: 5 | Y7: 2 | Z7: 0 | AA7: 6 | AB7: 7 | AC7: 2 | AD7: 7 | AE7: 4 | AF7: 8 | AY7: 1 | AZ7: 2 | BA7: Barbara | BB7: Elio | BC7: 57.38636364 | BD7: 57.38636364 | BE7: 18 | BF7: 2 | BG7: 3
A8: =IF(J$2="","",IF($E8="","",IF($E8=MAX($E$5:$E$54),1,IF($E8=$E7,$A7,COUNT($E$5:$E8))))) -> 4 | B8: 8 | C8: Olimpia | D8: Sauro | E8: 53.97727273 | F8: 16 | G8: 53.97727273 | H8: 95 | J8: 95 | K8: 1 | L8: 4 | M8: 4 | N8: 6 | O8: 4 | P8: 6 | Q8: 8 | R8: 5 | S8: 7 | T8: 1 | U8: 1 | V8: 7 | W8: 3 | X8: 5 | Y8: 4 | Z8: 4 | AA8: 4 | AB8: 2 | AC8: 4 | AD8: 4 | AE8: 4 | AF8: 7 | AY8: 1 | AZ8: 8 | BA8: Olimpia | BB8: Sauro | BC8: 53.97727273 | BD8: 53.97727273 | BE8: 16 | BF8: 8 | BG8: 4
A9: =IF(J$2="","",IF($E9="","",IF($E9=MAX($E$5:$E$54),1,IF($E9=$E8,$A8,COUNT($E$5:$E9))))) -> 5 | B9: 3 | C9: Renata | D9: Sandro | E9: 51.13636364 | F9: 14 | G9: 51.13636364 | H9: 90 | J9: 90 | K9: 1 | L9: 6 | M9: 8 | N9: 4 | O9: 4 | P9: 4 | Q9: 5 | R9: 0 | S9: 7 | T9: 6 | U9: 8 | V9: 7 | W9: 5 | X9: 7 | Y9: 2 | Z9: 2 | AA9: 6 | AB9: 1 | AC9: 1 | AD9: 1 | AE9: 4 | AF9: 1 | AY9: 1 | AZ9: 9 | BA9: Renata | BB9: Sandro | BC9: 51.13636364 | BD9: 51.13636364 | BE9: 14 | BF9: 9 | BG9: 5
A10: =IF(J$2="","",IF($E10="","",IF($E10=MAX($E$5:$E$54),1,IF($E10=$E9,$A9,COUNT($E$5:$E10))))) -> 6 | B10: 2 | C10: Elena | D10: Stefano | E10: 50.56818182 | F10: 12 | G10: 50.56818182 | H10: 89 | J10: 89 | K10: 4 | L10: 0 | M10: 4 | N10: 4 | O10: 4 | P10: 0 | Q10: 6 | R10: 8 | S10: 1 | T10: 7 | U10: 4 | V10: 4 | W10: 5 | X10: 0 | Y10: 6 | Z10: 6 | AA10: 2 | AB10: 1 | AC10: 8 | AD10: 8 | AE10: 4 | AF10: 3 | AY10: 1 | AZ10: 4 | BA10: Elena | BB10: Stefano | BC10: 50.56818182 | BD10: 50.56818182 | BE10: 12 | BF10: 4 | BG10: 6
A11: =IF(J$2="","",IF($E11="","",IF($E11=MAX($E$5:$E$54),1,IF($E11=$E10,$A10,COUNT($E$5:$E11))))) -> 7 | B11: 11 | C11: Antonella | D11: Dino | E11: 48.86363636 | F11: 10 | G11: 48.86363636 | H11: 86 | J11: 86 | K11: 4 | L11: 8 | M11: 0 | N11: 6 | O11: 4 | P11: 5 | Q11: 0 | R11: 3 | S11: 4 | T11: 2 | U11: 7 | V11: 8 | W11: 3 | X11: 1 | Y11: 6 | Z11: 8 | AA11: 0 | AB11: 2 | AC11: 1 | AD11: 6 | AE11: 4 | AF11: 4 | AY11: 1 | AZ11: 1 | BA11: Antonella | BB11: Dino | BC11: 48.86363636 | BD11: 48.86363636 | BE11: 10 | BF11: 1 | BG11: 7
A12: =IF(J$2="","",IF($E12="","",IF($E12=MAX($E$5:$E$54),1,IF($E12=$E11,$A11,COUNT($E$5:$E12))))) -> 8 | B12: 1 | C12: Stefania | D12: Massimo | E12: 44.31818182 | F12: 8 | G12: 44.31818182 | H12: 78 | J12: 78 | K12: 4 | L12: 4 | M12: 0 | N12: 4 | O12: 8 | P12: 0 | Q12: 8 | R12: 6 | S12: 6 | T12: 2 | U12: 1 | V12: 0 | W12: 3 | X12: 8 | Y12: 2 | Z12: 3 | AA12: 0 | AB12: 6 | AC12: 4 | AD12: 4 | AE12: 0 | AF12: 5 | AY12: 1 | AZ12: 10 | BA12: Stefania | BB12: Massimo | BC12: 44.31818182 | BD12: 44.31818182 | BE12: 8 | BF12: 10 | BG12: 8
A13: =IF(J$2="","",IF($E13="","",IF($E13=MAX($E$5:$E$54),1,IF($E13=$E12,$A12,COUNT($E$5:$E13))))) -> 9 | B13: 9 | C13: Cesarina | D13: Gaetano | E13: 42.61363636 | F13: 6 | G13: 42.61363636 | H13: 75 | J13: 75 | K13: 7 | L13: 1 | M13: 6 | N13: 0 | O13: 4 | P13: 2 | Q13: 3 | R13: 5 | S13: 2 | T13: 6 | U13: 0 | V13: 1 | W13: 0 | X13: 3 | Y13: 6 | Z13: 3 | AA13: 4 | AB13: 4 | AC13: 7 | AD13: 2 | AE13: 4 | AF13: 5 | AY13: 1 | AZ13: 3 | BA13: Cesarina | BB13: Gaetano | BC13: 42.61363636 | BD13: 42.61363636 | BE13: 6 | BF13: 3 | BG13: 9
A14: =IF(J$2="","",IF($E14="","",IF($E14=MAX($E$5:$E$54),1,IF($E14=$E13,$A13,COUNT($E$5:$E14))))) -> 10 | B14: 6 | C14: Tatiana | D14: Julio | E14: 40.90909091 | F14: 4 | G14: 40.90909091 | H14: 72 | J14: 72 | K14: 1 | L14: 7 | M14: 2 | N14: 8 | O14: 4 | P14: 3 | Q14: 2 | R14: 0 | S14: 0 | T14: 1 | U14: 4 | V14: 4 | W14: 5 | X14: 3 | Y14: 0 | Z14: 0 | AA14: 8 | AB14: 2 | AC14: 7 | AD14: 7 | AE14: 4 | AF14: 0 | AY14: 1 | AZ14: 11 | BA14: Tatiana | BB14: Julio | BC14: 40.90909091 | BD14: 40.90909091 | BE14: 4 | BF14: 11 | BG14: 10
A15: =IF(J$2="","",IF($E15="","",IF($E15=MAX($E$5:$E$54),1,IF($E15=$E14,$A14,COUNT($E$5:$E15))))) -> 11 | B15: 7 | C15: Lilli | D15: Gianni | E15: 37.5 | F15: 2 | G15: 37.5 | H15: 66 | J15: 66 | K15: 7 | L15: 1 | M15: 4 | N15: 2 | O15: 0 | P15: 3 | Q15: 0 | R15: 2 | S15: 1 | T15: 2 | U15: 2 | V15: 6 | W15: 4 | X15: 4 | Y15: 2 | Z15: 5 | AA15: 8 | AB15: 6 | AC15: 0 | AD15: 0 | AE15: 0 | AF15: 7 | AY15: 1 | AZ15: 6 | BA15: Lilli | BB15: Gianni | BC15: 37.5 | BD15: 37.5 | BE15: 2 | BF15: 6 | BG15: 11
A16: =IF(J$2="","",IF($E16="","",IF($E16=MAX($E$5:$E$54),1,IF($E16=$E15,$A15,COUNT($E$5:$E16))))) -> 12 | E16: =IF(J$2="","",IF(G16=0,0,F16+G16)) -> 0 | G16: 0 | H16: 0 | J16: 0 | AZ16: 12 | BC16: 0 | BD16: 0 | BF16: 12
A17: =IF(J$2="","",IF($E17="","",IF($E17=MAX($E$5:$E$54),1,IF($E17=$E16,$A16,COUNT($E$5:$E17))))) -> 12 | E17: 0 | G17: 0 | H17: 0 | J17: 0 | AZ17: 13 | BC17: 0 | BD17: 0 | BF17: 13
A18: =IF(J$2="","",IF($E18="","",IF($E18=MAX($E$5:$E$54),1,IF($E18=$E17,$A17,COUNT($E$5:$E18))))) -> 12 | E18: 0 | G18: 0 | H18: 0 | J18: 0 | AZ18: 14 | BC18: 0 | BD18: 0 | BF18: 14 | BG18: =RANK(BD18,BD$5:BD$15) -> 
A19: =IF(J$2="","",IF($E19="","",IF($E19=MAX($E$5:$E$54),1,IF($E19=$E18,$A18,COUNT($E$5:$E19))))) -> 12 | E19: 0 | G19: 0 | H19: 0 | J19: 0 | AZ19: 15 | BC19: 0 | BD19: 0 | BF19: 15 | BG19: =RANK(BD19,BD$5:BD$15) -> 
A20: =IF(J$2="","",IF($E20="","",IF($E20=MAX($E$5:$E$54),1,IF($E20=$E19,$A19,COUNT($E$5:$E20))))) -> 12 | E20: 0 | G20: 0 | H20: 0 | J20: 0 | AZ20: 16 | BC20: 0 | BD20: 0 | BF20: 16 | BG20: =RANK(BD20,BD$5:BD$15) -> 
A21: =IF(J$2="","",IF($E21="","",IF($E21=MAX($E$5:$E$54),1,IF($E21=$E20,$A20,COUNT($E$5:$E21))))) -> 12 | E21: 0 | G21: 0 | H21: 0 | J21: 0 | AZ21: 17 | BC21: 0 | BD21: 0 | BF21: 17
A22: =IF(J$2="","",IF($E22="","",IF($E22=MAX($E$5:$E$54),1,IF($E22=$E21,$A21,COUNT($E$5:$E22))))) -> 12 | E22: 0 | G22: 0 | H22: 0 | J22: 0 | AZ22: 18 | BC22: 0 | BD22: 0 | BF22: 18
A23: =IF(J$2="","",IF($E23="","",IF($E23=MAX($E$5:$E$54),1,IF($E23=$E22,$A22,COUNT($E$5:$E23))))) -> 12 | E23: 0 | G23: 0 | H23: 0 | J23: 0 | AZ23: 19 | BC23: 0 | BD23: 0 | BF23: 19 | BG23: =RANK(BD23,BD$5:BD$15) -> 
A24: =IF(J$2="","",IF($E24="","",IF($E24=MAX($E$5:$E$54),1,IF($E24=$E23,$A23,COUNT($E$5:$E24))))) -> 12 | E24: 0 | G24: 0 | H24: 0 | J24: 0 | AZ24: 20 | BC24: 0 | BD24: 0 | BF24: 20 | BG24: =RANK(BD24,BD$5:BD$15) -> 
A25: =IF(J$2="","",IF($E25="","",IF($E25=MAX($E$5:$E$54),1,IF($E25=$E24,$A24,COUNT($E$5:$E25))))) -> 12 | E25: 0 | G25: 0 | H25: 0 | J25: 0 | AZ25: 21 | BC25: 0 | BD25: 0 | BF25: 21
A26: =IF(J$2="","",IF($E26="","",IF($E26=MAX($E$5:$E$54),1,IF($E26=$E25,$A25,COUNT($E$5:$E26))))) -> 12 | E26: 0 | G26: 0 | H26: 0 | J26: 0 | AZ26: 22 | BC26: 0 | BD26: 0 | BF26: 22 | BG26: =RANK(BD26,BD$5:BD$15) -> 
A27: =IF(J$2="","",IF($E27="","",IF($E27=MAX($E$5:$E$54),1,IF($E27=$E26,$A26,COUNT($E$5:$E27))))) -> 12 | E27: 0 | G27: 0 | H27: 0 | J27: 0 | AZ27: 23 | BC27: 0 | BD27: 0 | BF27: 23 | BG27: =RANK(BD27,BD$5:BD$15) -> 
A28: =IF(J$2="","",IF($E28="","",IF($E28=MAX($E$5:$E$54),1,IF($E28=$E27,$A27,COUNT($E$5:$E28))))) -> 12 | E28: 0 | G28: 0 | H28: 0 | J28: 0 | AZ28: 24 | BC28: 0 | BD28: 0 | BF28: 24 | BG28: =RANK(BD28,BD$5:BD$15) -> 
A29: =IF(J$2="","",IF($E29="","",IF($E29=MAX($E$5:$E$54),1,IF($E29=$E28,$A28,COUNT($E$5:$E29))))) -> 12 | E29: 0 | G29: 0 | H29: 0 | J29: 0 | AZ29: 25 | BC29: 0 | BD29: 0 | BF29: 25
A30: =IF(J$2="","",IF($E30="","",IF($E30=MAX($E$5:$E$54),1,IF($E30=$E29,$A29,COUNT($E$5:$E30))))) -> 12 | E30: 0 | G30: 0 | H30: 0 | J30: 0 | AZ30: 26 | BC30: 0 | BD30: 0 | BF30: 26
A31: =IF(J$2="","",IF($E31="","",IF($E31=MAX($E$5:$E$54),1,IF($E31=$E30,$A30,COUNT($E$5:$E31))))) -> 12 | E31: 0 | G31: 0 | H31: 0 | J31: 0 | AZ31: 27 | BC31: 0 | BD31: 0 | BF31: 27
A32: =IF(J$2="","",IF($E32="","",IF($E32=MAX($E$5:$E$54),1,IF($E32=$E31,$A31,COUNT($E$5:$E32))))) -> 12 | E32: 0 | G32: 0 | H32: 0 | J32: 0 | AZ32: 28 | BC32: 0 | BD32: 0 | BF32: 28
A33: =IF(J$2="","",IF($E33="","",IF($E33=MAX($E$5:$E$54),1,IF($E33=$E32,$A32,COUNT($E$5:$E33))))) -> 12 | E33: 0 | G33: 0 | H33: 0 | J33: 0 | AZ33: 29 | BC33: 0 | BD33: 0 | BF33: 29
A34: =IF(J$2="","",IF($E34="","",IF($E34=MAX($E$5:$E$54),1,IF($E34=$E33,$A33,COUNT($E$5:$E34))))) -> 12 | E34: 0 | G34: 0 | H34: 0 | J34: 0 | AZ34: 30 | BC34: 0 | BD34: 0 | BF34: 30
A35: =IF(J$2="","",IF($E35="","",IF($E35=MAX($E$5:$E$54),1,IF($E35=$E34,$A34,COUNT($E$5:$E35))))) -> 12 | E35: 0 | G35: 0 | H35: 0 | J35: 0 | AZ35: 31 | BC35: 0 | BD35: 0 | BF35: 31
A36: =IF(J$2="","",IF($E36="","",IF($E36=MAX($E$5:$E$54),1,IF($E36=$E35,$A35,COUNT($E$5:$E36))))) -> 12 | E36: 0 | G36: 0 | H36: 0 | J36: 0 | AZ36: 32 | BC36: 0 | BD36: 0 | BF36: 32
A37: =IF(J$2="","",IF($E37="","",IF($E37=MAX($E$5:$E$54),1,IF($E37=$E36,$A36,COUNT($E$5:$E37))))) -> 12 | E37: =IF(J$2="","",IF(G37=0,0,F37+G37)) -> 0 | G37: =IF(J$2="","",IF($J37=0,0,(H37*$C$3/$J$3)*50)) -> 0 | H37: =IF(J$2="","",IF(SUM($K37:$AX37)=0,0,SUM($K37:$AX37)+$I37)) -> 0 | J37: =IF(B37="",0,IF(SUM($K37:$AX37)=0,0,SUM($K37:$AX37))) -> 0 | AY37: =IF(BF37>11,"",IF(B37="","",1)) ->  | AZ37: 33 | BC37: 0 | BD37: =IF(AZ37>11,0,BC37) -> 0 | BF37: 33
A38: =IF(J$2="","",IF($E38="","",IF($E38=MAX($E$5:$E$54),1,IF($E38=$E37,$A37,COUNT($E$5:$E38))))) -> 12 | E38: 0 | G38: 0 | H38: 0 | J38: 0 | AZ38: 34 | BC38: 0 | BD38: 0 | BF38: 34
A39: =IF(J$2="","",IF($E39="","",IF($E39=MAX($E$5:$E$54),1,IF($E39=$E38,$A38,COUNT($E$5:$E39))))) -> 12 | E39: 0 | G39: 0 | H39: 0 | J39: 0 | AZ39: 35 | BC39: 0 | BD39: 0 | BF39: 35
A40: =IF(J$2="","",IF($E40="","",IF($E40=MAX($E$5:$E$54),1,IF($E40=$E39,$A39,COUNT($E$5:$E40))))) -> 12 | E40: 0 | G40: 0 | H40: 0 | J40: 0 | AZ40: 36 | BC40: 0 | BD40: 0 | BF40: 36
A41: =IF(J$2="","",IF($E41="","",IF($E41=MAX($E$5:$E$54),1,IF($E41=$E40,$A40,COUNT($E$5:$E41))))) -> 12 | E41: 0 | G41: 0 | H41: 0 | J41: 0 | AZ41: 37 | BC41: 0 | BD41: 0 | BF41: 37
A42: =IF(J$2="","",IF($E42="","",IF($E42=MAX($E$5:$E$54),1,IF($E42=$E41,$A41,COUNT($E$5:$E42))))) -> 12 | E42: 0 | G42: 0 | H42: 0 | J42: 0 | AZ42: 38 | BC42: 0 | BD42: 0 | BF42: 38
A43: =IF(J$2="","",IF($E43="","",IF($E43=MAX($E$5:$E$54),1,IF($E43=$E42,$A42,COUNT($E$5:$E43))))) -> 12 | E43: 0 | G43: 0 | H43: 0 | J43: 0 | AZ43: 39 | BC43: 0 | BD43: 0 | BF43: 39
A44: =IF(J$2="","",IF($E44="","",IF($E44=MAX($E$5:$E$54),1,IF($E44=$E43,$A43,COUNT($E$5:$E44))))) -> 12 | E44: 0 | G44: 0 | H44: 0 | J44: 0 | AZ44: 40 | BC44: 0 | BD44: 0 | BF44: 40
A45: =IF(J$2="","",IF($E45="","",IF($E45=MAX($E$5:$E$54),1,IF($E45=$E44,$A44,COUNT($E$5:$E45))))) -> 12 | E45: 0 | G45: 0 | H45: 0 | J45: 0 | AZ45: 41 | BC45: 0 | BD45: 0 | BF45: 41
A46: =IF(J$2="","",IF($E46="","",IF($E46=MAX($E$5:$E$54),1,IF($E46=$E45,$A45,COUNT($E$5:$E46))))) -> 12 | E46: 0 | G46: 0 | H46: 0 | J46: 0 | AZ46: 42 | BC46: 0 | BD46: 0 | BF46: 42
A47: =IF(J$2="","",IF($E47="","",IF($E47=MAX($E$5:$E$54),1,IF($E47=$E46,$A46,COUNT($E$5:$E47))))) -> 12 | E47: 0 | G47: 0 | H47: 0 | J47: 0 | AZ47: 43 | BC47: 0 | BD47: 0 | BF47: 43
A48: =IF(J$2="","",IF($E48="","",IF($E48=MAX($E$5:$E$54),1,IF($E48=$E47,$A47,COUNT($E$5:$E48))))) -> 12 | E48: 0 | G48: 0 | H48: 0 | J48: 0 | AZ48: 44 | BC48: 0 | BD48: 0 | BF48: 44
A49: =IF(J$2="","",IF($E49="","",IF($E49=MAX($E$5:$E$54),1,IF($E49=$E48,$A48,COUNT($E$5:$E49))))) -> 12 | E49: 0 | G49: 0 | H49: 0 | J49: 0 | AZ49: 45 | BC49: 0 | BD49: 0 | BF49: 45
A50: =IF(J$2="","",IF($E50="","",IF($E50=MAX($E$5:$E$54),1,IF($E50=$E49,$A49,COUNT($E$5:$E50))))) -> 12 | E50: 0 | G50: 0 | H50: 0 | J50: 0 | AZ50: 46 | BC50: 0 | BD50: 0 | BF50: 46
A51: =IF(J$2="","",IF($E51="","",IF($E51=MAX($E$5:$E$54),1,IF($E51=$E50,$A50,COUNT($E$5:$E51))))) -> 12 | E51: 0 | G51: 0 | H51: 0 | J51: 0 | AZ51: 47 | BC51: 0 | BD51: 0 | BF51: 47
A52: =IF(J$2="","",IF($E52="","",IF($E52=MAX($E$5:$E$54),1,IF($E52=$E51,$A51,COUNT($E$5:$E52))))) -> 12 | E52: 0 | G52: 0 | H52: 0 | J52: 0 | AZ52: 48 | BC52: 0 | BD52: 0 | BF52: 48
A53: =IF(J$2="","",IF($E53="","",IF($E53=MAX($E$5:$E$54),1,IF($E53=$E52,$A52,COUNT($E$5:$E53))))) -> 12 | E53: 0 | G53: 0 | H53: 0 | J53: 0 | AZ53: 49 | BC53: 0 | BD53: 0 | BF53: 49
A54: =IF(J$2="","",IF($E54="","",IF($E54=MAX($E$5:$E$54),1,IF($E54=$E53,$A53,COUNT($E$5:$E54))))) -> 12 | E54: 0 | G54: 0 | H54: 0 | J54: 0 | AZ54: 50 | BC54: 0 | BD54: 0 | BF54: 50
D59: punteggi torneo ordinati per # di coppia
B60: # coppia | E60: con zeri | F60: senza zeri | G60: senza zeri
B61: 1 | E61: 44.31818182 | F61: =IF(E61=0,"",E61) -> 44.31818182 | G61: 44.31818182 | I61: =IF(H61=0,"",H61) ->  | BF61: 10
B62: 2 | E62: 50.56818182 | F62: 50.56818182 | G62: 50.56818182 | BF62: 4
B63: 3 | E63: 51.13636364 | F63: 51.13636364 | G63: 51.13636364 | I63: =IF(H63=0,"",H63) ->  | BF63: 9
B64: 4 | E64: 61.93181818 | F64: 61.93181818 | G64: 61.93181818 | BF64: 7
B65: 5 | E65: 57.38636364 | F65: 57.38636364 | G65: 57.38636364 | I65: =IF(H65=0,"",H65) ->  | BF65: 2
B66: 6 | E66: 40.90909091 | F66: 40.90909091 | G66: 40.90909091 | BF66: 11
B67: 7 | E67: 37.5 | F67: 37.5 | G67: 37.5 | BF67: 6
B68: 8 | E68: 53.97727273 | F68: 53.97727273 | G68: 53.97727273 | I68: =IF(H68=0,"",H68) ->  | BF68: 8
B69: 9 | E69: 42.61363636 | F69: 42.61363636 | G69: 42.61363636 | I69: =IF(H69=0,"",H69) ->  | BF69: 3
B70: 10 | E70: 60.79545455 | F70: 60.79545455 | G70: 60.79545455 | BF70: 5
B71: 11 | E71: 48.86363636 | F71: 48.86363636 | G71: 48.86363636 | BF71: 1
E72: 0 | BF72: 12
E73: 0 | I73: =IF(H73=0,"",H73) ->  | BF73: 13
E74: 0 | I74: =IF(H74=0,"",H74) ->  | BF74: 14
E75: 0 | I75: =IF(H75=0,"",H75) ->  | BF75: 15
E76: 0 | I76: =IF(H76=0,"",H76) ->  | BF76: 16
E77: 0 | BF77: 17
E78: 0 | BF78: 18
E79: 0 | I79: =IF(H79=0,"",H79) ->  | BF79: 19
E80: 0 | I80: =IF(H80=0,"",H80) ->  | BF80: 20
E81: 0 | BF81: 21
E82: 0 | BF82: 22
E83: 0 | BF83: 23
E84: 0 | BF84: 24
E85: 0 | BF85: 25
E86: 0 | BF86: 26
E87: 0 | BF87: 27
E88: 0 | BF88: 28
E89: 0 | BF89: 29
E90: 0 | BF90: 30
E91: 0 | BF91: 31
E92: 0 | BF92: 32
E93: 0 | F93: =IF(E93=0,"",E93) ->  | BF93: 33
E94: 0 | BF94: 34
E95: 0 | BF95: 35
E96: 0 | BF96: 36
E97: 0 | BF97: 37
E98: 0 | BF98: 38
E99: 0 | BF99: 39
E100: 0 | BF100: 40
E101: 0 | BF101: 41
E102: 0 | BF102: 42
E103: 0 | BF103: 43
E104: 0 | BF104: 44
E105: 0 | BF105: 45
E106: 0 | BF106: 46
E107: 0 | BF107: 47
E108: 0 | BF108: 48
E109: 0 | BF109: 49
E110: 0 | BF110: 50
A119: PTS ordinati per numero standard di coppia base
A120: #STD | B120: PTS
A121: 1 | B121: 10 | E121: 48.86363636 | F121: =IF(E121=0,"",E121) -> 48.86363636 | G121: 48.86363636 | BF121: 1
A122: 2 | B122: 18 | E122: 57.38636364 | F122: 57.38636364 | G122: 57.38636364 | I122: =IF(H122=0,"",H122) ->  | BF122: 2
A123: 3 | B123: 6 | E123: 42.61363636 | F123: 42.61363636 | G123: 42.61363636 | I123: =IF(H123=0,"",H123) ->  | BF123: 3
A124: 4 | B124: 12 | E124: 50.56818182 | F124: 50.56818182 | G124: 50.56818182 | BF124: 4
A125: 5 | B125: 20 | E125: 60.79545455 | F125: 60.79545455 | G125: 60.79545455 | BF125: 5
A126: 6 | B126: 2 | E126: 37.5 | F126: 37.5 | G126: 37.5 | BF126: 6
A127: 7 | B127: 22 | E127: 61.93181818 | F127: 61.93181818 | G127: 61.93181818 | BF127: 7
A128: 8 | B128: 16 | E128: 53.97727273 | F128: 53.97727273 | G128: 53.97727273 | I128: =IF(H128=0,"",H128) ->  | BF128: 8
A129: 9 | B129: 14 | E129: 51.13636364 | F129: 51.13636364 | G129: 51.13636364 | I129: =IF(H129=0,"",H129) ->  | BF129: 9
A130: 10 | B130: 8 | E130: 44.31818182 | F130: 44.31818182 | G130: 44.31818182 | I130: =IF(H130=0,"",H130) ->  | BF130: 10
A131: 11 | B131: 4 | E131: 40.90909091 | F131: 40.90909091 | G131: 40.90909091 | BF131: 11
BE200: formule punti coppie base
BE201: =IF(BD201=0,"",IF(AZ201>11,"",IF(BD201=BD200,BE200,2*(D$3-BG201)+3-COUNTIF(BG$5:BG$54,BG201)))) -> 
BE202: =IF(BD202=0,"",IF(AZ202>11,"",IF(BD202=BD201,BE201,2*(D$3-BG202)+3-COUNTIF(BG$5:BG$54,BG202)))) -> 

Sheet 22dic
A1: Data | C1: 2018-12-22 | D1: BridgeMania 2018-19 - Torneo Mitchell scrambled
A2: luogo | C2: Simonelli | D2: Coppie Ctrl+e | E2: Calcola Ctr+f Ctr+i | F2: Duplica Ctrl+g | G2: Clear Ctrl+h | J2: &
